Workbook

Sheet Титул (hidden)
A1: Приложение к табличному редактору MS Excel для статистической обработки результатов учебной деятельности PSORUD - Klass
B3: Муниципальное общеобразовательное учреждение: средняя общеобразовательная школа № 15 Городского округа " Города Комсомольск-на-Амуре "
B4: МОУ СОШ № 15
B5: 2014/15 учебный год
B6: 4 четверть
B8: Класс | C8: Уч-ся в классе | D8: Фамилия и инициалы классного руководителя | G8: Наименование реализуемой в классе образовательной программы
B9: 2 А | C9: =COUNTIF(АлфКнига!B$6:B$1883,Титул!B9) -> 25 | D9: Ловейко Е.С. | G9: УМК "Школа России"
B10: 2 Б | C10: =COUNTIF(АлфКнига!B$6:B$1883,Титул!B10) -> 25 | D10: Калиниченко Т.А. | G10: УМК "Школа 2100"
B11: 2 В | C11: =COUNTIF(АлфКнига!B$6:B$1883,Титул!B11) -> 13 | D11: Цилина О.В. | G11: УМК "Школа России" (ЗПР)
B12: 3 А | C12: =COUNTIF(АлфКнига!B$6:B$1883,Титул!B12) -> 26 | D12: Литвиненко И.В. | G12: УМК "Школа 2100"
B13: 4 А | C13: =COUNTIF(АлфКнига!B$6:B$1882,Титул!B13) -> 21 | D13: Сологуб Н.А. | G13: УМК "Школа России"
B14: 4 Б | C14: =COUNTIF(АлфКнига!B$6:B$1882,Титул!B14) -> 22 | D14: Варюшина И.В. | G14: УМК "Школа 2100"
B15: 4 В | C15: =COUNTIF(АлфКнига!B$6:B$1882,Титул!B15) -> 24 | D15: Ржанова О.В. | G15: УМК "Школа 2100"
B16: 5 А | C16: =COUNTIF(АлфКнига!B$6:B$1882,Титул!B16) -> 27 | D16: Астраханцева И.А. | G16: общеобразовательный
B17: 5 Б | C17: =COUNTIF(АлфКнига!B$6:B$1882,Титул!B17) -> 29 | D17: Желтова С.И. | G17: общеобразовательный
B18: 6 А | C18: =COUNTIF(АлфКнига!B$6:B$1882,Титул!B18) -> 30 | D18: Горнышкова Г.В. | G18: общеобразовательный
B19: 6 Б | C19: =COUNTIF(АлфКнига!B$6:B$1882,Титул!B19) -> 25 | D19: Заплава А.В. | G19: общеобразовательный
B20: 7 А | C20: =COUNTIF(АлфКнига!B$6:B$1882,Титул!B20) -> 26 | D20: Каплан О.Э. | G20: общеобразовательный
B21: 7 Б | C21: =COUNTIF(АлфКнига!B$6:B$1882,Титул!B21) -> 30 | D21: Дышлевич С.В. | G21: общеобразовательный
B22: 8 А | C22: =COUNTIF(АлфКнига!B$6:B$1882,Титул!B22) -> 30 | D22: Пудренко И.М. | G22: общеобразовательный
B23: 8 Б | C23: =COUNTIF(АлфКнига!B$6:B$1882,Титул!B23) -> 6 | D23: Гулевич С.Ю. | G23: общеобразовательный
B24: 8 В | C24: =COUNTIF(АлфКнига!B$6:B$1882,Титул!B24) -> 10 | D24: Деревягина Т.П. | G24: общеобразовательный
B25: 9 А | C25: =COUNTIF(АлфКнига!B$6:B$1882,Титул!B25) -> 27 | D25: Терюшкова И.Н. | G25: общеобразовательный
B26: 9 Б | C26: =COUNTIF(АлфКнига!B$6:B$1882,Титул!B26) -> 10 | D26: Шипилова О.В. | G26: общеобразовательный
B27: 9 В | C27: =COUNTIF(АлфКнига!B$6:B$1882,Титул!B27) -> 23 | D27: Годова Г.П. | G27: общеобразовательный
B28: 11 А | C28: =COUNTIF(АлфКнига!B$6:B$1882,Титул!B28) -> 25 | D28: Сидоренко Т.А. | G28: общеобразовательный (с профильным изучением английского языка)
B30: Сайт в интернете: http://www.schoolsoft.ru E-mail: schoolsoft@mail.ru Тел. 8 988 549 24 12
A31: © | B31: В.Компаниец, 2010 | D31: вбкЛист | G31: PSORUD-Klass.v.04.11.demo

Sheet АлфКнига (hidden)
B1: Ячейки, строки, столбцы НЕ УДАЛЯТЬ и НЕ ВЫРЕЗАТЬ! Списки учащихся школы копированием вставить из программы "AlpBook" или набрать ВРУЧНУЮ!. Для удаления из ячеек выбывших и вторично внесенных в список учащихся использовать команду Delete и выполнить сортировку списка по классам или ФИО.
B2: =[1]Титул!B4 -> МОУ СОШ № 15
B3: =[1]Титул!B5 -> 2014/15 учебный год
B5: Класс | C5: Фамилия, имя и отчество учащихся | D5: Фамилия и имя учащихся
B6: 2 А | C6: Богданова Алина Андреевна | D6: =GetFI(C6) -> Богданова Алина
B7: 2 А | C7: Ботников Артем Семенович | D7: Ботников Артем
B8: 2 А | C8: Ващук Михаил Борисович | D8: Ващук Михаил
B9: 2 А | C9: Голостенова Елизавета Васильевна | D9: Голостенова Елизавета
B10: 2 А | C10: Давыдова Вероника Юрьевна | D10: Давыдова Вероника
B11: 2 А | C11: Евсеева Арина Дмитриевна | D11: Евсеева Арина
B12: 2 А | C12: Зайцева Наталья Александровна | D12: Зайцева Наталья
B13: 2 А | C13: Котелевкий Илья Павлович | D13: Котелевкий Илья
B14: 2 А | C14: Лаврентьев Руслан Алексеевич | D14: Лаврентьев Руслан
B15: 2 А | C15: Лепехина Полина Денисовна | D15: Лепехина Полина
B16: 2 А | C16: Логашева Кристина Владимировна | D16: Логашева Кристина
B17: 2 А | C17: Лойко Роман Алексеевич | D17: Лойко Роман
B18: 2 А | C18: Маматкулов Санжабек Бахтиерович | D18: Маматкулов Санжабек
B19: 2 А | C19: Панфилова Надежда Сергеевна | D19: Панфилова Надежда
B20: 2 А | C20: Плесовских Жанна Викторовна | D20: Плесовских Жанна
B21: 2 А | C21: Плохих Данил Сергеевич | D21: Плохих Данил
B22: 2 А | C22: Син Дмитрий Евгеньевич | D22: Син Дмитрий
B23: 2 А | C23: Соколова Юлия Александровна | D23: Соколова Юлия
B24: 2 А | C24: Чубенко Кристина Андреевна | D24: Чубенко Кристина
B25: 2 А | C25: Яковленко Анастасия Валерьевна | D25: Яковленко Анастасия
B26: 2 Б | C26: Белокопытов Егор Константинович | D26: Белокопытов Егор
B27: 2 Б | C27: Будько Роман Алексеевич | D27: Будько Роман
B28: 2 Б | C28: Быкова Ксения Алексеевна | D28: Быкова Ксения
B29: 2 Б | C29: Галайда Степан Сергеевич | D29: Галайда Степан
B30: 2 Б | C30: Грехова Ярослава Владиславовна | D30: Грехова Ярослава
B31: 2 Б | C31: Зырянова Ирина Юрьевна | D31: Зырянова Ирина
B32: 2 Б | C32: Капустина Полина Алексеевна | D32: Капустина Полина
B33: 2 Б | C33: Карпов Максим Алексеевич | D33: Карпов Максим
B34: 2 Б | C34: Карташова Анастасия Руслановна | D34: Карташова Анастасия
B35: 2 Б | C35: Коростелева Ева Максимовна | D35: Коростелева Ева
B36: 2 Б | C36: Кристалинская Олеся Леонидовна | D36: Кристалинская Олеся
B37: 2 Б | C37: Крисюк Ксения Александровна | D37: Крисюк Ксения
B38: 2 Б | C38: Кужель Юлия Романовна | D38: Кужель Юлия
B39: 2 Б | C39: Лазаренкова Ангелина Сергеевна | D39: Лазаренкова Ангелина
B40: 2 Б | C40: Ловейко Виктория Ивановна | D40: Ловейко Виктория
B41: 2 Б | C41: Марценюк Ангелина Даниловна | D41: Марценюк Ангелина
B42: 2 Б | C42: Мордвинский Георгий Денисович | D42: Мордвинский Георгий
B43: 2 Б | C43: Мордвинский Роман Денисович | D43: Мордвинский Роман
B44: 2 Б | C44: Ожигов Даниил Дмитриевич | D44: Ожигов Даниил
B45: 2 Б | C45: Русакова Кристина Кирилловна | D45: Русакова Кристина
B46: 2 Б | C46: Саулина Ольга Алексеевна | D46: Саулина Ольга
B47: 2 Б | C47: Смолянская Валерия Сергеевна | D47: Смолянская Валерия
B48: 2 Б | C48: Спицын Илья Борисович | D48: Спицын Илья
B49: 2 Б | C49: Цилина Диана Александровна | D49: Цилина Диана
B50: 2 Б | C50: Чиркина Милена Максимовна | D50: Чиркина Милена
B51: 2 В | C51: Баженов Егор Олегович | D51: Баженов Егор
B52: 2 В | C52: Вдовченок Мария Владимировна | D52: Вдовченок Мария
B53: 2 В | C53: Воробьев Владислав Олегович | D53: Воробьев Владислав
B54: 2 В | C54: Грибов Алексей Романович | D54: Грибов Алексей
B55: 2 В | C55: Запорожан Олег Геннадьевич | D55: Запорожан Олег
B56: 2 В | C56: Илларионов Дмитрий Николаевич | D56: Илларионов Дмитрий
B57: 2 В | C57: Карпов Роман Георгиевич | D57: Карпов Роман
B58: 2 В | C58: Ковалев Владислав Александрович | D58: Ковалев Владислав
B59: 2 В | C59: Конакова Вероника Владимировна | D59: Конакова Вероника
B60: 2 В | C60: Кузьменко Александр Геннадьевич | D60: Кузьменко Александр
B61: 2 В | C61: Москвичев Сергей Викторович | D61: Москвичев Сергей
B62: 2 В | C62: Пыленок Максимильян Сергеевич | D62: Пыленок Максимильян
B63: 2 В | C63: Черных Игнат Александрович | D63: =GetFI(C63) -> Черных Игнат
B64: 3 А | C64: Бабаев Вячеслав Станиславович | D64: Бабаев Вячеслав
B65: 3 А | C65: Бочкарева Дарья Романовна | D65: Бочкарева Дарья
B66: 3 А | C66: Васильеву Алису Юрьевну | D66: Васильеву Алису
B67: 3 А | C67: Власенко Данил Михайлович | D67: Власенко Данил
B68: 3 А | C68: Воронков Игорь Олегович | D68: Воронков Игорь
B69: 3 А | C69: Зудин Владислав Сергеевич | D69: Зудин Владислав
B70: 3 А | C70: Капустин Никита Алексеевич | D70: Капустин Никита
B71: 3 А | C71: Морозков Иван Владимирович | D71: Морозков Иван
B72: 3 А | C72: Наумова Софья Александровна | D72: Наумова Софья
B73: 3 А | C73: Плесовских Наталья Викторовна | D73: Плесовских Наталья
B74: 3 А | C74: Посталова Любовь Александровна | D74: Посталова Любовь
B75: 3 А | C75: Ромашина Стелла Дмитриевна | D75: Ромашина Стелла
B76: 3 А | C76: Салимгореева Кристина Руслановна | D76: Салимгореева Кристина
B77: 3 А | C77: Сатановский Максим Романович | D77: Сатановский Максим
B78: 3 А | C78: Сергеева Ксения Дмитриевна | D78: Сергеева Ксения
B79: 3 А | C79: Сердюк Алена Евгеньевна | D79: Сердюк Алена
B80: 3 А | C80: Сердюк Алиса Витальевна | D80: Сердюк Алиса
B81: 3 А | C81: Солодкову Дарью Константиновну | D81: Солодкову Дарью
B82: 3 А | C82: Сударева Анжелика Владимировна | D82: Сударева Анжелика
B83: 3 А | C83: Таскина Валерия Ростиславовна | D83: Таскина Валерия
B84: 3 А | C84: Тимофи Карина Робертовна | D84: Тимофи Карина
B85: 3 А | C85: Хайрулин Артур Маратович | D85: Хайрулин Артур
B86: 3 А | C86: Харченко Валерия Дмитриевна | D86: Харченко Валерия
B87: 3 А | C87: Шишкин Никита Станиславович | D87: Шишкин Никита
B88: 3 А | C88: Яремей Виктория Сергеевна | D88: Яремей Виктория
B89: 4 А | C89: Алябьев Владислав Васильевич | D89: Алябьев Владислав
B90: 4 А | C90: Афанасьев Кирилл Алексеевич | D90: Афанасьев Кирилл
B91: 4 А | C91: Бестужева Екатерина Владимировна | D91: Бестужева Екатерина
B92: 4 А | C92: Буданцев Виталий Александрович | D92: Буданцев Виталий
B93: 4 А | C93: Быков Иван Дмитриевич | D93: Быков Иван
B94: 4 А | C94: Вахрушев Никита Андреевич | D94: Вахрушев Никита
B95: 4 А | C95: Гладкова Ульяна Дмитриевна | D95: Гладкова Ульяна
B96: 4 А | C96: Губенко София Александровна | D96: Губенко София
B97: 4 А | C97: Егоров Максим Алексеевич | D97: Егоров Максим
B98: 4 А | C98: Жуков Денис Сергеевич | D98: Жуков Денис
B99: 4 А | C99: Кравченко Ксения Алексеевна | D99: Кравченко Ксения
B100: 4 А | C100: Кузина Алена Сергеевна | D100: Кузина Алена
B101: 4 А | C101: Кулиев Артур Аланович | D101: Кулиев Артур
B102: 4 А | C102: Макаров Георгий Александрович | D102: Макаров Георгий
B103: 4 А | C103: Набиулина Лолита Максимовна | D103: Набиулина Лолита
B104: 4 А | C104: Позняк Анастасия Сергеевна | D104: Позняк Анастасия
B105: 4 А | C105: Силиванов Илья Владимирович | D105: Силиванов Илья
B106: 4 А | C106: Стаскевич Анастасия Николаевна | D106: Стаскевич Анастасия
B107: 4 А | C107: Сушков Евгений Александрович | D107: Сушков Евгений
B108: 4 А | C108: Юрченко Дарина Юрьевна | D108: Юрченко Дарина
B109: 4 Б | C109: Барабаш Дана Александровна | D109: Барабаш Дана
B110: 4 Б | C110: Барановская Диана Сергеевна | D110: Барановская Диана
B111: 4 Б | C111: Белан Татьяна Викторовна | D111: Белан Татьяна
B112: 4 Б | C112: Белова Елизавета Романовна | D112: Белова Елизавета
B113: 4 Б | C113: Бобылева Алена Александровна | D113: Бобылева Алена
B114: 4 Б | C114: Гречановский Дмитрий Иванович | D114: Гречановский Дмитрий
B115: 4 Б | C115: Денежкина Эмилия Игоревна | D115: Денежкина Эмилия
B116: 4 Б | C116: Дупик Артур Олегович | D116: Дупик Артур
B117: 4 Б | C117: Калекин Никита Максимович | D117: Калекин Никита
B118: 4 Б | C118: Козлова Софья Эдуардовна | D118: Козлова Софья
B119: 4 Б | C119: Липский Иван Витальевич | D119: Липский Иван
B120: 4 Б | C120: Логачева Анастасия Валентиновна | D120: =GetFI(C120) -> Логачева Анастасия
B121: 4 Б | C121: Нечай Дмитрий Александрович | D121: Нечай Дмитрий
B122: 4 Б | C122: Першин Никита Владимирович | D122: Першин Никита
B123: 4 Б | C123: Полозов Матвей Сергеевич | D123: Полозов Матвей
B124: 4 Б | C124: Репина Полина Вячеславовна | D124: Репина Полина
B125: 4 Б | C125: Сейдахмедова Зарина Магировна | D125: Сейдахмедова Зарина
B126: 4 Б | C126: Сероватова Елизавета Тимофеевна | D126: Сероватова Елизавета
B127: 4 Б | C127: Храпкова Анастасия Дмитриевна | D127: Храпкова Анастасия
B128: 4 Б | C128: Циаменко Анастасия Алексеевна | D128: Циаменко Анастасия
B129: 4 Б | C129: Шевцова Виктория Сергеевна | D129: Шевцова Виктория
B130: 4 Б | C130: Шинкоренко Анастасия Юрьевна | D130: Шинкоренко Анастасия
B131: 4 В | C131: Адинкова Александра Максимовна | D131: Адинкова Александра
B132: 4 В | C132: Бельфер Дарина Михайловна | D132: Бельфер Дарина
B133: 4 В | C133: Берчанская Анна Вадимовна | D133: Берчанская Анна
B134: 4 В | C134: Велиев Анар Яшарович | D134: Велиев Анар
B135: 4 В | C135: Жмурко Лев Андреевич | D135: Жмурко Лев
B136: 4 В | C136: Зотов Александр Андреевич | D136: Зотов Александр
B137: 4 В | C137: Ивченко Михаил Сергеевич | D137: Ивченко Михаил
B138: 4 В | C138: Казаков Константин Юрьевич | D138: Казаков Константин
B139: 4 В | C139: Ким Эмилия Федоровна | D139: Ким Эмилия
B140: 4 В | C140: Коновчук Анна Сергеевна | D140: Коновчук Анна
B141: 4 В | C141: Крюкова Дарья Александровна | D141: Крюкова Дарья
B142: 4 А | C142: Кухоренко Алина Избулаевна | D142: Кухоренко Алина
B143: 4 В | C143: Маслова Виктория Аркадьевна | D143: Маслова Виктория
B144: 4 В | C144: Михеев Павел Станиславович | D144: Михеев Павел
B145: 4 В | C145: Мухина Елизавета Юрьевна | D145: Мухина Елизавета
B146: 4 В | C146: Пельменев Сергей Витальевич | D146: Пельменев Сергей
B147: 4 В | C147: Платонов Дмитрий Николаевич | D147: Платонов Дмитрий
B148: 4 В | C148: Потьканова Екатерина Сергеевна | D148: Потьканова Екатерина
B149: 4 В | C149: Птухина Евгения Сергеевна | D149: Птухина Евгения
B150: 4 В | C150: Семенкова Диана Владимировна | D150: Семенкова Диана
B151: 4 В | C151: Тищенко Диана Александровна | D151: Тищенко Диана
B152: 4 В | C152: Федоров Артем Сергеевич | D152: Федоров Артем
B153: 4 В | C153: Широкова Карина Вадимовна | D153: Широкова Карина
B154: 5 А | C154: Александрова Полина Евгеньевна | D154: Александрова Полина
B155: 5 А | C155: Голостенова Екатерина Васильевна | D155: Голостенова Екатерина
B156: 5 А | C156: Девицына Алиса Юрьевна | D156: Девицына Алиса
B157: 5 А | C157: Дерюжков Сергей Станиславович | D157: Дерюжков Сергей
B158: 5 А | C158: Долгачева Полина Асламбековна | D158: Долгачева Полина
B159: 5 А | C159: Елизаров Александр Игоревич | D159: Елизаров Александр
B160: 5 А | C160: Еськова Ксения Алексеевна | D160: Еськова Ксения
B161: 5 А | C161: Котельников Владислав Валерьевич | D161: Котельников Владислав
B162: 5 А | C162: Куличенко Мария Андреевна | D162: Куличенко Мария
B163: 5 А | C163: Левина Алена Антоновна | D163: Левина Алена
B164: 5 А | C164: Лунева Полина Ивановна | D164: Лунева Полина
B165: 5 А | C165: Лупарев Алексей Сергеевич | D165: Лупарев Алексей
B166: 5 А | C166: Масличенко Владислав Дмитриевич | D166: Масличенко Владислав
B167: 5 А | C167: Монастыршина Вероника Максимовна | D167: Монастыршина Вероника
B168: 5 А | C168: Набок Данила Витальевич | D168: Набок Данила
B169: 5 А | C169: Новикова Софья Дмитриевна | D169: Новикова Софья
B170: 5 А | C170: Полякова Полина Александровна | D170: Полякова Полина
B171: 5 А | C171: Пономарев Артем Дмитриевич | D171: Пономарев Артем
B172: 5 А | C172: Пяточков Михаил Александрович | D172: Пяточков Михаил
B173: 5 А | C173: Сизова Ксения Романовна | D173: Сизова Ксения
B174: 5 А | C174: Терещенко Николай Алексеевич | D174: Терещенко Николай
B175: 5 А | C175: Толкачева Виктория Андреевна | D175: Толкачева Виктория
B176: 5 А | C176: Тропина Виталия Витальевна | D176: Тропина Виталия
B177: 5 А | C177: Турченко Ирина Юрьевна | D177: Турченко Ирина
B178: 5 А | C178: Черниченко Ангелина Анатольевна | D178: =GetFI(C178) -> Черниченко Ангелина
B179: 5 Б | C179: Ахмадеев Руслан Романович | D179: Ахмадеев Руслан
B180: 5 Б | C180: Беляева Дарья Алексеевна | D180: Беляева Дарья
B181: 5 Б | C181: Вахмистрова Алина Евгеньевна | D181: Вахмистрова Алина
B182: 5 Б | C182: Гуляева Кристина Романовна | D182: Гуляева Кристина
B183: 5 Б | C183: Квецинская Евгения Алексеевна | D183: Квецинская Евгения
B184: 5 Б | C184: Кристалинская Виктория Леонидовна | D184: Кристалинская Виктория
B185: 5 Б | C185: Мирошниченко Иван Алексеевич | D185: Мирошниченко Иван
B186: 5 Б | C186: Мишко Леонид Евгеньевич | D186: Мишко Леонид
B187: 5 Б | C187: Плаунова Юлия Эдуардовна | D187: Плаунова Юлия
B188: 5 Б | C188: Полякова Наталья Николаевна | D188: Полякова Наталья
B189: 5 Б | C189: Ракута Марина Алексеевна | D189: Ракута Марина
B190: 5 Б | C190: Рекин Даниил Сергеевич | D190: Рекин Даниил
B191: 5 Б | C191: Смольников Максим Сергеевич | D191: Смольников Максим
B192: 5 Б | C192: Ступко Тимофей Иванович | D192: Ступко Тимофей
B193: 5 Б | C193: Фоминых Арина Константиновна | D193: Фоминых Арина
B194: 5 Б | C194: Яримей Анастасия Сергеевна | D194: Яримей Анастасия
B195: 5 Б | C195: Бабаев Владислав Станиславович | D195: Бабаев Владислав
B196: 5 Б | C196: Балашова Анастасия Андреевна | D196: Балашова Анастасия
B197: 5 Б | C197: Докукина Виктория Сергеевна | D197: Докукина Виктория
B198: 5 Б | C198: Киселев Евгений Валерьевич | D198: Киселев Евгений
B199: 5 Б | C199: Косогор Всеволод Денисович | D199: Косогор Всеволод
B200: 5 Б | C200: Крючков Александр Павлович | D200: Крючков Александр
B201: 5 Б | C201: Михеев Иван Владимирович | D201: Михеев Иван
... 274 more rows

Sheet СпискиКлассы (hidden)
A1: 1 | B1: =A1+1 -> 2 | C1: =B1+1 -> 3 | D1: 4 | E1: 5 | F1: 6 | G1: 7 | H1: 8 | I1: 9 | J1: 10
B2: =Титул!B9 -> 2 А | C2: =Титул!B10 -> 2 Б | D2: =Титул!B11 -> 2 В | E2: =Титул!B12 -> 3 А | F2: =Титул!B13 -> 4 А | G2: =Титул!B14 -> 4 Б | H2: =Титул!B15 -> 4 В | I2: =Титул!B16 -> 5 А | J2: =Титул!B17 -> 5 Б | K2: =Титул!B18 -> 6 А | L2: =Титул!B19 -> 6 Б | M2: =Титул!B20 -> 7 А | N2: =Титул!B21 -> 7 Б | O2: =Титул!B22 -> 8 А | P2: =Титул!B23 -> 8 Б | Q2: =Титул!B24 -> 8 В | R2: =Титул!B25 -> 9 А | S2: =Титул!B26 -> 9 Б | T2: =Титул!B27 -> 9 В | U2: =Титул!B28 -> 11 А
B3: Фамилии и имена учащися класса | C3: Фамилии и имена учащися класса | D3: Фамилии и имена учащися класса | E3: Фамилии и имена учащися класса | F3: Фамилии и имена учащися класса | G3: Фамилии и имена учащися класса | H3: Фамилии и имена учащися класса | I3: Фамилии и имена учащися класса | J3: Фамилии и имена учащися класса | K3: Фамилии и имена учащися класса | L3: Фамилии и имена учащися класса | M3: Фамилии и имена учащися класса | N3: Фамилии и имена учащися класса | O3: Фамилии и имена учащися класса | P3: Фамилии и имена учащися класса | Q3: Фамилии и имена учащися класса | R3: Фамилии и имена учащися класса | S3: Фамилии и имена учащися класса | T3: Фамилии и имена учащися класса | U3: Фамилии и имена учащися класса
B4: Богданова Алина | C4: Белокопытов Егор | D4: Баженов Егор | E4: Бабаев Вячеслав | F4: Алябьев Владислав | G4: Барабаш Дана | H4: Адинкова Александра | I4: Александрова Полина | J4: Ахмадеев Руслан | K4: Бобырева Татьяна | L4: Бирко Александра | M4: Аверкиева Екатерина | N4: Агеева Юлия | O4: Аверкиев Максим | P4: Ибрагимов Владислав | Q4: Бусыгин Михаил | R4: Артемьева Ольга | S4: Борисенко Юрий | T4: Бузунова Елена | U4: Афанасьев Антон
B5: Ботников Артем | C5: Будько Роман | D5: Вдовченок Мария | E5: Бочкарева Дарья | F5: Афанасьев Кирилл | G5: Барановская Диана | H5: Бельфер Дарина | I5: Голостенова Екатерина | J5: Беляева Дарья | K5: Бычкова Ирина | L5: Варданян Сурик | M5: Баслов Федор | N5: Адиканкова Наталья | O5: Андронов Дмитрий | P5: Курдуманов Максим | Q5: Воробьев Алексей | R5: Бахман Григорий | S5: Вильский Павел | T5: Вокарин Денис | U5: Белобородов Сергей
B6: Ващук Михаил | C6: Быкова Ксения | D6: Воробьев Владислав | E6: Васильеву Алису | F6: Бестужева Екатерина | G6: Белан Татьяна | H6: Берчанская Анна | I6: Девицына Алиса | J6: Вахмистрова Алина | K6: Волошинович Виктор | L6: Ворошилов Степан | M6: Белозерова Елизавета | N6: Варданян Герман | O6: Апальков Александр | P6: Леухин Данил | Q6: Громик Дмитрий | R6: Виндец Максим | S6: Жуков Дмитрий | T6: Гнатик Данил | U6: Балябин Александр
B7: Голостенова Елизавета | C7: Галайда Степан | D7: Грибов Алексей | E7: Власенко Данил | F7: Буданцев Виталий | G7: Белова Елизавета | H7: Велиев Анар | I7: Дерюжков Сергей | J7: Гуляева Кристина | K7: Гурская Анна | L7: Герасимова Елена | M7: Белявская Виктория | N7: Воронкова Мария | O7: Аргуткин Роман | P7: Самсонов Сергей | Q7: Иваненко Илья | R7: Виндец Никита | S7: Жуков Никита | T7: Грабский Евгений | U7: Быстров Александр
B8: Давыдова Вероника | C8: Грехова Ярослава | D8: Запорожан Олег | E8: Воронков Игорь | F8: Быков Иван | G8: Бобылева Алена | H8: Жмурко Лев | I8: Долгачева Полина | J8: Квецинская Евгения | K8: Дерюгин Даниэль | L8: Дышлевич Екатерина | M8: Бодрова Ирина | N8: Гирко Александра | O8: Барабаш Максим | P8: Стрельников Никита | Q8: Корнилов Кирилл | R8: Волков Владислав | S8: Махницкий Владислав | T8: Гурский Павел | U8: Вдовина Дарья
B9: Евсеева Арина | C9: Зырянова Ирина | D9: Илларионов Дмитрий | E9: Зудин Владислав | F9: Вахрушев Никита | G9: Гречановский Дмитрий | H9: Зотов Александр | I9: Елизаров Александр | J9: Кристалинская Виктория | K9: Зайко Роман | L9: Зубков Евгений | M9: Бойко Кристина | N9: Горбунова Анна | O9: Варфоломеев Роман | P9: Шустов Вадим | Q9: Люцков Руслан | R9: Елизарова Дарья | S9: Наймушина Анастасия | T9: Зимин Роман | U9: Зубов Матвей
B10: Зайцева Наталья | C10: Капустина Полина | D10: Карпов Роман | E10: Капустин Никита | F10: Гладкова Ульяна | G10: Денежкина Эмилия | H10: Ивченко Михаил | I10: Еськова Ксения | J10: Мирошниченко Иван | K10: Коновалова Ксения | L10: Каплун Анастасия | M10: Волков Сергей | N10: Гранина Анастасия | O10: Голумбиевский Илья | Q10: Махницкий Константин | R10: Зарудная Екатерина | S10: Петраков Иван | T10: Иванченко Роман | U10: Дрозд Владимир
B11: Котелевкий Илья | C11: Карпов Максим | D11: Ковалев Владислав | E11: Морозков Иван | F11: Губенко София | G11: Дупик Артур | H11: Казаков Константин | I11: Котельников Владислав | J11: Мишко Леонид | K11: Короткин Семен | L11: Киян Максим | M11: Волобуева Юлия | N11: Жмурко Вячеслав | O11: Диодоров Данил | Q11: Ференчук Виктория | R11: Иванова Екатерина | S11: Федосеев Вячеслав | T11: Калинин Денис | U11: Иванова Кристина
B12: Лаврентьев Руслан | C12: Карташова Анастасия | D12: Конакова Вероника | E12: Наумова Софья | F12: Егоров Максим | G12: Калекин Никита | H12: Ким Эмилия | I12: Куличенко Мария | J12: Плаунова Юлия | K12: Латышев Артем | L12: Колмогорцев Виктор | M12: Ворошилов Семен | N12: Забиров Константин | O12: Ковалева Ксения | Q12: Щетинина Татьяна | R12: Ильин Сергей | S12: Чувашова Руфина | T12: Капсамун Диана | U12: Кожанова Евгения
B13: Лепехина Полина | C13: Коростелева Ева | D13: Кузьменко Александр | E13: Плесовских Наталья | F13: Жуков Денис | G13: Козлова Софья | H13: Коновчук Анна | I13: Левина Алена | J13: Полякова Наталья | K13: Левина Татьяна | L13: Кузнецов Егор | M13: Гарин Кирилл | N13: Зимин Егор | O13: Коноплев Виталий | Q13: Юдина Карина | R13: Калиниченко Валерия | S13: Шустова Мария | T13: Курнакова Анастасия | U13: Коретникова Юлия
B14: Логашева Кристина | C14: Кристалинская Олеся | D14: Москвичев Сергей | E14: Посталова Любовь | F14: Кравченко Ксения | G14: Липский Иван | H14: Крюкова Дарья | I14: Лунева Полина | J14: Ракута Марина | K14: Ливанова Анастасия | L14: Кузнецова Елизавета | M14: Демирова Сабина | N14: Ипатова Виктория | O14: Костина Наталья | R14: Каргова Мария | T14: Лиснюк Дмитрий | U14: Лесик Екатерина
B15: Лойко Роман | C15: Крисюк Ксения | D15: Пыленок Максимильян | E15: Ромашина Стелла | F15: Кузина Алена | G15: Логачева Анастасия | H15: Маслова Виктория | I15: Лупарев Алексей | J15: Рекин Даниил | K15: Мирошникова Полина | L15: Леонов Анатолий | M15: Дубинина Виктория | N15: Капсамун Милана | O15: Косякова Анастасия | R15: Копылова Алина | T15: Морозова Гюнель | U15: Ляпин Иван
B16: Маматкулов Санжабек | C16: Кужель Юлия | D16: Черных Игнат | E16: Салимгореева Кристина | F16: Кулиев Артур | G16: Нечай Дмитрий | H16: Михеев Павел | I16: Масличенко Владислав | J16: Смольников Максим | K16: Мухина Елена | L16: Малкина Алена | M16: Евдокимова Алена | N16: Кириков Дмитрий | O16: Красненков Сергей | R16: Коробкин Дмитрий | T16: Нечаева Валерия | U16: Матвеева Елена
B17: Панфилова Надежда | C17: Лазаренкова Ангелина | E17: Сатановский Максим | F17: Макаров Георгий | G17: Першин Никита | H17: Мухина Елизавета | I17: Монастыршина Вероника | J17: Ступко Тимофей | K17: Недренко Олег | L17: Меркулов Дмитрий | M17: Емельянов Алексей | N17: Лаптев Денис | O17: Кузнецов Данил | R17: Костина Виктория | T17: Папирная Анастасия | U17: Мелихов Дмитрий
B18: Плесовских Жанна | C18: Ловейко Виктория | E18: Сергеева Ксения | F18: Набиулина Лолита | G18: Полозов Матвей | H18: Пельменев Сергей | I18: Набок Данила | J18: Фоминых Арина | K18: Новоклинова Полина | L18: Олифер Владислав | M18: Иванова Анастасия | N18: Лаптев Дмитрий | O18: Матвеева Елизавета | R18: Лемешев Николай | T18: Просекова Алина | U18: Москаленко Вероника
B19: Плохих Данил | C19: Марценюк Ангелина | E19: Сердюк Алена | F19: Позняк Анастасия | G19: Репина Полина | H19: Платонов Дмитрий | I19: Новикова Софья | J19: Яримей Анастасия | K19: Павлова Ксения | L19: Харьков Влад | M19: Казакова Екатерина | N19: Лебедева Дарья | O19: Михеева Евгения | R19: Ложников Кирилл | T19: Сапалова Кристина | U19: Овчарова Кристина
B20: Син Дмитрий | C20: Мордвинский Георгий | E20: Сердюк Алиса | F20: Силиванов Илья | G20: Сейдахмедова Зарина | H20: Потьканова Екатерина | I20: Полякова Полина | J20: Бабаев Владислав | K20: Потьканова Вероника | L20: Холов Владислав | M20: Кизима Ялан | N20: Линник Екатерина | O20: Никифоров Кирилл | R20: Майнетти Анастасия | T20: Серазетдинова Ольга | U20: Попкова Татьяна
B21: Соколова Юлия | C21: Мордвинский Роман | E21: Солодкову Дарью | F21: Стаскевич Анастасия | G21: Сероватова Елизавета | H21: Птухина Евгения | I21: Пономарев Артем | J21: Балашова Анастасия | K21: Пугачев Данил | L21: Хорикова Анастасия | M21: Лопатюк Екатерина | N21: Лялько Вера | O21: Павлушев Герман | R21: Мостовая Вероника | T21: Скидин Владимир | U21: Рябов Максим
B22: Чубенко Кристина | C22: Ожигов Даниил | E22: Сударева Анжелика | F22: Сушков Евгений | G22: Храпкова Анастасия | H22: Семенкова Диана | I22: Пяточков Михаил | J22: Докукина Виктория | K22: Рысина Дарья | L22: Шапкова Диана | M22: Набиулина Полина | N22: Матвеенко Ульяна | O22: Пироган Никита | R22: Петрова Анастасия | T22: Толмачев Юрий | U22: Сидорова Наталья
B23: Яковленко Анастасия | C23: Русакова Кристина | E23: Таскина Валерия | F23: Юрченко Дарина | G23: Циаменко Анастасия | H23: Тищенко Диана | I23: Сизова Ксения | J23: Киселев Евгений | K23: Сафронова Анастасия | L23: Шмелькова Екатерина | M23: Носачёв Владимир | N23: Наумов Андрей | O23: Пяткова Екатерина | R23: Полстьянов Эдуард | T23: Худиева Авсана | U23: Сластина Алена
B24: Ягайлова Варвара | C24: Саулина Ольга | E24: Тимофи Карина | F24: Кухоренко Алина | G24: Шевцова Виктория | H24: Федоров Артем | I24: Терещенко Николай | J24: Косогор Всеволод | K24: Семенов Сергей | L24: Шокин Андрей | M24: Овчарова Антонина | N24: Новикова Виктория | O24: Сидоренко Владислав | R24: Полякова Таисия | T24: Чапурин Виталий | U24: Солодилов Александр
B25: Сахно Илья | C25: Смолянская Валерия | E25: Хайрулин Артур | F25: Лунев Владислав | G25: Шинкоренко Анастасия | H25: Широкова Карина | I25: Толкачева Виктория | J25: Крючков Александр | K25: Сергеев Владислав | L25: Цветкова Светлана | M25: Прушинская Виктория | N25: Петина Кристина | O25: Слугина Валерия | R25: Проскурина Алёна | T25: Энсс Анастасия | U25: Белоусов Олег
B26: Власов Александр | C26: Спицын Илья | E26: Харченко Валерия | H26: Игнатенко Всеволод | I26: Тропина Виталия | J26: Михеев Иван | K26: Сулягина Екатерина | L26: Васильева Регина | M26: Татьмянина Екатерина | N26: Петрова Полина | O26: Тянутова Анна | R26: Ризаева Валентина | T26: Шорохова Полина | U26: Вершинина Алина
B27: Селина Евгения | C27: Цилина Диана | E27: Шишкин Никита | H27: Мазуренко Ярослав | I27: Турченко Ирина | J27: Осипов Арсений | K27: Тараканов Евгений | L27: Евлоева Анастасия | M27: Ялова Виктория | N27: Сердюк Полина | O27: Футчик Дмитрий | R27: Соболевская Анна | T27: Мясникова | U27: Тарасикова Алина
B28: Лунева Ксения | C28: Чиркина Милена | E28: Яремей Виктория | I28: Черниченко Ангелина | J28: Очкин Кирилл | K28: Трошина Ангелина | L28: Шеповалова Маргарита | M28: Кропачева Алина | N28: Серкин Егор | O28: Храпова Алена | R28: Сотников Илья | U28: Самсонова Кристина
E29: Заикин Андрей | I29: Гиллазиев Владислав | J29: Прушинский Сергей | K29: Чечина Ксения | M29: Малов Максим | N29: Сухарев Владимир | O29: Чернышев Максим | R29: Федорин Константин
I30: Ищенко Вячеслав | J30: Суржиков Михаил | K30: Чигрина Валерия | N30: Усик Никита | O30: Чесноков Павел | R30: Хлопова Светлана
J31: Чернышова Валентина | K31: Шкварова Виолета | N31: Федоров Максим | O31: Шеховец Настя
J32: Энсс Александр | K32: Винокурова Юлия | N32: Хорошенькая Наталья | O32: Шипицин Максим
K33: Самар Кирилл | N33: Четвертных Наталья | O33: Юрьев Сергей

Sheet ШкалаТрудн (hidden)
A1: вбк | B1: =Титул!B4 -> МОУ СОШ № 15
A2: вбк | B2: =Титул!B5 -> 2014/15 учебный год
B3: № пп | C3: Учебные предметы | D3: П а р а л л е л ь к л а с с о в:
D4: 1 | E4: 2 | F4: 3 | G4: 4 | H4: 5 | I4: 6 | J4: 7 | K4: 8 | L4: 9 | M4: 10 | N4: 11
B5: 1 | C5: Алгебра | J5: 10 | K5: 9 | L5: 7 | M5: 10 | N5: 10
B6: =B5+1 -> 2 | C6: Астрономия | M6: 4 | N6: 4
B7: =B6+1 -> 3 | C7: Биология | H7: 10 | I7: 8 | J7: 7 | K7: 7 | L7: 7 | M7: 7 | N7: 7
B8: 4 | C8: География | I8: 7 | J8: 6 | K8: 6 | L8: 5 | M8: 3 | N8: 3
B9: 5 | C9: Геометрия | J9: 12 | K9: 10 | L9: 8 | M9: 11 | N9: 11
B10: 6 | C10: Граждановедение | H10: 6 | I10: 9 | J10: 9 | K10: 5
B11: 7 | C11: Естествознание | D11: 6 | E11: 6 | F11: 6 | G11: 6 | H11: 7 | I11: 8
B12: 8 | C12: ИЗО | D12: 3 | E12: 3 | F12: 3 | G12: 3 | H12: 3 | I12: 3 | J12: 1 | K12: 3
B13: 9 | C13: Иностранный язык | D13: 5 | E13: 5 | F13: 5 | G13: 5 | H13: 9 | I13: 11 | J13: 10 | K13: 8 | L13: 9 | M13: 8 | N13: 8
B14: 10 | C14: Информатика | D14: 6 | E14: 6 | F14: 6 | G14: 6 | H14: 4 | I14: 10 | J14: 4 | K14: 7 | L14: 7 | M14: 6 | N14: 6
B15: 11 | C15: История | D15: 4 | E15: 4 | F15: 4 | G15: 4 | H15: 5 | I15: 8 | J15: 6 | K15: 8 | L15: 10 | M15: 5 | N15: 5
B16: 12 | C16: Краеведение | H16: 7 | I16: 9 | J16: 5 | K16: 5 | M16: 2 | N16: 2
B17: 13 | C17: Литература | D17: 5 | E17: 5 | F17: 5 | G17: 5 | H17: 4 | I17: 6 | J17: 4 | K17: 4 | L17: 7 | M17: 8 | N17: 8
B18: 14 | C18: Математика | D18: 8 | E18: 8 | F18: 8 | G18: 8 | H18: 10 | I18: 13
B19: 15 | C19: Музыка | D19: 3 | E19: 3 | F19: 3 | G19: 3 | H19: 2 | I19: 1 | J19: 1 | K19: 1
B20: 16 | C20: МХК | J20: 8 | K20: 5 | L20: 5 | M20: 5 | N20: 5
B21: 17 | C21: ОБЖ | H21: 1 | I21: 2 | J21: 3 | K21: 3 | L21: 3 | M21: 2 | N21: 2
B22: 18 | C22: Обществознание | M22: 5 | N22: 5
B23: 19 | C23: Право
B24: 20 | C24: Риторика
B25: 21 | C25: Русский язык | D25: 7 | E25: 7 | F25: 7 | G25: 7 | H25: 8 | I25: 12 | J25: 11 | K25: 7 | L25: 6 | M25: 9 | N25: 9
B26: 22 | C26: Технология | D26: 2 | E26: 2 | F26: 2 | G26: 2 | H26: 4 | I26: 3 | J26: 2 | K26: 1 | L26: 4
B27: 23 | C27: ФЗК | D27: 1 | E27: 1 | F27: 1 | G27: 1 | H27: 3 | I27: 4 | J27: 2 | K27: 2 | L27: 2 | M27: 1 | N27: 1
B28: 24 | C28: Физика | J28: 8 | K28: 9 | L28: 13 | M28: 12 | N28: 12
B29: 25 | C29: Химия | J29: 13 | K29: 10 | L29: 12 | M29: 11 | N29: 11
B30: 26 | C30: Хореография | H30: 4 | I30: 4
B31: 27 | C31: Черчение | K31: 5 | L31: 4
B32: 28 | C32: Экология | H32: 3 | I32: 3 | J32: 3 | K32: 6 | L32: 1 | M32: 3 | N32: 3
B33: 29 | C33: Экономика | L33: 11 | M33: 6 | N33: 6
B34: 30 | C34: Природоведение | H34: 7

Sheet Нагрузка (hidden)
B1: =TRIM(Титул!B3) -> Муниципальное общеобразовательное учреждение: средняя общеобразовательная школа № 15 Городского округа " Города Комсомольск-на-Амуре " | M1: =Титул!B5 -> 2014/15 учебный год
D2: Р а с п р е д е л е н и е у ч е б н о й н а г р у з к и у ч и т е л е й п о к л а с с а м:
B3: Учебные предметы | C3: Русский язык | D3: Литература | E3: Иностранный язык | F3: Математика | G3: Алгебра | H3: Геометрия | I3: Информатика | J3: История | K3: Обществознание | L3: Окружающий мир | M3: ИЗО | N3: Музыка | O3: Технология | P3: Технология | Q3: ФЗК | R3: Иностранный язык | S3: Иностранный язык | T3: География | U3: Физика | V3: Химия | W3: Биология | X3: МХК | Y3: ФЗК | Z3: ОБЖ | AA3: Природоведение
B4: Коэф.трудности
B5: =Титул!B9 -> 2 А | C5: Ловейко | D5: Ловейко | F5: Ловейко | L5: Ловейко | M5: Ловейко | N5: Заворина | O5: Ловейко Е. С. | P5: Ловейко Е. С. | Q5: Ермакова
B6: =Титул!B10 -> 2 Б | C6: Калиниченко | D6: Калиниченко | F6: Калиниченко | L6: Калиниченко | M6: Калиниченко | N6: Заворина | O6: Калиниченко | P6: Калиниченко | Q6: Ермакова
B7: =Титул!B11 -> 2 В | C7: Цилина | D7: Цилина | F7: Цилина | L7: Цилина | M7: Цилина | N7: Заворина | O7: Цилина | P7: Цилина | Q7: Ермакова
B8: =Титул!B12 -> 3 А | C8: Литвиненко | D8: Литвиненко | F8: Литвиненко | L8: Литвиненко | M8: Литвиненко | N8: Заворина | O8: Литвиненко | P8: Литвиненко | Q8: Ермакова | R8: Калугина | S8: Каплан
B9: =Титул!B13 -> 4 А | C9: Сологуб | D9: Сологуб | F9: Сологуб | L9: Сологуб | M9: Сологуб | N9: Заворина | O9: Сологуб | P9: Сологуб | Q9: Ермакова | R9: Калугина | S9: Каплан
B10: =Титул!B14 -> 4 Б | C10: Варюшина | D10: Варюшина | F10: Варюшина | L10: Варюшина | M10: Варюшина | N10: Заворина | O10: Варюшина | P10: Варюшина | Q10: Ермакова | R10: Калугина | S10: Пудренко
B11: =Титул!B15 -> 4 В | C11: Ржанова | D11: Ржанова | F11: Ржанова | L11: Ржанова | M11: Ржанова | N11: Заворина | O11: Ржанова | P11: Ржанова | Q11: Ермакова | R11: Калугина | S11: Гулевич
B12: =Титул!B16 -> 5 А | C12: Адова | D12: Адова | F12: Адова | L12: Адова | M12: Адова | N12: Заворина | O12: Адова | P12: Адова | Q12: Ермакова | R12: Пудренко | S12: Калугина
B13: =Титул!B17 -> 5 Б | C13: Есипова | D13: Есипова | E13: Калугина | F13: Есипова | L13: Есипова | M13: Есипова | N13: Заворина | O13: Есипова | P13: Есипова | Q13: Ермакова | R13: Калугина
B14: =Титул!B18 -> 6 А | C14: Дышлевич | D14: Дышлевич | F14: Кочарова | J14: Быкова | M14: Терюшкова | N14: Заворина | O14: Девицын | P14: Потьканова | Q14: Перфильев | R14: Каплан | S14: Гулевич | AA14: Сидоренко
B15: =Титул!B19 -> 6 Б | C15: Шипилова | D15: Шипилова | F15: Заплава | J15: Быкова | M15: Терюшкова | N15: Заворина | O15: Девицын | P15: Баранчук | Q15: Перфильев | R15: Пудренко | S15: Калугина | AA15: Сидоренко
B16: =Титул!B20 -> 7 А | C16: Шипилова | D16: Шипилова | F16: Заплава | J16: Астраханцева | K16: Астраханцева | M16: Терюшкова | N16: Заворина | O16: Девицын | P16: Баранчук | Q16: Перфильев | R16: Каплан | S16: Гулевич | T16: Деревягина | W16: Сидоренко
B17: =Титул!B21 -> 7 Б | C17: Дышлевич | D17: Дышлевич | F17: Заплава | J17: Астраханцева | K17: Астраханцева | M17: Терюшкова | N17: Заворина | O17: Девицын | P17: Потьканова | Q17: Перфильев | R17: Пудренко | S17: Калугина | T17: Деревягина | W17: Сидоренко
B18: =Титул!B22 -> 8 А | C18: Годова | D18: Годова | F18: Желтова | J18: Быкова | K18: Быкова | M18: Терюшкова | N18: Заворина | O18: Девицын | P18: Потьканова | Q18: Перфильев | R18: Пудренко | S18: Каплан | T18: Сидоренко | U18: Горнышкова | W18: Сидоренко
B19: =Титул!B23 -> 8 Б | C19: Шаврина | D19: Шаврина | E19: Гулевич | F19: Заплава | I19: Головырина | J19: Астраханцева | K19: Астраханцева | M19: Терюшкова | N19: Заворина | O19: Девицын | P19: Потьканова | Q19: Перфильев | T19: Сидоренко | U19: Горнышкова | W19: Сидоренко
B20: =Титул!B24 -> 8 В | C20: Маслова | D20: Зайцева | E20: Гулевич | F20: Желтова | I20: Головырина | J20: Астраханцева | K20: Астраханцева | M20: Терюшкова | N20: Заворина | O20: Девицын | P20: Потьканова | Q20: Перфильев | T20: Сидоренко | U20: Горнышкова | W20: Деревягина
B21: =Титул!B25 -> 9 А | C21: Дышлевич | D21: Дышлевич | G21: Кочарова | H21: Кочарова | I21: Горнышкова | J21: Быкова | K21: Быкова | M21: Терюшкова | N21: Заворина | O21: Девицын | P21: Потьканова | Q21: Финаева | R21: Каплан | S21: Сахарюк | T21: Сидоренко | U21: Головырина | V21: Чжан | W21: Сидоренко | Z21: Терюшкова
B22: =Титул!B26 -> 9 Б | C22: Шипилова | D22: Шипилова | E22: Гулевич | G22: Заплава | H22: Заплава | I22: Головырина | J22: Астроханцева | K22: Астроханцева | M22: Терюшкова | N22: Заворина | O22: Девицын | P22: Потьканова | Q22: Финаева | T22: Сидоренко | U22: Головырина | V22: Деревягина | W22: Сидоренко | Z22: Терюшкова
B23: =Титул!B27 -> 9 В | C23: Годова | D23: Годова | G23: Желтова | H23: Желтова | I23: Горнышкова | J23: Астроханцева | K23: Астроханцева | M23: Терюшкова | N23: Заворина | O23: Девицын | P23: Потьканова | Q23: Финаева | R23: Каплан | S23: Гулевич | T23: Сидоренко | U23: Головырина | V23: Чжан | W23: Сидоренко | Z23: Терюшкова
B24: =Титул!B28 -> 11 А | C24: Дышлевич | D24: Дышлевич | F24: Кочарова | I24: Головырина | J24: Быкова | K24: Быкова | O24: Девицын | P24: Потьканова | Q24: Финаева | R24: Каплан | S24: Сахарюк | T24: Деревягина | U24: Горнышкова | V24: чжан | W24: Сидоренко | X24: Черкасова | Y24: Перфильев | Z24: Терюшкова

Sheet 2 А (hidden)
A1: =Титул!B5 -> 2014/15 учебный год | D1: =Титул!B4 -> МОУ СОШ № 15 | AA1: =Титул!B6 -> 4 четверть | AI1: 3+
A2: ВЕДОМОСТЬ РЕЗУЛЬТАТОВ УЧЕБНОЙ ДЕЯТЕЛЬНОСТИ | Z2: =Титул!B9 -> 2 А | AD2: класса
A3: Классный руководитель: | E3: =Титул!D9 -> Ловейко Е.С. | S3: Программа: | X3: =Титул!G9 -> УМК "Школа России"
A4: Вручную вносятся только оценки "5", "4", "3", "2", "1". Не аттестованным проставляется "0", освобожденным - "Н". | C4: У ч е б н ы е п р е д м е т ы | AF4: Результаты ученика:
C5: =Нагрузка!C3 -> Русский язык | D5: =Нагрузка!D3 -> Литература | E5: =Нагрузка!E3 -> Иностранный язык | F5: =Нагрузка!F3 -> Математика | G5: =Нагрузка!G3 -> Алгебра | H5: =Нагрузка!H3 -> Геометрия | I5: =Нагрузка!I3 -> Информатика | J5: =Нагрузка!J3 -> История | K5: =Нагрузка!K3 -> Обществознание | L5: =Нагрузка!L3 -> Окружающий мир | M5: =Нагрузка!M3 -> ИЗО | N5: =Нагрузка!N3 -> Музыка | O5: =Нагрузка!O3 -> Технология | P5: =Нагрузка!P3 -> Технология | Q5: =Нагрузка!Q3 -> ФЗК | R5: =Нагрузка!R3 -> Иностранный язык | S5: =Нагрузка!S3 -> Иностранный язык | T5: =Нагрузка!T3 -> География | U5: =Нагрузка!U3 -> Физика | V5: =Нагрузка!V3 -> Химия | W5: =Нагрузка!W3 -> Биология | X5: =Нагрузка!X3 -> МХК | Y5: =Нагрузка!Y3 -> ФЗК | Z5: =Нагрузка!Z3 -> ОБЖ | AA5: =Нагрузка!AA3 -> Природоведение | AB5: =Нагрузка!AB3 -> 0 | AC5: =Нагрузка!AC3 -> 0 | AD5: =Нагрузка!AD3 -> 0 | AE5: =Нагрузка!AE3 -> 0 | AF5: Средний балл: | AG5: Степень обученности (СОУ): | AH5: Качество успеваемости: | AI5: Рейтинговый учебный балл:
A6: 1 | B6: =СпискиКлассы!B4 -> Богданова Алина | AF6: =AVERAGE(C6:AE6) ->  | AG6: =(COUNTIF(C6:AE6,"5")+COUNTIF(C6:AE6,"4")*0.64+COUNTIF(C6:AE6,"3")*0.36+COUNTIF(C6:AE6,"2")*0.16)/(COUNTIF(C6:AE6,"5")+COUNTIF(C6:AE6,"4")+COUNTIF(C6:AE6,"3")+COUNTIF(C6:AE6,"2")+COUNTIF(C6:AE6,"0")) ->  | AH6: =((5*COUNTIF(C6:AE6,"5"))+(4*COUNTIF(C6:AE6,"4")))/(5*(COUNTA(C6:AE6)-COUNTIF(C6:AE6,"н"))) ->  | AI6: =SUMIF(C91:AE91,">0",C91:AE91)/(COUNTIF(C6:AE6,">0")+COUNTIF(C6:AE6,"=0")+COUNTIF(C6:AE6,"Н")) -> 
A7: =A6+1 -> 2 | B7: =СпискиКлассы!B5 -> Ботников Артем | AF7: =AVERAGE(C7:AE7) ->  | AG7: =(COUNTIF(C7:AE7,"5")+COUNTIF(C7:AE7,"4")*0.64+COUNTIF(C7:AE7,"3")*0.36+COUNTIF(C7:AE7,"2")*0.16)/(COUNTIF(C7:AE7,"5")+COUNTIF(C7:AE7,"4")+COUNTIF(C7:AE7,"3")+COUNTIF(C7:AE7,"2")+COUNTIF(C7:AE7,"0")) ->  | AH7: =((5*COUNTIF(C7:AE7,"5"))+(4*COUNTIF(C7:AE7,"4")))/(5*(COUNTA(C7:AE7)-COUNTIF(C7:AE7,"н"))) -> 
A8: 3 | B8: =СпискиКлассы!B6 -> Ващук Михаил | AF8: =AVERAGE(C8:AE8) -> 
A9: 4 | B9: =СпискиКлассы!B7 -> Голостенова Елизавета
A10: 5 | B10: =СпискиКлассы!B8 -> Давыдова Вероника
A11: 6 | B11: =СпискиКлассы!B9 -> Евсеева Арина
A12: 7 | B12: =СпискиКлассы!B10 -> Зайцева Наталья
A13: 8 | B13: =СпискиКлассы!B11 -> Котелевкий Илья
A14: 9 | B14: =СпискиКлассы!B12 -> Лаврентьев Руслан
A15: 10 | B15: =СпискиКлассы!B13 -> Лепехина Полина
A16: 11 | B16: =СпискиКлассы!B14 -> Логашева Кристина
A17: 12 | B17: =СпискиКлассы!B15 -> Лойко Роман | AF17: =AVERAGE(C17:AE17) -> 
A18: 13 | B18: =СпискиКлассы!B16 -> Маматкулов Санжабек
A19: 14 | B19: =СпискиКлассы!B17 -> Панфилова Надежда
A20: 15 | B20: =СпискиКлассы!B18 -> Плесовских Жанна
A21: 16 | B21: =СпискиКлассы!B19 -> Плохих Данил
A22: 17 | B22: =СпискиКлассы!B20 -> Син Дмитрий
A23: 18 | B23: =СпискиКлассы!B21 -> Соколова Юлия
A24: 19 | B24: =СпискиКлассы!B22 -> Чубенко Кристина
A25: 20 | B25: =СпискиКлассы!B23 -> Яковленко Анастасия
A26: 21 | B26: =СпискиКлассы!B24 -> Ягайлова Варвара
A27: 22 | B27: =СпискиКлассы!B25 -> Сахно Илья
A28: 23 | B28: =СпискиКлассы!B26 -> Власов Александр
A29: 24 | B29: =СпискиКлассы!B27 -> Селина Евгения
A30: 25 | B30: =СпискиКлассы!B28 -> Лунева Ксения
A31: 26 | B31: =СпискиКлассы!B29 -> 0 | AF31: =AVERAGE(C31:AE31) ->  | AG31: =(COUNTIF(C31:AE31,"5")+COUNTIF(C31:AE31,"4")*0.64+COUNTIF(C31:AE31,"3")*0.36+COUNTIF(C31:AE31,"2")*0.16)/(COUNTIF(C31:AE31,"5")+COUNTIF(C31:AE31,"4")+COUNTIF(C31:AE31,"3")+COUNTIF(C31:AE31,"2")+COUNTIF(C31:AE31,"0")) -> 
A32: 27 | B32: =СпискиКлассы!B30 -> 0
A33: 28 | B33: =СпискиКлассы!B31 -> 0
A34: 29 | B34: =СпискиКлассы!B32 -> 0
A35: 30 | B35: =СпискиКлассы!B43 -> 0 | AI35: =SUMIF(C130:AE130,">0",C130:AE130)/(COUNTIF(C35:AE35,">0")+COUNTIF(C35:AE35,"=0")+COUNTIF(C35:AE35,"Н")) -> 
A36: Фамилия и инициалы учителя - предметника | C36: =Нагрузка!C5 -> Ловейко | D36: =Нагрузка!D5 -> Ловейко | E36: =Нагрузка!E5 -> 0 | F36: =Нагрузка!F5 -> Ловейко | G36: =Нагрузка!G5 -> 0 | H36: =Нагрузка!H5 -> 0 | I36: =Нагрузка!I5 -> 0 | J36: =Нагрузка!J5 -> 0 | K36: =Нагрузка!K5 -> 0 | L36: =Нагрузка!L5 -> Ловейко | M36: =Нагрузка!M5 -> Ловейко | N36: =Нагрузка!N5 -> Заворина | O36: =Нагрузка!O5 -> Ловейко Е. С. | P36: =Нагрузка!P5 -> Ловейко Е. С. | Q36: =Нагрузка!Q5 -> Ермакова | R36: =Нагрузка!R5 -> 0 | S36: =Нагрузка!S5 -> 0 | T36: =Нагрузка!T5 -> 0 | U36: =Нагрузка!U5 -> 0 | V36: =Нагрузка!V5 -> 0 | W36: =Нагрузка!W5 -> 0 | X36: =Нагрузка!X5 -> 0 | Y36: =Нагрузка!Y5 -> 0 | Z36: =Нагрузка!Z5 -> 0 | AA36: =Нагрузка!AA5 -> 0 | AB36: =Нагрузка!AB5 -> 0 | AC36: =Нагрузка!AC5 -> 0 | AD36: =Нагрузка!AD5 -> 0 | AE36: =Нагрузка!AE5 -> 0 | AF36: Показатели результатов учебной деятельности в целом по классу:
A37: Результаты учебной деятельности класса | B37: Количество "5": | C37: =COUNTIF(C6:C35,5) -> 0 | D37: 0 | E37: 0 | F37: 0 | G37: 0 | H37: 0 | I37: 0 | J37: 0 | K37: 0 | L37: 0 | M37: 0 | N37: 0 | O37: 0 | P37: 0 | Q37: 0 | R37: 0 | S37: 0 | T37: 0 | U37: 0 | V37: 0 | W37: 0 | X37: 0 | Y37: 0 | Z37: 0 | AA37: 0 | AB37: 0 | AC37: 0 | AD37: 0 | AE37: 0 | AF37: =SUM(C37:AE37) -> 0
B38: Количество "4": | C38: =COUNTIF(C6:C35,4) -> 0 | D38: 0 | E38: 0 | F38: 0 | G38: 0 | H38: 0 | I38: 0 | J38: 0 | K38: 0 | L38: 0 | M38: 0 | N38: 0 | O38: 0 | P38: 0 | Q38: 0 | R38: 0 | S38: 0 | T38: 0 | U38: 0 | V38: 0 | W38: 0 | X38: 0 | Y38: 0 | Z38: 0 | AA38: 0 | AB38: 0 | AC38: 0 | AD38: 0 | AE38: 0 | AF38: 0
B39: Количество "3": | C39: =COUNTIF(C6:C35,3) -> 0 | D39: 0 | E39: 0 | F39: 0 | G39: 0 | H39: 0 | I39: 0 | J39: 0 | K39: 0 | L39: 0 | M39: 0 | N39: 0 | O39: 0 | P39: 0 | Q39: 0 | R39: 0 | S39: 0 | T39: 0 | U39: 0 | V39: 0 | W39: 0 | X39: 0 | Y39: 0 | Z39: 0 | AA39: 0 | AB39: 0 | AC39: 0 | AD39: 0 | AE39: 0 | AF39: 0
B40: Количество "2": | C40: =COUNTIF(C6:C35,2) -> 0 | D40: 0 | E40: 0 | F40: 0 | G40: 0 | H40: 0 | I40: 0 | J40: 0 | K40: 0 | L40: 0 | M40: 0 | N40: 0 | O40: 0 | P40: 0 | Q40: 0 | R40: 0 | S40: 0 | T40: 0 | U40: 0 | V40: 0 | W40: 0 | X40: 0 | Y40: 0 | Z40: 0 | AA40: 0 | AB40: 0 | AC40: 0 | AD40: 0 | AE40: 0 | AF40: 0
B41: Не аттестовано: | C41: =COUNTIF(C6:C35,0) -> 0 | D41: 0 | E41: 0 | F41: 0 | G41: 0 | H41: 0 | I41: 0 | J41: 0 | K41: 0 | L41: 0 | M41: 0 | N41: 0 | O41: 0 | P41: 0 | Q41: 0 | R41: 0 | S41: 0 | T41: 0 | U41: 0 | V41: 0 | W41: 0 | X41: 0 | Y41: 0 | Z41: 0 | AA41: 0 | AB41: 0 | AC41: 0 | AD41: 0 | AE41: 0 | AF41: 0
B42: Освобождено: | C42: =COUNTIF(C6:C35,"н") -> 0 | D42: 0 | E42: 0 | F42: 0 | G42: 0 | H42: 0 | I42: 0 | J42: 0 | K42: 0 | L42: 0 | M42: 0 | N42: 0 | O42: 0 | P42: 0 | Q42: 0 | R42: 0 | S42: 0 | T42: 0 | U42: 0 | V42: 0 | W42: 0 | X42: 0 | Y42: 0 | Z42: 0 | AA42: 0 | AB42: 0 | AC42: 0 | AD42: 0 | AE42: 0 | AF42: 0
B43: Успеваемость: | C43: =(C37+C38+C39)/(C37+C38+C39+C40+C41) ->  | D43: =(D37+D38+D39)/(D37+D38+D39+D40+D41) ->  | AF43: =('2 А(2)'!D2-'2 А(2)'!C43-'2 А(2)'!C53)/'2 А(2)'!D2 -> 1
B44: Качество знаний: | C44: =(C37+C38)/(C37+C38+C39+C40+C41) ->  | D44: =(D37+D38)/(D37+D38+D39+D40+D41) ->  | AF44: =('2 А(2)'!C3+'2 А(2)'!C18)/'2 А(2)'!D2 -> 0
B45: Степень обученности: | C45: =(C37+C38*0.64+C39*0.36+C40*0.16)/(C37+C38+C39+C40+C41) ->  | D45: =(D37+D38*0.64+D39*0.36+D40*0.16)/(D37+D38+D39+D40+D41) ->  | AF45: =(AF37+AF38*0.64+AF39*0.36+AF40*0.16)/(AF37+AF38+AF39+AF40+AF41) -> 
B46: Средний балл: | C46: =(C37*5+C38*4+C39*3+C40*2)/(C37+C38+C39+C40+C41) ->  | D46: =(D37*5+D38*4+D39*3+D40*2)/(D37+D38+D39+D40+D41) ->  | AF46: =(AF37*5+AF38*4+AF39*3+AF40*2)/(AF37+AF38+AF39+AF40+AF41) -> 
B47: Качество успеваемости: | C47: =(5*C37+4*C38)*0.2/(SUM(C37+C38+C39+C40+C41)) ->  | D47: =(5*COUNTIF(D6:D35,5)+4*COUNTIF(D6:D35,4))*0.2/(COUNTA(D6:D35)-COUNTIF(D6:D35,"н")) ->  | AF47: =(5*COUNTIF(C6:AE35,5)+4*COUNTIF(C6:AE35,4))*0.2/(COUNTA(C6:AE35)-COUNTIF(C6:AE35,"н")) -> 
A48: Выполнено с помощью программы статистического анализа результатов учебной деятельности | AC48: =Титул!G31 -> PSORUD-Klass.v.04.11.demo | AI48: 3+
B90: Коэф.трудн.предмета | C90: =VLOOKUP(C$5,ШкалаТрудн!$C$5:$N$34,LEFT($Z$2,2)+1,0) -> 7 | D90: =VLOOKUP(D$5,ШкалаТрудн!$C$5:$N$34,LEFT($Z$2,2)+1,0) -> 5 | E90: =VLOOKUP(E$5,ШкалаТрудн!$C$5:$N$34,LEFT($Z$2,2)+1,0) -> 5 | F90: =VLOOKUP(F$5,ШкалаТрудн!$C$5:$N$34,LEFT($Z$2,2)+1,0) -> 8 | G90: =VLOOKUP(G$5,ШкалаТрудн!$C$5:$N$34,LEFT($Z$2,2)+1,0) -> 0 | H90: =VLOOKUP(H$5,ШкалаТрудн!$C$5:$N$34,LEFT($Z$2,2)+1,0) -> 0 | I90: =VLOOKUP(I$5,ШкалаТрудн!$C$5:$N$34,LEFT($Z$2,2)+1,0) -> 6 | J90: =VLOOKUP(J$5,ШкалаТрудн!$C$5:$N$34,LEFT($Z$2,2)+1,0) -> 4 | K90: =VLOOKUP(K$5,ШкалаТрудн!$C$5:$N$34,LEFT($Z$2,2)+1,0) -> 0 | L90: =VLOOKUP(L$5,ШкалаТрудн!$C$5:$N$34,LEFT($Z$2,2)+1,0) ->  | M90: =VLOOKUP(M$5,ШкалаТрудн!$C$5:$N$34,LEFT($Z$2,2)+1,0) -> 3 | N90: =VLOOKUP(N$5,ШкалаТрудн!$C$5:$N$34,LEFT($Z$2,2)+1,0) -> 3 | O90: =VLOOKUP(O$5,ШкалаТрудн!$C$5:$N$34,LEFT($Z$2,2)+1,0) -> 2 | P90: =VLOOKUP(P$5,ШкалаТрудн!$C$5:$N$34,LEFT($Z$2,2)+1,0) -> 2 | Q90: =VLOOKUP(Q$5,ШкалаТрудн!$C$5:$N$34,LEFT($Z$2,2)+1,0) -> 1 | R90: =VLOOKUP(R$5,ШкалаТрудн!$C$5:$N$34,LEFT($Z$2,2)+1,0) -> 5 | S90: =VLOOKUP(S$5,ШкалаТрудн!$C$5:$N$34,LEFT($Z$2,2)+1,0) -> 5 | T90: =VLOOKUP(T$5,ШкалаТрудн!$C$5:$N$34,LEFT($Z$2,2)+1,0) -> 0 | U90: =VLOOKUP(U$5,ШкалаТрудн!$C$5:$N$34,LEFT($Z$2,2)+1,0) -> 0 | V90: =VLOOKUP(V$5,ШкалаТрудн!$C$5:$N$34,LEFT($Z$2,2)+1,0) -> 0 | W90: =VLOOKUP(W$5,ШкалаТрудн!$C$5:$N$34,LEFT($Z$2,2)+1,0) -> 0 | X90: =VLOOKUP(X$5,ШкалаТрудн!$C$5:$N$34,LEFT($Z$2,2)+1,0) -> 0 | Y90: =VLOOKUP(Y$5,ШкалаТрудн!$C$5:$N$34,LEFT($Z$2,2)+1,0) -> 1 | Z90: =VLOOKUP(Z$5,ШкалаТрудн!$C$5:$N$34,LEFT($Z$2,2)+1,0) -> 0 | AA90: =VLOOKUP(AA$5,ШкалаТрудн!$C$5:$N$34,LEFT($Z$2,2)+1,0) -> 0 | AB90: =VLOOKUP(AB$5,ШкалаТрудн!$C$5:$N$34,LEFT($Z$2,2)+1,0) ->  | AC90: =VLOOKUP(AC$5,ШкалаТрудн!$C$5:$N$34,LEFT($Z$2,2)+1,0) ->  | AD90: =VLOOKUP(AD$5,ШкалаТрудн!$C$5:$N$34,LEFT($Z$2,2)+1,0) ->  | AE90: =VLOOKUP(AE$5,ШкалаТрудн!$C$5:$N$34,LEFT($Z$2,2)+1,0) -> 
C91: =C6*C$90 -> 0 | D91: 0 | E91: 0 | F91: 0 | G91: 0 | H91: 0 | I91: 0 | J91: 0 | K91: 0 | M91: 0 | N91: 0 | O91: 0 | P91: 0 | Q91: 0 | R91: 0 | S91: 0 | T91: 0 | U91: 0 | V91: 0 | W91: 0 | X91: 0 | Y91: 0 | Z91: 0 | AA91: 0
C92: =C7*C$90 -> 0 | D92: 0 | E92: 0 | F92: 0 | G92: 0 | H92: 0 | I92: 0 | J92: 0 | K92: 0 | M92: 0 | N92: 0 | O92: 0 | P92: 0 | Q92: 0 | R92: 0 | S92: 0 | T92: 0 | U92: 0 | V92: 0 | W92: 0 | X92: 0 | Y92: 0 | Z92: 0 | AA92: 0
C93: =C8*C$90 -> 0 | D93: 0 | E93: 0 | F93: 0 | G93: 0 | H93: 0 | I93: 0 | J93: 0 | K93: 0 | M93: 0 | N93: 0 | O93: 0 | P93: 0 | Q93: 0 | R93: 0 | S93: 0 | T93: 0 | U93: 0 | V93: 0 | W93: 0 | X93: 0 | Y93: 0 | Z93: 0 | AA93: 0
C94: =C9*C$90 -> 0 | D94: 0 | E94: 0 | F94: 0 | G94: 0 | H94: 0 | I94: 0 | J94: 0 | K94: 0 | M94: 0 | N94: 0 | O94: 0 | P94: 0 | Q94: 0 | R94: 0 | S94: 0 | T94: 0 | U94: 0 | V94: 0 | W94: 0 | X94: 0 | Y94: 0 | Z94: 0 | AA94: 0
C95: =C10*C$90 -> 0 | D95: 0 | E95: 0 | F95: 0 | G95: 0 | H95: 0 | I95: 0 | J95: 0 | K95: 0 | M95: 0 | N95: 0 | O95: 0 | P95: 0 | Q95: 0 | R95: 0 | S95: 0 | T95: 0 | U95: 0 | V95: 0 | W95: 0 | X95: 0 | Y95: 0 | Z95: 0 | AA95: 0
C96: =C11*C$90 -> 0 | D96: 0 | E96: 0 | F96: 0 | G96: 0 | H96: 0 | I96: 0 | J96: 0 | K96: 0 | M96: 0 | N96: 0 | O96: 0 | P96: 0 | Q96: 0 | R96: 0 | S96: 0 | T96: 0 | U96: 0 | V96: 0 | W96: 0 | X96: 0 | Y96: 0 | Z96: 0 | AA96: 0
C97: =C12*C$90 -> 0 | D97: 0 | E97: 0 | F97: 0 | G97: 0 | H97: 0 | I97: 0 | J97: 0 | K97: 0 | M97: 0 | N97: 0 | O97: 0 | P97: 0 | Q97: 0 | R97: 0 | S97: 0 | T97: 0 | U97: 0 | V97: 0 | W97: 0 | X97: 0 | Y97: 0 | Z97: 0 | AA97: 0
C98: =C13*C$90 -> 0 | D98: 0 | E98: 0 | F98: 0 | G98: 0 | H98: 0 | I98: 0 | J98: 0 | K98: 0 | M98: 0 | N98: 0 | O98: 0 | P98: 0 | Q98: 0 | R98: 0 | S98: 0 | T98: 0 | U98: 0 | V98: 0 | W98: 0 | X98: 0 | Y98: 0 | Z98: 0 | AA98: 0
C99: =C14*C$90 -> 0 | D99: 0 | E99: 0 | F99: 0 | G99: 0 | H99: 0 | I99: 0 | J99: 0 | K99: 0 | M99: 0 | N99: 0 | O99: 0 | P99: 0 | Q99: 0 | R99: 0 | S99: 0 | T99: 0 | U99: 0 | V99: 0 | W99: 0 | X99: 0 | Y99: 0 | Z99: 0 | AA99: 0
C100: =C15*C$90 -> 0 | D100: 0 | E100: 0 | F100: 0 | G100: 0 | H100: 0 | I100: 0 | J100: 0 | K100: 0 | M100: 0 | N100: 0 | O100: 0 | P100: 0 | Q100: 0 | R100: 0 | S100: 0 | T100: 0 | U100: 0 | V100: 0 | W100: 0 | X100: 0 | Y100: 0 | Z100: 0 | AA100: 0
C101: =C16*C$90 -> 0 | D101: 0 | E101: 0 | F101: 0 | G101: 0 | H101: 0 | I101: 0 | J101: 0 | K101: 0 | M101: 0 | N101: 0 | O101: 0 | P101: 0 | Q101: 0 | R101: 0 | S101: 0 | T101: 0 | U101: 0 | V101: 0 | W101: 0 | X101: 0 | Y101: 0 | Z101: 0 | AA101: 0
C102: =C17*C$90 -> 0 | D102: 0 | E102: 0 | F102: 0 | G102: 0 | H102: 0 | I102: 0 | J102: 0 | K102: 0 | M102: 0 | N102: 0 | O102: 0 | P102: 0 | Q102: 0 | R102: 0 | S102: 0 | T102: 0 | U102: 0 | V102: 0 | W102: 0 | X102: 0 | Y102: 0 | Z102: 0 | AA102: 0
C103: =C18*C$90 -> 0 | D103: 0 | E103: 0 | F103: 0 | G103: 0 | H103: 0 | I103: 0 | J103: 0 | K103: 0 | M103: 0 | N103: 0 | O103: 0 | P103: 0 | Q103: 0 | R103: 0 | S103: 0 | T103: 0 | U103: 0 | V103: 0 | W103: 0 | X103: 0 | Y103: 0 | Z103: 0 | AA103: 0
C104: =C19*C$90 -> 0 | D104: 0 | E104: 0 | F104: 0 | G104: 0 | H104: 0 | I104: 0 | J104: 0 | K104: 0 | M104: 0 | N104: 0 | O104: 0 | P104: 0 | Q104: 0 | R104: 0 | S104: 0 | T104: 0 | U104: 0 | V104: 0 | W104: 0 | X104: 0 | Y104: 0 | Z104: 0 | AA104: 0
C105: =C20*C$90 -> 0 | D105: 0 | E105: 0 | F105: 0 | G105: 0 | H105: 0 | I105: 0 | J105: 0 | K105: 0 | M105: 0 | N105: 0 | O105: 0 | P105: 0 | Q105: 0 | R105: 0 | S105: 0 | T105: 0 | U105: 0 | V105: 0 | W105: 0 | X105: 0 | Y105: 0 | Z105: 0 | AA105: 0
C106: =C21*C$90 -> 0 | D106: 0 | E106: 0 | F106: 0 | G106: 0 | H106: 0 | I106: 0 | J106: 0 | K106: 0 | M106: 0 | N106: 0 | O106: 0 | P106: 0 | Q106: 0 | R106: 0 | S106: 0 | T106: 0 | U106: 0 | V106: 0 | W106: 0 | X106: 0 | Y106: 0 | Z106: 0 | AA106: 0
C107: =C22*C$90 -> 0 | D107: 0 | E107: 0 | F107: 0 | G107: 0 | H107: 0 | I107: 0 | J107: 0 | K107: 0 | M107: 0 | N107: 0 | O107: 0 | P107: 0 | Q107: 0 | R107: 0 | S107: 0 | T107: 0 | U107: 0 | V107: 0 | W107: 0 | X107: 0 | Y107: 0 | Z107: 0 | AA107: 0
C108: =C23*C$90 -> 0 | D108: 0 | E108: 0 | F108: 0 | G108: 0 | H108: 0 | I108: 0 | J108: 0 | K108: 0 | M108: 0 | N108: 0 | O108: 0 | P108: 0 | Q108: 0 | R108: 0 | S108: 0 | T108: 0 | U108: 0 | V108: 0 | W108: 0 | X108: 0 | Y108: 0 | Z108: 0 | AA108: 0
C109: =C24*C$90 -> 0 | D109: 0 | E109: 0 | F109: 0 | G109: 0 | H109: 0 | I109: 0 | J109: 0 | K109: 0 | M109: 0 | N109: 0 | O109: 0 | P109: 0 | Q109: 0 | R109: 0 | S109: 0 | T109: 0 | U109: 0 | V109: 0 | W109: 0 | X109: 0 | Y109: 0 | Z109: 0 | AA109: 0
C110: =C25*C$90 -> 0 | D110: 0 | E110: 0 | F110: 0 | G110: 0 | H110: 0 | I110: 0 | J110: 0 | K110: 0 | M110: 0 | N110: 0 | O110: 0 | P110: 0 | Q110: 0 | R110: 0 | S110: 0 | T110: 0 | U110: 0 | V110: 0 | W110: 0 | X110: 0 | Y110: 0 | Z110: 0 | AA110: 0
C111: =C26*C$90 -> 0 | D111: 0 | E111: 0 | F111: 0 | G111: 0 | H111: 0 | I111: 0 | J111: 0 | K111: 0 | M111: 0 | N111: 0 | O111: 0 | P111: 0 | Q111: 0 | R111: 0 | S111: 0 | T111: 0 | U111: 0 | V111: 0 | W111: 0 | X111: 0 | Y111: 0 | Z111: 0 | AA111: 0
C112: =C27*C$90 -> 0 | D112: 0 | E112: 0 | F112: 0 | G112: 0 | H112: 0 | I112: 0 | J112: 0 | K112: 0 | M112: 0 | N112: 0 | O112: 0 | P112: 0 | Q112: 0 | R112: 0 | S112: 0 | T112: 0 | U112: 0 | V112: 0 | W112: 0 | X112: 0 | Y112: 0 | Z112: 0 | AA112: 0
C113: =C28*C$90 -> 0 | D113: 0 | E113: 0 | F113: 0 | G113: 0 | H113: 0 | I113: 0 | J113: 0 | K113: 0 | M113: 0 | N113: 0 | O113: 0 | P113: 0 | Q113: 0 | R113: 0 | S113: 0 | T113: 0 | U113: 0 | V113: 0 | W113: 0 | X113: 0 | Y113: 0 | Z113: 0 | AA113: 0
C114: =C29*C$90 -> 0 | D114: 0 | E114: 0 | F114: 0 | G114: 0 | H114: 0 | I114: 0 | J114: 0 | K114: 0 | M114: 0 | N114: 0 | O114: 0 | P114: 0 | Q114: 0 | R114: 0 | S114: 0 | T114: 0 | U114: 0 | V114: 0 | W114: 0 | X114: 0 | Y114: 0 | Z114: 0 | AA114: 0
C115: =C30*C$90 -> 0 | D115: 0 | E115: 0 | F115: 0 | G115: 0 | H115: 0 | I115: 0 | J115: 0 | K115: 0 | M115: 0 | N115: 0 | O115: 0 | P115: 0 | Q115: 0 | R115: 0 | S115: 0 | T115: 0 | U115: 0 | V115: 0 | W115: 0 | X115: 0 | Y115: 0 | Z115: 0 | AA115: 0
C116: =C31*C$90 -> 0 | D116: 0 | E116: 0 | F116: 0 | G116: 0 | H116: 0 | I116: 0 | J116: 0 | K116: 0 | M116: 0 | N116: 0 | O116: 0 | P116: 0 | Q116: 0 | R116: 0 | S116: 0 | T116: 0 | U116: 0 | V116: 0 | W116: 0 | X116: 0 | Y116: 0 | Z116: 0 | AA116: 0
C117: =C32*C$90 -> 0 | D117: 0 | E117: 0 | F117: 0 | G117: 0 | H117: 0 | I117: 0 | J117: 0 | K117: 0 | M117: 0 | N117: 0 | O117: 0 | P117: 0 | Q117: 0 | R117: 0 | S117: 0 | T117: 0 | U117: 0 | V117: 0 | W117: 0 | X117: 0 | Y117: 0 | Z117: 0 | AA117: 0
C118: =C33*C$90 -> 0 | D118: 0 | E118: 0 | F118: 0 | G118: 0 | H118: 0 | I118: 0 | J118: 0 | K118: 0 | M118: 0 | N118: 0 | O118: 0 | P118: 0 | Q118: 0 | R118: 0 | S118: 0 | T118: 0 | U118: 0 | V118: 0 | W118: 0 | X118: 0 | Y118: 0 | Z118: 0 | AA118: 0
C119: =C34*C$90 -> 0 | D119: 0 | E119: 0 | F119: 0 | G119: 0 | H119: 0 | I119: 0 | J119: 0 | K119: 0 | M119: 0 | N119: 0 | O119: 0 | P119: 0 | Q119: 0 | R119: 0 | S119: 0 | T119: 0 | U119: 0 | V119: 0 | W119: 0 | X119: 0 | Y119: 0 | Z119: 0 | AA119: 0
C120: =#REF!*C$90 ->  | D120: =#REF!*D$90 ->  | E120: =#REF!*E$90 ->  | F120: =#REF!*F$90 ->  | G120: =#REF!*G$90 ->  | H120: =#REF!*H$90 ->  | I120: =#REF!*I$90 ->  | J120: =#REF!*J$90 ->  | K120: =#REF!*K$90 ->  | L120: =#REF!*L$90 ->  | M120: =#REF!*M$90 ->  | N120: =#REF!*N$90 ->  | O120: =#REF!*O$90 ->  | P120: =#REF!*P$90 ->  | Q120: =#REF!*Q$90 ->  | R120: =#REF!*R$90 ->  | S120: =#REF!*S$90 ->  | T120: =#REF!*T$90 ->  | U120: =#REF!*U$90 ->  | V120: =#REF!*V$90 ->  | W120: =#REF!*W$90 ->  | X120: =#REF!*X$90 ->  | Y120: =#REF!*Y$90 ->  | Z120: =#REF!*Z$90 ->  | AA120: =#REF!*AA$90 ->  | AB120: =#REF!*AB$90 ->  | AC120: =#REF!*AC$90 ->  | AD120: =#REF!*AD$90 ->  | AE120: =#REF!*AE$90 -> 
C121: =#REF!*C$90 ->  | D121: =#REF!*D$90 ->  | E121: =#REF!*E$90 ->  | F121: =#REF!*F$90 ->  | G121: =#REF!*G$90 ->  | H121: =#REF!*H$90 ->  | I121: =#REF!*I$90 ->  | J121: =#REF!*J$90 ->  | K121: =#REF!*K$90 ->  | L121: =#REF!*L$90 ->  | M121: =#REF!*M$90 ->  | N121: =#REF!*N$90 ->  | O121: =#REF!*O$90 ->  | P121: =#REF!*P$90 ->  | Q121: =#REF!*Q$90 ->  | R121: =#REF!*R$90 ->  | S121: =#REF!*S$90 ->  | T121: =#REF!*T$90 ->  | U121: =#REF!*U$90 ->  | V121: =#REF!*V$90 ->  | W121: =#REF!*W$90 ->  | X121: =#REF!*X$90 ->  | Y121: =#REF!*Y$90 ->  | Z121: =#REF!*Z$90 ->  | AA121: =#REF!*AA$90 ->  | AB121: =#REF!*AB$90 ->  | AC121: =#REF!*AC$90 ->  | AD121: =#REF!*AD$90 ->  | AE121: =#REF!*AE$90 -> 
C122: =#REF!*C$90 ->  | D122: =#REF!*D$90 ->  | E122: =#REF!*E$90 ->  | F122: =#REF!*F$90 ->  | G122: =#REF!*G$90 ->  | H122: =#REF!*H$90 ->  | I122: =#REF!*I$90 ->  | J122: =#REF!*J$90 ->  | K122: =#REF!*K$90 ->  | L122: =#REF!*L$90 ->  | M122: =#REF!*M$90 ->  | N122: =#REF!*N$90 ->  | O122: =#REF!*O$90 ->  | P122: =#REF!*P$90 ->  | Q122: =#REF!*Q$90 ->  | R122: =#REF!*R$90 ->  | S122: =#REF!*S$90 ->  | T122: =#REF!*T$90 ->  | U122: =#REF!*U$90 ->  | V122: =#REF!*V$90 ->  | W122: =#REF!*W$90 ->  | X122: =#REF!*X$90 ->  | Y122: =#REF!*Y$90 ->  | Z122: =#REF!*Z$90 ->  | AA122: =#REF!*AA$90 ->  | AB122: =#REF!*AB$90 ->  | AC122: =#REF!*AC$90 ->  | AD122: =#REF!*AD$90 ->  | AE122: =#REF!*AE$90 -> 
C123: =#REF!*C$90 ->  | D123: =#REF!*D$90 ->  | E123: =#REF!*E$90 ->  | F123: =#REF!*F$90 ->  | G123: =#REF!*G$90 ->  | H123: =#REF!*H$90 ->  | I123: =#REF!*I$90 ->  | J123: =#REF!*J$90 ->  | K123: =#REF!*K$90 ->  | L123: =#REF!*L$90 ->  | M123: =#REF!*M$90 ->  | N123: =#REF!*N$90 ->  | O123: =#REF!*O$90 ->  | P123: =#REF!*P$90 ->  | Q123: =#REF!*Q$90 ->  | R123: =#REF!*R$90 ->  | S123: =#REF!*S$90 ->  | T123: =#REF!*T$90 ->  | U123: =#REF!*U$90 ->  | V123: =#REF!*V$90 ->  | W123: =#REF!*W$90 ->  | X123: =#REF!*X$90 ->  | Y123: =#REF!*Y$90 ->  | Z123: =#REF!*Z$90 ->  | AA123: =#REF!*AA$90 ->  | AB123: =#REF!*AB$90 ->  | AC123: =#REF!*AC$90 ->  | AD123: =#REF!*AD$90 ->  | AE123: =#REF!*AE$90 -> 
C124: =#REF!*C$90 ->  | D124: =#REF!*D$90 ->  | E124: =#REF!*E$90 ->  | F124: =#REF!*F$90 ->  | G124: =#REF!*G$90 ->  | H124: =#REF!*H$90 ->  | I124: =#REF!*I$90 ->  | J124: =#REF!*J$90 ->  | K124: =#REF!*K$90 ->  | L124: =#REF!*L$90 ->  | M124: =#REF!*M$90 ->  | N124: =#REF!*N$90 ->  | O124: =#REF!*O$90 ->  | P124: =#REF!*P$90 ->  | Q124: =#REF!*Q$90 ->  | R124: =#REF!*R$90 ->  | S124: =#REF!*S$90 ->  | T124: =#REF!*T$90 ->  | U124: =#REF!*U$90 ->  | V124: =#REF!*V$90 ->  | W124: =#REF!*W$90 ->  | X124: =#REF!*X$90 ->  | Y124: =#REF!*Y$90 ->  | Z124: =#REF!*Z$90 ->  | AA124: =#REF!*AA$90 ->  | AB124: =#REF!*AB$90 ->  | AC124: =#REF!*AC$90 ->  | AD124: =#REF!*AD$90 ->  | AE124: =#REF!*AE$90 -> 
C125: =#REF!*C$90 ->  | D125: =#REF!*D$90 ->  | E125: =#REF!*E$90 ->  | F125: =#REF!*F$90 ->  | G125: =#REF!*G$90 ->  | H125: =#REF!*H$90 ->  | I125: =#REF!*I$90 ->  | J125: =#REF!*J$90 ->  | K125: =#REF!*K$90 ->  | L125: =#REF!*L$90 ->  | M125: =#REF!*M$90 ->  | N125: =#REF!*N$90 ->  | O125: =#REF!*O$90 ->  | P125: =#REF!*P$90 ->  | Q125: =#REF!*Q$90 ->  | R125: =#REF!*R$90 ->  | S125: =#REF!*S$90 ->  | T125: =#REF!*T$90 ->  | U125: =#REF!*U$90 ->  | V125: =#REF!*V$90 ->  | W125: =#REF!*W$90 ->  | X125: =#REF!*X$90 ->  | Y125: =#REF!*Y$90 ->  | Z125: =#REF!*Z$90 ->  | AA125: =#REF!*AA$90 ->  | AB125: =#REF!*AB$90 ->  | AC125: =#REF!*AC$90 ->  | AD125: =#REF!*AD$90 ->  | AE125: =#REF!*AE$90 -> 
C126: =#REF!*C$90 ->  | D126: =#REF!*D$90 ->  | E126: =#REF!*E$90 ->  | F126: =#REF!*F$90 ->  | G126: =#REF!*G$90 ->  | H126: =#REF!*H$90 ->  | I126: =#REF!*I$90 ->  | J126: =#REF!*J$90 ->  | K126: =#REF!*K$90 ->  | L126: =#REF!*L$90 ->  | M126: =#REF!*M$90 ->  | N126: =#REF!*N$90 ->  | O126: =#REF!*O$90 ->  | P126: =#REF!*P$90 ->  | Q126: =#REF!*Q$90 ->  | R126: =#REF!*R$90 ->  | S126: =#REF!*S$90 ->  | T126: =#REF!*T$90 ->  | U126: =#REF!*U$90 ->  | V126: =#REF!*V$90 ->  | W126: =#REF!*W$90 ->  | X126: =#REF!*X$90 ->  | Y126: =#REF!*Y$90 ->  | Z126: =#REF!*Z$90 ->  | AA126: =#REF!*AA$90 ->  | AB126: =#REF!*AB$90 ->  | AC126: =#REF!*AC$90 ->  | AD126: =#REF!*AD$90 ->  | AE126: =#REF!*AE$90 -> 
C127: =#REF!*C$90 ->  | D127: =#REF!*D$90 ->  | E127: =#REF!*E$90 ->  | F127: =#REF!*F$90 ->  | G127: =#REF!*G$90 ->  | H127: =#REF!*H$90 ->  | I127: =#REF!*I$90 ->  | J127: =#REF!*J$90 ->  | K127: =#REF!*K$90 ->  | L127: =#REF!*L$90 ->  | M127: =#REF!*M$90 ->  | N127: =#REF!*N$90 ->  | O127: =#REF!*O$90 ->  | P127: =#REF!*P$90 ->  | Q127: =#REF!*Q$90 ->  | R127: =#REF!*R$90 ->  | S127: =#REF!*S$90 ->  | T127: =#REF!*T$90 ->  | U127: =#REF!*U$90 ->  | V127: =#REF!*V$90 ->  | W127: =#REF!*W$90 ->  | X127: =#REF!*X$90 ->  | Y127: =#REF!*Y$90 ->  | Z127: =#REF!*Z$90 ->  | AA127: =#REF!*AA$90 ->  | AB127: =#REF!*AB$90 ->  | AC127: =#REF!*AC$90 ->  | AD127: =#REF!*AD$90 ->  | AE127: =#REF!*AE$90 -> 
C128: =#REF!*C$90 ->  | D128: =#REF!*D$90 ->  | E128: =#REF!*E$90 ->  | F128: =#REF!*F$90 ->  | G128: =#REF!*G$90 ->  | H128: =#REF!*H$90 ->  | I128: =#REF!*I$90 ->  | J128: =#REF!*J$90 ->  | K128: =#REF!*K$90 ->  | L128: =#REF!*L$90 ->  | M128: =#REF!*M$90 ->  | N128: =#REF!*N$90 ->  | O128: =#REF!*O$90 ->  | P128: =#REF!*P$90 ->  | Q128: =#REF!*Q$90 ->  | R128: =#REF!*R$90 ->  | S128: =#REF!*S$90 ->  | T128: =#REF!*T$90 ->  | U128: =#REF!*U$90 ->  | V128: =#REF!*V$90 ->  | W128: =#REF!*W$90 ->  | X128: =#REF!*X$90 ->  | Y128: =#REF!*Y$90 ->  | Z128: =#REF!*Z$90 ->  | AA128: =#REF!*AA$90 ->  | AB128: =#REF!*AB$90 ->  | AC128: =#REF!*AC$90 ->  | AD128: =#REF!*AD$90 ->  | AE128: =#REF!*AE$90 -> 
C129: =#REF!*C$90 ->  | D129: =#REF!*D$90 ->  | E129: =#REF!*E$90 ->  | F129: =#REF!*F$90 ->  | G129: =#REF!*G$90 ->  | H129: =#REF!*H$90 ->  | I129: =#REF!*I$90 ->  | J129: =#REF!*J$90 ->  | K129: =#REF!*K$90 ->  | L129: =#REF!*L$90 ->  | M129: =#REF!*M$90 ->  | N129: =#REF!*N$90 ->  | O129: =#REF!*O$90 ->  | P129: =#REF!*P$90 ->  | Q129: =#REF!*Q$90 ->  | R129: =#REF!*R$90 ->  | S129: =#REF!*S$90 ->  | T129: =#REF!*T$90 ->  | U129: =#REF!*U$90 ->  | V129: =#REF!*V$90 ->  | W129: =#REF!*W$90 ->  | X129: =#REF!*X$90 ->  | Y129: =#REF!*Y$90 ->  | Z129: =#REF!*Z$90 ->  | AA129: =#REF!*AA$90 ->  | AB129: =#REF!*AB$90 ->  | AC129: =#REF!*AC$90 ->  | AD129: =#REF!*AD$90 ->  | AE129: =#REF!*AE$90 -> 
C130: =C35*C$90 -> 0 | D130: 0 | E130: 0 | F130: 0 | G130: 0 | H130: 0 | I130: 0 | J130: 0 | K130: 0 | M130: 0 | N130: 0 | O130: 0 | P130: 0 | Q130: 0 | R130: 0 | S130: 0 | T130: 0 | U130: 0 | V130: 0 | W130: 0 | X130: 0 | Y130: 0 | Z130: 0 | AA130: 0

Sheet 2 А(2) (hidden)
A1: =Титул!B9 -> 2 А | E1: Страница заполняется автоматически, без участия оператора!!!
A2: Всего учащихся в классе: | D2: =Титул!C9 -> 25 | E2: Фамилии, имена учащихся | F2: Учебные предметы | G2: Фамилии и инициалы учителей | H2: Пояснения, примечания, причины
A3: Учатся на "5": | C3: =COUNTA(E3:E17) -> 0 | D3: 1
D4: 2
D5: 3
D6: 4
D7: 5
D8: 6
D9: 7
D10: 8
D11: 9
D12: 10
D13: 11
D14: 12
D15: 13
D16: 14
D17: 15
A18: Учатся на "4"и"5" | C18: =COUNTA(E18:E42) -> 0 | D18: 1
D19: 2
D20: 3
D21: 4
D22: 5
D23: 6
D24: 7
D25: 8
D26: 9
D27: 10
D28: 11
D29: 12
D30: 13
D31: 14
D32: 15
D33: 16
D34: 17
D35: 18
D36: 19
D37: 20
D38: 21
D39: 22
D40: 23
D41: 24
D42: 25
A43: Не аттестованы: | C43: =COUNTA(E43:E52) -> 0 | D43: 1
D44: 2
D45: 3
D46: 4
D47: 5
D48: 6
D49: 7
D50: 8
D51: 9
D52: 10
A53: Не успевают: | C53: =COUNTA(E53:E67) -> 0 | D53: 1
D54: 2
D55: 3
D56: 4
D57: 5
D58: 6
D59: 7
D60: 8
D61: 9
D62: 10
D63: 11
D64: 12
D65: 13
D66: 14
D67: 15
A68: Освобождены: | C68: =COUNTA(E68:E82) -> 0 | D68: 1
D69: 2
D70: 3
D71: 4
D72: 5
D73: 6
D74: 7
D75: 8
D76: 9
D77: 10
D78: 11
D79: 12
D80: 13
D81: 14
D82: 15

Sheet 2 Б (hidden)
A1: =Титул!B5 -> 2014/15 учебный год | D1: =Титул!B4 -> МОУ СОШ № 15 | AA1: =Титул!B6 -> 4 четверть | AI1: 3+
A2: ВЕДОМОСТЬ РЕЗУЛЬТАТОВ УЧЕБНОЙ ДЕЯТЕЛЬНОСТИ | Z2: =Титул!B10 -> 2 Б | AD2: класса
A3: Классный руководитель: | E3: =Титул!D10 -> Калиниченко Т.А. | S3: Программа: | X3: =Титул!G10 -> УМК "Школа 2100"
A4: Вручную вносятся только оценки "5", "4", "3", "2", "1". Не аттестованным проставляется "0", освобожденным - "Н". | C4: У ч е б н ы е п р е д м е т ы | AF4: Результаты ученика:
C5: =Нагрузка!C3 -> Русский язык | D5: =Нагрузка!D3 -> Литература | E5: =Нагрузка!E3 -> Иностранный язык | F5: =Нагрузка!F3 -> Математика | G5: =Нагрузка!G3 -> Алгебра | H5: =Нагрузка!H3 -> Геометрия | I5: =Нагрузка!I3 -> Информатика | J5: =Нагрузка!J3 -> История | K5: =Нагрузка!K3 -> Обществознание | L5: =Нагрузка!L3 -> Окружающий мир | M5: =Нагрузка!M3 -> ИЗО | N5: =Нагрузка!N3 -> Музыка | O5: =Нагрузка!O3 -> Технология | P5: =Нагрузка!P3 -> Технология | Q5: =Нагрузка!Q3 -> ФЗК | R5: =Нагрузка!R3 -> Иностранный язык | S5: =Нагрузка!S3 -> Иностранный язык | T5: =Нагрузка!T3 -> География | U5: =Нагрузка!U3 -> Физика | V5: =Нагрузка!V3 -> Химия | W5: =Нагрузка!W3 -> Биология | X5: =Нагрузка!X3 -> МХК | Y5: =Нагрузка!Y3 -> ФЗК | Z5: =Нагрузка!Z3 -> ОБЖ | AA5: =Нагрузка!AA3 -> Природоведение | AB5: =Нагрузка!AB3 -> 0 | AC5: =Нагрузка!AC3 -> 0 | AD5: =Нагрузка!AD3 -> 0 | AE5: =Нагрузка!AE3 -> 0 | AF5: Средний балл: | AG5: Степень обученности (СОУ): | AH5: Качество успеваемости: | AI5: Рейтинговый учебный балл:
A6: 1 | B6: =СпискиКлассы!C4 -> Белокопытов Егор | AF6: =AVERAGE(C6:AE6) ->  | AG6: =(COUNTIF(C6:AE6,"5")+COUNTIF(C6:AE6,"4")*0.64+COUNTIF(C6:AE6,"3")*0.36+COUNTIF(C6:AE6,"2")*0.16)/(COUNTIF(C6:AE6,"5")+COUNTIF(C6:AE6,"4")+COUNTIF(C6:AE6,"3")+COUNTIF(C6:AE6,"2")+COUNTIF(C6:AE6,"0")) ->  | AH6: =((5*COUNTIF(C6:AE6,"5"))+(4*COUNTIF(C6:AE6,"4")))/(5*(COUNTA(C6:AE6)-COUNTIF(C6:AE6,"н"))) ->  | AI6: =SUMIF(C91:AE91,">0",C91:AE91)/(COUNTIF(C6:AE6,">0")+COUNTIF(C6:AE6,"=0")+COUNTIF(C6:AE6,"Н")) -> 
A7: =A6+1 -> 2 | B7: =СпискиКлассы!C5 -> Будько Роман | AF7: =AVERAGE(C7:AE7) ->  | AG7: =(COUNTIF(C7:AE7,"5")+COUNTIF(C7:AE7,"4")*0.64+COUNTIF(C7:AE7,"3")*0.36+COUNTIF(C7:AE7,"2")*0.16)/(COUNTIF(C7:AE7,"5")+COUNTIF(C7:AE7,"4")+COUNTIF(C7:AE7,"3")+COUNTIF(C7:AE7,"2")+COUNTIF(C7:AE7,"0")) ->  | AH7: =((5*COUNTIF(C7:AE7,"5"))+(4*COUNTIF(C7:AE7,"4")))/(5*(COUNTA(C7:AE7)-COUNTIF(C7:AE7,"н"))) -> 
A8: 3 | B8: =СпискиКлассы!C6 -> Быкова Ксения | AF8: =AVERAGE(C8:AE8) -> 
A9: 4 | B9: =СпискиКлассы!C7 -> Галайда Степан
A10: 5 | B10: =СпискиКлассы!C8 -> Грехова Ярослава
A11: 6 | B11: =СпискиКлассы!C9 -> Зырянова Ирина
A12: 7 | B12: =СпискиКлассы!C10 -> Капустина Полина
A13: 8 | B13: =СпискиКлассы!C11 -> Карпов Максим
A14: 9 | B14: =СпискиКлассы!C12 -> Карташова Анастасия
A15: 10 | B15: =СпискиКлассы!C13 -> Коростелева Ева
A16: 11 | B16: =СпискиКлассы!C14 -> Кристалинская Олеся
A17: 12 | B17: =СпискиКлассы!C15 -> Крисюк Ксения
A18: 13 | B18: =СпискиКлассы!C16 -> Кужель Юлия
A19: 14 | B19: =СпискиКлассы!C17 -> Лазаренкова Ангелина
A20: 15 | B20: =СпискиКлассы!C18 -> Ловейко Виктория
A21: 16 | B21: =СпискиКлассы!C19 -> Марценюк Ангелина
A22: 17 | B22: =СпискиКлассы!C20 -> Мордвинский Георгий
A23: 18 | B23: =СпискиКлассы!C21 -> Мордвинский Роман
A24: 19 | B24: =СпискиКлассы!C22 -> Ожигов Даниил
A25: 20 | B25: =СпискиКлассы!C23 -> Русакова Кристина
A26: 21 | B26: =СпискиКлассы!C24 -> Саулина Ольга
A27: 22 | B27: =СпискиКлассы!C25 -> Смолянская Валерия
A28: 23 | B28: =СпискиКлассы!C26 -> Спицын Илья
A29: 24 | B29: =СпискиКлассы!C27 -> Цилина Диана
A30: 25 | B30: =СпискиКлассы!C28 -> Чиркина Милена
A31: 26 | B31: =СпискиКлассы!C29 -> 0 | AF31: =AVERAGE(C31:AE31) ->  | AG31: =(COUNTIF(C31:AE31,"5")+COUNTIF(C31:AE31,"4")*0.64+COUNTIF(C31:AE31,"3")*0.36+COUNTIF(C31:AE31,"2")*0.16)/(COUNTIF(C31:AE31,"5")+COUNTIF(C31:AE31,"4")+COUNTIF(C31:AE31,"3")+COUNTIF(C31:AE31,"2")+COUNTIF(C31:AE31,"0")) -> 
A32: 27 | B32: =СпискиКлассы!C30 -> 0
A33: 28 | B33: =СпискиКлассы!C31 -> 0
A34: 29 | B34: =СпискиКлассы!C32 -> 0
A35: 30 | B35: =СпискиКлассы!C43 -> 0 | AI35: =SUMIF(C130:AE130,">0",C130:AE130)/(COUNTIF(C35:AE35,">0")+COUNTIF(C35:AE35,"=0")+COUNTIF(C35:AE35,"Н")) -> 
A36: Фамилия и инициалы учителя - предметника | C36: =Нагрузка!C6 -> Калиниченко | D36: =Нагрузка!D6 -> Калиниченко | E36: =Нагрузка!E6 -> 0 | F36: =Нагрузка!F6 -> Калиниченко | G36: =Нагрузка!G6 -> 0 | H36: =Нагрузка!H6 -> 0 | I36: =Нагрузка!I6 -> 0 | J36: =Нагрузка!J6 -> 0 | K36: =Нагрузка!K6 -> 0 | L36: =Нагрузка!L6 -> Калиниченко | M36: =Нагрузка!M6 -> Калиниченко | N36: =Нагрузка!N6 -> Заворина | O36: =Нагрузка!O6 -> Калиниченко | P36: =Нагрузка!P6 -> Калиниченко | Q36: =Нагрузка!Q6 -> Ермакова | R36: =Нагрузка!R6 -> 0 | S36: =Нагрузка!S6 -> 0 | T36: =Нагрузка!T6 -> 0 | U36: =Нагрузка!U6 -> 0 | V36: =Нагрузка!V6 -> 0 | W36: =Нагрузка!W6 -> 0 | X36: =Нагрузка!X6 -> 0 | Y36: =Нагрузка!Y6 -> 0 | Z36: =Нагрузка!Z6 -> 0 | AA36: =Нагрузка!AA6 -> 0 | AB36: =Нагрузка!AB6 -> 0 | AC36: =Нагрузка!AC6 -> 0 | AD36: =Нагрузка!AD6 -> 0 | AE36: =Нагрузка!AE6 -> 0 | AF36: Показатели результатов учебной деятельности в целом по классу:
A37: Результаты учебной деятельности класса | B37: Количество "5": | C37: =COUNTIF(C6:C35,5) -> 0 | D37: 0 | E37: 0 | F37: 0 | G37: 0 | H37: 0 | I37: 0 | J37: 0 | K37: 0 | L37: 0 | M37: 0 | N37: 0 | O37: 0 | P37: 0 | Q37: 0 | R37: 0 | S37: 0 | T37: 0 | U37: 0 | V37: 0 | W37: 0 | X37: 0 | Y37: 0 | Z37: 0 | AA37: 0 | AB37: 0 | AC37: 0 | AD37: 0 | AE37: 0 | AF37: =SUM(C37:AE37) -> 0
B38: Количество "4": | C38: =COUNTIF(C6:C35,4) -> 0 | D38: 0 | E38: 0 | F38: 0 | G38: 0 | H38: 0 | I38: 0 | J38: 0 | K38: 0 | L38: 0 | M38: 0 | N38: 0 | O38: 0 | P38: 0 | Q38: 0 | R38: 0 | S38: 0 | T38: 0 | U38: 0 | V38: 0 | W38: 0 | X38: 0 | Y38: 0 | Z38: 0 | AA38: 0 | AB38: 0 | AC38: 0 | AD38: 0 | AE38: 0 | AF38: 0
B39: Количество "3": | C39: =COUNTIF(C6:C35,3) -> 0 | D39: 0 | E39: 0 | F39: 0 | G39: 0 | H39: 0 | I39: 0 | J39: 0 | K39: 0 | L39: 0 | M39: 0 | N39: 0 | O39: 0 | P39: 0 | Q39: 0 | R39: 0 | S39: 0 | T39: 0 | U39: 0 | V39: 0 | W39: 0 | X39: 0 | Y39: 0 | Z39: 0 | AA39: 0 | AB39: 0 | AC39: 0 | AD39: 0 | AE39: 0 | AF39: 0
B40: Количество "2": | C40: =COUNTIF(C6:C35,2) -> 0 | D40: 0 | E40: 0 | F40: 0 | G40: 0 | H40: 0 | I40: 0 | J40: 0 | K40: 0 | L40: 0 | M40: 0 | N40: 0 | O40: 0 | P40: 0 | Q40: 0 | R40: 0 | S40: 0 | T40: 0 | U40: 0 | V40: 0 | W40: 0 | X40: 0 | Y40: 0 | Z40: 0 | AA40: 0 | AB40: 0 | AC40: 0 | AD40: 0 | AE40: 0 | AF40: 0
B41: Не аттестовано: | C41: =COUNTIF(C6:C35,0) -> 0 | D41: 0 | E41: 0 | F41: 0 | G41: 0 | H41: 0 | I41: 0 | J41: 0 | K41: 0 | L41: 0 | M41: 0 | N41: 0 | O41: 0 | P41: 0 | Q41: 0 | R41: 0 | S41: 0 | T41: 0 | U41: 0 | V41: 0 | W41: 0 | X41: 0 | Y41: 0 | Z41: 0 | AA41: 0 | AB41: 0 | AC41: 0 | AD41: 0 | AE41: 0 | AF41: 0
B42: Освобождено: | C42: =COUNTIF(C6:C35,"н") -> 0 | D42: 0 | E42: 0 | F42: 0 | G42: 0 | H42: 0 | I42: 0 | J42: 0 | K42: 0 | L42: 0 | M42: 0 | N42: 0 | O42: 0 | P42: 0 | Q42: 0 | R42: 0 | S42: 0 | T42: 0 | U42: 0 | V42: 0 | W42: 0 | X42: 0 | Y42: 0 | Z42: 0 | AA42: 0 | AB42: 0 | AC42: 0 | AD42: 0 | AE42: 0 | AF42: 0
B43: Успеваемость: | C43: =(C37+C38+C39)/(C37+C38+C39+C40+C41) ->  | D43: =(D37+D38+D39)/(D37+D38+D39+D40+D41) ->  | AF43: =('2 Б(2)'!D2-'2 Б(2)'!C43-'2 Б(2)'!C53)/'2 Б(2)'!D2 -> 1
B44: Качество знаний: | C44: =(C37+C38)/(C37+C38+C39+C40+C41) ->  | D44: =(D37+D38)/(D37+D38+D39+D40+D41) ->  | AF44: =('2 Б(2)'!C3+'2 Б(2)'!C18)/'2 Б(2)'!D2 -> 0
B45: Степень обученности: | C45: =(C37+C38*0.64+C39*0.36+C40*0.16)/(C37+C38+C39+C40+C41) ->  | D45: =(D37+D38*0.64+D39*0.36+D40*0.16)/(D37+D38+D39+D40+D41) ->  | AF45: =(AF37+AF38*0.64+AF39*0.36+AF40*0.16)/(AF37+AF38+AF39+AF40+AF41) -> 
B46: Средний балл: | C46: =(C37*5+C38*4+C39*3+C40*2)/(C37+C38+C39+C40+C41) ->  | D46: =(D37*5+D38*4+D39*3+D40*2)/(D37+D38+D39+D40+D41) ->  | AF46: =(AF37*5+AF38*4+AF39*3+AF40*2)/(AF37+AF38+AF39+AF40+AF41) -> 
B47: Качество успеваемости: | C47: =(5*C37+4*C38)*0.2/(SUM(C37+C38+C39+C40+C41)) ->  | D47: =(5*COUNTIF(D6:D35,5)+4*COUNTIF(D6:D35,4))*0.2/(COUNTA(D6:D35)-COUNTIF(D6:D35,"н")) ->  | AF47: =(5*COUNTIF(C6:AE35,5)+4*COUNTIF(C6:AE35,4))*0.2/(COUNTA(C6:AE35)-COUNTIF(C6:AE35,"н")) -> 
A48: Выполнено с помощью программы статистического анализа результатов учебной деятельности | AC48: =Титул!G31 -> PSORUD-Klass.v.04.11.demo | AI48: 3+
B90: Коэф.трудн.предмета | C90: =VLOOKUP(C$5,ШкалаТрудн!$C$5:$N$34,LEFT($Z$2,2)+1,0) -> 7 | D90: =VLOOKUP(D$5,ШкалаТрудн!$C$5:$N$34,LEFT($Z$2,2)+1,0) -> 5 | E90: =VLOOKUP(E$5,ШкалаТрудн!$C$5:$N$34,LEFT($Z$2,2)+1,0) -> 5 | F90: =VLOOKUP(F$5,ШкалаТрудн!$C$5:$N$34,LEFT($Z$2,2)+1,0) -> 8 | G90: =VLOOKUP(G$5,ШкалаТрудн!$C$5:$N$34,LEFT($Z$2,2)+1,0) -> 0 | H90: =VLOOKUP(H$5,ШкалаТрудн!$C$5:$N$34,LEFT($Z$2,2)+1,0) -> 0 | I90: =VLOOKUP(I$5,ШкалаТрудн!$C$5:$N$34,LEFT($Z$2,2)+1,0) -> 6 | J90: =VLOOKUP(J$5,ШкалаТрудн!$C$5:$N$34,LEFT($Z$2,2)+1,0) -> 4 | K90: =VLOOKUP(K$5,ШкалаТрудн!$C$5:$N$34,LEFT($Z$2,2)+1,0) -> 0 | L90: =VLOOKUP(L$5,ШкалаТрудн!$C$5:$N$34,LEFT($Z$2,2)+1,0) ->  | M90: =VLOOKUP(M$5,ШкалаТрудн!$C$5:$N$34,LEFT($Z$2,2)+1,0) -> 3 | N90: =VLOOKUP(N$5,ШкалаТрудн!$C$5:$N$34,LEFT($Z$2,2)+1,0) -> 3 | O90: =VLOOKUP(O$5,ШкалаТрудн!$C$5:$N$34,LEFT($Z$2,2)+1,0) -> 2 | P90: =VLOOKUP(P$5,ШкалаТрудн!$C$5:$N$34,LEFT($Z$2,2)+1,0) -> 2 | Q90: =VLOOKUP(Q$5,ШкалаТрудн!$C$5:$N$34,LEFT($Z$2,2)+1,0) -> 1 | R90: =VLOOKUP(R$5,ШкалаТрудн!$C$5:$N$34,LEFT($Z$2,2)+1,0) -> 5 | S90: =VLOOKUP(S$5,ШкалаТрудн!$C$5:$N$34,LEFT($Z$2,2)+1,0) -> 5 | T90: =VLOOKUP(T$5,ШкалаТрудн!$C$5:$N$34,LEFT($Z$2,2)+1,0) -> 0 | U90: =VLOOKUP(U$5,ШкалаТрудн!$C$5:$N$34,LEFT($Z$2,2)+1,0) -> 0 | V90: =VLOOKUP(V$5,ШкалаТрудн!$C$5:$N$34,LEFT($Z$2,2)+1,0) -> 0 | W90: =VLOOKUP(W$5,ШкалаТрудн!$C$5:$N$34,LEFT($Z$2,2)+1,0) -> 0 | X90: =VLOOKUP(X$5,ШкалаТрудн!$C$5:$N$34,LEFT($Z$2,2)+1,0) -> 0 | Y90: =VLOOKUP(Y$5,ШкалаТрудн!$C$5:$N$34,LEFT($Z$2,2)+1,0) -> 1 | Z90: =VLOOKUP(Z$5,ШкалаТрудн!$C$5:$N$34,LEFT($Z$2,2)+1,0) -> 0 | AA90: =VLOOKUP(AA$5,ШкалаТрудн!$C$5:$N$34,LEFT($Z$2,2)+1,0) -> 0 | AB90: =VLOOKUP(AB$5,ШкалаТрудн!$C$5:$N$34,LEFT($Z$2,2)+1,0) ->  | AC90: =VLOOKUP(AC$5,ШкалаТрудн!$C$5:$N$34,LEFT($Z$2,2)+1,0) ->  | AD90: =VLOOKUP(AD$5,ШкалаТрудн!$C$5:$N$34,LEFT($Z$2,2)+1,0) ->  | AE90: =VLOOKUP(AE$5,ШкалаТрудн!$C$5:$N$34,LEFT($Z$2,2)+1,0) -> 
C91: =C6*C$90 -> 0 | D91: 0 | E91: 0 | F91: 0 | G91: 0 | H91: 0 | I91: 0 | J91: 0 | K91: 0 | M91: 0 | N91: 0 | O91: 0 | P91: 0 | Q91: 0 | R91: 0 | S91: 0 | T91: 0 | U91: 0 | V91: 0 | W91: 0 | X91: 0 | Y91: 0 | Z91: 0 | AA91: 0
C92: =C7*C$90 -> 0 | D92: 0 | E92: 0 | F92: 0 | G92: 0 | H92: 0 | I92: 0 | J92: 0 | K92: 0 | M92: 0 | N92: 0 | O92: 0 | P92: 0 | Q92: 0 | R92: 0 | S92: 0 | T92: 0 | U92: 0 | V92: 0 | W92: 0 | X92: 0 | Y92: 0 | Z92: 0 | AA92: 0
C93: =C8*C$90 -> 0 | D93: 0 | E93: 0 | F93: 0 | G93: 0 | H93: 0 | I93: 0 | J93: 0 | K93: 0 | M93: 0 | N93: 0 | O93: 0 | P93: 0 | Q93: 0 | R93: 0 | S93: 0 | T93: 0 | U93: 0 | V93: 0 | W93: 0 | X93: 0 | Y93: 0 | Z93: 0 | AA93: 0
C94: =C9*C$90 -> 0 | D94: 0 | E94: 0 | F94: 0 | G94: 0 | H94: 0 | I94: 0 | J94: 0 | K94: 0 | M94: 0 | N94: 0 | O94: 0 | P94: 0 | Q94: 0 | R94: 0 | S94: 0 | T94: 0 | U94: 0 | V94: 0 | W94: 0 | X94: 0 | Y94: 0 | Z94: 0 | AA94: 0
C95: =C10*C$90 -> 0 | D95: 0 | E95: 0 | F95: 0 | G95: 0 | H95: 0 | I95: 0 | J95: 0 | K95: 0 | M95: 0 | N95: 0 | O95: 0 | P95: 0 | Q95: 0 | R95: 0 | S95: 0 | T95: 0 | U95: 0 | V95: 0 | W95: 0 | X95: 0 | Y95: 0 | Z95: 0 | AA95: 0
C96: =C11*C$90 -> 0 | D96: 0 | E96: 0 | F96: 0 | G96: 0 | H96: 0 | I96: 0 | J96: 0 | K96: 0 | M96: 0 | N96: 0 | O96: 0 | P96: 0 | Q96: 0 | R96: 0 | S96: 0 | T96: 0 | U96: 0 | V96: 0 | W96: 0 | X96: 0 | Y96: 0 | Z96: 0 | AA96: 0
C97: =C12*C$90 -> 0 | D97: 0 | E97: 0 | F97: 0 | G97: 0 | H97: 0 | I97: 0 | J97: 0 | K97: 0 | M97: 0 | N97: 0 | O97: 0 | P97: 0 | Q97: 0 | R97: 0 | S97: 0 | T97: 0 | U97: 0 | V97: 0 | W97: 0 | X97: 0 | Y97: 0 | Z97: 0 | AA97: 0
C98: =C13*C$90 -> 0 | D98: 0 | E98: 0 | F98: 0 | G98: 0 | H98: 0 | I98: 0 | J98: 0 | K98: 0 | M98: 0 | N98: 0 | O98: 0 | P98: 0 | Q98: 0 | R98: 0 | S98: 0 | T98: 0 | U98: 0 | V98: 0 | W98: 0 | X98: 0 | Y98: 0 | Z98: 0 | AA98: 0
C99: =C14*C$90 -> 0 | D99: 0 | E99: 0 | F99: 0 | G99: 0 | H99: 0 | I99: 0 | J99: 0 | K99: 0 | M99: 0 | N99: 0 | O99: 0 | P99: 0 | Q99: 0 | R99: 0 | S99: 0 | T99: 0 | U99: 0 | V99: 0 | W99: 0 | X99: 0 | Y99: 0 | Z99: 0 | AA99: 0
C100: =C15*C$90 -> 0 | D100: 0 | E100: 0 | F100: 0 | G100: 0 | H100: 0 | I100: 0 | J100: 0 | K100: 0 | M100: 0 | N100: 0 | O100: 0 | P100: 0 | Q100: 0 | R100: 0 | S100: 0 | T100: 0 | U100: 0 | V100: 0 | W100: 0 | X100: 0 | Y100: 0 | Z100: 0 | AA100: 0
C101: =C16*C$90 -> 0 | D101: 0 | E101: 0 | F101: 0 | G101: 0 | H101: 0 | I101: 0 | J101: 0 | K101: 0 | M101: 0 | N101: 0 | O101: 0 | P101: 0 | Q101: 0 | R101: 0 | S101: 0 | T101: 0 | U101: 0 | V101: 0 | W101: 0 | X101: 0 | Y101: 0 | Z101: 0 | AA101: 0
C102: =C17*C$90 -> 0 | D102: 0 | E102: 0 | F102: 0 | G102: 0 | H102: 0 | I102: 0 | J102: 0 | K102: 0 | M102: 0 | N102: 0 | O102: 0 | P102: 0 | Q102: 0 | R102: 0 | S102: 0 | T102: 0 | U102: 0 | V102: 0 | W102: 0 | X102: 0 | Y102: 0 | Z102: 0 | AA102: 0
C103: =C18*C$90 -> 0 | D103: 0 | E103: 0 | F103: 0 | G103: 0 | H103: 0 | I103: 0 | J103: 0 | K103: 0 | M103: 0 | N103: 0 | O103: 0 | P103: 0 | Q103: 0 | R103: 0 | S103: 0 | T103: 0 | U103: 0 | V103: 0 | W103: 0 | X103: 0 | Y103: 0 | Z103: 0 | AA103: 0
C104: =C19*C$90 -> 0 | D104: 0 | E104: 0 | F104: 0 | G104: 0 | H104: 0 | I104: 0 | J104: 0 | K104: 0 | M104: 0 | N104: 0 | O104: 0 | P104: 0 | Q104: 0 | R104: 0 | S104: 0 | T104: 0 | U104: 0 | V104: 0 | W104: 0 | X104: 0 | Y104: 0 | Z104: 0 | AA104: 0
C105: =C20*C$90 -> 0 | D105: 0 | E105: 0 | F105: 0 | G105: 0 | H105: 0 | I105: 0 | J105: 0 | K105: 0 | M105: 0 | N105: 0 | O105: 0 | P105: 0 | Q105: 0 | R105: 0 | S105: 0 | T105: 0 | U105: 0 | V105: 0 | W105: 0 | X105: 0 | Y105: 0 | Z105: 0 | AA105: 0
C106: =C21*C$90 -> 0 | D106: 0 | E106: 0 | F106: 0 | G106: 0 | H106: 0 | I106: 0 | J106: 0 | K106: 0 | M106: 0 | N106: 0 | O106: 0 | P106: 0 | Q106: 0 | R106: 0 | S106: 0 | T106: 0 | U106: 0 | V106: 0 | W106: 0 | X106: 0 | Y106: 0 | Z106: 0 | AA106: 0
C107: =C22*C$90 -> 0 | D107: 0 | E107: 0 | F107: 0 | G107: 0 | H107: 0 | I107: 0 | J107: 0 | K107: 0 | M107: 0 | N107: 0 | O107: 0 | P107: 0 | Q107: 0 | R107: 0 | S107: 0 | T107: 0 | U107: 0 | V107: 0 | W107: 0 | X107: 0 | Y107: 0 | Z107: 0 | AA107: 0
C108: =C23*C$90 -> 0 | D108: 0 | E108: 0 | F108: 0 | G108: 0 | H108: 0 | I108: 0 | J108: 0 | K108: 0 | M108: 0 | N108: 0 | O108: 0 | P108: 0 | Q108: 0 | R108: 0 | S108: 0 | T108: 0 | U108: 0 | V108: 0 | W108: 0 | X108: 0 | Y108: 0 | Z108: 0 | AA108: 0
C109: =C24*C$90 -> 0 | D109: 0 | E109: 0 | F109: 0 | G109: 0 | H109: 0 | I109: 0 | J109: 0 | K109: 0 | M109: 0 | N109: 0 | O109: 0 | P109: 0 | Q109: 0 | R109: 0 | S109: 0 | T109: 0 | U109: 0 | V109: 0 | W109: 0 | X109: 0 | Y109: 0 | Z109: 0 | AA109: 0
C110: =C25*C$90 -> 0 | D110: 0 | E110: 0 | F110: 0 | G110: 0 | H110: 0 | I110: 0 | J110: 0 | K110: 0 | M110: 0 | N110: 0 | O110: 0 | P110: 0 | Q110: 0 | R110: 0 | S110: 0 | T110: 0 | U110: 0 | V110: 0 | W110: 0 | X110: 0 | Y110: 0 | Z110: 0 | AA110: 0
C111: =C26*C$90 -> 0 | D111: 0 | E111: 0 | F111: 0 | G111: 0 | H111: 0 | I111: 0 | J111: 0 | K111: 0 | M111: 0 | N111: 0 | O111: 0 | P111: 0 | Q111: 0 | R111: 0 | S111: 0 | T111: 0 | U111: 0 | V111: 0 | W111: 0 | X111: 0 | Y111: 0 | Z111: 0 | AA111: 0
C112: =C27*C$90 -> 0 | D112: 0 | E112: 0 | F112: 0 | G112: 0 | H112: 0 | I112: 0 | J112: 0 | K112: 0 | M112: 0 | N112: 0 | O112: 0 | P112: 0 | Q112: 0 | R112: 0 | S112: 0 | T112: 0 | U112: 0 | V112: 0 | W112: 0 | X112: 0 | Y112: 0 | Z112: 0 | AA112: 0
C113: =C28*C$90 -> 0 | D113: 0 | E113: 0 | F113: 0 | G113: 0 | H113: 0 | I113: 0 | J113: 0 | K113: 0 | M113: 0 | N113: 0 | O113: 0 | P113: 0 | Q113: 0 | R113: 0 | S113: 0 | T113: 0 | U113: 0 | V113: 0 | W113: 0 | X113: 0 | Y113: 0 | Z113: 0 | AA113: 0
C114: =C29*C$90 -> 0 | D114: 0 | E114: 0 | F114: 0 | G114: 0 | H114: 0 | I114: 0 | J114: 0 | K114: 0 | M114: 0 | N114: 0 | O114: 0 | P114: 0 | Q114: 0 | R114: 0 | S114: 0 | T114: 0 | U114: 0 | V114: 0 | W114: 0 | X114: 0 | Y114: 0 | Z114: 0 | AA114: 0
C115: =C30*C$90 -> 0 | D115: 0 | E115: 0 | F115: 0 | G115: 0 | H115: 0 | I115: 0 | J115: 0 | K115: 0 | M115: 0 | N115: 0 | O115: 0 | P115: 0 | Q115: 0 | R115: 0 | S115: 0 | T115: 0 | U115: 0 | V115: 0 | W115: 0 | X115: 0 | Y115: 0 | Z115: 0 | AA115: 0
C116: =C31*C$90 -> 0 | D116: 0 | E116: 0 | F116: 0 | G116: 0 | H116: 0 | I116: 0 | J116: 0 | K116: 0 | M116: 0 | N116: 0 | O116: 0 | P116: 0 | Q116: 0 | R116: 0 | S116: 0 | T116: 0 | U116: 0 | V116: 0 | W116: 0 | X116: 0 | Y116: 0 | Z116: 0 | AA116: 0
C117: =C32*C$90 -> 0 | D117: 0 | E117: 0 | F117: 0 | G117: 0 | H117: 0 | I117: 0 | J117: 0 | K117: 0 | M117: 0 | N117: 0 | O117: 0 | P117: 0 | Q117: 0 | R117: 0 | S117: 0 | T117: 0 | U117: 0 | V117: 0 | W117: 0 | X117: 0 | Y117: 0 | Z117: 0 | AA117: 0
C118: =C33*C$90 -> 0 | D118: 0 | E118: 0 | F118: 0 | G118: 0 | H118: 0 | I118: 0 | J118: 0 | K118: 0 | M118: 0 | N118: 0 | O118: 0 | P118: 0 | Q118: 0 | R118: 0 | S118: 0 | T118: 0 | U118: 0 | V118: 0 | W118: 0 | X118: 0 | Y118: 0 | Z118: 0 | AA118: 0
C119: =C34*C$90 -> 0 | D119: 0 | E119: 0 | F119: 0 | G119: 0 | H119: 0 | I119: 0 | J119: 0 | K119: 0 | M119: 0 | N119: 0 | O119: 0 | P119: 0 | Q119: 0 | R119: 0 | S119: 0 | T119: 0 | U119: 0 | V119: 0 | W119: 0 | X119: 0 | Y119: 0 | Z119: 0 | AA119: 0
C120: =#REF!*C$90 ->  | D120: =#REF!*D$90 ->  | E120: =#REF!*E$90 ->  | F120: =#REF!*F$90 ->  | G120: =#REF!*G$90 ->  | H120: =#REF!*H$90 ->  | I120: =#REF!*I$90 ->  | J120: =#REF!*J$90 ->  | K120: =#REF!*K$90 ->  | L120: =#REF!*L$90 ->  | M120: =#REF!*M$90 ->  | N120: =#REF!*N$90 ->  | O120: =#REF!*O$90 ->  | P120: =#REF!*P$90 ->  | Q120: =#REF!*Q$90 ->  | R120: =#REF!*R$90 ->  | S120: =#REF!*S$90 ->  | T120: =#REF!*T$90 ->  | U120: =#REF!*U$90 ->  | V120: =#REF!*V$90 ->  | W120: =#REF!*W$90 ->  | X120: =#REF!*X$90 ->  | Y120: =#REF!*Y$90 ->  | Z120: =#REF!*Z$90 ->  | AA120: =#REF!*AA$90 ->  | AB120: =#REF!*AB$90 ->  | AC120: =#REF!*AC$90 ->  | AD120: =#REF!*AD$90 ->  | AE120: =#REF!*AE$90 -> 
C121: =#REF!*C$90 ->  | D121: =#REF!*D$90 ->  | E121: =#REF!*E$90 ->  | F121: =#REF!*F$90 ->  | G121: =#REF!*G$90 ->  | H121: =#REF!*H$90 ->  | I121: =#REF!*I$90 ->  | J121: =#REF!*J$90 ->  | K121: =#REF!*K$90 ->  | L121: =#REF!*L$90 ->  | M121: =#REF!*M$90 ->  | N121: =#REF!*N$90 ->  | O121: =#REF!*O$90 ->  | P121: =#REF!*P$90 ->  | Q121: =#REF!*Q$90 ->  | R121: =#REF!*R$90 ->  | S121: =#REF!*S$90 ->  | T121: =#REF!*T$90 ->  | U121: =#REF!*U$90 ->  | V121: =#REF!*V$90 ->  | W121: =#REF!*W$90 ->  | X121: =#REF!*X$90 ->  | Y121: =#REF!*Y$90 ->  | Z121: =#REF!*Z$90 ->  | AA121: =#REF!*AA$90 ->  | AB121: =#REF!*AB$90 ->  | AC121: =#REF!*AC$90 ->  | AD121: =#REF!*AD$90 ->  | AE121: =#REF!*AE$90 -> 
C122: =#REF!*C$90 ->  | D122: =#REF!*D$90 ->  | E122: =#REF!*E$90 ->  | F122: =#REF!*F$90 ->  | G122: =#REF!*G$90 ->  | H122: =#REF!*H$90 ->  | I122: =#REF!*I$90 ->  | J122: =#REF!*J$90 ->  | K122: =#REF!*K$90 ->  | L122: =#REF!*L$90 ->  | M122: =#REF!*M$90 ->  | N122: =#REF!*N$90 ->  | O122: =#REF!*O$90 ->  | P122: =#REF!*P$90 ->  | Q122: =#REF!*Q$90 ->  | R122: =#REF!*R$90 ->  | S122: =#REF!*S$90 ->  | T122: =#REF!*T$90 ->  | U122: =#REF!*U$90 ->  | V122: =#REF!*V$90 ->  | W122: =#REF!*W$90 ->  | X122: =#REF!*X$90 ->  | Y122: =#REF!*Y$90 ->  | Z122: =#REF!*Z$90 ->  | AA122: =#REF!*AA$90 ->  | AB122: =#REF!*AB$90 ->  | AC122: =#REF!*AC$90 ->  | AD122: =#REF!*AD$90 ->  | AE122: =#REF!*AE$90 -> 
C123: =#REF!*C$90 ->  | D123: =#REF!*D$90 ->  | E123: =#REF!*E$90 ->  | F123: =#REF!*F$90 ->  | G123: =#REF!*G$90 ->  | H123: =#REF!*H$90 ->  | I123: =#REF!*I$90 ->  | J123: =#REF!*J$90 ->  | K123: =#REF!*K$90 ->  | L123: =#REF!*L$90 ->  | M123: =#REF!*M$90 ->  | N123: =#REF!*N$90 ->  | O123: =#REF!*O$90 ->  | P123: =#REF!*P$90 ->  | Q123: =#REF!*Q$90 ->  | R123: =#REF!*R$90 ->  | S123: =#REF!*S$90 ->  | T123: =#REF!*T$90 ->  | U123: =#REF!*U$90 ->  | V123: =#REF!*V$90 ->  | W123: =#REF!*W$90 ->  | X123: =#REF!*X$90 ->  | Y123: =#REF!*Y$90 ->  | Z123: =#REF!*Z$90 ->  | AA123: =#REF!*AA$90 ->  | AB123: =#REF!*AB$90 ->  | AC123: =#REF!*AC$90 ->  | AD123: =#REF!*AD$90 ->  | AE123: =#REF!*AE$90 -> 
C124: =#REF!*C$90 ->  | D124: =#REF!*D$90 ->  | E124: =#REF!*E$90 ->  | F124: =#REF!*F$90 ->  | G124: =#REF!*G$90 ->  | H124: =#REF!*H$90 ->  | I124: =#REF!*I$90 ->  | J124: =#REF!*J$90 ->  | K124: =#REF!*K$90 ->  | L124: =#REF!*L$90 ->  | M124: =#REF!*M$90 ->  | N124: =#REF!*N$90 ->  | O124: =#REF!*O$90 ->  | P124: =#REF!*P$90 ->  | Q124: =#REF!*Q$90 ->  | R124: =#REF!*R$90 ->  | S124: =#REF!*S$90 ->  | T124: =#REF!*T$90 ->  | U124: =#REF!*U$90 ->  | V124: =#REF!*V$90 ->  | W124: =#REF!*W$90 ->  | X124: =#REF!*X$90 ->  | Y124: =#REF!*Y$90 ->  | Z124: =#REF!*Z$90 ->  | AA124: =#REF!*AA$90 ->  | AB124: =#REF!*AB$90 ->  | AC124: =#REF!*AC$90 ->  | AD124: =#REF!*AD$90 ->  | AE124: =#REF!*AE$90 -> 
C125: =#REF!*C$90 ->  | D125: =#REF!*D$90 ->  | E125: =#REF!*E$90 ->  | F125: =#REF!*F$90 ->  | G125: =#REF!*G$90 ->  | H125: =#REF!*H$90 ->  | I125: =#REF!*I$90 ->  | J125: =#REF!*J$90 ->  | K125: =#REF!*K$90 ->  | L125: =#REF!*L$90 ->  | M125: =#REF!*M$90 ->  | N125: =#REF!*N$90 ->  | O125: =#REF!*O$90 ->  | P125: =#REF!*P$90 ->  | Q125: =#REF!*Q$90 ->  | R125: =#REF!*R$90 ->  | S125: =#REF!*S$90 ->  | T125: =#REF!*T$90 ->  | U125: =#REF!*U$90 ->  | V125: =#REF!*V$90 ->  | W125: =#REF!*W$90 ->  | X125: =#REF!*X$90 ->  | Y125: =#REF!*Y$90 ->  | Z125: =#REF!*Z$90 ->  | AA125: =#REF!*AA$90 ->  | AB125: =#REF!*AB$90 ->  | AC125: =#REF!*AC$90 ->  | AD125: =#REF!*AD$90 ->  | AE125: =#REF!*AE$90 -> 
C126: =#REF!*C$90 ->  | D126: =#REF!*D$90 ->  | E126: =#REF!*E$90 ->  | F126: =#REF!*F$90 ->  | G126: =#REF!*G$90 ->  | H126: =#REF!*H$90 ->  | I126: =#REF!*I$90 ->  | J126: =#REF!*J$90 ->  | K126: =#REF!*K$90 ->  | L126: =#REF!*L$90 ->  | M126: =#REF!*M$90 ->  | N126: =#REF!*N$90 ->  | O126: =#REF!*O$90 ->  | P126: =#REF!*P$90 ->  | Q126: =#REF!*Q$90 ->  | R126: =#REF!*R$90 ->  | S126: =#REF!*S$90 ->  | T126: =#REF!*T$90 ->  | U126: =#REF!*U$90 ->  | V126: =#REF!*V$90 ->  | W126: =#REF!*W$90 ->  | X126: =#REF!*X$90 ->  | Y126: =#REF!*Y$90 ->  | Z126: =#REF!*Z$90 ->  | AA126: =#REF!*AA$90 ->  | AB126: =#REF!*AB$90 ->  | AC126: =#REF!*AC$90 ->  | AD126: =#REF!*AD$90 ->  | AE126: =#REF!*AE$90 -> 
C127: =#REF!*C$90 ->  | D127: =#REF!*D$90 ->  | E127: =#REF!*E$90 ->  | F127: =#REF!*F$90 ->  | G127: =#REF!*G$90 ->  | H127: =#REF!*H$90 ->  | I127: =#REF!*I$90 ->  | J127: =#REF!*J$90 ->  | K127: =#REF!*K$90 ->  | L127: =#REF!*L$90 ->  | M127: =#REF!*M$90 ->  | N127: =#REF!*N$90 ->  | O127: =#REF!*O$90 ->  | P127: =#REF!*P$90 ->  | Q127: =#REF!*Q$90 ->  | R127: =#REF!*R$90 ->  | S127: =#REF!*S$90 ->  | T127: =#REF!*T$90 ->  | U127: =#REF!*U$90 ->  | V127: =#REF!*V$90 ->  | W127: =#REF!*W$90 ->  | X127: =#REF!*X$90 ->  | Y127: =#REF!*Y$90 ->  | Z127: =#REF!*Z$90 ->  | AA127: =#REF!*AA$90 ->  | AB127: =#REF!*AB$90 ->  | AC127: =#REF!*AC$90 ->  | AD127: =#REF!*AD$90 ->  | AE127: =#REF!*AE$90 -> 
C128: =#REF!*C$90 ->  | D128: =#REF!*D$90 ->  | E128: =#REF!*E$90 ->  | F128: =#REF!*F$90 ->  | G128: =#REF!*G$90 ->  | H128: =#REF!*H$90 ->  | I128: =#REF!*I$90 ->  | J128: =#REF!*J$90 ->  | K128: =#REF!*K$90 ->  | L128: =#REF!*L$90 ->  | M128: =#REF!*M$90 ->  | N128: =#REF!*N$90 ->  | O128: =#REF!*O$90 ->  | P128: =#REF!*P$90 ->  | Q128: =#REF!*Q$90 ->  | R128: =#REF!*R$90 ->  | S128: =#REF!*S$90 ->  | T128: =#REF!*T$90 ->  | U128: =#REF!*U$90 ->  | V128: =#REF!*V$90 ->  | W128: =#REF!*W$90 ->  | X128: =#REF!*X$90 ->  | Y128: =#REF!*Y$90 ->  | Z128: =#REF!*Z$90 ->  | AA128: =#REF!*AA$90 ->  | AB128: =#REF!*AB$90 ->  | AC128: =#REF!*AC$90 ->  | AD128: =#REF!*AD$90 ->  | AE128: =#REF!*AE$90 -> 
C129: =#REF!*C$90 ->  | D129: =#REF!*D$90 ->  | E129: =#REF!*E$90 ->  | F129: =#REF!*F$90 ->  | G129: =#REF!*G$90 ->  | H129: =#REF!*H$90 ->  | I129: =#REF!*I$90 ->  | J129: =#REF!*J$90 ->  | K129: =#REF!*K$90 ->  | L129: =#REF!*L$90 ->  | M129: =#REF!*M$90 ->  | N129: =#REF!*N$90 ->  | O129: =#REF!*O$90 ->  | P129: =#REF!*P$90 ->  | Q129: =#REF!*Q$90 ->  | R129: =#REF!*R$90 ->  | S129: =#REF!*S$90 ->  | T129: =#REF!*T$90 ->  | U129: =#REF!*U$90 ->  | V129: =#REF!*V$90 ->  | W129: =#REF!*W$90 ->  | X129: =#REF!*X$90 ->  | Y129: =#REF!*Y$90 ->  | Z129: =#REF!*Z$90 ->  | AA129: =#REF!*AA$90 ->  | AB129: =#REF!*AB$90 ->  | AC129: =#REF!*AC$90 ->  | AD129: =#REF!*AD$90 ->  | AE129: =#REF!*AE$90 -> 
C130: =C35*C$90 -> 0 | D130: 0 | E130: 0 | F130: 0 | G130: 0 | H130: 0 | I130: 0 | J130: 0 | K130: 0 | M130: 0 | N130: 0 | O130: 0 | P130: 0 | Q130: 0 | R130: 0 | S130: 0 | T130: 0 | U130: 0 | V130: 0 | W130: 0 | X130: 0 | Y130: 0 | Z130: 0 | AA130: 0

Sheet 2 Б(2) (hidden)
A1: =Титул!B10 -> 2 Б | E1: Страница заполняется автоматически, без участия оператора!!!
A2: Всего учащихся в классе: | D2: =Титул!C10 -> 25 | E2: Фамилии, имена учащихся | F2: Учебные предметы | G2: Фамилии и инициалы учителей | H2: Пояснения, примечания, причины
A3: Учатся на "5": | C3: =COUNTA(E3:E17) -> 0 | D3: 1
D4: 2
D5: 3
D6: 4
D7: 5
D8: 6
D9: 7
D10: 8
D11: 9
D12: 10
D13: 11
D14: 12
D15: 13
D16: 14
D17: 15
A18: Учатся на "4"и"5" | C18: =COUNTA(E18:E42) -> 0 | D18: 1
D19: 2
D20: 3
D21: 4
D22: 5
D23: 6
D24: 7
D25: 8
D26: 9
D27: 10
D28: 11
D29: 12
D30: 13
D31: 14
D32: 15
D33: 16
D34: 17
D35: 18
D36: 19
D37: 20
D38: 21
D39: 22
D40: 23
D41: 24
D42: 25
A43: Не аттестованы: | C43: =COUNTA(E43:E52) -> 0 | D43: 1
D44: 2
D45: 3
D46: 4
D47: 5
D48: 6
D49: 7
D50: 8
D51: 9
D52: 10
A53: Не успевают: | C53: =COUNTA(E53:E67) -> 0 | D53: 1
D54: 2
D55: 3
D56: 4
D57: 5
D58: 6
D59: 7
D60: 8
D61: 9
D62: 10
D63: 11
D64: 12
D65: 13
D66: 14
D67: 15
A68: Освобождены: | C68: =COUNTA(E68:E82) -> 0 | D68: 1
D69: 2
D70: 3
D71: 4
D72: 5
D73: 6
D74: 7
D75: 8
D76: 9
D77: 10
D78: 11
D79: 12
D80: 13
D81: 14
D82: 15

Sheet 2 В (hidden)
A1: =Титул!B5 -> 2014/15 учебный год | D1: =Титул!B4 -> МОУ СОШ № 15 | AA1: =Титул!B6 -> 4 четверть | AI1: 3+
A2: ВЕДОМОСТЬ РЕЗУЛЬТАТОВ УЧЕБНОЙ ДЕЯТЕЛЬНОСТИ | Z2: =Титул!B11 -> 2 В | AD2: класса
A3: Классный руководитель: | E3: =Титул!D11 -> Цилина О.В. | S3: Программа: | X3: =Титул!G11 -> УМК "Школа России" (ЗПР)
A4: Вручную вносятся только оценки "5", "4", "3", "2", "1". Не аттестованным проставляется "0", освобожденным - "Н". | C4: У ч е б н ы е п р е д м е т ы | AF4: Результаты ученика:
C5: =Нагрузка!C3 -> Русский язык | D5: =Нагрузка!D3 -> Литература | E5: =Нагрузка!E3 -> Иностранный язык | F5: =Нагрузка!F3 -> Математика | G5: =Нагрузка!G3 -> Алгебра | H5: =Нагрузка!H3 -> Геометрия | I5: =Нагрузка!I3 -> Информатика | J5: =Нагрузка!J3 -> История | K5: =Нагрузка!K3 -> Обществознание | L5: =Нагрузка!L3 -> Окружающий мир | M5: =Нагрузка!M3 -> ИЗО | N5: =Нагрузка!N3 -> Музыка | O5: =Нагрузка!O3 -> Технология | P5: =Нагрузка!P3 -> Технология | Q5: =Нагрузка!Q3 -> ФЗК | R5: =Нагрузка!R3 -> Иностранный язык | S5: =Нагрузка!S3 -> Иностранный язык | T5: =Нагрузка!T3 -> География | U5: =Нагрузка!U3 -> Физика | V5: =Нагрузка!V3 -> Химия | W5: =Нагрузка!W3 -> Биология | X5: =Нагрузка!X3 -> МХК | Y5: =Нагрузка!Y3 -> ФЗК | Z5: =Нагрузка!Z3 -> ОБЖ | AA5: =Нагрузка!AA3 -> Природоведение | AB5: =Нагрузка!AB3 -> 0 | AC5: =Нагрузка!AC3 -> 0 | AD5: =Нагрузка!AD3 -> 0 | AE5: =Нагрузка!AE3 -> 0 | AF5: Средний балл: | AG5: Степень обученности (СОУ): | AH5: Качество успеваемости: | AI5: Рейтинговый учебный балл:
A6: 1 | B6: =СпискиКлассы!D4 -> Баженов Егор | AF6: =AVERAGE(C6:AE6) ->  | AG6: =(COUNTIF(C6:AE6,"5")+COUNTIF(C6:AE6,"4")*0.64+COUNTIF(C6:AE6,"3")*0.36+COUNTIF(C6:AE6,"2")*0.16)/(COUNTIF(C6:AE6,"5")+COUNTIF(C6:AE6,"4")+COUNTIF(C6:AE6,"3")+COUNTIF(C6:AE6,"2")+COUNTIF(C6:AE6,"0")) ->  | AH6: =((5*COUNTIF(C6:AE6,"5"))+(4*COUNTIF(C6:AE6,"4")))/(5*(COUNTA(C6:AE6)-COUNTIF(C6:AE6,"н"))) ->  | AI6: =SUMIF(C91:AE91,">0",C91:AE91)/(COUNTIF(C6:AE6,">0")+COUNTIF(C6:AE6,"=0")+COUNTIF(C6:AE6,"Н")) -> 
A7: =A6+1 -> 2 | B7: =СпискиКлассы!D5 -> Вдовченок Мария | AF7: =AVERAGE(C7:AE7) ->  | AG7: =(COUNTIF(C7:AE7,"5")+COUNTIF(C7:AE7,"4")*0.64+COUNTIF(C7:AE7,"3")*0.36+COUNTIF(C7:AE7,"2")*0.16)/(COUNTIF(C7:AE7,"5")+COUNTIF(C7:AE7,"4")+COUNTIF(C7:AE7,"3")+COUNTIF(C7:AE7,"2")+COUNTIF(C7:AE7,"0")) ->  | AH7: =((5*COUNTIF(C7:AE7,"5"))+(4*COUNTIF(C7:AE7,"4")))/(5*(COUNTA(C7:AE7)-COUNTIF(C7:AE7,"н"))) -> 
A8: 3 | B8: =СпискиКлассы!D6 -> Воробьев Владислав | AF8: =AVERAGE(C8:AE8) -> 
A9: 4 | B9: =СпискиКлассы!D7 -> Грибов Алексей
A10: 5 | B10: =СпискиКлассы!D8 -> Запорожан Олег
A11: 6 | B11: =СпискиКлассы!D9 -> Илларионов Дмитрий
A12: 7 | B12: =СпискиКлассы!D10 -> Карпов Роман
A13: 8 | B13: =СпискиКлассы!D11 -> Ковалев Владислав
A14: 9 | B14: =СпискиКлассы!D12 -> Конакова Вероника
A15: 10 | B15: =СпискиКлассы!D13 -> Кузьменко Александр
A16: 11 | B16: =СпискиКлассы!D14 -> Москвичев Сергей
A17: 12 | B17: =СпискиКлассы!D15 -> Пыленок Максимильян
A18: 13 | B18: =СпискиКлассы!D16 -> Черных Игнат
A19: 14 | B19: =СпискиКлассы!D17 -> 0
A20: 15 | B20: =СпискиКлассы!D18 -> 0
A21: 16 | B21: =СпискиКлассы!D19 -> 0
A22: 17 | B22: =СпискиКлассы!D20 -> 0
A23: 18 | B23: =СпискиКлассы!D21 -> 0
A24: 19 | B24: =СпискиКлассы!D22 -> 0
A25: 20 | B25: =СпискиКлассы!D23 -> 0
A26: 21 | B26: =СпискиКлассы!D24 -> 0
A27: 22 | B27: =СпискиКлассы!D25 -> 0
A28: 23 | B28: =СпискиКлассы!D26 -> 0
A29: 24 | B29: =СпискиКлассы!D27 -> 0
A30: 25 | B30: =СпискиКлассы!D28 -> 0
A31: 26 | B31: =СпискиКлассы!D29 -> 0 | AF31: =AVERAGE(C31:AE31) ->  | AG31: =(COUNTIF(C31:AE31,"5")+COUNTIF(C31:AE31,"4")*0.64+COUNTIF(C31:AE31,"3")*0.36+COUNTIF(C31:AE31,"2")*0.16)/(COUNTIF(C31:AE31,"5")+COUNTIF(C31:AE31,"4")+COUNTIF(C31:AE31,"3")+COUNTIF(C31:AE31,"2")+COUNTIF(C31:AE31,"0")) -> 
A32: 27 | B32: =СпискиКлассы!D30 -> 0
A33: 28 | B33: =СпискиКлассы!D31 -> 0
A34: 29 | B34: =СпискиКлассы!D32 -> 0
A35: 30 | B35: =СпискиКлассы!D43 -> 0 | AI35: =SUMIF(C130:AE130,">0",C130:AE130)/(COUNTIF(C35:AE35,">0")+COUNTIF(C35:AE35,"=0")+COUNTIF(C35:AE35,"Н")) -> 
A36: Фамилия и инициалы учителя - предметника | C36: =Нагрузка!C7 -> Цилина | D36: =Нагрузка!D7 -> Цилина | E36: =Нагрузка!E7 -> 0 | F36: =Нагрузка!F7 -> Цилина | G36: =Нагрузка!G7 -> 0 | H36: =Нагрузка!H7 -> 0 | I36: =Нагрузка!I7 -> 0 | J36: =Нагрузка!J7 -> 0 | K36: =Нагрузка!K7 -> 0 | L36: =Нагрузка!L7 -> Цилина | M36: =Нагрузка!M7 -> Цилина | N36: =Нагрузка!N7 -> Заворина | O36: =Нагрузка!O7 -> Цилина | P36: =Нагрузка!P7 -> Цилина | Q36: =Нагрузка!Q7 -> Ермакова | R36: =Нагрузка!R7 -> 0 | S36: =Нагрузка!S7 -> 0 | T36: =Нагрузка!T7 -> 0 | U36: =Нагрузка!U7 -> 0 | V36: =Нагрузка!V7 -> 0 | W36: =Нагрузка!W7 -> 0 | X36: =Нагрузка!X7 -> 0 | Y36: =Нагрузка!Y7 -> 0 | Z36: =Нагрузка!Z7 -> 0 | AA36: =Нагрузка!AA7 -> 0 | AB36: =Нагрузка!AB7 -> 0 | AC36: =Нагрузка!AC7 -> 0 | AD36: =Нагрузка!AD7 -> 0 | AE36: =Нагрузка!AE7 -> 0 | AF36: Показатели результатов учебной деятельности в целом по классу:
A37: Результаты учебной деятельности класса | B37: Количество "5": | C37: =COUNTIF(C6:C35,5) -> 0 | D37: 0 | E37: 0 | F37: 0 | G37: 0 | H37: 0 | I37: 0 | J37: 0 | K37: 0 | L37: 0 | M37: 0 | N37: 0 | O37: 0 | P37: 0 | Q37: 0 | R37: 0 | S37: 0 | T37: 0 | U37: 0 | V37: 0 | W37: 0 | X37: 0 | Y37: 0 | Z37: 0 | AA37: 0 | AB37: 0 | AC37: 0 | AD37: 0 | AE37: 0 | AF37: =SUM(C37:AE37) -> 0
B38: Количество "4": | C38: =COUNTIF(C6:C35,4) -> 0 | D38: 0 | E38: 0 | F38: 0 | G38: 0 | H38: 0 | I38: 0 | J38: 0 | K38: 0 | L38: 0 | M38: 0 | N38: 0 | O38: 0 | P38: 0 | Q38: 0 | R38: 0 | S38: 0 | T38: 0 | U38: 0 | V38: 0 | W38: 0 | X38: 0 | Y38: 0 | Z38: 0 | AA38: 0 | AB38: 0 | AC38: 0 | AD38: 0 | AE38: 0 | AF38: 0
B39: Количество "3": | C39: =COUNTIF(C6:C35,3) -> 0 | D39: 0 | E39: 0 | F39: 0 | G39: 0 | H39: 0 | I39: 0 | J39: 0 | K39: 0 | L39: 0 | M39: 0 | N39: 0 | O39: 0 | P39: 0 | Q39: 0 | R39: 0 | S39: 0 | T39: 0 | U39: 0 | V39: 0 | W39: 0 | X39: 0 | Y39: 0 | Z39: 0 | AA39: 0 | AB39: 0 | AC39: 0 | AD39: 0 | AE39: 0 | AF39: 0
B40: Количество "2": | C40: =COUNTIF(C6:C35,2) -> 0 | D40: 0 | E40: 0 | F40: 0 | G40: 0 | H40: 0 | I40: 0 | J40: 0 | K40: 0 | L40: 0 | M40: 0 | N40: 0 | O40: 0 | P40: 0 | Q40: 0 | R40: 0 | S40: 0 | T40: 0 | U40: 0 | V40: 0 | W40: 0 | X40: 0 | Y40: 0 | Z40: 0 | AA40: 0 | AB40: 0 | AC40: 0 | AD40: 0 | AE40: 0 | AF40: 0
B41: Не аттестовано: | C41: =COUNTIF(C6:C35,0) -> 0 | D41: 0 | E41: 0 | F41: 0 | G41: 0 | H41: 0 | I41: 0 | J41: 0 | K41: 0 | L41: 0 | M41: 0 | N41: 0 | O41: 0 | P41: 0 | Q41: 0 | R41: 0 | S41: 0 | T41: 0 | U41: 0 | V41: 0 | W41: 0 | X41: 0 | Y41: 0 | Z41: 0 | AA41: 0 | AB41: 0 | AC41: 0 | AD41: 0 | AE41: 0 | AF41: 0
B42: Освобождено: | C42: =COUNTIF(C6:C35,"н") -> 0 | D42: 0 | E42: 0 | F42: 0 | G42: 0 | H42: 0 | I42: 0 | J42: 0 | K42: 0 | L42: 0 | M42: 0 | N42: 0 | O42: 0 | P42: 0 | Q42: 0 | R42: 0 | S42: 0 | T42: 0 | U42: 0 | V42: 0 | W42: 0 | X42: 0 | Y42: 0 | Z42: 0 | AA42: 0 | AB42: 0 | AC42: 0 | AD42: 0 | AE42: 0 | AF42: 0
B43: Успеваемость: | C43: =(C37+C38+C39)/(C37+C38+C39+C40+C41) ->  | D43: =(D37+D38+D39)/(D37+D38+D39+D40+D41) ->  | AF43: =('2 В(2)'!D2-'2 В(2)'!C43-'2 В(2)'!C53)/'2 В(2)'!D2 -> 1
B44: Качество знаний: | C44: =(C37+C38)/(C37+C38+C39+C40+C41) ->  | D44: =(D37+D38)/(D37+D38+D39+D40+D41) ->  | AF44: =('2 В(2)'!C3+'2 В(2)'!C18)/'2 В(2)'!D2 -> 0
B45: Степень обученности: | C45: =(C37+C38*0.64+C39*0.36+C40*0.16)/(C37+C38+C39+C40+C41) ->  | D45: =(D37+D38*0.64+D39*0.36+D40*0.16)/(D37+D38+D39+D40+D41) ->  | AF45: =(AF37+AF38*0.64+AF39*0.36+AF40*0.16)/(AF37+AF38+AF39+AF40+AF41) -> 
B46: Средний балл: | C46: =(C37*5+C38*4+C39*3+C40*2)/(C37+C38+C39+C40+C41) ->  | D46: =(D37*5+D38*4+D39*3+D40*2)/(D37+D38+D39+D40+D41) ->  | AF46: =(AF37*5+AF38*4+AF39*3+AF40*2)/(AF37+AF38+AF39+AF40+AF41) -> 
B47: Качество успеваемости: | C47: =(5*C37+4*C38)*0.2/(SUM(C37+C38+C39+C40+C41)) ->  | D47: =(5*COUNTIF(D6:D35,5)+4*COUNTIF(D6:D35,4))*0.2/(COUNTA(D6:D35)-COUNTIF(D6:D35,"н")) ->  | AF47: =(5*COUNTIF(C6:AE35,5)+4*COUNTIF(C6:AE35,4))*0.2/(COUNTA(C6:AE35)-COUNTIF(C6:AE35,"н")) -> 
A48: Выполнено с помощью программы статистического анализа результатов учебной деятельности | AC48: =Титул!G31 -> PSORUD-Klass.v.04.11.demo | AI48: 3+
B90: Коэф.трудн.предмета | C90: =VLOOKUP(C$5,ШкалаТрудн!$C$5:$N$34,LEFT($Z$2,2)+1,0) -> 7 | D90: =VLOOKUP(D$5,ШкалаТрудн!$C$5:$N$34,LEFT($Z$2,2)+1,0) -> 5 | E90: =VLOOKUP(E$5,ШкалаТрудн!$C$5:$N$34,LEFT($Z$2,2)+1,0) -> 5 | F90: =VLOOKUP(F$5,ШкалаТрудн!$C$5:$N$34,LEFT($Z$2,2)+1,0) -> 8 | G90: =VLOOKUP(G$5,ШкалаТрудн!$C$5:$N$34,LEFT($Z$2,2)+1,0) -> 0 | H90: =VLOOKUP(H$5,ШкалаТрудн!$C$5:$N$34,LEFT($Z$2,2)+1,0) -> 0 | I90: =VLOOKUP(I$5,ШкалаТрудн!$C$5:$N$34,LEFT($Z$2,2)+1,0) -> 6 | J90: =VLOOKUP(J$5,ШкалаТрудн!$C$5:$N$34,LEFT($Z$2,2)+1,0) -> 4 | K90: =VLOOKUP(K$5,ШкалаТрудн!$C$5:$N$34,LEFT($Z$2,2)+1,0) -> 0 | L90: =VLOOKUP(L$5,ШкалаТрудн!$C$5:$N$34,LEFT($Z$2,2)+1,0) ->  | M90: =VLOOKUP(M$5,ШкалаТрудн!$C$5:$N$34,LEFT($Z$2,2)+1,0) -> 3 | N90: =VLOOKUP(N$5,ШкалаТрудн!$C$5:$N$34,LEFT($Z$2,2)+1,0) -> 3 | O90: =VLOOKUP(O$5,ШкалаТрудн!$C$5:$N$34,LEFT($Z$2,2)+1,0) -> 2 | P90: =VLOOKUP(P$5,ШкалаТрудн!$C$5:$N$34,LEFT($Z$2,2)+1,0) -> 2 | Q90: =VLOOKUP(Q$5,ШкалаТрудн!$C$5:$N$34,LEFT($Z$2,2)+1,0) -> 1 | R90: =VLOOKUP(R$5,ШкалаТрудн!$C$5:$N$34,LEFT($Z$2,2)+1,0) -> 5 | S90: =VLOOKUP(S$5,ШкалаТрудн!$C$5:$N$34,LEFT($Z$2,2)+1,0) -> 5 | T90: =VLOOKUP(T$5,ШкалаТрудн!$C$5:$N$34,LEFT($Z$2,2)+1,0) -> 0 | U90: =VLOOKUP(U$5,ШкалаТрудн!$C$5:$N$34,LEFT($Z$2,2)+1,0) -> 0 | V90: =VLOOKUP(V$5,ШкалаТрудн!$C$5:$N$34,LEFT($Z$2,2)+1,0) -> 0 | W90: =VLOOKUP(W$5,ШкалаТрудн!$C$5:$N$34,LEFT($Z$2,2)+1,0) -> 0 | X90: =VLOOKUP(X$5,ШкалаТрудн!$C$5:$N$34,LEFT($Z$2,2)+1,0) -> 0 | Y90: =VLOOKUP(Y$5,ШкалаТрудн!$C$5:$N$34,LEFT($Z$2,2)+1,0) -> 1 | Z90: =VLOOKUP(Z$5,ШкалаТрудн!$C$5:$N$34,LEFT($Z$2,2)+1,0) -> 0 | AA90: =VLOOKUP(AA$5,ШкалаТрудн!$C$5:$N$34,LEFT($Z$2,2)+1,0) -> 0 | AB90: =VLOOKUP(AB$5,ШкалаТрудн!$C$5:$N$34,LEFT($Z$2,2)+1,0) ->  | AC90: =VLOOKUP(AC$5,ШкалаТрудн!$C$5:$N$34,LEFT($Z$2,2)+1,0) ->  | AD90: =VLOOKUP(AD$5,ШкалаТрудн!$C$5:$N$34,LEFT($Z$2,2)+1,0) ->  | AE90: =VLOOKUP(AE$5,ШкалаТрудн!$C$5:$N$34,LEFT($Z$2,2)+1,0) -> 
C91: =C6*C$90 -> 0 | D91: 0 | E91: 0 | F91: 0 | G91: 0 | H91: 0 | I91: 0 | J91: 0 | K91: 0 | M91: 0 | N91: 0 | O91: 0 | P91: 0 | Q91: 0 | R91: 0 | S91: 0 | T91: 0 | U91: 0 | V91: 0 | W91: 0 | X91: 0 | Y91: 0 | Z91: 0 | AA91: 0
C92: =C7*C$90 -> 0 | D92: 0 | E92: 0 | F92: 0 | G92: 0 | H92: 0 | I92: 0 | J92: 0 | K92: 0 | M92: 0 | N92: 0 | O92: 0 | P92: 0 | Q92: 0 | R92: 0 | S92: 0 | T92: 0 | U92: 0 | V92: 0 | W92: 0 | X92: 0 | Y92: 0 | Z92: 0 | AA92: 0
C93: =C8*C$90 -> 0 | D93: 0 | E93: 0 | F93: 0 | G93: 0 | H93: 0 | I93: 0 | J93: 0 | K93: 0 | M93: 0 | N93: 0 | O93: 0 | P93: 0 | Q93: 0 | R93: 0 | S93: 0 | T93: 0 | U93: 0 | V93: 0 | W93: 0 | X93: 0 | Y93: 0 | Z93: 0 | AA93: 0
C94: =C9*C$90 -> 0 | D94: 0 | E94: 0 | F94: 0 | G94: 0 | H94: 0 | I94: 0 | J94: 0 | K94: 0 | M94: 0 | N94: 0 | O94: 0 | P94: 0 | Q94: 0 | R94: 0 | S94: 0 | T94: 0 | U94: 0 | V94: 0 | W94: 0 | X94: 0 | Y94: 0 | Z94: 0 | AA94: 0
C95: =C10*C$90 -> 0 | D95: 0 | E95: 0 | F95: 0 | G95: 0 | H95: 0 | I95: 0 | J95: 0 | K95: 0 | M95: 0 | N95: 0 | O95: 0 | P95: 0 | Q95: 0 | R95: 0 | S95: 0 | T95: 0 | U95: 0 | V95: 0 | W95: 0 | X95: 0 | Y95: 0 | Z95: 0 | AA95: 0
C96: =C11*C$90 -> 0 | D96: 0 | E96: 0 | F96: 0 | G96: 0 | H96: 0 | I96: 0 | J96: 0 | K96: 0 | M96: 0 | N96: 0 | O96: 0 | P96: 0 | Q96: 0 | R96: 0 | S96: 0 | T96: 0 | U96: 0 | V96: 0 | W96: 0 | X96: 0 | Y96: 0 | Z96: 0 | AA96: 0
C97: =C12*C$90 -> 0 | D97: 0 | E97: 0 | F97: 0 | G97: 0 | H97: 0 | I97: 0 | J97: 0 | K97: 0 | M97: 0 | N97: 0 | O97: 0 | P97: 0 | Q97: 0 | R97: 0 | S97: 0 | T97: 0 | U97: 0 | V97: 0 | W97: 0 | X97: 0 | Y97: 0 | Z97: 0 | AA97: 0
C98: =C13*C$90 -> 0 | D98: 0 | E98: 0 | F98: 0 | G98: 0 | H98: 0 | I98: 0 | J98: 0 | K98: 0 | M98: 0 | N98: 0 | O98: 0 | P98: 0 | Q98: 0 | R98: 0 | S98: 0 | T98: 0 | U98: 0 | V98: 0 | W98: 0 | X98: 0 | Y98: 0 | Z98: 0 | AA98: 0
C99: =C14*C$90 -> 0 | D99: 0 | E99: 0 | F99: 0 | G99: 0 | H99: 0 | I99: 0 | J99: 0 | K99: 0 | M99: 0 | N99: 0 | O99: 0 | P99: 0 | Q99: 0 | R99: 0 | S99: 0 | T99: 0 | U99: 0 | V99: 0 | W99: 0 | X99: 0 | Y99: 0 | Z99: 0 | AA99: 0
C100: =C15*C$90 -> 0 | D100: 0 | E100: 0 | F100: 0 | G100: 0 | H100: 0 | I100: 0 | J100: 0 | K100: 0 | M100: 0 | N100: 0 | O100: 0 | P100: 0 | Q100: 0 | R100: 0 | S100: 0 | T100: 0 | U100: 0 | V100: 0 | W100: 0 | X100: 0 | Y100: 0 | Z100: 0 | AA100: 0
C101: =C16*C$90 -> 0 | D101: 0 | E101: 0 | F101: 0 | G101: 0 | H101: 0 | I101: 0 | J101: 0 | K101: 0 | M101: 0 | N101: 0 | O101: 0 | P101: 0 | Q101: 0 | R101: 0 | S101: 0 | T101: 0 | U101: 0 | V101: 0 | W101: 0 | X101: 0 | Y101: 0 | Z101: 0 | AA101: 0
C102: =C17*C$90 -> 0 | D102: 0 | E102: 0 | F102: 0 | G102: 0 | H102: 0 | I102: 0 | J102: 0 | K102: 0 | M102: 0 | N102: 0 | O102: 0 | P102: 0 | Q102: 0 | R102: 0 | S102: 0 | T102: 0 | U102: 0 | V102: 0 | W102: 0 | X102: 0 | Y102: 0 | Z102: 0 | AA102: 0
C103: =C18*C$90 -> 0 | D103: 0 | E103: 0 | F103: 0 | G103: 0 | H103: 0 | I103: 0 | J103: 0 | K103: 0 | M103: 0 | N103: 0 | O103: 0 | P103: 0 | Q103: 0 | R103: 0 | S103: 0 | T103: 0 | U103: 0 | V103: 0 | W103: 0 | X103: 0 | Y103: 0 | Z103: 0 | AA103: 0
C104: =C19*C$90 -> 0 | D104: 0 | E104: 0 | F104: 0 | G104: 0 | H104: 0 | I104: 0 | J104: 0 | K104: 0 | M104: 0 | N104: 0 | O104: 0 | P104: 0 | Q104: 0 | R104: 0 | S104: 0 | T104: 0 | U104: 0 | V104: 0 | W104: 0 | X104: 0 | Y104: 0 | Z104: 0 | AA104: 0
C105: =C20*C$90 -> 0 | D105: 0 | E105: 0 | F105: 0 | G105: 0 | H105: 0 | I105: 0 | J105: 0 | K105: 0 | M105: 0 | N105: 0 | O105: 0 | P105: 0 | Q105: 0 | R105: 0 | S105: 0 | T105: 0 | U105: 0 | V105: 0 | W105: 0 | X105: 0 | Y105: 0 | Z105: 0 | AA105: 0
C106: =C21*C$90 -> 0 | D106: 0 | E106: 0 | F106: 0 | G106: 0 | H106: 0 | I106: 0 | J106: 0 | K106: 0 | M106: 0 | N106: 0 | O106: 0 | P106: 0 | Q106: 0 | R106: 0 | S106: 0 | T106: 0 | U106: 0 | V106: 0 | W106: 0 | X106: 0 | Y106: 0 | Z106: 0 | AA106: 0
C107: =C22*C$90 -> 0 | D107: 0 | E107: 0 | F107: 0 | G107: 0 | H107: 0 | I107: 0 | J107: 0 | K107: 0 | M107: 0 | N107: 0 | O107: 0 | P107: 0 | Q107: 0 | R107: 0 | S107: 0 | T107: 0 | U107: 0 | V107: 0 | W107: 0 | X107: 0 | Y107: 0 | Z107: 0 | AA107: 0
C108: =C23*C$90 -> 0 | D108: 0 | E108: 0 | F108: 0 | G108: 0 | H108: 0 | I108: 0 | J108: 0 | K108: 0 | M108: 0 | N108: 0 | O108: 0 | P108: 0 | Q108: 0 | R108: 0 | S108: 0 | T108: 0 | U108: 0 | V108: 0 | W108: 0 | X108: 0 | Y108: 0 | Z108: 0 | AA108: 0
C109: =C24*C$90 -> 0 | D109: 0 | E109: 0 | F109: 0 | G109: 0 | H109: 0 | I109: 0 | J109: 0 | K109: 0 | M109: 0 | N109: 0 | O109: 0 | P109: 0 | Q109: 0 | R109: 0 | S109: 0 | T109: 0 | U109: 0 | V109: 0 | W109: 0 | X109: 0 | Y109: 0 | Z109: 0 | AA109: 0
C110: =C25*C$90 -> 0 | D110: 0 | E110: 0 | F110: 0 | G110: 0 | H110: 0 | I110: 0 | J110: 0 | K110: 0 | M110: 0 | N110: 0 | O110: 0 | P110: 0 | Q110: 0 | R110: 0 | S110: 0 | T110: 0 | U110: 0 | V110: 0 | W110: 0 | X110: 0 | Y110: 0 | Z110: 0 | AA110: 0
C111: =C26*C$90 -> 0 | D111: 0 | E111: 0 | F111: 0 | G111: 0 | H111: 0 | I111: 0 | J111: 0 | K111: 0 | M111: 0 | N111: 0 | O111: 0 | P111: 0 | Q111: 0 | R111: 0 | S111: 0 | T111: 0 | U111: 0 | V111: 0 | W111: 0 | X111: 0 | Y111: 0 | Z111: 0 | AA111: 0
C112: =C27*C$90 -> 0 | D112: 0 | E112: 0 | F112: 0 | G112: 0 | H112: 0 | I112: 0 | J112: 0 | K112: 0 | M112: 0 | N112: 0 | O112: 0 | P112: 0 | Q112: 0 | R112: 0 | S112: 0 | T112: 0 | U112: 0 | V112: 0 | W112: 0 | X112: 0 | Y112: 0 | Z112: 0 | AA112: 0
C113: =C28*C$90 -> 0 | D113: 0 | E113: 0 | F113: 0 | G113: 0 | H113: 0 | I113: 0 | J113: 0 | K113: 0 | M113: 0 | N113: 0 | O113: 0 | P113: 0 | Q113: 0 | R113: 0 | S113: 0 | T113: 0 | U113: 0 | V113: 0 | W113: 0 | X113: 0 | Y113: 0 | Z113: 0 | AA113: 0
C114: =C29*C$90 -> 0 | D114: 0 | E114: 0 | F114: 0 | G114: 0 | H114: 0 | I114: 0 | J114: 0 | K114: 0 | M114: 0 | N114: 0 | O114: 0 | P114: 0 | Q114: 0 | R114: 0 | S114: 0 | T114: 0 | U114: 0 | V114: 0 | W114: 0 | X114: 0 | Y114: 0 | Z114: 0 | AA114: 0
C115: =C30*C$90 -> 0 | D115: 0 | E115: 0 | F115: 0 | G115: 0 | H115: 0 | I115: 0 | J115: 0 | K115: 0 | M115: 0 | N115: 0 | O115: 0 | P115: 0 | Q115: 0 | R115: 0 | S115: 0 | T115: 0 | U115: 0 | V115: 0 | W115: 0 | X115: 0 | Y115: 0 | Z115: 0 | AA115: 0
C116: =C31*C$90 -> 0 | D116: 0 | E116: 0 | F116: 0 | G116: 0 | H116: 0 | I116: 0 | J116: 0 | K116: 0 | M116: 0 | N116: 0 | O116: 0 | P116: 0 | Q116: 0 | R116: 0 | S116: 0 | T116: 0 | U116: 0 | V116: 0 | W116: 0 | X116: 0 | Y116: 0 | Z116: 0 | AA116: 0
C117: =C32*C$90 -> 0 | D117: 0 | E117: 0 | F117: 0 | G117: 0 | H117: 0 | I117: 0 | J117: 0 | K117: 0 | M117: 0 | N117: 0 | O117: 0 | P117: 0 | Q117: 0 | R117: 0 | S117: 0 | T117: 0 | U117: 0 | V117: 0 | W117: 0 | X117: 0 | Y117: 0 | Z117: 0 | AA117: 0
C118: =C33*C$90 -> 0 | D118: 0 | E118: 0 | F118: 0 | G118: 0 | H118: 0 | I118: 0 | J118: 0 | K118: 0 | M118: 0 | N118: 0 | O118: 0 | P118: 0 | Q118: 0 | R118: 0 | S118: 0 | T118: 0 | U118: 0 | V118: 0 | W118: 0 | X118: 0 | Y118: 0 | Z118: 0 | AA118: 0
C119: =C34*C$90 -> 0 | D119: 0 | E119: 0 | F119: 0 | G119: 0 | H119: 0 | I119: 0 | J119: 0 | K119: 0 | M119: 0 | N119: 0 | O119: 0 | P119: 0 | Q119: 0 | R119: 0 | S119: 0 | T119: 0 | U119: 0 | V119: 0 | W119: 0 | X119: 0 | Y119: 0 | Z119: 0 | AA119: 0
C120: =#REF!*C$90 ->  | D120: =#REF!*D$90 ->  | E120: =#REF!*E$90 ->  | F120: =#REF!*F$90 ->  | G120: =#REF!*G$90 ->  | H120: =#REF!*H$90 ->  | I120: =#REF!*I$90 ->  | J120: =#REF!*J$90 ->  | K120: =#REF!*K$90 ->  | L120: =#REF!*L$90 ->  | M120: =#REF!*M$90 ->  | N120: =#REF!*N$90 ->  | O120: =#REF!*O$90 ->  | P120: =#REF!*P$90 ->  | Q120: =#REF!*Q$90 ->  | R120: =#REF!*R$90 ->  | S120: =#REF!*S$90 ->  | T120: =#REF!*T$90 ->  | U120: =#REF!*U$90 ->  | V120: =#REF!*V$90 ->  | W120: =#REF!*W$90 ->  | X120: =#REF!*X$90 ->  | Y120: =#REF!*Y$90 ->  | Z120: =#REF!*Z$90 ->  | AA120: =#REF!*AA$90 ->  | AB120: =#REF!*AB$90 ->  | AC120: =#REF!*AC$90 ->  | AD120: =#REF!*AD$90 ->  | AE120: =#REF!*AE$90 -> 
C121: =#REF!*C$90 ->  | D121: =#REF!*D$90 ->  | E121: =#REF!*E$90 ->  | F121: =#REF!*F$90 ->  | G121: =#REF!*G$90 ->  | H121: =#REF!*H$90 ->  | I121: =#REF!*I$90 ->  | J121: =#REF!*J$90 ->  | K121: =#REF!*K$90 ->  | L121: =#REF!*L$90 ->  | M121: =#REF!*M$90 ->  | N121: =#REF!*N$90 ->  | O121: =#REF!*O$90 ->  | P121: =#REF!*P$90 ->  | Q121: =#REF!*Q$90 ->  | R121: =#REF!*R$90 ->  | S121: =#REF!*S$90 ->  | T121: =#REF!*T$90 ->  | U121: =#REF!*U$90 ->  | V121: =#REF!*V$90 ->  | W121: =#REF!*W$90 ->  | X121: =#REF!*X$90 ->  | Y121: =#REF!*Y$90 ->  | Z121: =#REF!*Z$90 ->  | AA121: =#REF!*AA$90 ->  | AB121: =#REF!*AB$90 ->  | AC121: =#REF!*AC$90 ->  | AD121: =#REF!*AD$90 ->  | AE121: =#REF!*AE$90 -> 
C122: =#REF!*C$90 ->  | D122: =#REF!*D$90 ->  | E122: =#REF!*E$90 ->  | F122: =#REF!*F$90 ->  | G122: =#REF!*G$90 ->  | H122: =#REF!*H$90 ->  | I122: =#REF!*I$90 ->  | J122: =#REF!*J$90 ->  | K122: =#REF!*K$90 ->  | L122: =#REF!*L$90 ->  | M122: =#REF!*M$90 ->  | N122: =#REF!*N$90 ->  | O122: =#REF!*O$90 ->  | P122: =#REF!*P$90 ->  | Q122: =#REF!*Q$90 ->  | R122: =#REF!*R$90 ->  | S122: =#REF!*S$90 ->  | T122: =#REF!*T$90 ->  | U122: =#REF!*U$90 ->  | V122: =#REF!*V$90 ->  | W122: =#REF!*W$90 ->  | X122: =#REF!*X$90 ->  | Y122: =#REF!*Y$90 ->  | Z122: =#REF!*Z$90 ->  | AA122: =#REF!*AA$90 ->  | AB122: =#REF!*AB$90 ->  | AC122: =#REF!*AC$90 ->  | AD122: =#REF!*AD$90 ->  | AE122: =#REF!*AE$90 -> 
C123: =#REF!*C$90 ->  | D123: =#REF!*D$90 ->  | E123: =#REF!*E$90 ->  | F123: =#REF!*F$90 ->  | G123: =#REF!*G$90 ->  | H123: =#REF!*H$90 ->  | I123: =#REF!*I$90 ->  | J123: =#REF!*J$90 ->  | K123: =#REF!*K$90 ->  | L123: =#REF!*L$90 ->  | M123: =#REF!*M$90 ->  | N123: =#REF!*N$90 ->  | O123: =#REF!*O$90 ->  | P123: =#REF!*P$90 ->  | Q123: =#REF!*Q$90 ->  | R123: =#REF!*R$90 ->  | S123: =#REF!*S$90 ->  | T123: =#REF!*T$90 ->  | U123: =#REF!*U$90 ->  | V123: =#REF!*V$90 ->  | W123: =#REF!*W$90 ->  | X123: =#REF!*X$90 ->  | Y123: =#REF!*Y$90 ->  | Z123: =#REF!*Z$90 ->  | AA123: =#REF!*AA$90 ->  | AB123: =#REF!*AB$90 ->  | AC123: =#REF!*AC$90 ->  | AD123: =#REF!*AD$90 ->  | AE123: =#REF!*AE$90 -> 
C124: =#REF!*C$90 ->  | D124: =#REF!*D$90 ->  | E124: =#REF!*E$90 ->  | F124: =#REF!*F$90 ->  | G124: =#REF!*G$90 ->  | H124: =#REF!*H$90 ->  | I124: =#REF!*I$90 ->  | J124: =#REF!*J$90 ->  | K124: =#REF!*K$90 ->  | L124: =#REF!*L$90 ->  | M124: =#REF!*M$90 ->  | N124: =#REF!*N$90 ->  | O124: =#REF!*O$90 ->  | P124: =#REF!*P$90 ->  | Q124: =#REF!*Q$90 ->  | R124: =#REF!*R$90 ->  | S124: =#REF!*S$90 ->  | T124: =#REF!*T$90 ->  | U124: =#REF!*U$90 ->  | V124: =#REF!*V$90 ->  | W124: =#REF!*W$90 ->  | X124: =#REF!*X$90 ->  | Y124: =#REF!*Y$90 ->  | Z124: =#REF!*Z$90 ->  | AA124: =#REF!*AA$90 ->  | AB124: =#REF!*AB$90 ->  | AC124: =#REF!*AC$90 ->  | AD124: =#REF!*AD$90 ->  | AE124: =#REF!*AE$90 -> 
C125: =#REF!*C$90 ->  | D125: =#REF!*D$90 ->  | E125: =#REF!*E$90 ->  | F125: =#REF!*F$90 ->  | G125: =#REF!*G$90 ->  | H125: =#REF!*H$90 ->  | I125: =#REF!*I$90 ->  | J125: =#REF!*J$90 ->  | K125: =#REF!*K$90 ->  | L125: =#REF!*L$90 ->  | M125: =#REF!*M$90 ->  | N125: =#REF!*N$90 ->  | O125: =#REF!*O$90 ->  | P125: =#REF!*P$90 ->  | Q125: =#REF!*Q$90 ->  | R125: =#REF!*R$90 ->  | S125: =#REF!*S$90 ->  | T125: =#REF!*T$90 ->  | U125: =#REF!*U$90 ->  | V125: =#REF!*V$90 ->  | W125: =#REF!*W$90 ->  | X125: =#REF!*X$90 ->  | Y125: =#REF!*Y$90 ->  | Z125: =#REF!*Z$90 ->  | AA125: =#REF!*AA$90 ->  | AB125: =#REF!*AB$90 ->  | AC125: =#REF!*AC$90 ->  | AD125: =#REF!*AD$90 ->  | AE125: =#REF!*AE$90 -> 
C126: =#REF!*C$90 ->  | D126: =#REF!*D$90 ->  | E126: =#REF!*E$90 ->  | F126: =#REF!*F$90 ->  | G126: =#REF!*G$90 ->  | H126: =#REF!*H$90 ->  | I126: =#REF!*I$90 ->  | J126: =#REF!*J$90 ->  | K126: =#REF!*K$90 ->  | L126: =#REF!*L$90 ->  | M126: =#REF!*M$90 ->  | N126: =#REF!*N$90 ->  | O126: =#REF!*O$90 ->  | P126: =#REF!*P$90 ->  | Q126: =#REF!*Q$90 ->  | R126: =#REF!*R$90 ->  | S126: =#REF!*S$90 ->  | T126: =#REF!*T$90 ->  | U126: =#REF!*U$90 ->  | V126: =#REF!*V$90 ->  | W126: =#REF!*W$90 ->  | X126: =#REF!*X$90 ->  | Y126: =#REF!*Y$90 ->  | Z126: =#REF!*Z$90 ->  | AA126: =#REF!*AA$90 ->  | AB126: =#REF!*AB$90 ->  | AC126: =#REF!*AC$90 ->  | AD126: =#REF!*AD$90 ->  | AE126: =#REF!*AE$90 -> 
C127: =#REF!*C$90 ->  | D127: =#REF!*D$90 ->  | E127: =#REF!*E$90 ->  | F127: =#REF!*F$90 ->  | G127: =#REF!*G$90 ->  | H127: =#REF!*H$90 ->  | I127: =#REF!*I$90 ->  | J127: =#REF!*J$90 ->  | K127: =#REF!*K$90 ->  | L127: =#REF!*L$90 ->  | M127: =#REF!*M$90 ->  | N127: =#REF!*N$90 ->  | O127: =#REF!*O$90 ->  | P127: =#REF!*P$90 ->  | Q127: =#REF!*Q$90 ->  | R127: =#REF!*R$90 ->  | S127: =#REF!*S$90 ->  | T127: =#REF!*T$90 ->  | U127: =#REF!*U$90 ->  | V127: =#REF!*V$90 ->  | W127: =#REF!*W$90 ->  | X127: =#REF!*X$90 ->  | Y127: =#REF!*Y$90 ->  | Z127: =#REF!*Z$90 ->  | AA127: =#REF!*AA$90 ->  | AB127: =#REF!*AB$90 ->  | AC127: =#REF!*AC$90 ->  | AD127: =#REF!*AD$90 ->  | AE127: =#REF!*AE$90 -> 
C128: =#REF!*C$90 ->  | D128: =#REF!*D$90 ->  | E128: =#REF!*E$90 ->  | F128: =#REF!*F$90 ->  | G128: =#REF!*G$90 ->  | H128: =#REF!*H$90 ->  | I128: =#REF!*I$90 ->  | J128: =#REF!*J$90 ->  | K128: =#REF!*K$90 ->  | L128: =#REF!*L$90 ->  | M128: =#REF!*M$90 ->  | N128: =#REF!*N$90 ->  | O128: =#REF!*O$90 ->  | P128: =#REF!*P$90 ->  | Q128: =#REF!*Q$90 ->  | R128: =#REF!*R$90 ->  | S128: =#REF!*S$90 ->  | T128: =#REF!*T$90 ->  | U128: =#REF!*U$90 ->  | V128: =#REF!*V$90 ->  | W128: =#REF!*W$90 ->  | X128: =#REF!*X$90 ->  | Y128: =#REF!*Y$90 ->  | Z128: =#REF!*Z$90 ->  | AA128: =#REF!*AA$90 ->  | AB128: =#REF!*AB$90 ->  | AC128: =#REF!*AC$90 ->  | AD128: =#REF!*AD$90 ->  | AE128: =#REF!*AE$90 -> 
C129: =#REF!*C$90 ->  | D129: =#REF!*D$90 ->  | E129: =#REF!*E$90 ->  | F129: =#REF!*F$90 ->  | G129: =#REF!*G$90 ->  | H129: =#REF!*H$90 ->  | I129: =#REF!*I$90 ->  | J129: =#REF!*J$90 ->  | K129: =#REF!*K$90 ->  | L129: =#REF!*L$90 ->  | M129: =#REF!*M$90 ->  | N129: =#REF!*N$90 ->  | O129: =#REF!*O$90 ->  | P129: =#REF!*P$90 ->  | Q129: =#REF!*Q$90 ->  | R129: =#REF!*R$90 ->  | S129: =#REF!*S$90 ->  | T129: =#REF!*T$90 ->  | U129: =#REF!*U$90 ->  | V129: =#REF!*V$90 ->  | W129: =#REF!*W$90 ->  | X129: =#REF!*X$90 ->  | Y129: =#REF!*Y$90 ->  | Z129: =#REF!*Z$90 ->  | AA129: =#REF!*AA$90 ->  | AB129: =#REF!*AB$90 ->  | AC129: =#REF!*AC$90 ->  | AD129: =#REF!*AD$90 ->  | AE129: =#REF!*AE$90 -> 
C130: =C35*C$90 -> 0 | D130: 0 | E130: 0 | F130: 0 | G130: 0 | H130: 0 | I130: 0 | J130: 0 | K130: 0 | M130: 0 | N130: 0 | O130: 0 | P130: 0 | Q130: 0 | R130: 0 | S130: 0 | T130: 0 | U130: 0 | V130: 0 | W130: 0 | X130: 0 | Y130: 0 | Z130: 0 | AA130: 0

Sheet 2 В(2) (hidden)
A1: =Титул!B11 -> 2 В | E1: Страница заполняется автоматически, без участия оператора!!!
A2: Всего учащихся в классе: | D2: =Титул!C11 -> 13 | E2: Фамилии, имена учащихся | F2: Учебные предметы | G2: Фамилии и инициалы учителей | H2: Пояснения, примечания, причины
A3: Учатся на "5": | C3: =COUNTA(E3:E17) -> 0 | D3: 1
D4: 2
D5: 3
D6: 4
D7: 5
D8: 6
D9: 7
D10: 8
D11: 9
D12: 10
D13: 11
D14: 12
D15: 13
D16: 14
D17: 15
A18: Учатся на "4"и"5" | C18: =COUNTA(E18:E42) -> 0 | D18: 1
D19: 2
D20: 3
D21: 4
D22: 5
D23: 6
D24: 7
D25: 8
D26: 9
D27: 10
D28: 11
D29: 12
D30: 13
D31: 14
D32: 15
D33: 16
D34: 17
D35: 18
D36: 19
D37: 20
D38: 21
D39: 22
D40: 23
D41: 24
D42: 25
A43: Не аттестованы: | C43: =COUNTA(E43:E52) -> 0 | D43: 1
D44: 2
D45: 3
D46: 4
D47: 5
D48: 6
D49: 7
D50: 8
D51: 9
D52: 10
A53: Не успевают: | C53: =COUNTA(E53:E67) -> 0 | D53: 1
D54: 2
D55: 3
D56: 4
D57: 5
D58: 6
D59: 7
D60: 8
D61: 9
D62: 10
D63: 11
D64: 12
D65: 13
D66: 14
D67: 15
A68: Освобождены: | C68: =COUNTA(E68:E82) -> 0 | D68: 1
D69: 2
D70: 3
D71: 4
D72: 5
D73: 6
D74: 7
D75: 8
D76: 9
D77: 10
D78: 11
D79: 12
D80: 13
D81: 14
D82: 15

Sheet 3 А (hidden)
A1: =Титул!B5 -> 2014/15 учебный год | D1: =Титул!B4 -> МОУ СОШ № 15 | AA1: =Титул!B6 -> 4 четверть | AI1: 3+
A2: ВЕДОМОСТЬ РЕЗУЛЬТАТОВ УЧЕБНОЙ ДЕЯТЕЛЬНОСТИ | Z2: =Титул!B12 -> 3 А | AD2: класса
A3: Классный руководитель: | E3: =Титул!D12 -> Литвиненко И.В. | S3: Программа: | X3: =Титул!G12 -> УМК "Школа 2100"
A4: Вручную вносятся только оценки "5", "4", "3", "2", "1". Не аттестованным проставляется "0", освобожденным - "Н". | C4: У ч е б н ы е п р е д м е т ы | AF4: Результаты ученика:
C5: =Нагрузка!C3 -> Русский язык | D5: =Нагрузка!D3 -> Литература | E5: =Нагрузка!E3 -> Иностранный язык | F5: =Нагрузка!F3 -> Математика | G5: =Нагрузка!G3 -> Алгебра | H5: =Нагрузка!H3 -> Геометрия | I5: =Нагрузка!I3 -> Информатика | J5: =Нагрузка!J3 -> История | K5: =Нагрузка!K3 -> Обществознание | L5: =Нагрузка!L3 -> Окружающий мир | M5: =Нагрузка!M3 -> ИЗО | N5: =Нагрузка!N3 -> Музыка | O5: =Нагрузка!O3 -> Технология | P5: =Нагрузка!P3 -> Технология | Q5: =Нагрузка!Q3 -> ФЗК | R5: =Нагрузка!R3 -> Иностранный язык | S5: =Нагрузка!S3 -> Иностранный язык | T5: =Нагрузка!T3 -> География | U5: =Нагрузка!U3 -> Физика | V5: =Нагрузка!V3 -> Химия | W5: =Нагрузка!W3 -> Биология | X5: =Нагрузка!X3 -> МХК | Y5: =Нагрузка!Y3 -> ФЗК | Z5: =Нагрузка!Z3 -> ОБЖ | AA5: =Нагрузка!AA3 -> Природоведение | AB5: =Нагрузка!AB3 -> 0 | AC5: =Нагрузка!AC3 -> 0 | AD5: =Нагрузка!AD3 -> 0 | AE5: =Нагрузка!AE3 -> 0 | AF5: Средний балл: | AG5: Степень обученности (СОУ): | AH5: Качество успеваемости: | AI5: Рейтинговый учебный балл:
A6: 1 | B6: =СпискиКлассы!E4 -> Бабаев Вячеслав | C6: 3 | D6: 3 | E6: 3 | F6: 3 | L6: 3 | M6: 5 | N6: 4 | O6: 5 | Q6: 5 | AF6: =AVERAGE(C6:AE6) -> 3.777777778 | AG6: =(COUNTIF(C6:AE6,"5")+COUNTIF(C6:AE6,"4")*0.64+COUNTIF(C6:AE6,"3")*0.36+COUNTIF(C6:AE6,"2")*0.16)/(COUNTIF(C6:AE6,"5")+COUNTIF(C6:AE6,"4")+COUNTIF(C6:AE6,"3")+COUNTIF(C6:AE6,"2")+COUNTIF(C6:AE6,"0")) -> 0.6044444444 | AH6: =((5*COUNTIF(C6:AE6,"5"))+(4*COUNTIF(C6:AE6,"4")))/(5*(COUNTA(C6:AE6)-COUNTIF(C6:AE6,"н"))) -> 0.4222222222 | AI6: =SUMIF(C91:AE91,">0",C91:AE91)/(COUNTIF(C6:AE6,">0")+COUNTIF(C6:AE6,"=0")+COUNTIF(C6:AE6,"Н")) -> 13
A7: =A6+1 -> 2 | B7: =СпискиКлассы!E5 -> Бочкарева Дарья | C7: 4 | D7: 4 | F7: 4 | L7: 4 | M7: 5 | N7: 5 | O7: 5 | Q7: 5 | R7: 5 | AF7: =AVERAGE(C7:AE7) -> 4.555555556 | AG7: =(COUNTIF(C7:AE7,"5")+COUNTIF(C7:AE7,"4")*0.64+COUNTIF(C7:AE7,"3")*0.36+COUNTIF(C7:AE7,"2")*0.16)/(COUNTIF(C7:AE7,"5")+COUNTIF(C7:AE7,"4")+COUNTIF(C7:AE7,"3")+COUNTIF(C7:AE7,"2")+COUNTIF(C7:AE7,"0")) -> 0.84 | AH7: =((5*COUNTIF(C7:AE7,"5"))+(4*COUNTIF(C7:AE7,"4")))/(5*(COUNTA(C7:AE7)-COUNTIF(C7:AE7,"н"))) -> 0.9111111111 | AI7: 16.66666667
A8: 3 | B8: =СпискиКлассы!E6 -> Васильеву Алису | C8: 3 | D8: 4 | E8: 4 | F8: 4 | L8: 4 | M8: 5 | N8: 5 | O8: 5 | Q8: 4 | AF8: =AVERAGE(C8:AE8) -> 4.222222222 | AG8: 0.7288888889 | AH8: 0.7777777778 | AI8: 15.22222222
A9: 4 | B9: =СпискиКлассы!E7 -> Власенко Данил | C9: 5 | D9: 5 | F9: 5 | L9: 5 | M9: 5 | N9: 5 | O9: 5 | Q9: 5 | R9: 5 | AF9: 5 | AG9: 1 | AH9: 1 | AI9: 18.88888889
A10: 5 | B10: =СпискиКлассы!E8 -> Воронков Игорь | C10: 3 | D10: 4 | E10: 5 | F10: 3 | L10: 4 | M10: 5 | N10: 5 | O10: 5 | Q10: 5 | AF10: 4.333333333 | AG10: 0.7777777778 | AH10: 0.7333333333 | AI10: 15
A11: 6 | B11: =СпискиКлассы!E9 -> Зудин Владислав | C11: 3 | D11: 4 | E11: 4 | F11: 4 | L11: 4 | M11: 5 | N11: 5 | O11: 5 | Q11: 5 | AF11: 4.333333333 | AG11: 0.7688888889 | AH11: 0.8 | AI11: 15.33333333
A12: 7 | B12: =СпискиКлассы!E10 -> Капустин Никита | C12: 3 | D12: 5 | E12: 5 | F12: 4 | L12: 5 | M12: 5 | N12: 5 | O12: 5 | Q12: 5 | AF12: 4.666666667 | AG12: 0.8888888889 | AH12: 0.8666666667 | AI12: 16.44444444
A13: 8 | B13: =СпискиКлассы!E11 -> Морозков Иван | C13: 3 | D13: 4 | E13: 4 | F13: 4 | L13: 5 | M13: 5 | N13: 5 | O13: 5 | Q13: 5 | AF13: 4.444444444 | AG13: 0.8088888889 | AH13: 0.8222222222 | AI13: 15.33333333
A14: 9 | B14: =СпискиКлассы!E12 -> Наумова Софья | C14: 5 | D14: 5 | E14: 4 | F14: 4 | L14: 5 | M14: 5 | N14: 5 | O14: 5 | AF14: 4.75 | AG14: 0.91 | AH14: 0.95 | AI14: 19
A15: 10 | B15: =СпискиКлассы!E13 -> Плесовских Наталья | C15: 3 | D15: 4 | E15: 3 | F15: 3 | L15: 4 | M15: 5 | N15: 5 | O15: 5 | Q15: 5 | AF15: 4.111111111 | AG15: 0.7066666667 | AH15: 0.6222222222 | AI15: 13.88888889
A16: 11 | B16: =СпискиКлассы!E14 -> Посталова Любовь | C16: 3 | D16: 4 | E16: 4 | F16: 3 | L16: 5 | M16: 5 | N16: 5 | O16: 5 | Q16: 5 | AF16: 4.333333333 | AG16: 0.7777777778 | AH16: 0.7333333333 | AI16: 14.44444444
A17: 12 | B17: =СпискиКлассы!E15 -> Ромашина Стелла | C17: 3 | D17: 4 | E17: 3 | F17: 3 | L17: 4 | M17: 5 | N17: 5 | O17: 5 | Q17: 5 | AF17: 4.111111111 | AG17: 0.7066666667 | AH17: 0.6222222222 | AI17: 13.88888889
A18: 13 | B18: =СпискиКлассы!E16 -> Салимгореева Кристина | C18: 5 | D18: 5 | E18: 4 | F18: 4 | L18: 5 | M18: 5 | N18: 5 | O18: 5 | Q18: 4 | AF18: 4.666666667 | AG18: 0.88 | AH18: 0.9333333333 | AI18: 17.33333333
A19: 14 | B19: =СпискиКлассы!E17 -> Сатановский Максим | C19: 3 | D19: 4 | E19: 4 | F19: 3 | L19: 4 | M19: 5 | N19: 4 | O19: 5 | Q19: 5 | AF19: 4.111111111 | AG19: 0.6977777778 | AH19: 0.6888888889 | AI19: 14.11111111
A20: 15 | B20: =СпискиКлассы!E18 -> Сергеева Ксения | C20: 5 | D20: 5 | E20: 4 | F20: 4 | L20: 5 | M20: 5 | N20: 5 | O20: 5 | Q20: 5 | AF20: 4.777777778 | AG20: 0.92 | AH20: 0.9555555556 | AI20: 17.44444444
A21: 16 | B21: =СпискиКлассы!E19 -> Сердюк Алена | C21: 5 | D21: 5 | E21: 5 | F21: 5 | L21: 5 | M21: 5 | N21: 5 | O21: 5 | Q21: 5 | AF21: 5 | AG21: 1 | AH21: 1 | AI21: 18.88888889
A22: 17 | B22: =СпискиКлассы!E20 -> Сердюк Алиса | C22: 5 | D22: 5 | E22: 5 | F22: 5 | L22: 5 | M22: 5 | N22: 5 | O22: 5 | Q22: 5 | AF22: 5 | AG22: 1 | AH22: 1 | AI22: 18.88888889
A23: 18 | B23: =СпискиКлассы!E21 -> Солодкову Дарью | C23: 4 | D23: 5 | E23: 4 | F23: 5 | L23: 5 | M23: 5 | N23: 5 | O23: 5 | Q23: 5 | AF23: 4.777777778 | AG23: 0.92 | AH23: 0.9555555556 | AI23: 17.55555556
A24: 19 | B24: =СпискиКлассы!E22 -> Сударева Анжелика | C24: 4 | D24: 4 | E24: 3 | F24: 4 | L24: 4 | M24: 5 | N24: 5 | O24: 5 | Q24: 5 | AF24: 4.333333333 | AG24: 0.7688888889 | AH24: 0.8 | AI24: 15.55555556
A25: 20 | B25: =СпискиКлассы!E23 -> Таскина Валерия | C25: 4 | D25: 4 | E25: 4 | F25: 4 | L25: 4 | M25: 5 | N25: 5 | O25: 5 | Q25: 4 | AF25: 4.333333333 | AG25: 0.76 | AH25: 0.8666666667 | AI25: 16
A26: 21 | B26: =СпискиКлассы!E24 -> Тимофи Карина | C26: 4 | D26: 4 | E26: 4 | F26: 4 | L26: 4 | M26: 5 | N26: 5 | O26: 5 | Q26: 5 | AF26: 4.444444444 | AG26: 0.8 | AH26: 0.8888888889 | AI26: 16.11111111
A27: 22 | B27: =СпискиКлассы!E25 -> Хайрулин Артур | C27: 4 | D27: 4 | E27: 4 | F27: 4 | L27: 4 | M27: 5 | N27: 5 | O27: 5 | Q27: 4 | AF27: 4.333333333 | AG27: 0.76 | AH27: 0.8666666667 | AI27: 16
A28: 23 | B28: =СпискиКлассы!E26 -> Харченко Валерия | C28: 3 | D28: 3 | E28: 3 | F28: 3 | L28: 3 | M28: 5 | N28: 5 | O28: 5 | Q28: 4 | AF28: 3.777777778 | AG28: 0.6044444444 | AH28: 0.4222222222 | AI28: 13.22222222
A29: 24 | B29: =СпискиКлассы!E27 -> Шишкин Никита | C29: 3 | D29: 4 | E29: 4 | F29: 4 | L29: 4 | M29: 5 | N29: 5 | O29: 5 | Q29: 5 | AF29: 4.333333333 | AG29: 0.7688888889 | AH29: 0.8 | AI29: 15.33333333
A30: 25 | B30: =СпискиКлассы!E28 -> Яремей Виктория | C30: 5 | D30: 5 | E30: 5 | F30: 5 | L30: 5 | M30: 5 | N30: 5 | O30: 5 | AF30: 5 | AG30: 1 | AH30: 1 | AI30: 20.625
A31: 26 | B31: =СпискиКлассы!E29 -> Заикин Андрей | C31: 3 | D31: 4 | E31: 4 | F31: 4 | L31: 5 | M31: 5 | N31: 5 | O31: 5 | Q31: 4 | AF31: =AVERAGE(C31:AE31) -> 4.333333333 | AG31: =(COUNTIF(C31:AE31,"5")+COUNTIF(C31:AE31,"4")*0.64+COUNTIF(C31:AE31,"3")*0.36+COUNTIF(C31:AE31,"2")*0.16)/(COUNTIF(C31:AE31,"5")+COUNTIF(C31:AE31,"4")+COUNTIF(C31:AE31,"3")+COUNTIF(C31:AE31,"2")+COUNTIF(C31:AE31,"0")) -> 0.7688888889 | AH31: 0.8 | AI31: 15.22222222
A32: 27 | B32: =СпискиКлассы!E30 -> 0 | C32: 4 | D32: 4 | E32: 4 | F32: 4 | L32: 5 | M32: 5 | N32: 5 | O32: 5 | Q32: 5 | AF32: 4.555555556 | AG32: 0.84 | AH32: 0.9111111111 | AI32: 16.11111111
A33: 28 | B33: =СпискиКлассы!E31 -> 0
A34: 29 | B34: =СпискиКлассы!E32 -> 0
A35: 30 | B35: =СпискиКлассы!E43 -> 0 | AI35: =SUMIF(C130:AE130,">0",C130:AE130)/(COUNTIF(C35:AE35,">0")+COUNTIF(C35:AE35,"=0")+COUNTIF(C35:AE35,"Н")) -> 
A36: Фамилия и инициалы учителя - предметника | C36: =Нагрузка!C8 -> Литвиненко | D36: =Нагрузка!D8 -> Литвиненко | E36: =Нагрузка!E8 -> 0 | F36: =Нагрузка!F8 -> Литвиненко | G36: =Нагрузка!G8 -> 0 | H36: =Нагрузка!H8 -> 0 | I36: =Нагрузка!I8 -> 0 | J36: =Нагрузка!J8 -> 0 | K36: =Нагрузка!K8 -> 0 | L36: =Нагрузка!L8 -> Литвиненко | M36: =Нагрузка!M8 -> Литвиненко | N36: =Нагрузка!N8 -> Заворина | O36: =Нагрузка!O8 -> Литвиненко | P36: =Нагрузка!P8 -> Литвиненко | Q36: =Нагрузка!Q8 -> Ермакова | R36: =Нагрузка!R8 -> Калугина | S36: =Нагрузка!S8 -> Каплан | T36: =Нагрузка!T8 -> 0 | U36: =Нагрузка!U8 -> 0 | V36: =Нагрузка!V8 -> 0 | W36: =Нагрузка!W8 -> 0 | X36: =Нагрузка!X8 -> 0 | Y36: =Нагрузка!Y8 -> 0 | Z36: =Нагрузка!Z8 -> 0 | AA36: =Нагрузка!AA8 -> 0 | AB36: =Нагрузка!AB8 -> 0 | AC36: =Нагрузка!AC8 -> 0 | AD36: =Нагрузка!AD8 -> 0 | AE36: =Нагрузка!AE8 -> 0 | AF36: Показатели результатов учебной деятельности в целом по классу:
A37: Результаты учебной деятельности класса | B37: Количество "5": | C37: =COUNTIF(C6:C35,5) -> 7 | D37: 9 | E37: 5 | F37: 5 | G37: 0 | H37: 0 | I37: 0 | J37: 0 | K37: 0 | L37: 13 | M37: 27 | N37: 25 | O37: 27 | P37: 0 | Q37: 19 | R37: 2 | S37: 0 | T37: 0 | U37: 0 | V37: 0 | W37: 0 | X37: 0 | Y37: 0 | Z37: 0 | AA37: 0 | AB37: 0 | AC37: 0 | AD37: 0 | AE37: 0 | AF37: =SUM(C37:AE37) -> 139
B38: Количество "4": | C38: =COUNTIF(C6:C35,4) -> 7 | D38: 16 | E38: 15 | F38: 15 | G38: 0 | H38: 0 | I38: 0 | J38: 0 | K38: 0 | L38: 12 | M38: 0 | N38: 2 | O38: 0 | P38: 0 | Q38: 6 | R38: 0 | S38: 0 | T38: 0 | U38: 0 | V38: 0 | W38: 0 | X38: 0 | Y38: 0 | Z38: 0 | AA38: 0 | AB38: 0 | AC38: 0 | AD38: 0 | AE38: 0 | AF38: 73
B39: Количество "3": | C39: =COUNTIF(C6:C35,3) -> 13 | D39: 2 | E39: 5 | F39: 7 | G39: 0 | H39: 0 | I39: 0 | J39: 0 | K39: 0 | L39: 2 | M39: 0 | N39: 0 | O39: 0 | P39: 0 | Q39: 0 | R39: 0 | S39: 0 | T39: 0 | U39: 0 | V39: 0 | W39: 0 | X39: 0 | Y39: 0 | Z39: 0 | AA39: 0 | AB39: 0 | AC39: 0 | AD39: 0 | AE39: 0 | AF39: 29
B40: Количество "2": | C40: =COUNTIF(C6:C35,2) -> 0 | D40: 0 | E40: 0 | F40: 0 | G40: 0 | H40: 0 | I40: 0 | J40: 0 | K40: 0 | L40: 0 | M40: 0 | N40: 0 | O40: 0 | P40: 0 | Q40: 0 | R40: 0 | S40: 0 | T40: 0 | U40: 0 | V40: 0 | W40: 0 | X40: 0 | Y40: 0 | Z40: 0 | AA40: 0 | AB40: 0 | AC40: 0 | AD40: 0 | AE40: 0 | AF40: 0
B41: Не аттестовано: | C41: =COUNTIF(C6:C35,0) -> 0 | D41: 0 | E41: 0 | F41: 0 | G41: 0 | H41: 0 | I41: 0 | J41: 0 | K41: 0 | L41: 0 | M41: 0 | N41: 0 | O41: 0 | P41: 0 | Q41: 0 | R41: 0 | S41: 0 | T41: 0 | U41: 0 | V41: 0 | W41: 0 | X41: 0 | Y41: 0 | Z41: 0 | AA41: 0 | AB41: 0 | AC41: 0 | AD41: 0 | AE41: 0 | AF41: 0
B42: Освобождено: | C42: =COUNTIF(C6:C35,"н") -> 0 | D42: 0 | E42: 0 | F42: 0 | G42: 0 | H42: 0 | I42: 0 | J42: 0 | K42: 0 | L42: 0 | M42: 0 | N42: 0 | O42: 0 | P42: 0 | Q42: 0 | R42: 0 | S42: 0 | T42: 0 | U42: 0 | V42: 0 | W42: 0 | X42: 0 | Y42: 0 | Z42: 0 | AA42: 0 | AB42: 0 | AC42: 0 | AD42: 0 | AE42: 0 | AF42: 0
B43: Успеваемость: | C43: =(C37+C38+C39)/(C37+C38+C39+C40+C41) -> 1 | D43: =(D37+D38+D39)/(D37+D38+D39+D40+D41) -> 1 | E43: 1 | F43: 1 | L43: 1 | M43: 1 | N43: 1 | O43: 1 | Q43: 1 | R43: 1 | AF43: =('3 А(2)'!D2-'3 А(2)'!C43-'3 А(2)'!C53)/'3 А(2)'!D2 -> 1
B44: Качество знаний: | C44: =(C37+C38)/(C37+C38+C39+C40+C41) -> 0.5185185185 | D44: =(D37+D38)/(D37+D38+D39+D40+D41) -> 0.9259259259 | E44: 0.8 | F44: 0.7407407407 | L44: 0.9259259259 | M44: 1 | N44: 1 | O44: 1 | Q44: 1 | R44: 1 | AF44: =('3 А(2)'!C3+'3 А(2)'!C18)/'3 А(2)'!D2 -> 0.4615384615
B45: Степень обученности: | C45: =(C37+C38*0.64+C39*0.36+C40*0.16)/(C37+C38+C39+C40+C41) -> 0.5985185185 | D45: =(D37+D38*0.64+D39*0.36+D40*0.16)/(D37+D38+D39+D40+D41) -> 0.7392592593 | E45: 0.656 | F45: 0.6340740741 | L45: 0.7925925926 | M45: 1 | N45: 0.9733333333 | O45: 1 | Q45: 0.9136 | R45: 1 | AF45: =(AF37+AF38*0.64+AF39*0.36+AF40*0.16)/(AF37+AF38+AF39+AF40+AF41) -> 0.8139419087
B46: Средний балл: | C46: =(C37*5+C38*4+C39*3+C40*2)/(C37+C38+C39+C40+C41) -> 3.777777778 | D46: =(D37*5+D38*4+D39*3+D40*2)/(D37+D38+D39+D40+D41) -> 4.259259259 | E46: 4 | F46: 3.925925926 | L46: 4.407407407 | M46: 5 | N46: 4.925925926 | O46: 5 | Q46: 4.76 | R46: 5 | AF46: =(AF37*5+AF38*4+AF39*3+AF40*2)/(AF37+AF38+AF39+AF40+AF41) -> 4.456431535
B47: Качество успеваемости: | C47: =(5*C37+4*C38)*0.2/(SUM(C37+C38+C39+C40+C41)) -> 0.4666666667 | D47: =(5*COUNTIF(D6:D35,5)+4*COUNTIF(D6:D35,4))*0.2/(COUNTA(D6:D35)-COUNTIF(D6:D35,"н")) -> 0.8074074074 | E47: 0.68 | F47: 0.6296296296 | L47: 0.837037037 | M47: 1 | N47: 0.9851851852 | O47: 1 | Q47: 0.952 | R47: 1 | AF47: =(5*COUNTIF(C6:AE35,5)+4*COUNTIF(C6:AE35,4))*0.2/(COUNTA(C6:AE35)-COUNTIF(C6:AE35,"н")) -> 0.8190871369
A48: Выполнено с помощью программы статистического анализа результатов учебной деятельности | AC48: =Титул!G31 -> PSORUD-Klass.v.04.11.demo | AI48: 3+
B90: Коэф.трудн.предмета | C90: =VLOOKUP(C$5,ШкалаТрудн!$C$5:$N$34,LEFT($Z$2,2)+1,0) -> 7 | D90: =VLOOKUP(D$5,ШкалаТрудн!$C$5:$N$34,LEFT($Z$2,2)+1,0) -> 5 | E90: =VLOOKUP(E$5,ШкалаТрудн!$C$5:$N$34,LEFT($Z$2,2)+1,0) -> 5 | F90: =VLOOKUP(F$5,ШкалаТрудн!$C$5:$N$34,LEFT($Z$2,2)+1,0) -> 8 | G90: =VLOOKUP(G$5,ШкалаТрудн!$C$5:$N$34,LEFT($Z$2,2)+1,0) -> 0 | H90: =VLOOKUP(H$5,ШкалаТрудн!$C$5:$N$34,LEFT($Z$2,2)+1,0) -> 0 | I90: =VLOOKUP(I$5,ШкалаТрудн!$C$5:$N$34,LEFT($Z$2,2)+1,0) -> 6 | J90: =VLOOKUP(J$5,ШкалаТрудн!$C$5:$N$34,LEFT($Z$2,2)+1,0) -> 4 | K90: =VLOOKUP(K$5,ШкалаТрудн!$C$5:$N$34,LEFT($Z$2,2)+1,0) -> 0 | L90: =VLOOKUP(L$5,ШкалаТрудн!$C$5:$N$34,LEFT($Z$2,2)+1,0) ->  | M90: =VLOOKUP(M$5,ШкалаТрудн!$C$5:$N$34,LEFT($Z$2,2)+1,0) -> 3 | N90: =VLOOKUP(N$5,ШкалаТрудн!$C$5:$N$34,LEFT($Z$2,2)+1,0) -> 3 | O90: =VLOOKUP(O$5,ШкалаТрудн!$C$5:$N$34,LEFT($Z$2,2)+1,0) -> 2 | P90: =VLOOKUP(P$5,ШкалаТрудн!$C$5:$N$34,LEFT($Z$2,2)+1,0) -> 2 | Q90: =VLOOKUP(Q$5,ШкалаТрудн!$C$5:$N$34,LEFT($Z$2,2)+1,0) -> 1 | R90: =VLOOKUP(R$5,ШкалаТрудн!$C$5:$N$34,LEFT($Z$2,2)+1,0) -> 5 | S90: =VLOOKUP(S$5,ШкалаТрудн!$C$5:$N$34,LEFT($Z$2,2)+1,0) -> 5 | T90: =VLOOKUP(T$5,ШкалаТрудн!$C$5:$N$34,LEFT($Z$2,2)+1,0) -> 0 | U90: =VLOOKUP(U$5,ШкалаТрудн!$C$5:$N$34,LEFT($Z$2,2)+1,0) -> 0 | V90: =VLOOKUP(V$5,ШкалаТрудн!$C$5:$N$34,LEFT($Z$2,2)+1,0) -> 0 | W90: =VLOOKUP(W$5,ШкалаТрудн!$C$5:$N$34,LEFT($Z$2,2)+1,0) -> 0 | X90: =VLOOKUP(X$5,ШкалаТрудн!$C$5:$N$34,LEFT($Z$2,2)+1,0) -> 0 | Y90: =VLOOKUP(Y$5,ШкалаТрудн!$C$5:$N$34,LEFT($Z$2,2)+1,0) -> 1 | Z90: =VLOOKUP(Z$5,ШкалаТрудн!$C$5:$N$34,LEFT($Z$2,2)+1,0) -> 0 | AA90: =VLOOKUP(AA$5,ШкалаТрудн!$C$5:$N$34,LEFT($Z$2,2)+1,0) -> 0 | AB90: =VLOOKUP(AB$5,ШкалаТрудн!$C$5:$N$34,LEFT($Z$2,2)+1,0) ->  | AC90: =VLOOKUP(AC$5,ШкалаТрудн!$C$5:$N$34,LEFT($Z$2,2)+1,0) ->  | AD90: =VLOOKUP(AD$5,ШкалаТрудн!$C$5:$N$34,LEFT($Z$2,2)+1,0) ->  | AE90: =VLOOKUP(AE$5,ШкалаТрудн!$C$5:$N$34,LEFT($Z$2,2)+1,0) -> 
C91: =C6*C$90 -> 21 | D91: 15 | E91: 15 | F91: 24 | G91: 0 | H91: 0 | I91: 0 | J91: 0 | K91: 0 | M91: 15 | N91: 12 | O91: 10 | P91: 0 | Q91: 5 | R91: 0 | S91: 0 | T91: 0 | U91: 0 | V91: 0 | W91: 0 | X91: 0 | Y91: 0 | Z91: 0 | AA91: 0
C92: =C7*C$90 -> 28 | D92: 20 | E92: 0 | F92: 32 | G92: 0 | H92: 0 | I92: 0 | J92: 0 | K92: 0 | M92: 15 | N92: 15 | O92: 10 | P92: 0 | Q92: 5 | R92: 25 | S92: 0 | T92: 0 | U92: 0 | V92: 0 | W92: 0 | X92: 0 | Y92: 0 | Z92: 0 | AA92: 0
C93: =C8*C$90 -> 21 | D93: 20 | E93: 20 | F93: 32 | G93: 0 | H93: 0 | I93: 0 | J93: 0 | K93: 0 | M93: 15 | N93: 15 | O93: 10 | P93: 0 | Q93: 4 | R93: 0 | S93: 0 | T93: 0 | U93: 0 | V93: 0 | W93: 0 | X93: 0 | Y93: 0 | Z93: 0 | AA93: 0
C94: =C9*C$90 -> 35 | D94: 25 | E94: 0 | F94: 40 | G94: 0 | H94: 0 | I94: 0 | J94: 0 | K94: 0 | M94: 15 | N94: 15 | O94: 10 | P94: 0 | Q94: 5 | R94: 25 | S94: 0 | T94: 0 | U94: 0 | V94: 0 | W94: 0 | X94: 0 | Y94: 0 | Z94: 0 | AA94: 0
C95: =C10*C$90 -> 21 | D95: 20 | E95: 25 | F95: 24 | G95: 0 | H95: 0 | I95: 0 | J95: 0 | K95: 0 | M95: 15 | N95: 15 | O95: 10 | P95: 0 | Q95: 5 | R95: 0 | S95: 0 | T95: 0 | U95: 0 | V95: 0 | W95: 0 | X95: 0 | Y95: 0 | Z95: 0 | AA95: 0
C96: =C11*C$90 -> 21 | D96: 20 | E96: 20 | F96: 32 | G96: 0 | H96: 0 | I96: 0 | J96: 0 | K96: 0 | M96: 15 | N96: 15 | O96: 10 | P96: 0 | Q96: 5 | R96: 0 | S96: 0 | T96: 0 | U96: 0 | V96: 0 | W96: 0 | X96: 0 | Y96: 0 | Z96: 0 | AA96: 0
C97: =C12*C$90 -> 21 | D97: 25 | E97: 25 | F97: 32 | G97: 0 | H97: 0 | I97: 0 | J97: 0 | K97: 0 | M97: 15 | N97: 15 | O97: 10 | P97: 0 | Q97: 5 | R97: 0 | S97: 0 | T97: 0 | U97: 0 | V97: 0 | W97: 0 | X97: 0 | Y97: 0 | Z97: 0 | AA97: 0
C98: =C13*C$90 -> 21 | D98: 20 | E98: 20 | F98: 32 | G98: 0 | H98: 0 | I98: 0 | J98: 0 | K98: 0 | M98: 15 | N98: 15 | O98: 10 | P98: 0 | Q98: 5 | R98: 0 | S98: 0 | T98: 0 | U98: 0 | V98: 0 | W98: 0 | X98: 0 | Y98: 0 | Z98: 0 | AA98: 0
C99: =C14*C$90 -> 35 | D99: 25 | E99: 20 | F99: 32 | G99: 0 | H99: 0 | I99: 0 | J99: 0 | K99: 0 | M99: 15 | N99: 15 | O99: 10 | P99: 0 | Q99: 0 | R99: 0 | S99: 0 | T99: 0 | U99: 0 | V99: 0 | W99: 0 | X99: 0 | Y99: 0 | Z99: 0 | AA99: 0
C100: =C15*C$90 -> 21 | D100: 20 | E100: 15 | F100: 24 | G100: 0 | H100: 0 | I100: 0 | J100: 0 | K100: 0 | M100: 15 | N100: 15 | O100: 10 | P100: 0 | Q100: 5 | R100: 0 | S100: 0 | T100: 0 | U100: 0 | V100: 0 | W100: 0 | X100: 0 | Y100: 0 | Z100: 0 | AA100: 0
C101: =C16*C$90 -> 21 | D101: 20 | E101: 20 | F101: 24 | G101: 0 | H101: 0 | I101: 0 | J101: 0 | K101: 0 | M101: 15 | N101: 15 | O101: 10 | P101: 0 | Q101: 5 | R101: 0 | S101: 0 | T101: 0 | U101: 0 | V101: 0 | W101: 0 | X101: 0 | Y101: 0 | Z101: 0 | AA101: 0
C102: =C17*C$90 -> 21 | D102: 20 | E102: 15 | F102: 24 | G102: 0 | H102: 0 | I102: 0 | J102: 0 | K102: 0 | M102: 15 | N102: 15 | O102: 10 | P102: 0 | Q102: 5 | R102: 0 | S102: 0 | T102: 0 | U102: 0 | V102: 0 | W102: 0 | X102: 0 | Y102: 0 | Z102: 0 | AA102: 0
C103: =C18*C$90 -> 35 | D103: 25 | E103: 20 | F103: 32 | G103: 0 | H103: 0 | I103: 0 | J103: 0 | K103: 0 | M103: 15 | N103: 15 | O103: 10 | P103: 0 | Q103: 4 | R103: 0 | S103: 0 | T103: 0 | U103: 0 | V103: 0 | W103: 0 | X103: 0 | Y103: 0 | Z103: 0 | AA103: 0
C104: =C19*C$90 -> 21 | D104: 20 | E104: 20 | F104: 24 | G104: 0 | H104: 0 | I104: 0 | J104: 0 | K104: 0 | M104: 15 | N104: 12 | O104: 10 | P104: 0 | Q104: 5 | R104: 0 | S104: 0 | T104: 0 | U104: 0 | V104: 0 | W104: 0 | X104: 0 | Y104: 0 | Z104: 0 | AA104: 0
C105: =C20*C$90 -> 35 | D105: 25 | E105: 20 | F105: 32 | G105: 0 | H105: 0 | I105: 0 | J105: 0 | K105: 0 | M105: 15 | N105: 15 | O105: 10 | P105: 0 | Q105: 5 | R105: 0 | S105: 0 | T105: 0 | U105: 0 | V105: 0 | W105: 0 | X105: 0 | Y105: 0 | Z105: 0 | AA105: 0
C106: =C21*C$90 -> 35 | D106: 25 | E106: 25 | F106: 40 | G106: 0 | H106: 0 | I106: 0 | J106: 0 | K106: 0 | M106: 15 | N106: 15 | O106: 10 | P106: 0 | Q106: 5 | R106: 0 | S106: 0 | T106: 0 | U106: 0 | V106: 0 | W106: 0 | X106: 0 | Y106: 0 | Z106: 0 | AA106: 0
C107: =C22*C$90 -> 35 | D107: 25 | E107: 25 | F107: 40 | G107: 0 | H107: 0 | I107: 0 | J107: 0 | K107: 0 | M107: 15 | N107: 15 | O107: 10 | P107: 0 | Q107: 5 | R107: 0 | S107: 0 | T107: 0 | U107: 0 | V107: 0 | W107: 0 | X107: 0 | Y107: 0 | Z107: 0 | AA107: 0
C108: =C23*C$90 -> 28 | D108: 25 | E108: 20 | F108: 40 | G108: 0 | H108: 0 | I108: 0 | J108: 0 | K108: 0 | M108: 15 | N108: 15 | O108: 10 | P108: 0 | Q108: 5 | R108: 0 | S108: 0 | T108: 0 | U108: 0 | V108: 0 | W108: 0 | X108: 0 | Y108: 0 | Z108: 0 | AA108: 0
C109: =C24*C$90 -> 28 | D109: 20 | E109: 15 | F109: 32 | G109: 0 | H109: 0 | I109: 0 | J109: 0 | K109: 0 | M109: 15 | N109: 15 | O109: 10 | P109: 0 | Q109: 5 | R109: 0 | S109: 0 | T109: 0 | U109: 0 | V109: 0 | W109: 0 | X109: 0 | Y109: 0 | Z109: 0 | AA109: 0
C110: =C25*C$90 -> 28 | D110: 20 | E110: 20 | F110: 32 | G110: 0 | H110: 0 | I110: 0 | J110: 0 | K110: 0 | M110: 15 | N110: 15 | O110: 10 | P110: 0 | Q110: 4 | R110: 0 | S110: 0 | T110: 0 | U110: 0 | V110: 0 | W110: 0 | X110: 0 | Y110: 0 | Z110: 0 | AA110: 0
C111: =C26*C$90 -> 28 | D111: 20 | E111: 20 | F111: 32 | G111: 0 | H111: 0 | I111: 0 | J111: 0 | K111: 0 | M111: 15 | N111: 15 | O111: 10 | P111: 0 | Q111: 5 | R111: 0 | S111: 0 | T111: 0 | U111: 0 | V111: 0 | W111: 0 | X111: 0 | Y111: 0 | Z111: 0 | AA111: 0
C112: =C27*C$90 -> 28 | D112: 20 | E112: 20 | F112: 32 | G112: 0 | H112: 0 | I112: 0 | J112: 0 | K112: 0 | M112: 15 | N112: 15 | O112: 10 | P112: 0 | Q112: 4 | R112: 0 | S112: 0 | T112: 0 | U112: 0 | V112: 0 | W112: 0 | X112: 0 | Y112: 0 | Z112: 0 | AA112: 0
C113: =C28*C$90 -> 21 | D113: 15 | E113: 15 | F113: 24 | G113: 0 | H113: 0 | I113: 0 | J113: 0 | K113: 0 | M113: 15 | N113: 15 | O113: 10 | P113: 0 | Q113: 4 | R113: 0 | S113: 0 | T113: 0 | U113: 0 | V113: 0 | W113: 0 | X113: 0 | Y113: 0 | Z113: 0 | AA113: 0
C114: =C29*C$90 -> 21 | D114: 20 | E114: 20 | F114: 32 | G114: 0 | H114: 0 | I114: 0 | J114: 0 | K114: 0 | M114: 15 | N114: 15 | O114: 10 | P114: 0 | Q114: 5 | R114: 0 | S114: 0 | T114: 0 | U114: 0 | V114: 0 | W114: 0 | X114: 0 | Y114: 0 | Z114: 0 | AA114: 0
C115: =C30*C$90 -> 35 | D115: 25 | E115: 25 | F115: 40 | G115: 0 | H115: 0 | I115: 0 | J115: 0 | K115: 0 | M115: 15 | N115: 15 | O115: 10 | P115: 0 | Q115: 0 | R115: 0 | S115: 0 | T115: 0 | U115: 0 | V115: 0 | W115: 0 | X115: 0 | Y115: 0 | Z115: 0 | AA115: 0
C116: =C31*C$90 -> 21 | D116: 20 | E116: 20 | F116: 32 | G116: 0 | H116: 0 | I116: 0 | J116: 0 | K116: 0 | M116: 15 | N116: 15 | O116: 10 | P116: 0 | Q116: 4 | R116: 0 | S116: 0 | T116: 0 | U116: 0 | V116: 0 | W116: 0 | X116: 0 | Y116: 0 | Z116: 0 | AA116: 0
C117: =C32*C$90 -> 28 | D117: 20 | E117: 20 | F117: 32 | G117: 0 | H117: 0 | I117: 0 | J117: 0 | K117: 0 | M117: 15 | N117: 15 | O117: 10 | P117: 0 | Q117: 5 | R117: 0 | S117: 0 | T117: 0 | U117: 0 | V117: 0 | W117: 0 | X117: 0 | Y117: 0 | Z117: 0 | AA117: 0
C118: =C33*C$90 -> 0 | D118: 0 | E118: 0 | F118: 0 | G118: 0 | H118: 0 | I118: 0 | J118: 0 | K118: 0 | M118: 0 | N118: 0 | O118: 0 | P118: 0 | Q118: 0 | R118: 0 | S118: 0 | T118: 0 | U118: 0 | V118: 0 | W118: 0 | X118: 0 | Y118: 0 | Z118: 0 | AA118: 0
C119: =C34*C$90 -> 0 | D119: 0 | E119: 0 | F119: 0 | G119: 0 | H119: 0 | I119: 0 | J119: 0 | K119: 0 | M119: 0 | N119: 0 | O119: 0 | P119: 0 | Q119: 0 | R119: 0 | S119: 0 | T119: 0 | U119: 0 | V119: 0 | W119: 0 | X119: 0 | Y119: 0 | Z119: 0 | AA119: 0
C120: =#REF!*C$90 ->  | D120: =#REF!*D$90 ->  | E120: =#REF!*E$90 ->  | F120: =#REF!*F$90 ->  | G120: =#REF!*G$90 ->  | H120: =#REF!*H$90 ->  | I120: =#REF!*I$90 ->  | J120: =#REF!*J$90 ->  | K120: =#REF!*K$90 ->  | L120: =#REF!*L$90 ->  | M120: =#REF!*M$90 ->  | N120: =#REF!*N$90 ->  | O120: =#REF!*O$90 ->  | P120: =#REF!*P$90 ->  | Q120: =#REF!*Q$90 ->  | R120: =#REF!*R$90 ->  | S120: =#REF!*S$90 ->  | T120: =#REF!*T$90 ->  | U120: =#REF!*U$90 ->  | V120: =#REF!*V$90 ->  | W120: =#REF!*W$90 ->  | X120: =#REF!*X$90 ->  | Y120: =#REF!*Y$90 ->  | Z120: =#REF!*Z$90 ->  | AA120: =#REF!*AA$90 ->  | AB120: =#REF!*AB$90 ->  | AC120: =#REF!*AC$90 ->  | AD120: =#REF!*AD$90 ->  | AE120: =#REF!*AE$90 -> 
C121: =#REF!*C$90 ->  | D121: =#REF!*D$90 ->  | E121: =#REF!*E$90 ->  | F121: =#REF!*F$90 ->  | G121: =#REF!*G$90 ->  | H121: =#REF!*H$90 ->  | I121: =#REF!*I$90 ->  | J121: =#REF!*J$90 ->  | K121: =#REF!*K$90 ->  | L121: =#REF!*L$90 ->  | M121: =#REF!*M$90 ->  | N121: =#REF!*N$90 ->  | O121: =#REF!*O$90 ->  | P121: =#REF!*P$90 ->  | Q121: =#REF!*Q$90 ->  | R121: =#REF!*R$90 ->  | S121: =#REF!*S$90 ->  | T121: =#REF!*T$90 ->  | U121: =#REF!*U$90 ->  | V121: =#REF!*V$90 ->  | W121: =#REF!*W$90 ->  | X121: =#REF!*X$90 ->  | Y121: =#REF!*Y$90 ->  | Z121: =#REF!*Z$90 ->  | AA121: =#REF!*AA$90 ->  | AB121: =#REF!*AB$90 ->  | AC121: =#REF!*AC$90 ->  | AD121: =#REF!*AD$90 ->  | AE121: =#REF!*AE$90 -> 
C122: =#REF!*C$90 ->  | D122: =#REF!*D$90 ->  | E122: =#REF!*E$90 ->  | F122: =#REF!*F$90 ->  | G122: =#REF!*G$90 ->  | H122: =#REF!*H$90 ->  | I122: =#REF!*I$90 ->  | J122: =#REF!*J$90 ->  | K122: =#REF!*K$90 ->  | L122: =#REF!*L$90 ->  | M122: =#REF!*M$90 ->  | N122: =#REF!*N$90 ->  | O122: =#REF!*O$90 ->  | P122: =#REF!*P$90 ->  | Q122: =#REF!*Q$90 ->  | R122: =#REF!*R$90 ->  | S122: =#REF!*S$90 ->  | T122: =#REF!*T$90 ->  | U122: =#REF!*U$90 ->  | V122: =#REF!*V$90 ->  | W122: =#REF!*W$90 ->  | X122: =#REF!*X$90 ->  | Y122: =#REF!*Y$90 ->  | Z122: =#REF!*Z$90 ->  | AA122: =#REF!*AA$90 ->  | AB122: =#REF!*AB$90 ->  | AC122: =#REF!*AC$90 ->  | AD122: =#REF!*AD$90 ->  | AE122: =#REF!*AE$90 -> 
C123: =#REF!*C$90 ->  | D123: =#REF!*D$90 ->  | E123: =#REF!*E$90 ->  | F123: =#REF!*F$90 ->  | G123: =#REF!*G$90 ->  | H123: =#REF!*H$90 ->  | I123: =#REF!*I$90 ->  | J123: =#REF!*J$90 ->  | K123: =#REF!*K$90 ->  | L123: =#REF!*L$90 ->  | M123: =#REF!*M$90 ->  | N123: =#REF!*N$90 ->  | O123: =#REF!*O$90 ->  | P123: =#REF!*P$90 ->  | Q123: =#REF!*Q$90 ->  | R123: =#REF!*R$90 ->  | S123: =#REF!*S$90 ->  | T123: =#REF!*T$90 ->  | U123: =#REF!*U$90 ->  | V123: =#REF!*V$90 ->  | W123: =#REF!*W$90 ->  | X123: =#REF!*X$90 ->  | Y123: =#REF!*Y$90 ->  | Z123: =#REF!*Z$90 ->  | AA123: =#REF!*AA$90 ->  | AB123: =#REF!*AB$90 ->  | AC123: =#REF!*AC$90 ->  | AD123: =#REF!*AD$90 ->  | AE123: =#REF!*AE$90 -> 
C124: =#REF!*C$90 ->  | D124: =#REF!*D$90 ->  | E124: =#REF!*E$90 ->  | F124: =#REF!*F$90 ->  | G124: =#REF!*G$90 ->  | H124: =#REF!*H$90 ->  | I124: =#REF!*I$90 ->  | J124: =#REF!*J$90 ->  | K124: =#REF!*K$90 ->  | L124: =#REF!*L$90 ->  | M124: =#REF!*M$90 ->  | N124: =#REF!*N$90 ->  | O124: =#REF!*O$90 ->  | P124: =#REF!*P$90 ->  | Q124: =#REF!*Q$90 ->  | R124: =#REF!*R$90 ->  | S124: =#REF!*S$90 ->  | T124: =#REF!*T$90 ->  | U124: =#REF!*U$90 ->  | V124: =#REF!*V$90 ->  | W124: =#REF!*W$90 ->  | X124: =#REF!*X$90 ->  | Y124: =#REF!*Y$90 ->  | Z124: =#REF!*Z$90 ->  | AA124: =#REF!*AA$90 ->  | AB124: =#REF!*AB$90 ->  | AC124: =#REF!*AC$90 ->  | AD124: =#REF!*AD$90 ->  | AE124: =#REF!*AE$90 -> 
C125: =#REF!*C$90 ->  | D125: =#REF!*D$90 ->  | E125: =#REF!*E$90 ->  | F125: =#REF!*F$90 ->  | G125: =#REF!*G$90 ->  | H125: =#REF!*H$90 ->  | I125: =#REF!*I$90 ->  | J125: =#REF!*J$90 ->  | K125: =#REF!*K$90 ->  | L125: =#REF!*L$90 ->  | M125: =#REF!*M$90 ->  | N125: =#REF!*N$90 ->  | O125: =#REF!*O$90 ->  | P125: =#REF!*P$90 ->  | Q125: =#REF!*Q$90 ->  | R125: =#REF!*R$90 ->  | S125: =#REF!*S$90 ->  | T125: =#REF!*T$90 ->  | U125: =#REF!*U$90 ->  | V125: =#REF!*V$90 ->  | W125: =#REF!*W$90 ->  | X125: =#REF!*X$90 ->  | Y125: =#REF!*Y$90 ->  | Z125: =#REF!*Z$90 ->  | AA125: =#REF!*AA$90 ->  | AB125: =#REF!*AB$90 ->  | AC125: =#REF!*AC$90 ->  | AD125: =#REF!*AD$90 ->  | AE125: =#REF!*AE$90 -> 
C126: =#REF!*C$90 ->  | D126: =#REF!*D$90 ->  | E126: =#REF!*E$90 ->  | F126: =#REF!*F$90 ->  | G126: =#REF!*G$90 ->  | H126: =#REF!*H$90 ->  | I126: =#REF!*I$90 ->  | J126: =#REF!*J$90 ->  | K126: =#REF!*K$90 ->  | L126: =#REF!*L$90 ->  | M126: =#REF!*M$90 ->  | N126: =#REF!*N$90 ->  | O126: =#REF!*O$90 ->  | P126: =#REF!*P$90 ->  | Q126: =#REF!*Q$90 ->  | R126: =#REF!*R$90 ->  | S126: =#REF!*S$90 ->  | T126: =#REF!*T$90 ->  | U126: =#REF!*U$90 ->  | V126: =#REF!*V$90 ->  | W126: =#REF!*W$90 ->  | X126: =#REF!*X$90 ->  | Y126: =#REF!*Y$90 ->  | Z126: =#REF!*Z$90 ->  | AA126: =#REF!*AA$90 ->  | AB126: =#REF!*AB$90 ->  | AC126: =#REF!*AC$90 ->  | AD126: =#REF!*AD$90 ->  | AE126: =#REF!*AE$90 -> 
C127: =#REF!*C$90 ->  | D127: =#REF!*D$90 ->  | E127: =#REF!*E$90 ->  | F127: =#REF!*F$90 ->  | G127: =#REF!*G$90 ->  | H127: =#REF!*H$90 ->  | I127: =#REF!*I$90 ->  | J127: =#REF!*J$90 ->  | K127: =#REF!*K$90 ->  | L127: =#REF!*L$90 ->  | M127: =#REF!*M$90 ->  | N127: =#REF!*N$90 ->  | O127: =#REF!*O$90 ->  | P127: =#REF!*P$90 ->  | Q127: =#REF!*Q$90 ->  | R127: =#REF!*R$90 ->  | S127: =#REF!*S$90 ->  | T127: =#REF!*T$90 ->  | U127: =#REF!*U$90 ->  | V127: =#REF!*V$90 ->  | W127: =#REF!*W$90 ->  | X127: =#REF!*X$90 ->  | Y127: =#REF!*Y$90 ->  | Z127: =#REF!*Z$90 ->  | AA127: =#REF!*AA$90 ->  | AB127: =#REF!*AB$90 ->  | AC127: =#REF!*AC$90 ->  | AD127: =#REF!*AD$90 ->  | AE127: =#REF!*AE$90 -> 
C128: =#REF!*C$90 ->  | D128: =#REF!*D$90 ->  | E128: =#REF!*E$90 ->  | F128: =#REF!*F$90 ->  | G128: =#REF!*G$90 ->  | H128: =#REF!*H$90 ->  | I128: =#REF!*I$90 ->  | J128: =#REF!*J$90 ->  | K128: =#REF!*K$90 ->  | L128: =#REF!*L$90 ->  | M128: =#REF!*M$90 ->  | N128: =#REF!*N$90 ->  | O128: =#REF!*O$90 ->  | P128: =#REF!*P$90 ->  | Q128: =#REF!*Q$90 ->  | R128: =#REF!*R$90 ->  | S128: =#REF!*S$90 ->  | T128: =#REF!*T$90 ->  | U128: =#REF!*U$90 ->  | V128: =#REF!*V$90 ->  | W128: =#REF!*W$90 ->  | X128: =#REF!*X$90 ->  | Y128: =#REF!*Y$90 ->  | Z128: =#REF!*Z$90 ->  | AA128: =#REF!*AA$90 ->  | AB128: =#REF!*AB$90 ->  | AC128: =#REF!*AC$90 ->  | AD128: =#REF!*AD$90 ->  | AE128: =#REF!*AE$90 -> 
C129: =#REF!*C$90 ->  | D129: =#REF!*D$90 ->  | E129: =#REF!*E$90 ->  | F129: =#REF!*F$90 ->  | G129: =#REF!*G$90 ->  | H129: =#REF!*H$90 ->  | I129: =#REF!*I$90 ->  | J129: =#REF!*J$90 ->  | K129: =#REF!*K$90 ->  | L129: =#REF!*L$90 ->  | M129: =#REF!*M$90 ->  | N129: =#REF!*N$90 ->  | O129: =#REF!*O$90 ->  | P129: =#REF!*P$90 ->  | Q129: =#REF!*Q$90 ->  | R129: =#REF!*R$90 ->  | S129: =#REF!*S$90 ->  | T129: =#REF!*T$90 ->  | U129: =#REF!*U$90 ->  | V129: =#REF!*V$90 ->  | W129: =#REF!*W$90 ->  | X129: =#REF!*X$90 ->  | Y129: =#REF!*Y$90 ->  | Z129: =#REF!*Z$90 ->  | AA129: =#REF!*AA$90 ->  | AB129: =#REF!*AB$90 ->  | AC129: =#REF!*AC$90 ->  | AD129: =#REF!*AD$90 ->  | AE129: =#REF!*AE$90 -> 
C130: =C35*C$90 -> 0 | D130: 0 | E130: 0 | F130: 0 | G130: 0 | H130: 0 | I130: 0 | J130: 0 | K130: 0 | M130: 0 | N130: 0 | O130: 0 | P130: 0 | Q130: 0 | R130: 0 | S130: 0 | T130: 0 | U130: 0 | V130: 0 | W130: 0 | X130: 0 | Y130: 0 | Z130: 0 | AA130: 0

Sheet 3 А(2) (hidden)
A1: =Титул!B12 -> 3 А | E1: Страница заполняется автоматически, без участия оператора!!!
A2: Всего учащихся в классе: | D2: =Титул!C12 -> 26 | E2: Фамилии, имена учащихся | F2: Учебные предметы | G2: Фамилии и инициалы учителей | H2: Пояснения, примечания, причины
A3: Учатся на "5": | C3: =COUNTA(E3:E17) -> 4 | D3: 1 | E3: Власенко Данил
D4: 2 | E4: Сердюк Алена
D5: 3 | E5: Сердюк Алиса
D6: 4 | E6: Яремей Виктория
D7: 5
D8: 6
D9: 7
D10: 8
D11: 9
D12: 10
D13: 11
D14: 12
D15: 13
D16: 14
D17: 15
A18: Учатся на "4"и"5" | C18: =COUNTA(E18:E42) -> 8 | D18: 1 | E18: Бочкарева Дарья
D19: 2 | E19: Наумова Софья
D20: 3 | E20: Салимгореева Кристина
D21: 4 | E21: Сергеева Ксения
D22: 5 | E22: Солодкову Дарью
D23: 6 | E23: Таскина Валерия
D24: 7 | E24: Тимофи Карина
D25: 8 | E25: Хайрулин Артур
D26: 9
D27: 10
D28: 11
D29: 12
D30: 13
D31: 14
D32: 15
D33: 16
D34: 17
D35: 18
D36: 19
D37: 20
D38: 21
D39: 22
D40: 23
D41: 24
D42: 25
A43: Не аттестованы: | C43: =COUNTA(E43:E52) -> 0 | D43: 1
D44: 2
D45: 3
D46: 4
D47: 5
D48: 6
D49: 7
D50: 8
D51: 9
D52: 10
A53: Не успевают: | C53: =COUNTA(E53:E67) -> 0 | D53: 1
D54: 2
D55: 3
D56: 4
D57: 5
D58: 6
D59: 7
D60: 8
D61: 9
D62: 10
D63: 11
D64: 12
D65: 13
D66: 14
D67: 15
A68: Освобождены: | C68: =COUNTA(E68:E82) -> 0 | D68: 1
D69: 2
D70: 3
D71: 4
D72: 5
D73: 6
D74: 7
D75: 8
D76: 9
D77: 10
D78: 11
D79: 12
D80: 13
D81: 14
D82: 15

Sheet 4 А (hidden)
A1: =Титул!B5 -> 2014/15 учебный год | D1: =Титул!B4 -> МОУ СОШ № 15 | AA1: =Титул!B6 -> 4 четверть | AI1: 3+
A2: ВЕДОМОСТЬ РЕЗУЛЬТАТОВ УЧЕБНОЙ ДЕЯТЕЛЬНОСТИ | Z2: =Титул!B13 -> 4 А | AD2: класса
A3: Классный руководитель: | E3: =Титул!D13 -> Сологуб Н.А. | S3: Программа: | X3: =Титул!G13 -> УМК "Школа России"
A4: Вручную вносятся только оценки "5", "4", "3", "2", "1". Не аттестованным проставляется "0", освобожденным - "Н". | C4: У ч е б н ы е п р е д м е т ы | AF4: Результаты ученика:
C5: =Нагрузка!C3 -> Русский язык | D5: =Нагрузка!D3 -> Литература | E5: =Нагрузка!E3 -> Иностранный язык | F5: =Нагрузка!F3 -> Математика | G5: =Нагрузка!G3 -> Алгебра | H5: =Нагрузка!H3 -> Геометрия | I5: =Нагрузка!I3 -> Информатика | J5: =Нагрузка!J3 -> История | K5: =Нагрузка!K3 -> Обществознание | L5: =Нагрузка!L3 -> Окружающий мир | M5: =Нагрузка!M3 -> ИЗО | N5: =Нагрузка!N3 -> Музыка | O5: =Нагрузка!O3 -> Технология | P5: =Нагрузка!P3 -> Технология | Q5: =Нагрузка!Q3 -> ФЗК | R5: =Нагрузка!R3 -> Иностранный язык | S5: =Нагрузка!S3 -> Иностранный язык | T5: =Нагрузка!T3 -> География | U5: =Нагрузка!U3 -> Физика | V5: =Нагрузка!V3 -> Химия | W5: =Нагрузка!W3 -> Биология | X5: =Нагрузка!X3 -> МХК | Y5: =Нагрузка!Y3 -> ФЗК | Z5: =Нагрузка!Z3 -> ОБЖ | AA5: =Нагрузка!AA3 -> Природоведение | AB5: =Нагрузка!AB3 -> 0 | AC5: =Нагрузка!AC3 -> 0 | AD5: =Нагрузка!AD3 -> 0 | AE5: =Нагрузка!AE3 -> 0 | AF5: Средний балл: | AG5: Степень обученности (СОУ): | AH5: Качество успеваемости: | AI5: Рейтинговый учебный балл:
A6: 1 | B6: =СпискиКлассы!F4 -> Алябьев Владислав | C6: 4 | D6: 4 | E6: 4 | F6: 4 | L6: 4 | M6: 5 | N6: 5 | O6: 5 | Y6: 5 | AF6: =AVERAGE(C6:AE6) -> 4.444444444 | AG6: =(COUNTIF(C6:AE6,"5")+COUNTIF(C6:AE6,"4")*0.64+COUNTIF(C6:AE6,"3")*0.36+COUNTIF(C6:AE6,"2")*0.16)/(COUNTIF(C6:AE6,"5")+COUNTIF(C6:AE6,"4")+COUNTIF(C6:AE6,"3")+COUNTIF(C6:AE6,"2")+COUNTIF(C6:AE6,"0")) -> 0.8 | AH6: =((5*COUNTIF(C6:AE6,"5"))+(4*COUNTIF(C6:AE6,"4")))/(5*(COUNTA(C6:AE6)-COUNTIF(C6:AE6,"н"))) -> 0.8888888889 | AI6: =SUMIF(C91:AE91,">0",C91:AE91)/(COUNTIF(C6:AE6,">0")+COUNTIF(C6:AE6,"=0")+COUNTIF(C6:AE6,"Н")) -> 16.11111111
A7: =A6+1 -> 2 | B7: =СпискиКлассы!F5 -> Афанасьев Кирилл | C7: 3 | D7: 3 | E7: 3 | F7: 3 | L7: 3 | M7: 4 | N7: 4 | O7: 4 | Y7: 4 | AF7: =AVERAGE(C7:AE7) -> 3.444444444 | AG7: =(COUNTIF(C7:AE7,"5")+COUNTIF(C7:AE7,"4")*0.64+COUNTIF(C7:AE7,"3")*0.36+COUNTIF(C7:AE7,"2")*0.16)/(COUNTIF(C7:AE7,"5")+COUNTIF(C7:AE7,"4")+COUNTIF(C7:AE7,"3")+COUNTIF(C7:AE7,"2")+COUNTIF(C7:AE7,"0")) -> 0.4844444444 | AH7: =((5*COUNTIF(C7:AE7,"5"))+(4*COUNTIF(C7:AE7,"4")))/(5*(COUNTA(C7:AE7)-COUNTIF(C7:AE7,"н"))) -> 0.3555555556 | AI7: 12.33333333
A8: 3 | B8: =СпискиКлассы!F6 -> Бестужева Екатерина | C8: 3 | D8: 4 | E8: 5 | F8: 3 | L8: 4 | M8: 5 | N8: 5 | O8: 5 | Y8: 5 | AF8: =AVERAGE(C8:AE8) -> 4.333333333 | AG8: 0.7777777778 | AH8: 0.7333333333 | AI8: 15
A9: 4 | B9: =СпискиКлассы!F7 -> Буданцев Виталий | C9: 4 | D9: 4 | E9: 4 | F9: 3 | L9: 4 | M9: 5 | N9: 5 | O9: 4 | Y9: 5 | AF9: 4.222222222 | AG9: 0.7288888889 | AH9: 0.7777777778 | AI9: 15
A10: 5 | B10: =СпискиКлассы!F8 -> Быков Иван | C10: 3 | D10: 3 | E10: 3 | F10: 3 | L10: 3 | M10: 5 | N10: 5 | O10: 4 | Y10: 4 | AF10: 3.666666667 | AG10: 0.5644444444 | AH10: 0.4 | AI10: 13
A11: 6 | B11: =СпискиКлассы!F9 -> Вахрушев Никита | C11: 4 | D11: 4 | E11: 5 | F11: 4 | L11: 5 | M11: 5 | N11: 5 | O11: 5 | Y11: 5 | AF11: 4.666666667 | AG11: 0.88 | AH11: 0.9333333333 | AI11: 16.66666667
A12: 7 | B12: =СпискиКлассы!F10 -> Гладкова Ульяна | C12: 3 | D12: 4 | E12: 5 | F12: 3 | L12: 4 | M12: 5 | N12: 5 | O12: 5 | Y12: 4 | AF12: 4.222222222 | AG12: 0.7377777778 | AH12: 0.7111111111 | AI12: 14.88888889
A13: 8 | B13: =СпискиКлассы!F11 -> Губенко София | C13: 4 | D13: 4 | E13: 4 | F13: 4 | L13: 5 | M13: 5 | N13: 5 | O13: 5 | Y13: 4 | AF13: 4.444444444 | AG13: 0.8 | AH13: 0.8888888889 | AI13: 16
A14: 9 | B14: =СпискиКлассы!F12 -> Егоров Максим | C14: 3 | D14: 3 | E14: 3 | F14: 3 | L14: 3 | M14: 4 | N14: 4 | O14: 4 | Y14: 5 | AF14: 3.555555556 | AG14: 0.5244444444 | AH14: 0.3777777778 | AI14: 12.44444444
A15: 10 | B15: =СпискиКлассы!F13 -> Жуков Денис | C15: 3 | D15: 3 | E15: 3 | F15: 3 | L15: 3 | M15: 4 | N15: 4 | O15: 4 | Y15: 4 | AF15: 3.444444444 | AG15: 0.4844444444 | AH15: 0.3555555556 | AI15: 12.33333333
A16: 11 | B16: =СпискиКлассы!F14 -> Кравченко Ксения | C16: 4 | D16: 5 | E16: 5 | F16: 4 | L16: 5 | M16: 5 | N16: 5 | O16: 5 | Y16: 4 | AF16: 4.666666667 | AG16: 0.88 | AH16: 0.9333333333 | AI16: 17.11111111
A17: 12 | B17: =СпискиКлассы!F15 -> Кузина Алена | C17: 4 | D17: 5 | E17: 4 | F17: 4 | L17: 5 | M17: 5 | N17: 5 | O17: 5 | Y17: 5 | AF17: 4.666666667 | AG17: 0.88 | AH17: 0.9333333333 | AI17: 16.66666667
A18: 13 | B18: =СпискиКлассы!F16 -> Кулиев Артур | C18: 4 | D18: 4 | E18: 4 | F18: 4 | L18: 5 | M18: 5 | N18: 5 | O18: 4 | Y18: 4 | AF18: 4.333333333 | AG18: 0.76 | AH18: 0.8666666667 | AI18: 15.77777778
A19: 14 | B19: =СпискиКлассы!F17 -> Макаров Георгий | C19: 3 | D19: 4 | E19: 3 | F19: 4 | L19: 4 | M19: 4 | N19: 4 | O19: 4 | Y19: 4 | AF19: 3.777777778 | AG19: 0.5777777778 | AH19: 0.6222222222 | AI19: 13.77777778
A20: 15 | B20: =СпискиКлассы!F18 -> Набиулина Лолита | C20: 4 | D20: 4 | E20: 3 | F20: 3 | L20: 4 | M20: 5 | N20: 5 | O20: 5 | Y20: 4 | AF20: 4.111111111 | AG20: 0.6977777778 | AH20: 0.6888888889 | AI20: 14.55555556
A21: 16 | B21: =СпискиКлассы!F19 -> Позняк Анастасия | C21: 4 | D21: 5 | E21: 5 | F21: 4 | L21: 5 | M21: 5 | N21: 5 | O21: 5 | Y21: 5 | AF21: 4.777777778 | AG21: 0.92 | AH21: 0.9555555556 | AI21: 17.22222222
A22: 17 | B22: =СпискиКлассы!F20 -> Силиванов Илья | C22: 4 | D22: 4 | E22: 5 | F22: 4 | L22: 4 | M22: 4 | N22: 4 | O22: 4 | Y22: 4 | AF22: 4.111111111 | AG22: 0.68 | AH22: 0.8222222222 | AI22: 15.66666667
A23: 18 | B23: =СпискиКлассы!F21 -> Стаскевич Анастасия | C23: 4 | D23: 4 | E23: 5 | F23: 4 | L23: 5 | M23: 5 | N23: 5 | O23: 5 | Y23: 4 | AF23: 4.555555556 | AG23: 0.84 | AH23: 0.9111111111 | AI23: 16.55555556
A24: 19 | B24: =СпискиКлассы!F22 -> Сушков Евгений | C24: 4 | D24: 4 | E24: 4 | F24: 4 | L24: 4 | M24: 5 | N24: 4 | O24: 5 | Y24: 5 | AF24: 4.333333333 | AG24: 0.76 | AH24: 0.8666666667 | AI24: 15.77777778
A25: 20 | B25: =СпискиКлассы!F23 -> Юрченко Дарина | C25: 4 | D25: 4 | E25: 3 | F25: 3 | L25: 4 | M25: 5 | N25: 5 | O25: 5 | Y25: 5 | AF25: 4.222222222 | AG25: 0.7377777778 | AH25: 0.7111111111 | AI25: 14.66666667
A26: 21 | B26: =СпискиКлассы!F24 -> Кухоренко Алина | C26: 3 | D26: 3 | E26: 3 | F26: 3 | L26: 3 | M26: 4 | N26: 5 | O26: 4 | Y26: 5 | AF26: 3.666666667 | AG26: 0.5644444444 | AH26: 0.4 | AI26: 12.77777778
A27: 22 | B27: =СпискиКлассы!F25 -> Лунев Владислав | C27: 3 | D27: 3 | E27: 3 | F27: 3 | L27: 3 | M27: 5 | N27: 5 | O27: 4 | Y27: 4 | AF27: 3.666666667 | AG27: 0.5644444444 | AH27: 0.4 | AI27: 13
A28: 23 | B28: =СпискиКлассы!F26 -> 0
A29: 24 | B29: =СпискиКлассы!F27 -> 0
A30: 25 | B30: =СпискиКлассы!F28 -> 0
A31: 26 | B31: =СпискиКлассы!F29 -> 0 | AF31: =AVERAGE(C31:AE31) ->  | AG31: =(COUNTIF(C31:AE31,"5")+COUNTIF(C31:AE31,"4")*0.64+COUNTIF(C31:AE31,"3")*0.36+COUNTIF(C31:AE31,"2")*0.16)/(COUNTIF(C31:AE31,"5")+COUNTIF(C31:AE31,"4")+COUNTIF(C31:AE31,"3")+COUNTIF(C31:AE31,"2")+COUNTIF(C31:AE31,"0")) -> 
A32: 27 | B32: =СпискиКлассы!F30 -> 0
A33: 28 | B33: =СпискиКлассы!F31 -> 0
A34: 29 | B34: =СпискиКлассы!F32 -> 0
A35: 30 | B35: =СпискиКлассы!F43 -> 0 | AI35: =SUMIF(C130:AE130,">0",C130:AE130)/(COUNTIF(C35:AE35,">0")+COUNTIF(C35:AE35,"=0")+COUNTIF(C35:AE35,"Н")) -> 
A36: Фамилия и инициалы учителя - предметника | C36: =Нагрузка!C9 -> Сологуб | D36: =Нагрузка!D9 -> Сологуб | E36: =Нагрузка!E9 -> 0 | F36: =Нагрузка!F9 -> Сологуб | G36: =Нагрузка!G9 -> 0 | H36: =Нагрузка!H9 -> 0 | I36: =Нагрузка!I9 -> 0 | J36: =Нагрузка!J9 -> 0 | K36: =Нагрузка!K9 -> 0 | L36: =Нагрузка!L9 -> Сологуб | M36: =Нагрузка!M9 -> Сологуб | N36: =Нагрузка!N9 -> Заворина | O36: =Нагрузка!O9 -> Сологуб | P36: =Нагрузка!P9 -> Сологуб | Q36: =Нагрузка!Q9 -> Ермакова | R36: =Нагрузка!R9 -> Калугина | S36: =Нагрузка!S9 -> Каплан | T36: =Нагрузка!T9 -> 0 | U36: =Нагрузка!U9 -> 0 | V36: =Нагрузка!V9 -> 0 | W36: =Нагрузка!W9 -> 0 | X36: =Нагрузка!X9 -> 0 | Y36: =Нагрузка!Y9 -> 0 | Z36: =Нагрузка!Z9 -> 0 | AA36: =Нагрузка!AA9 -> 0 | AB36: =Нагрузка!AB9 -> 0 | AC36: =Нагрузка!AC9 -> 0 | AD36: =Нагрузка!AD9 -> 0 | AE36: =Нагрузка!AE9 -> 0 | AF36: Показатели результатов учебной деятельности в целом по классу:
A37: Результаты учебной деятельности класса | B37: Количество "5": | C37: =COUNTIF(C6:C35,5) -> 0 | D37: 3 | E37: 7 | F37: 0 | G37: 0 | H37: 0 | I37: 0 | J37: 0 | K37: 0 | L37: 7 | M37: 16 | N37: 16 | O37: 12 | P37: 0 | Q37: 0 | R37: 0 | S37: 0 | T37: 0 | U37: 0 | V37: 0 | W37: 0 | X37: 0 | Y37: 10 | Z37: 0 | AA37: 0 | AB37: 0 | AC37: 0 | AD37: 0 | AE37: 0 | AF37: =SUM(C37:AE37) -> 71
B38: Количество "4": | C38: =COUNTIF(C6:C35,4) -> 13 | D38: 13 | E38: 6 | F38: 11 | G38: 0 | H38: 0 | I38: 0 | J38: 0 | K38: 0 | L38: 9 | M38: 6 | N38: 6 | O38: 10 | P38: 0 | Q38: 0 | R38: 0 | S38: 0 | T38: 0 | U38: 0 | V38: 0 | W38: 0 | X38: 0 | Y38: 12 | Z38: 0 | AA38: 0 | AB38: 0 | AC38: 0 | AD38: 0 | AE38: 0 | AF38: 86
B39: Количество "3": | C39: =COUNTIF(C6:C35,3) -> 9 | D39: 6 | E39: 9 | F39: 11 | G39: 0 | H39: 0 | I39: 0 | J39: 0 | K39: 0 | L39: 6 | M39: 0 | N39: 0 | O39: 0 | P39: 0 | Q39: 0 | R39: 0 | S39: 0 | T39: 0 | U39: 0 | V39: 0 | W39: 0 | X39: 0 | Y39: 0 | Z39: 0 | AA39: 0 | AB39: 0 | AC39: 0 | AD39: 0 | AE39: 0 | AF39: 41
B40: Количество "2": | C40: =COUNTIF(C6:C35,2) -> 0 | D40: 0 | E40: 0 | F40: 0 | G40: 0 | H40: 0 | I40: 0 | J40: 0 | K40: 0 | L40: 0 | M40: 0 | N40: 0 | O40: 0 | P40: 0 | Q40: 0 | R40: 0 | S40: 0 | T40: 0 | U40: 0 | V40: 0 | W40: 0 | X40: 0 | Y40: 0 | Z40: 0 | AA40: 0 | AB40: 0 | AC40: 0 | AD40: 0 | AE40: 0 | AF40: 0
B41: Не аттестовано: | C41: =COUNTIF(C6:C35,0) -> 0 | D41: 0 | E41: 0 | F41: 0 | G41: 0 | H41: 0 | I41: 0 | J41: 0 | K41: 0 | L41: 0 | M41: 0 | N41: 0 | O41: 0 | P41: 0 | Q41: 0 | R41: 0 | S41: 0 | T41: 0 | U41: 0 | V41: 0 | W41: 0 | X41: 0 | Y41: 0 | Z41: 0 | AA41: 0 | AB41: 0 | AC41: 0 | AD41: 0 | AE41: 0 | AF41: 0
B42: Освобождено: | C42: =COUNTIF(C6:C35,"н") -> 0 | D42: 0 | E42: 0 | F42: 0 | G42: 0 | H42: 0 | I42: 0 | J42: 0 | K42: 0 | L42: 0 | M42: 0 | N42: 0 | O42: 0 | P42: 0 | Q42: 0 | R42: 0 | S42: 0 | T42: 0 | U42: 0 | V42: 0 | W42: 0 | X42: 0 | Y42: 0 | Z42: 0 | AA42: 0 | AB42: 0 | AC42: 0 | AD42: 0 | AE42: 0 | AF42: 0
B43: Успеваемость: | C43: =(C37+C38+C39)/(C37+C38+C39+C40+C41) -> 1 | D43: =(D37+D38+D39)/(D37+D38+D39+D40+D41) -> 1 | E43: 1 | F43: 1 | L43: 1 | M43: 1 | N43: 1 | O43: 1 | Y43: 1 | AF43: =('4 А(2)'!D2-'4 А(2)'!C43-'4 А(2)'!C53)/'4 А(2)'!D2 -> 1
B44: Качество знаний: | C44: =(C37+C38)/(C37+C38+C39+C40+C41) -> 0.5909090909 | D44: =(D37+D38)/(D37+D38+D39+D40+D41) -> 0.7272727273 | E44: 0.5909090909 | F44: 0.5 | L44: 0.7272727273 | M44: 1 | N44: 1 | O44: 1 | Y44: 1 | AF44: =('4 А(2)'!C3+'4 А(2)'!C18)/'4 А(2)'!D2 -> 0.4761904762
B45: Степень обученности: | C45: =(C37+C38*0.64+C39*0.36+C40*0.16)/(C37+C38+C39+C40+C41) -> 0.5254545455 | D45: =(D37+D38*0.64+D39*0.36+D40*0.16)/(D37+D38+D39+D40+D41) -> 0.6127272727 | E45: 0.64 | F45: 0.5 | L45: 0.6781818182 | M45: 0.9018181818 | N45: 0.9018181818 | O45: 0.8363636364 | Y45: 0.8036363636 | AF45: =(AF37+AF38*0.64+AF39*0.36+AF40*0.16)/(AF37+AF38+AF39+AF40+AF41) -> 0.7111111111
B46: Средний балл: | C46: =(C37*5+C38*4+C39*3+C40*2)/(C37+C38+C39+C40+C41) -> 3.590909091 | D46: =(D37*5+D38*4+D39*3+D40*2)/(D37+D38+D39+D40+D41) -> 3.863636364 | E46: 3.909090909 | F46: 3.5 | L46: 4.045454545 | M46: 4.727272727 | N46: 4.727272727 | O46: 4.545454545 | Y46: 4.454545455 | AF46: =(AF37*5+AF38*4+AF39*3+AF40*2)/(AF37+AF38+AF39+AF40+AF41) -> 4.151515152
B47: Качество успеваемости: | C47: =(5*C37+4*C38)*0.2/(SUM(C37+C38+C39+C40+C41)) -> 0.4727272727 | D47: =(5*COUNTIF(D6:D35,5)+4*COUNTIF(D6:D35,4))*0.2/(COUNTA(D6:D35)-COUNTIF(D6:D35,"н")) -> 0.6090909091 | E47: 0.5363636364 | F47: 0.4 | L47: 0.6454545455 | M47: 0.9454545455 | N47: 0.9454545455 | O47: 0.9090909091 | Y47: 0.8909090909 | AF47: =(5*COUNTIF(C6:AE35,5)+4*COUNTIF(C6:AE35,4))*0.2/(COUNTA(C6:AE35)-COUNTIF(C6:AE35,"н")) -> 0.7060606061
A48: Выполнено с помощью программы статистического анализа результатов учебной деятельности | AC48: =Титул!G31 -> PSORUD-Klass.v.04.11.demo | AI48: 3+
B90: Коэф.трудн.предмета | C90: =VLOOKUP(C$5,ШкалаТрудн!$C$5:$N$34,LEFT($Z$2,2)+1,0) -> 7 | D90: =VLOOKUP(D$5,ШкалаТрудн!$C$5:$N$34,LEFT($Z$2,2)+1,0) -> 5 | E90: =VLOOKUP(E$5,ШкалаТрудн!$C$5:$N$34,LEFT($Z$2,2)+1,0) -> 5 | F90: =VLOOKUP(F$5,ШкалаТрудн!$C$5:$N$34,LEFT($Z$2,2)+1,0) -> 8 | G90: =VLOOKUP(G$5,ШкалаТрудн!$C$5:$N$34,LEFT($Z$2,2)+1,0) -> 0 | H90: =VLOOKUP(H$5,ШкалаТрудн!$C$5:$N$34,LEFT($Z$2,2)+1,0) -> 0 | I90: =VLOOKUP(I$5,ШкалаТрудн!$C$5:$N$34,LEFT($Z$2,2)+1,0) -> 6 | J90: =VLOOKUP(J$5,ШкалаТрудн!$C$5:$N$34,LEFT($Z$2,2)+1,0) -> 4 | K90: =VLOOKUP(K$5,ШкалаТрудн!$C$5:$N$34,LEFT($Z$2,2)+1,0) -> 0 | L90: =VLOOKUP(L$5,ШкалаТрудн!$C$5:$N$34,LEFT($Z$2,2)+1,0) ->  | M90: =VLOOKUP(M$5,ШкалаТрудн!$C$5:$N$34,LEFT($Z$2,2)+1,0) -> 3 | N90: =VLOOKUP(N$5,ШкалаТрудн!$C$5:$N$34,LEFT($Z$2,2)+1,0) -> 3 | O90: =VLOOKUP(O$5,ШкалаТрудн!$C$5:$N$34,LEFT($Z$2,2)+1,0) -> 2 | P90: =VLOOKUP(P$5,ШкалаТрудн!$C$5:$N$34,LEFT($Z$2,2)+1,0) -> 2 | Q90: =VLOOKUP(Q$5,ШкалаТрудн!$C$5:$N$34,LEFT($Z$2,2)+1,0) -> 1 | R90: =VLOOKUP(R$5,ШкалаТрудн!$C$5:$N$34,LEFT($Z$2,2)+1,0) -> 5 | S90: =VLOOKUP(S$5,ШкалаТрудн!$C$5:$N$34,LEFT($Z$2,2)+1,0) -> 5 | T90: =VLOOKUP(T$5,ШкалаТрудн!$C$5:$N$34,LEFT($Z$2,2)+1,0) -> 0 | U90: =VLOOKUP(U$5,ШкалаТрудн!$C$5:$N$34,LEFT($Z$2,2)+1,0) -> 0 | V90: =VLOOKUP(V$5,ШкалаТрудн!$C$5:$N$34,LEFT($Z$2,2)+1,0) -> 0 | W90: =VLOOKUP(W$5,ШкалаТрудн!$C$5:$N$34,LEFT($Z$2,2)+1,0) -> 0 | X90: =VLOOKUP(X$5,ШкалаТрудн!$C$5:$N$34,LEFT($Z$2,2)+1,0) -> 0 | Y90: =VLOOKUP(Y$5,ШкалаТрудн!$C$5:$N$34,LEFT($Z$2,2)+1,0) -> 1 | Z90: =VLOOKUP(Z$5,ШкалаТрудн!$C$5:$N$34,LEFT($Z$2,2)+1,0) -> 0 | AA90: =VLOOKUP(AA$5,ШкалаТрудн!$C$5:$N$34,LEFT($Z$2,2)+1,0) -> 0 | AB90: =VLOOKUP(AB$5,ШкалаТрудн!$C$5:$N$34,LEFT($Z$2,2)+1,0) ->  | AC90: =VLOOKUP(AC$5,ШкалаТрудн!$C$5:$N$34,LEFT($Z$2,2)+1,0) ->  | AD90: =VLOOKUP(AD$5,ШкалаТрудн!$C$5:$N$34,LEFT($Z$2,2)+1,0) ->  | AE90: =VLOOKUP(AE$5,ШкалаТрудн!$C$5:$N$34,LEFT($Z$2,2)+1,0) -> 
C91: =C6*C$90 -> 28 | D91: 20 | E91: 20 | F91: 32 | G91: 0 | H91: 0 | I91: 0 | J91: 0 | K91: 0 | M91: 15 | N91: 15 | O91: 10 | P91: 0 | Q91: 0 | R91: 0 | S91: 0 | T91: 0 | U91: 0 | V91: 0 | W91: 0 | X91: 0 | Y91: 5 | Z91: 0 | AA91: 0
C92: =C7*C$90 -> 21 | D92: 15 | E92: 15 | F92: 24 | G92: 0 | H92: 0 | I92: 0 | J92: 0 | K92: 0 | M92: 12 | N92: 12 | O92: 8 | P92: 0 | Q92: 0 | R92: 0 | S92: 0 | T92: 0 | U92: 0 | V92: 0 | W92: 0 | X92: 0 | Y92: 4 | Z92: 0 | AA92: 0
C93: =C8*C$90 -> 21 | D93: 20 | E93: 25 | F93: 24 | G93: 0 | H93: 0 | I93: 0 | J93: 0 | K93: 0 | M93: 15 | N93: 15 | O93: 10 | P93: 0 | Q93: 0 | R93: 0 | S93: 0 | T93: 0 | U93: 0 | V93: 0 | W93: 0 | X93: 0 | Y93: 5 | Z93: 0 | AA93: 0
C94: =C9*C$90 -> 28 | D94: 20 | E94: 20 | F94: 24 | G94: 0 | H94: 0 | I94: 0 | J94: 0 | K94: 0 | M94: 15 | N94: 15 | O94: 8 | P94: 0 | Q94: 0 | R94: 0 | S94: 0 | T94: 0 | U94: 0 | V94: 0 | W94: 0 | X94: 0 | Y94: 5 | Z94: 0 | AA94: 0
C95: =C10*C$90 -> 21 | D95: 15 | E95: 15 | F95: 24 | G95: 0 | H95: 0 | I95: 0 | J95: 0 | K95: 0 | M95: 15 | N95: 15 | O95: 8 | P95: 0 | Q95: 0 | R95: 0 | S95: 0 | T95: 0 | U95: 0 | V95: 0 | W95: 0 | X95: 0 | Y95: 4 | Z95: 0 | AA95: 0
C96: =C11*C$90 -> 28 | D96: 20 | E96: 25 | F96: 32 | G96: 0 | H96: 0 | I96: 0 | J96: 0 | K96: 0 | M96: 15 | N96: 15 | O96: 10 | P96: 0 | Q96: 0 | R96: 0 | S96: 0 | T96: 0 | U96: 0 | V96: 0 | W96: 0 | X96: 0 | Y96: 5 | Z96: 0 | AA96: 0
C97: =C12*C$90 -> 21 | D97: 20 | E97: 25 | F97: 24 | G97: 0 | H97: 0 | I97: 0 | J97: 0 | K97: 0 | M97: 15 | N97: 15 | O97: 10 | P97: 0 | Q97: 0 | R97: 0 | S97: 0 | T97: 0 | U97: 0 | V97: 0 | W97: 0 | X97: 0 | Y97: 4 | Z97: 0 | AA97: 0
C98: =C13*C$90 -> 28 | D98: 20 | E98: 20 | F98: 32 | G98: 0 | H98: 0 | I98: 0 | J98: 0 | K98: 0 | M98: 15 | N98: 15 | O98: 10 | P98: 0 | Q98: 0 | R98: 0 | S98: 0 | T98: 0 | U98: 0 | V98: 0 | W98: 0 | X98: 0 | Y98: 4 | Z98: 0 | AA98: 0
C99: =C14*C$90 -> 21 | D99: 15 | E99: 15 | F99: 24 | G99: 0 | H99: 0 | I99: 0 | J99: 0 | K99: 0 | M99: 12 | N99: 12 | O99: 8 | P99: 0 | Q99: 0 | R99: 0 | S99: 0 | T99: 0 | U99: 0 | V99: 0 | W99: 0 | X99: 0 | Y99: 5 | Z99: 0 | AA99: 0
C100: =C15*C$90 -> 21 | D100: 15 | E100: 15 | F100: 24 | G100: 0 | H100: 0 | I100: 0 | J100: 0 | K100: 0 | M100: 12 | N100: 12 | O100: 8 | P100: 0 | Q100: 0 | R100: 0 | S100: 0 | T100: 0 | U100: 0 | V100: 0 | W100: 0 | X100: 0 | Y100: 4 | Z100: 0 | AA100: 0
C101: =C16*C$90 -> 28 | D101: 25 | E101: 25 | F101: 32 | G101: 0 | H101: 0 | I101: 0 | J101: 0 | K101: 0 | M101: 15 | N101: 15 | O101: 10 | P101: 0 | Q101: 0 | R101: 0 | S101: 0 | T101: 0 | U101: 0 | V101: 0 | W101: 0 | X101: 0 | Y101: 4 | Z101: 0 | AA101: 0
C102: =C17*C$90 -> 28 | D102: 25 | E102: 20 | F102: 32 | G102: 0 | H102: 0 | I102: 0 | J102: 0 | K102: 0 | M102: 15 | N102: 15 | O102: 10 | P102: 0 | Q102: 0 | R102: 0 | S102: 0 | T102: 0 | U102: 0 | V102: 0 | W102: 0 | X102: 0 | Y102: 5 | Z102: 0 | AA102: 0
C103: =C18*C$90 -> 28 | D103: 20 | E103: 20 | F103: 32 | G103: 0 | H103: 0 | I103: 0 | J103: 0 | K103: 0 | M103: 15 | N103: 15 | O103: 8 | P103: 0 | Q103: 0 | R103: 0 | S103: 0 | T103: 0 | U103: 0 | V103: 0 | W103: 0 | X103: 0 | Y103: 4 | Z103: 0 | AA103: 0
C104: =C19*C$90 -> 21 | D104: 20 | E104: 15 | F104: 32 | G104: 0 | H104: 0 | I104: 0 | J104: 0 | K104: 0 | M104: 12 | N104: 12 | O104: 8 | P104: 0 | Q104: 0 | R104: 0 | S104: 0 | T104: 0 | U104: 0 | V104: 0 | W104: 0 | X104: 0 | Y104: 4 | Z104: 0 | AA104: 0
C105: =C20*C$90 -> 28 | D105: 20 | E105: 15 | F105: 24 | G105: 0 | H105: 0 | I105: 0 | J105: 0 | K105: 0 | M105: 15 | N105: 15 | O105: 10 | P105: 0 | Q105: 0 | R105: 0 | S105: 0 | T105: 0 | U105: 0 | V105: 0 | W105: 0 | X105: 0 | Y105: 4 | Z105: 0 | AA105: 0
C106: =C21*C$90 -> 28 | D106: 25 | E106: 25 | F106: 32 | G106: 0 | H106: 0 | I106: 0 | J106: 0 | K106: 0 | M106: 15 | N106: 15 | O106: 10 | P106: 0 | Q106: 0 | R106: 0 | S106: 0 | T106: 0 | U106: 0 | V106: 0 | W106: 0 | X106: 0 | Y106: 5 | Z106: 0 | AA106: 0
C107: =C22*C$90 -> 28 | D107: 20 | E107: 25 | F107: 32 | G107: 0 | H107: 0 | I107: 0 | J107: 0 | K107: 0 | M107: 12 | N107: 12 | O107: 8 | P107: 0 | Q107: 0 | R107: 0 | S107: 0 | T107: 0 | U107: 0 | V107: 0 | W107: 0 | X107: 0 | Y107: 4 | Z107: 0 | AA107: 0
C108: =C23*C$90 -> 28 | D108: 20 | E108: 25 | F108: 32 | G108: 0 | H108: 0 | I108: 0 | J108: 0 | K108: 0 | M108: 15 | N108: 15 | O108: 10 | P108: 0 | Q108: 0 | R108: 0 | S108: 0 | T108: 0 | U108: 0 | V108: 0 | W108: 0 | X108: 0 | Y108: 4 | Z108: 0 | AA108: 0
C109: =C24*C$90 -> 28 | D109: 20 | E109: 20 | F109: 32 | G109: 0 | H109: 0 | I109: 0 | J109: 0 | K109: 0 | M109: 15 | N109: 12 | O109: 10 | P109: 0 | Q109: 0 | R109: 0 | S109: 0 | T109: 0 | U109: 0 | V109: 0 | W109: 0 | X109: 0 | Y109: 5 | Z109: 0 | AA109: 0
C110: =C25*C$90 -> 28 | D110: 20 | E110: 15 | F110: 24 | G110: 0 | H110: 0 | I110: 0 | J110: 0 | K110: 0 | M110: 15 | N110: 15 | O110: 10 | P110: 0 | Q110: 0 | R110: 0 | S110: 0 | T110: 0 | U110: 0 | V110: 0 | W110: 0 | X110: 0 | Y110: 5 | Z110: 0 | AA110: 0
C111: =C26*C$90 -> 21 | D111: 15 | E111: 15 | F111: 24 | G111: 0 | H111: 0 | I111: 0 | J111: 0 | K111: 0 | M111: 12 | N111: 15 | O111: 8 | P111: 0 | Q111: 0 | R111: 0 | S111: 0 | T111: 0 | U111: 0 | V111: 0 | W111: 0 | X111: 0 | Y111: 5 | Z111: 0 | AA111: 0
C112: =C27*C$90 -> 21 | D112: 15 | E112: 15 | F112: 24 | G112: 0 | H112: 0 | I112: 0 | J112: 0 | K112: 0 | M112: 15 | N112: 15 | O112: 8 | P112: 0 | Q112: 0 | R112: 0 | S112: 0 | T112: 0 | U112: 0 | V112: 0 | W112: 0 | X112: 0 | Y112: 4 | Z112: 0 | AA112: 0
C113: =C28*C$90 -> 0 | D113: 0 | E113: 0 | F113: 0 | G113: 0 | H113: 0 | I113: 0 | J113: 0 | K113: 0 | M113: 0 | N113: 0 | O113: 0 | P113: 0 | Q113: 0 | R113: 0 | S113: 0 | T113: 0 | U113: 0 | V113: 0 | W113: 0 | X113: 0 | Y113: 0 | Z113: 0 | AA113: 0
C114: =C29*C$90 -> 0 | D114: 0 | E114: 0 | F114: 0 | G114: 0 | H114: 0 | I114: 0 | J114: 0 | K114: 0 | M114: 0 | N114: 0 | O114: 0 | P114: 0 | Q114: 0 | R114: 0 | S114: 0 | T114: 0 | U114: 0 | V114: 0 | W114: 0 | X114: 0 | Y114: 0 | Z114: 0 | AA114: 0
C115: =C30*C$90 -> 0 | D115: 0 | E115: 0 | F115: 0 | G115: 0 | H115: 0 | I115: 0 | J115: 0 | K115: 0 | M115: 0 | N115: 0 | O115: 0 | P115: 0 | Q115: 0 | R115: 0 | S115: 0 | T115: 0 | U115: 0 | V115: 0 | W115: 0 | X115: 0 | Y115: 0 | Z115: 0 | AA115: 0
C116: =C31*C$90 -> 0 | D116: 0 | E116: 0 | F116: 0 | G116: 0 | H116: 0 | I116: 0 | J116: 0 | K116: 0 | M116: 0 | N116: 0 | O116: 0 | P116: 0 | Q116: 0 | R116: 0 | S116: 0 | T116: 0 | U116: 0 | V116: 0 | W116: 0 | X116: 0 | Y116: 0 | Z116: 0 | AA116: 0
C117: =C32*C$90 -> 0 | D117: 0 | E117: 0 | F117: 0 | G117: 0 | H117: 0 | I117: 0 | J117: 0 | K117: 0 | M117: 0 | N117: 0 | O117: 0 | P117: 0 | Q117: 0 | R117: 0 | S117: 0 | T117: 0 | U117: 0 | V117: 0 | W117: 0 | X117: 0 | Y117: 0 | Z117: 0 | AA117: 0
C118: =C33*C$90 -> 0 | D118: 0 | E118: 0 | F118: 0 | G118: 0 | H118: 0 | I118: 0 | J118: 0 | K118: 0 | M118: 0 | N118: 0 | O118: 0 | P118: 0 | Q118: 0 | R118: 0 | S118: 0 | T118: 0 | U118: 0 | V118: 0 | W118: 0 | X118: 0 | Y118: 0 | Z118: 0 | AA118: 0
C119: =C34*C$90 -> 0 | D119: 0 | E119: 0 | F119: 0 | G119: 0 | H119: 0 | I119: 0 | J119: 0 | K119: 0 | M119: 0 | N119: 0 | O119: 0 | P119: 0 | Q119: 0 | R119: 0 | S119: 0 | T119: 0 | U119: 0 | V119: 0 | W119: 0 | X119: 0 | Y119: 0 | Z119: 0 | AA119: 0
C120: =#REF!*C$90 ->  | D120: =#REF!*D$90 ->  | E120: =#REF!*E$90 ->  | F120: =#REF!*F$90 ->  | G120: =#REF!*G$90 ->  | H120: =#REF!*H$90 ->  | I120: =#REF!*I$90 ->  | J120: =#REF!*J$90 ->  | K120: =#REF!*K$90 ->  | L120: =#REF!*L$90 ->  | M120: =#REF!*M$90 ->  | N120: =#REF!*N$90 ->  | O120: =#REF!*O$90 ->  | P120: =#REF!*P$90 ->  | Q120: =#REF!*Q$90 ->  | R120: =#REF!*R$90 ->  | S120: =#REF!*S$90 ->  | T120: =#REF!*T$90 ->  | U120: =#REF!*U$90 ->  | V120: =#REF!*V$90 ->  | W120: =#REF!*W$90 ->  | X120: =#REF!*X$90 ->  | Y120: =#REF!*Y$90 ->  | Z120: =#REF!*Z$90 ->  | AA120: =#REF!*AA$90 ->  | AB120: =#REF!*AB$90 ->  | AC120: =#REF!*AC$90 ->  | AD120: =#REF!*AD$90 ->  | AE120: =#REF!*AE$90 -> 
C121: =#REF!*C$90 ->  | D121: =#REF!*D$90 ->  | E121: =#REF!*E$90 ->  | F121: =#REF!*F$90 ->  | G121: =#REF!*G$90 ->  | H121: =#REF!*H$90 ->  | I121: =#REF!*I$90 ->  | J121: =#REF!*J$90 ->  | K121: =#REF!*K$90 ->  | L121: =#REF!*L$90 ->  | M121: =#REF!*M$90 ->  | N121: =#REF!*N$90 ->  | O121: =#REF!*O$90 ->  | P121: =#REF!*P$90 ->  | Q121: =#REF!*Q$90 ->  | R121: =#REF!*R$90 ->  | S121: =#REF!*S$90 ->  | T121: =#REF!*T$90 ->  | U121: =#REF!*U$90 ->  | V121: =#REF!*V$90 ->  | W121: =#REF!*W$90 ->  | X121: =#REF!*X$90 ->  | Y121: =#REF!*Y$90 ->  | Z121: =#REF!*Z$90 ->  | AA121: =#REF!*AA$90 ->  | AB121: =#REF!*AB$90 ->  | AC121: =#REF!*AC$90 ->  | AD121: =#REF!*AD$90 ->  | AE121: =#REF!*AE$90 -> 
C122: =#REF!*C$90 ->  | D122: =#REF!*D$90 ->  | E122: =#REF!*E$90 ->  | F122: =#REF!*F$90 ->  | G122: =#REF!*G$90 ->  | H122: =#REF!*H$90 ->  | I122: =#REF!*I$90 ->  | J122: =#REF!*J$90 ->  | K122: =#REF!*K$90 ->  | L122: =#REF!*L$90 ->  | M122: =#REF!*M$90 ->  | N122: =#REF!*N$90 ->  | O122: =#REF!*O$90 ->  | P122: =#REF!*P$90 ->  | Q122: =#REF!*Q$90 ->  | R122: =#REF!*R$90 ->  | S122: =#REF!*S$90 ->  | T122: =#REF!*T$90 ->  | U122: =#REF!*U$90 ->  | V122: =#REF!*V$90 ->  | W122: =#REF!*W$90 ->  | X122: =#REF!*X$90 ->  | Y122: =#REF!*Y$90 ->  | Z122: =#REF!*Z$90 ->  | AA122: =#REF!*AA$90 ->  | AB122: =#REF!*AB$90 ->  | AC122: =#REF!*AC$90 ->  | AD122: =#REF!*AD$90 ->  | AE122: =#REF!*AE$90 -> 
C123: =#REF!*C$90 ->  | D123: =#REF!*D$90 ->  | E123: =#REF!*E$90 ->  | F123: =#REF!*F$90 ->  | G123: =#REF!*G$90 ->  | H123: =#REF!*H$90 ->  | I123: =#REF!*I$90 ->  | J123: =#REF!*J$90 ->  | K123: =#REF!*K$90 ->  | L123: =#REF!*L$90 ->  | M123: =#REF!*M$90 ->  | N123: =#REF!*N$90 ->  | O123: =#REF!*O$90 ->  | P123: =#REF!*P$90 ->  | Q123: =#REF!*Q$90 ->  | R123: =#REF!*R$90 ->  | S123: =#REF!*S$90 ->  | T123: =#REF!*T$90 ->  | U123: =#REF!*U$90 ->  | V123: =#REF!*V$90 ->  | W123: =#REF!*W$90 ->  | X123: =#REF!*X$90 ->  | Y123: =#REF!*Y$90 ->  | Z123: =#REF!*Z$90 ->  | AA123: =#REF!*AA$90 ->  | AB123: =#REF!*AB$90 ->  | AC123: =#REF!*AC$90 ->  | AD123: =#REF!*AD$90 ->  | AE123: =#REF!*AE$90 -> 
C124: =#REF!*C$90 ->  | D124: =#REF!*D$90 ->  | E124: =#REF!*E$90 ->  | F124: =#REF!*F$90 ->  | G124: =#REF!*G$90 ->  | H124: =#REF!*H$90 ->  | I124: =#REF!*I$90 ->  | J124: =#REF!*J$90 ->  | K124: =#REF!*K$90 ->  | L124: =#REF!*L$90 ->  | M124: =#REF!*M$90 ->  | N124: =#REF!*N$90 ->  | O124: =#REF!*O$90 ->  | P124: =#REF!*P$90 ->  | Q124: =#REF!*Q$90 ->  | R124: =#REF!*R$90 ->  | S124: =#REF!*S$90 ->  | T124: =#REF!*T$90 ->  | U124: =#REF!*U$90 ->  | V124: =#REF!*V$90 ->  | W124: =#REF!*W$90 ->  | X124: =#REF!*X$90 ->  | Y124: =#REF!*Y$90 ->  | Z124: =#REF!*Z$90 ->  | AA124: =#REF!*AA$90 ->  | AB124: =#REF!*AB$90 ->  | AC124: =#REF!*AC$90 ->  | AD124: =#REF!*AD$90 ->  | AE124: =#REF!*AE$90 -> 
C125: =#REF!*C$90 ->  | D125: =#REF!*D$90 ->  | E125: =#REF!*E$90 ->  | F125: =#REF!*F$90 ->  | G125: =#REF!*G$90 ->  | H125: =#REF!*H$90 ->  | I125: =#REF!*I$90 ->  | J125: =#REF!*J$90 ->  | K125: =#REF!*K$90 ->  | L125: =#REF!*L$90 ->  | M125: =#REF!*M$90 ->  | N125: =#REF!*N$90 ->  | O125: =#REF!*O$90 ->  | P125: =#REF!*P$90 ->  | Q125: =#REF!*Q$90 ->  | R125: =#REF!*R$90 ->  | S125: =#REF!*S$90 ->  | T125: =#REF!*T$90 ->  | U125: =#REF!*U$90 ->  | V125: =#REF!*V$90 ->  | W125: =#REF!*W$90 ->  | X125: =#REF!*X$90 ->  | Y125: =#REF!*Y$90 ->  | Z125: =#REF!*Z$90 ->  | AA125: =#REF!*AA$90 ->  | AB125: =#REF!*AB$90 ->  | AC125: =#REF!*AC$90 ->  | AD125: =#REF!*AD$90 ->  | AE125: =#REF!*AE$90 -> 
C126: =#REF!*C$90 ->  | D126: =#REF!*D$90 ->  | E126: =#REF!*E$90 ->  | F126: =#REF!*F$90 ->  | G126: =#REF!*G$90 ->  | H126: =#REF!*H$90 ->  | I126: =#REF!*I$90 ->  | J126: =#REF!*J$90 ->  | K126: =#REF!*K$90 ->  | L126: =#REF!*L$90 ->  | M126: =#REF!*M$90 ->  | N126: =#REF!*N$90 ->  | O126: =#REF!*O$90 ->  | P126: =#REF!*P$90 ->  | Q126: =#REF!*Q$90 ->  | R126: =#REF!*R$90 ->  | S126: =#REF!*S$90 ->  | T126: =#REF!*T$90 ->  | U126: =#REF!*U$90 ->  | V126: =#REF!*V$90 ->  | W126: =#REF!*W$90 ->  | X126: =#REF!*X$90 ->  | Y126: =#REF!*Y$90 ->  | Z126: =#REF!*Z$90 ->  | AA126: =#REF!*AA$90 ->  | AB126: =#REF!*AB$90 ->  | AC126: =#REF!*AC$90 ->  | AD126: =#REF!*AD$90 ->  | AE126: =#REF!*AE$90 -> 
C127: =#REF!*C$90 ->  | D127: =#REF!*D$90 ->  | E127: =#REF!*E$90 ->  | F127: =#REF!*F$90 ->  | G127: =#REF!*G$90 ->  | H127: =#REF!*H$90 ->  | I127: =#REF!*I$90 ->  | J127: =#REF!*J$90 ->  | K127: =#REF!*K$90 ->  | L127: =#REF!*L$90 ->  | M127: =#REF!*M$90 ->  | N127: =#REF!*N$90 ->  | O127: =#REF!*O$90 ->  | P127: =#REF!*P$90 ->  | Q127: =#REF!*Q$90 ->  | R127: =#REF!*R$90 ->  | S127: =#REF!*S$90 ->  | T127: =#REF!*T$90 ->  | U127: =#REF!*U$90 ->  | V127: =#REF!*V$90 ->  | W127: =#REF!*W$90 ->  | X127: =#REF!*X$90 ->  | Y127: =#REF!*Y$90 ->  | Z127: =#REF!*Z$90 ->  | AA127: =#REF!*AA$90 ->  | AB127: =#REF!*AB$90 ->  | AC127: =#REF!*AC$90 ->  | AD127: =#REF!*AD$90 ->  | AE127: =#REF!*AE$90 -> 
C128: =#REF!*C$90 ->  | D128: =#REF!*D$90 ->  | E128: =#REF!*E$90 ->  | F128: =#REF!*F$90 ->  | G128: =#REF!*G$90 ->  | H128: =#REF!*H$90 ->  | I128: =#REF!*I$90 ->  | J128: =#REF!*J$90 ->  | K128: =#REF!*K$90 ->  | L128: =#REF!*L$90 ->  | M128: =#REF!*M$90 ->  | N128: =#REF!*N$90 ->  | O128: =#REF!*O$90 ->  | P128: =#REF!*P$90 ->  | Q128: =#REF!*Q$90 ->  | R128: =#REF!*R$90 ->  | S128: =#REF!*S$90 ->  | T128: =#REF!*T$90 ->  | U128: =#REF!*U$90 ->  | V128: =#REF!*V$90 ->  | W128: =#REF!*W$90 ->  | X128: =#REF!*X$90 ->  | Y128: =#REF!*Y$90 ->  | Z128: =#REF!*Z$90 ->  | AA128: =#REF!*AA$90 ->  | AB128: =#REF!*AB$90 ->  | AC128: =#REF!*AC$90 ->  | AD128: =#REF!*AD$90 ->  | AE128: =#REF!*AE$90 -> 
C129: =#REF!*C$90 ->  | D129: =#REF!*D$90 ->  | E129: =#REF!*E$90 ->  | F129: =#REF!*F$90 ->  | G129: =#REF!*G$90 ->  | H129: =#REF!*H$90 ->  | I129: =#REF!*I$90 ->  | J129: =#REF!*J$90 ->  | K129: =#REF!*K$90 ->  | L129: =#REF!*L$90 ->  | M129: =#REF!*M$90 ->  | N129: =#REF!*N$90 ->  | O129: =#REF!*O$90 ->  | P129: =#REF!*P$90 ->  | Q129: =#REF!*Q$90 ->  | R129: =#REF!*R$90 ->  | S129: =#REF!*S$90 ->  | T129: =#REF!*T$90 ->  | U129: =#REF!*U$90 ->  | V129: =#REF!*V$90 ->  | W129: =#REF!*W$90 ->  | X129: =#REF!*X$90 ->  | Y129: =#REF!*Y$90 ->  | Z129: =#REF!*Z$90 ->  | AA129: =#REF!*AA$90 ->  | AB129: =#REF!*AB$90 ->  | AC129: =#REF!*AC$90 ->  | AD129: =#REF!*AD$90 ->  | AE129: =#REF!*AE$90 -> 
C130: =C35*C$90 -> 0 | D130: 0 | E130: 0 | F130: 0 | G130: 0 | H130: 0 | I130: 0 | J130: 0 | K130: 0 | M130: 0 | N130: 0 | O130: 0 | P130: 0 | Q130: 0 | R130: 0 | S130: 0 | T130: 0 | U130: 0 | V130: 0 | W130: 0 | X130: 0 | Y130: 0 | Z130: 0 | AA130: 0

Sheet 4 А(2) (hidden)
A1: =Титул!B13 -> 4 А | E1: Страница заполняется автоматически, без участия оператора!!!
A2: Всего учащихся в классе: | D2: =Титул!C13 -> 21 | E2: Фамилии, имена учащихся | F2: Учебные предметы | G2: Фамилии и инициалы учителей | H2: Пояснения, примечания, причины
A3: Учатся на "5": | C3: =COUNTA(E3:E17) -> 0 | D3: 1
D4: 2
D5: 3
D6: 4
D7: 5
D8: 6
D9: 7
D10: 8
D11: 9
D12: 10
D13: 11
D14: 12
D15: 13
D16: 14
D17: 15
A18: Учатся на "4"и"5" | C18: =COUNTA(E18:E42) -> 10 | D18: 1 | E18: Алябьев Владислав
D19: 2 | E19: Вахрушев Никита
D20: 3 | E20: Губенко София
D21: 4 | E21: Кравченко Ксения
D22: 5 | E22: Кузина Алена
D23: 6 | E23: Кулиев Артур
D24: 7 | E24: Позняк Анастасия
D25: 8 | E25: Силиванов Илья
D26: 9 | E26: Стаскевич Анастасия
D27: 10 | E27: Сушков Евгений
D28: 11
D29: 12
D30: 13
D31: 14
D32: 15
D33: 16
D34: 17
D35: 18
D36: 19
D37: 20
D38: 21
D39: 22
D40: 23
D41: 24
D42: 25
A43: Не аттестованы: | C43: =COUNTA(E43:E52) -> 0 | D43: 1
D44: 2
D45: 3
D46: 4
D47: 5
D48: 6
D49: 7
D50: 8
D51: 9
D52: 10
A53: Не успевают: | C53: =COUNTA(E53:E67) -> 0 | D53: 1
D54: 2
D55: 3
D56: 4
D57: 5
D58: 6
D59: 7
D60: 8
D61: 9
D62: 10
D63: 11
D64: 12
D65: 13
D66: 14
D67: 15
A68: Освобождены: | C68: =COUNTA(E68:E82) -> 0 | D68: 1
D69: 2
D70: 3
D71: 4
D72: 5
D73: 6
D74: 7
D75: 8
D76: 9
D77: 10
D78: 11
D79: 12
D80: 13
D81: 14
D82: 15

Sheet 4 Б (hidden)
A1: =Титул!B5 -> 2014/15 учебный год | D1: =Титул!B4 -> МОУ СОШ № 15 | AA1: =Титул!B6 -> 4 четверть | AI1: 3+
A2: ВЕДОМОСТЬ РЕЗУЛЬТАТОВ УЧЕБНОЙ ДЕЯТЕЛЬНОСТИ | Z2: =Титул!B14 -> 4 Б | AD2: класса
A3: Классный руководитель: | E3: =Титул!D14 -> Варюшина И.В. | S3: Программа: | X3: =Титул!G14 -> УМК "Школа 2100"
A4: Вручную вносятся только оценки "5", "4", "3", "2", "1". Не аттестованным проставляется "0", освобожденным - "Н". | C4: У ч е б н ы е п р е д м е т ы | AF4: Результаты ученика:
C5: =Нагрузка!C3 -> Русский язык | D5: =Нагрузка!D3 -> Литература | E5: =Нагрузка!E3 -> Иностранный язык | F5: =Нагрузка!F3 -> Математика | G5: =Нагрузка!G3 -> Алгебра | H5: =Нагрузка!H3 -> Геометрия | I5: =Нагрузка!I3 -> Информатика | J5: =Нагрузка!J3 -> История | K5: =Нагрузка!K3 -> Обществознание | L5: =Нагрузка!L3 -> Окружающий мир | M5: =Нагрузка!M3 -> ИЗО | N5: =Нагрузка!N3 -> Музыка | O5: =Нагрузка!O3 -> Технология | P5: =Нагрузка!P3 -> Технология | Q5: =Нагрузка!Q3 -> ФЗК | R5: =Нагрузка!R3 -> Иностранный язык | S5: =Нагрузка!S3 -> Иностранный язык | T5: =Нагрузка!T3 -> География | U5: =Нагрузка!U3 -> Физика | V5: =Нагрузка!V3 -> Химия | W5: =Нагрузка!W3 -> Биология | X5: =Нагрузка!X3 -> МХК | Y5: =Нагрузка!Y3 -> ФЗК | Z5: =Нагрузка!Z3 -> ОБЖ | AA5: =Нагрузка!AA3 -> Природоведение | AB5: =Нагрузка!AB3 -> 0 | AC5: =Нагрузка!AC3 -> 0 | AD5: =Нагрузка!AD3 -> 0 | AE5: =Нагрузка!AE3 -> 0 | AF5: Средний балл: | AG5: Степень обученности (СОУ): | AH5: Качество успеваемости: | AI5: Рейтинговый учебный балл:
A6: 1 | B6: =СпискиКлассы!G4 -> Барабаш Дана | C6: 4 | D6: 5 | E6: 5 | F6: 4 | L6: 5 | M6: 5 | N6: 5 | O6: 5 | Q6: 5 | AF6: =AVERAGE(C6:AE6) -> 4.777777778 | AG6: =(COUNTIF(C6:AE6,"5")+COUNTIF(C6:AE6,"4")*0.64+COUNTIF(C6:AE6,"3")*0.36+COUNTIF(C6:AE6,"2")*0.16)/(COUNTIF(C6:AE6,"5")+COUNTIF(C6:AE6,"4")+COUNTIF(C6:AE6,"3")+COUNTIF(C6:AE6,"2")+COUNTIF(C6:AE6,"0")) -> 0.92 | AH6: =((5*COUNTIF(C6:AE6,"5"))+(4*COUNTIF(C6:AE6,"4")))/(5*(COUNTA(C6:AE6)-COUNTIF(C6:AE6,"н"))) -> 0.9555555556 | AI6: =SUMIF(C91:AE91,">0",C91:AE91)/(COUNTIF(C6:AE6,">0")+COUNTIF(C6:AE6,"=0")+COUNTIF(C6:AE6,"Н")) -> 17.22222222
A7: =A6+1 -> 2 | B7: =СпискиКлассы!G5 -> Барановская Диана | C7: 4 | D7: 5 | E7: 5 | F7: 5 | L7: 4 | M7: 5 | N7: 5 | O7: 5 | Q7: 4 | AF7: =AVERAGE(C7:AE7) -> 4.666666667 | AG7: =(COUNTIF(C7:AE7,"5")+COUNTIF(C7:AE7,"4")*0.64+COUNTIF(C7:AE7,"3")*0.36+COUNTIF(C7:AE7,"2")*0.16)/(COUNTIF(C7:AE7,"5")+COUNTIF(C7:AE7,"4")+COUNTIF(C7:AE7,"3")+COUNTIF(C7:AE7,"2")+COUNTIF(C7:AE7,"0")) -> 0.88 | AH7: =((5*COUNTIF(C7:AE7,"5"))+(4*COUNTIF(C7:AE7,"4")))/(5*(COUNTA(C7:AE7)-COUNTIF(C7:AE7,"н"))) -> 0.9333333333 | AI7: 18
A8: 3 | B8: =СпискиКлассы!G6 -> Белан Татьяна | C8: 4 | D8: 4 | E8: 4 | F8: 4 | L8: 4 | M8: 5 | N8: 5 | O8: 5 | Q8: 4 | AF8: =AVERAGE(C8:AE8) -> 4.333333333 | AG8: 0.76 | AH8: 0.8666666667 | AI8: 16
A9: 4 | B9: =СпискиКлассы!G7 -> Белова Елизавета | C9: 4 | D9: 4 | E9: 5 | F9: 4 | L9: 5 | M9: 5 | N9: 5 | O9: 5 | Q9: 5 | AF9: 4.666666667 | AG9: 0.88 | AH9: 0.9333333333 | AI9: 16.66666667
A10: 5 | B10: =СпискиКлассы!G8 -> Бобылева Алена | C10: 5 | D10: 5 | E10: 5 | F10: 5 | L10: 5 | M10: 5 | N10: 5 | O10: 5 | Q10: 5 | AF10: 5 | AG10: 1 | AH10: 1 | AI10: 18.88888889
A11: 6 | B11: =СпискиКлассы!G9 -> Гречановский Дмитрий | C11: 3 | D11: 3 | E11: 3 | F11: 3 | L11: 3 | M11: 5 | N11: 5 | O11: 5 | Q11: 5 | AF11: 3.888888889 | AG11: 0.6444444444 | AH11: 0.4444444444 | AI11: 13.33333333
A12: 7 | B12: =СпискиКлассы!G10 -> Денежкина Эмилия | C12: 4 | D12: 5 | E12: 5 | F12: 4 | L12: 5 | M12: 5 | N12: 5 | O12: 5 | Q12: 5 | AF12: 4.777777778 | AG12: 0.92 | AH12: 0.9555555556 | AI12: 17.22222222
A13: 8 | B13: =СпискиКлассы!G11 -> Дупик Артур | C13: 3 | D13: 3 | E13: 3 | F13: 3 | L13: 3 | M13: 5 | N13: 5 | O13: 5 | Q13: 5 | AF13: 3.888888889 | AG13: 0.6444444444 | AH13: 0.4444444444 | AI13: 13.33333333
A14: 9 | B14: =СпискиКлассы!G12 -> Калекин Никита | C14: 3 | D14: 4 | E14: 4 | F14: 3 | L14: 4 | M14: 5 | N14: 5 | O14: 5 | Q14: 5 | AF14: 4.222222222 | AG14: 0.7377777778 | AH14: 0.7111111111 | AI14: 14.44444444
A15: 10 | B15: =СпискиКлассы!G13 -> Козлова Софья | C15: 4 | D15: 4 | E15: 4 | F15: 4 | L15: 4 | M15: 5 | N15: 5 | O15: 5 | Q15: 5 | AF15: 4.444444444 | AG15: 0.8 | AH15: 0.8888888889 | AI15: 16.11111111
A16: 11 | B16: =СпискиКлассы!G14 -> Липский Иван | C16: 5 | D16: 5 | E16: 5 | F16: 5 | L16: 5 | M16: 5 | N16: 5 | O16: 5 | Q16: 5 | AF16: 5 | AG16: 1 | AH16: 1 | AI16: 18.88888889
A17: 12 | B17: =СпискиКлассы!G15 -> Логачева Анастасия | C17: 3 | D17: 4 | E17: 4 | F17: 3 | L17: 4 | M17: 5 | N17: 5 | O17: 5 | Q17: 4 | AF17: 4.111111111 | AG17: 0.6977777778 | AH17: 0.6888888889 | AI17: 14.33333333
A18: 13 | B18: =СпискиКлассы!G16 -> Нечай Дмитрий | C18: 3 | D18: 3 | E18: 4 | F18: 3 | L18: 4 | M18: 5 | N18: 5 | O18: 5 | Q18: 4 | AF18: 4 | AG18: 0.6666666667 | AH18: 0.6 | AI18: 13.77777778
A19: 14 | B19: =СпискиКлассы!G17 -> Першин Никита | C19: 3 | D19: 3 | E19: 3 | F19: 3 | L19: 3 | M19: 5 | N19: 5 | O19: 5 | Q19: 5 | AF19: 3.888888889 | AG19: 0.6444444444 | AH19: 0.4444444444 | AI19: 13.33333333
A20: 15 | B20: =СпискиКлассы!G18 -> Полозов Матвей | C20: 4 | D20: 5 | E20: 5 | F20: 5 | L20: 5 | M20: 5 | N20: 5 | O20: 5 | Q20: 5 | AF20: 4.888888889 | AG20: 0.96 | AH20: 0.9777777778 | AI20: 18.11111111
A21: 16 | B21: =СпискиКлассы!G19 -> Репина Полина | C21: 4 | D21: 4 | E21: 4 | F21: 4 | L21: 4 | M21: 5 | N21: 5 | O21: 5 | Q21: 5 | AF21: 4.444444444 | AG21: 0.8 | AH21: 0.8888888889 | AI21: 16.11111111
A22: 17 | B22: =СпискиКлассы!G20 -> Сейдахмедова Зарина | C22: 5 | D22: 5 | E22: 5 | F22: 4 | L22: 5 | M22: 5 | N22: 5 | O22: 5 | Q22: 5 | AF22: 4.888888889 | AG22: 0.96 | AH22: 0.9777777778 | AI22: 18
A23: 18 | B23: =СпискиКлассы!G21 -> Сероватова Елизавета | C23: 3 | D23: 3 | E23: 3 | F23: 3 | L23: 4 | M23: 5 | N23: 5 | O23: 5 | Q23: 5 | AF23: 4 | AG23: 0.6755555556 | AH23: 0.5333333333 | AI23: 13.33333333
A24: 19 | B24: =СпискиКлассы!G22 -> Храпкова Анастасия | C24: 4 | D24: 5 | E24: 5 | F24: 4 | L24: 4 | M24: 5 | N24: 5 | O24: 5 | Q24: 5 | AF24: 4.666666667 | AG24: 0.88 | AH24: 0.9333333333 | AI24: 17.22222222
A25: 20 | B25: =СпискиКлассы!G23 -> Циаменко Анастасия | C25: 3 | D25: 4 | E25: 4 | F25: 3 | L25: 4 | M25: 5 | N25: 5 | O25: 5 | Q25: 4 | AF25: 4.111111111 | AG25: 0.6977777778 | AH25: 0.6888888889 | AI25: 14.33333333
A26: 21 | B26: =СпискиКлассы!G24 -> Шевцова Виктория | C26: 3 | D26: 4 | E26: 4 | F26: 3 | L26: 4 | M26: 5 | N26: 5 | O26: 5 | Q26: 5 | AF26: 4.222222222 | AG26: 0.7377777778 | AH26: 0.7111111111 | AI26: 14.44444444
A27: 22 | B27: =СпискиКлассы!G25 -> Шинкоренко Анастасия | C27: 3 | D27: 4 | E27: 4 | F27: 3 | L27: 4 | M27: 5 | N27: 5 | O27: 5 | Q27: 5 | AF27: 4.222222222 | AG27: 0.7377777778 | AH27: 0.7111111111 | AI27: 14.44444444
A28: 23 | B28: =СпискиКлассы!G26 -> 0
A29: 24 | B29: =СпискиКлассы!G27 -> 0
A30: 25 | B30: =СпискиКлассы!G28 -> 0
A31: 26 | B31: =СпискиКлассы!G29 -> 0 | AF31: =AVERAGE(C31:AE31) ->  | AG31: =(COUNTIF(C31:AE31,"5")+COUNTIF(C31:AE31,"4")*0.64+COUNTIF(C31:AE31,"3")*0.36+COUNTIF(C31:AE31,"2")*0.16)/(COUNTIF(C31:AE31,"5")+COUNTIF(C31:AE31,"4")+COUNTIF(C31:AE31,"3")+COUNTIF(C31:AE31,"2")+COUNTIF(C31:AE31,"0")) -> 
A32: 27 | B32: =СпискиКлассы!G30 -> 0
A33: 28 | B33: =СпискиКлассы!G31 -> 0
A34: 29 | B34: =СпискиКлассы!G32 -> 0
A35: 30 | B35: =СпискиКлассы!G43 -> 0 | AI35: =SUMIF(C130:AE130,">0",C130:AE130)/(COUNTIF(C35:AE35,">0")+COUNTIF(C35:AE35,"=0")+COUNTIF(C35:AE35,"Н")) -> 
A36: Фамилия и инициалы учителя - предметника | C36: =Нагрузка!C10 -> Варюшина | D36: =Нагрузка!D10 -> Варюшина | E36: =Нагрузка!E10 -> 0 | F36: =Нагрузка!F10 -> Варюшина | G36: =Нагрузка!G10 -> 0 | H36: =Нагрузка!H10 -> 0 | I36: =Нагрузка!I10 -> 0 | J36: =Нагрузка!J10 -> 0 | K36: =Нагрузка!K10 -> 0 | L36: =Нагрузка!L10 -> Варюшина | M36: =Нагрузка!M10 -> Варюшина | N36: =Нагрузка!N10 -> Заворина | O36: =Нагрузка!O10 -> Варюшина | P36: =Нагрузка!P10 -> Варюшина | Q36: =Нагрузка!Q10 -> Ермакова | R36: =Нагрузка!R10 -> Калугина | S36: =Нагрузка!S10 -> Пудренко | T36: =Нагрузка!T10 -> 0 | U36: =Нагрузка!U10 -> 0 | V36: =Нагрузка!V10 -> 0 | W36: =Нагрузка!W10 -> 0 | X36: =Нагрузка!X10 -> 0 | Y36: =Нагрузка!Y10 -> 0 | Z36: =Нагрузка!Z10 -> 0 | AA36: =Нагрузка!AA10 -> 0 | AB36: =Нагрузка!AB10 -> 0 | AC36: =Нагрузка!AC10 -> 0 | AD36: =Нагрузка!AD10 -> 0 | AE36: =Нагрузка!AE10 -> 0 | AF36: Показатели результатов учебной деятельности в целом по классу:
A37: Результаты учебной деятельности класса | B37: Количество "5": | C37: =COUNTIF(C6:C35,5) -> 3 | D37: 8 | E37: 9 | F37: 4 | G37: 0 | H37: 0 | I37: 0 | J37: 0 | K37: 0 | L37: 7 | M37: 22 | N37: 22 | O37: 22 | P37: 0 | Q37: 17 | R37: 0 | S37: 0 | T37: 0 | U37: 0 | V37: 0 | W37: 0 | X37: 0 | Y37: 0 | Z37: 0 | AA37: 0 | AB37: 0 | AC37: 0 | AD37: 0 | AE37: 0 | AF37: =SUM(C37:AE37) -> 114
B38: Количество "4": | C38: =COUNTIF(C6:C35,4) -> 9 | D38: 9 | E38: 9 | F38: 8 | G38: 0 | H38: 0 | I38: 0 | J38: 0 | K38: 0 | L38: 12 | M38: 0 | N38: 0 | O38: 0 | P38: 0 | Q38: 5 | R38: 0 | S38: 0 | T38: 0 | U38: 0 | V38: 0 | W38: 0 | X38: 0 | Y38: 0 | Z38: 0 | AA38: 0 | AB38: 0 | AC38: 0 | AD38: 0 | AE38: 0 | AF38: 52
B39: Количество "3": | C39: =COUNTIF(C6:C35,3) -> 10 | D39: 5 | E39: 4 | F39: 10 | G39: 0 | H39: 0 | I39: 0 | J39: 0 | K39: 0 | L39: 3 | M39: 0 | N39: 0 | O39: 0 | P39: 0 | Q39: 0 | R39: 0 | S39: 0 | T39: 0 | U39: 0 | V39: 0 | W39: 0 | X39: 0 | Y39: 0 | Z39: 0 | AA39: 0 | AB39: 0 | AC39: 0 | AD39: 0 | AE39: 0 | AF39: 32
B40: Количество "2": | C40: =COUNTIF(C6:C35,2) -> 0 | D40: 0 | E40: 0 | F40: 0 | G40: 0 | H40: 0 | I40: 0 | J40: 0 | K40: 0 | L40: 0 | M40: 0 | N40: 0 | O40: 0 | P40: 0 | Q40: 0 | R40: 0 | S40: 0 | T40: 0 | U40: 0 | V40: 0 | W40: 0 | X40: 0 | Y40: 0 | Z40: 0 | AA40: 0 | AB40: 0 | AC40: 0 | AD40: 0 | AE40: 0 | AF40: 0
B41: Не аттестовано: | C41: =COUNTIF(C6:C35,0) -> 0 | D41: 0 | E41: 0 | F41: 0 | G41: 0 | H41: 0 | I41: 0 | J41: 0 | K41: 0 | L41: 0 | M41: 0 | N41: 0 | O41: 0 | P41: 0 | Q41: 0 | R41: 0 | S41: 0 | T41: 0 | U41: 0 | V41: 0 | W41: 0 | X41: 0 | Y41: 0 | Z41: 0 | AA41: 0 | AB41: 0 | AC41: 0 | AD41: 0 | AE41: 0 | AF41: 0
B42: Освобождено: | C42: =COUNTIF(C6:C35,"н") -> 0 | D42: 0 | E42: 0 | F42: 0 | G42: 0 | H42: 0 | I42: 0 | J42: 0 | K42: 0 | L42: 0 | M42: 0 | N42: 0 | O42: 0 | P42: 0 | Q42: 0 | R42: 0 | S42: 0 | T42: 0 | U42: 0 | V42: 0 | W42: 0 | X42: 0 | Y42: 0 | Z42: 0 | AA42: 0 | AB42: 0 | AC42: 0 | AD42: 0 | AE42: 0 | AF42: 0
B43: Успеваемость: | C43: =(C37+C38+C39)/(C37+C38+C39+C40+C41) -> 1 | D43: =(D37+D38+D39)/(D37+D38+D39+D40+D41) -> 1 | E43: 1 | F43: 1 | L43: 1 | M43: 1 | N43: 1 | O43: 1 | Q43: 1 | AF43: =('4 Б(2)'!D2-'4 Б(2)'!C43-'4 Б(2)'!C53)/'4 Б(2)'!D2 -> 1
B44: Качество знаний: | C44: =(C37+C38)/(C37+C38+C39+C40+C41) -> 0.5454545455 | D44: =(D37+D38)/(D37+D38+D39+D40+D41) -> 0.7727272727 | E44: 0.8181818182 | F44: 0.5454545455 | L44: 0.8636363636 | M44: 1 | N44: 1 | O44: 1 | Q44: 1 | AF44: =('4 Б(2)'!C3+'4 Б(2)'!C18)/'4 Б(2)'!D2 -> 0
B45: Степень обученности: | C45: =(C37+C38*0.64+C39*0.36+C40*0.16)/(C37+C38+C39+C40+C41) -> 0.5618181818 | D45: =(D37+D38*0.64+D39*0.36+D40*0.16)/(D37+D38+D39+D40+D41) -> 0.7072727273 | E45: 0.7363636364 | F45: 0.5781818182 | L45: 0.7163636364 | M45: 1 | N45: 1 | O45: 1 | Q45: 0.9181818182 | AF45: =(AF37+AF38*0.64+AF39*0.36+AF40*0.16)/(AF37+AF38+AF39+AF40+AF41) -> 0.802020202
B46: Средний балл: | C46: =(C37*5+C38*4+C39*3+C40*2)/(C37+C38+C39+C40+C41) -> 3.681818182 | D46: =(D37*5+D38*4+D39*3+D40*2)/(D37+D38+D39+D40+D41) -> 4.136363636 | E46: 4.227272727 | F46: 3.727272727 | L46: 4.181818182 | M46: 5 | N46: 5 | O46: 5 | Q46: 4.772727273 | AF46: =(AF37*5+AF38*4+AF39*3+AF40*2)/(AF37+AF38+AF39+AF40+AF41) -> 4.414141414
B47: Качество успеваемости: | C47: =(5*C37+4*C38)*0.2/(SUM(C37+C38+C39+C40+C41)) -> 0.4636363636 | D47: =(5*COUNTIF(D6:D35,5)+4*COUNTIF(D6:D35,4))*0.2/(COUNTA(D6:D35)-COUNTIF(D6:D35,"н")) -> 0.6909090909 | E47: 0.7363636364 | F47: 0.4727272727 | L47: 0.7545454545 | M47: 1 | N47: 1 | O47: 1 | Q47: 0.9545454545 | AF47: =(5*COUNTIF(C6:AE35,5)+4*COUNTIF(C6:AE35,4))*0.2/(COUNTA(C6:AE35)-COUNTIF(C6:AE35,"н")) -> 0.7858585859
A48: Выполнено с помощью программы статистического анализа результатов учебной деятельности | AC48: =Титул!G31 -> PSORUD-Klass.v.04.11.demo | AI48: 3+
B90: Коэф.трудн.предмета | C90: =VLOOKUP(C$5,ШкалаТрудн!$C$5:$N$34,LEFT($Z$2,2)+1,0) -> 7 | D90: =VLOOKUP(D$5,ШкалаТрудн!$C$5:$N$34,LEFT($Z$2,2)+1,0) -> 5 | E90: =VLOOKUP(E$5,ШкалаТрудн!$C$5:$N$34,LEFT($Z$2,2)+1,0) -> 5 | F90: =VLOOKUP(F$5,ШкалаТрудн!$C$5:$N$34,LEFT($Z$2,2)+1,0) -> 8 | G90: =VLOOKUP(G$5,ШкалаТрудн!$C$5:$N$34,LEFT($Z$2,2)+1,0) -> 0 | H90: =VLOOKUP(H$5,ШкалаТрудн!$C$5:$N$34,LEFT($Z$2,2)+1,0) -> 0 | I90: =VLOOKUP(I$5,ШкалаТрудн!$C$5:$N$34,LEFT($Z$2,2)+1,0) -> 6 | J90: =VLOOKUP(J$5,ШкалаТрудн!$C$5:$N$34,LEFT($Z$2,2)+1,0) -> 4 | K90: =VLOOKUP(K$5,ШкалаТрудн!$C$5:$N$34,LEFT($Z$2,2)+1,0) -> 0 | L90: =VLOOKUP(L$5,ШкалаТрудн!$C$5:$N$34,LEFT($Z$2,2)+1,0) ->  | M90: =VLOOKUP(M$5,ШкалаТрудн!$C$5:$N$34,LEFT($Z$2,2)+1,0) -> 3 | N90: =VLOOKUP(N$5,ШкалаТрудн!$C$5:$N$34,LEFT($Z$2,2)+1,0) -> 3 | O90: =VLOOKUP(O$5,ШкалаТрудн!$C$5:$N$34,LEFT($Z$2,2)+1,0) -> 2 | P90: =VLOOKUP(P$5,ШкалаТрудн!$C$5:$N$34,LEFT($Z$2,2)+1,0) -> 2 | Q90: =VLOOKUP(Q$5,ШкалаТрудн!$C$5:$N$34,LEFT($Z$2,2)+1,0) -> 1 | R90: =VLOOKUP(R$5,ШкалаТрудн!$C$5:$N$34,LEFT($Z$2,2)+1,0) -> 5 | S90: =VLOOKUP(S$5,ШкалаТрудн!$C$5:$N$34,LEFT($Z$2,2)+1,0) -> 5 | T90: =VLOOKUP(T$5,ШкалаТрудн!$C$5:$N$34,LEFT($Z$2,2)+1,0) -> 0 | U90: =VLOOKUP(U$5,ШкалаТрудн!$C$5:$N$34,LEFT($Z$2,2)+1,0) -> 0 | V90: =VLOOKUP(V$5,ШкалаТрудн!$C$5:$N$34,LEFT($Z$2,2)+1,0) -> 0 | W90: =VLOOKUP(W$5,ШкалаТрудн!$C$5:$N$34,LEFT($Z$2,2)+1,0) -> 0 | X90: =VLOOKUP(X$5,ШкалаТрудн!$C$5:$N$34,LEFT($Z$2,2)+1,0) -> 0 | Y90: =VLOOKUP(Y$5,ШкалаТрудн!$C$5:$N$34,LEFT($Z$2,2)+1,0) -> 1 | Z90: =VLOOKUP(Z$5,ШкалаТрудн!$C$5:$N$34,LEFT($Z$2,2)+1,0) -> 0 | AA90: =VLOOKUP(AA$5,ШкалаТрудн!$C$5:$N$34,LEFT($Z$2,2)+1,0) -> 0 | AB90: =VLOOKUP(AB$5,ШкалаТрудн!$C$5:$N$34,LEFT($Z$2,2)+1,0) ->  | AC90: =VLOOKUP(AC$5,ШкалаТрудн!$C$5:$N$34,LEFT($Z$2,2)+1,0) ->  | AD90: =VLOOKUP(AD$5,ШкалаТрудн!$C$5:$N$34,LEFT($Z$2,2)+1,0) ->  | AE90: =VLOOKUP(AE$5,ШкалаТрудн!$C$5:$N$34,LEFT($Z$2,2)+1,0) -> 
C91: =C6*C$90 -> 28 | D91: 25 | E91: 25 | F91: 32 | G91: 0 | H91: 0 | I91: 0 | J91: 0 | K91: 0 | M91: 15 | N91: 15 | O91: 10 | P91: 0 | Q91: 5 | R91: 0 | S91: 0 | T91: 0 | U91: 0 | V91: 0 | W91: 0 | X91: 0 | Y91: 0 | Z91: 0 | AA91: 0
C92: =C7*C$90 -> 28 | D92: 25 | E92: 25 | F92: 40 | G92: 0 | H92: 0 | I92: 0 | J92: 0 | K92: 0 | M92: 15 | N92: 15 | O92: 10 | P92: 0 | Q92: 4 | R92: 0 | S92: 0 | T92: 0 | U92: 0 | V92: 0 | W92: 0 | X92: 0 | Y92: 0 | Z92: 0 | AA92: 0
C93: =C8*C$90 -> 28 | D93: 20 | E93: 20 | F93: 32 | G93: 0 | H93: 0 | I93: 0 | J93: 0 | K93: 0 | M93: 15 | N93: 15 | O93: 10 | P93: 0 | Q93: 4 | R93: 0 | S93: 0 | T93: 0 | U93: 0 | V93: 0 | W93: 0 | X93: 0 | Y93: 0 | Z93: 0 | AA93: 0
C94: =C9*C$90 -> 28 | D94: 20 | E94: 25 | F94: 32 | G94: 0 | H94: 0 | I94: 0 | J94: 0 | K94: 0 | M94: 15 | N94: 15 | O94: 10 | P94: 0 | Q94: 5 | R94: 0 | S94: 0 | T94: 0 | U94: 0 | V94: 0 | W94: 0 | X94: 0 | Y94: 0 | Z94: 0 | AA94: 0
C95: =C10*C$90 -> 35 | D95: 25 | E95: 25 | F95: 40 | G95: 0 | H95: 0 | I95: 0 | J95: 0 | K95: 0 | M95: 15 | N95: 15 | O95: 10 | P95: 0 | Q95: 5 | R95: 0 | S95: 0 | T95: 0 | U95: 0 | V95: 0 | W95: 0 | X95: 0 | Y95: 0 | Z95: 0 | AA95: 0
C96: =C11*C$90 -> 21 | D96: 15 | E96: 15 | F96: 24 | G96: 0 | H96: 0 | I96: 0 | J96: 0 | K96: 0 | M96: 15 | N96: 15 | O96: 10 | P96: 0 | Q96: 5 | R96: 0 | S96: 0 | T96: 0 | U96: 0 | V96: 0 | W96: 0 | X96: 0 | Y96: 0 | Z96: 0 | AA96: 0
C97: =C12*C$90 -> 28 | D97: 25 | E97: 25 | F97: 32 | G97: 0 | H97: 0 | I97: 0 | J97: 0 | K97: 0 | M97: 15 | N97: 15 | O97: 10 | P97: 0 | Q97: 5 | R97: 0 | S97: 0 | T97: 0 | U97: 0 | V97: 0 | W97: 0 | X97: 0 | Y97: 0 | Z97: 0 | AA97: 0
C98: =C13*C$90 -> 21 | D98: 15 | E98: 15 | F98: 24 | G98: 0 | H98: 0 | I98: 0 | J98: 0 | K98: 0 | M98: 15 | N98: 15 | O98: 10 | P98: 0 | Q98: 5 | R98: 0 | S98: 0 | T98: 0 | U98: 0 | V98: 0 | W98: 0 | X98: 0 | Y98: 0 | Z98: 0 | AA98: 0
C99: =C14*C$90 -> 21 | D99: 20 | E99: 20 | F99: 24 | G99: 0 | H99: 0 | I99: 0 | J99: 0 | K99: 0 | M99: 15 | N99: 15 | O99: 10 | P99: 0 | Q99: 5 | R99: 0 | S99: 0 | T99: 0 | U99: 0 | V99: 0 | W99: 0 | X99: 0 | Y99: 0 | Z99: 0 | AA99: 0
C100: =C15*C$90 -> 28 | D100: 20 | E100: 20 | F100: 32 | G100: 0 | H100: 0 | I100: 0 | J100: 0 | K100: 0 | M100: 15 | N100: 15 | O100: 10 | P100: 0 | Q100: 5 | R100: 0 | S100: 0 | T100: 0 | U100: 0 | V100: 0 | W100: 0 | X100: 0 | Y100: 0 | Z100: 0 | AA100: 0
C101: =C16*C$90 -> 35 | D101: 25 | E101: 25 | F101: 40 | G101: 0 | H101: 0 | I101: 0 | J101: 0 | K101: 0 | M101: 15 | N101: 15 | O101: 10 | P101: 0 | Q101: 5 | R101: 0 | S101: 0 | T101: 0 | U101: 0 | V101: 0 | W101: 0 | X101: 0 | Y101: 0 | Z101: 0 | AA101: 0
C102: =C17*C$90 -> 21 | D102: 20 | E102: 20 | F102: 24 | G102: 0 | H102: 0 | I102: 0 | J102: 0 | K102: 0 | M102: 15 | N102: 15 | O102: 10 | P102: 0 | Q102: 4 | R102: 0 | S102: 0 | T102: 0 | U102: 0 | V102: 0 | W102: 0 | X102: 0 | Y102: 0 | Z102: 0 | AA102: 0
C103: =C18*C$90 -> 21 | D103: 15 | E103: 20 | F103: 24 | G103: 0 | H103: 0 | I103: 0 | J103: 0 | K103: 0 | M103: 15 | N103: 15 | O103: 10 | P103: 0 | Q103: 4 | R103: 0 | S103: 0 | T103: 0 | U103: 0 | V103: 0 | W103: 0 | X103: 0 | Y103: 0 | Z103: 0 | AA103: 0
C104: =C19*C$90 -> 21 | D104: 15 | E104: 15 | F104: 24 | G104: 0 | H104: 0 | I104: 0 | J104: 0 | K104: 0 | M104: 15 | N104: 15 | O104: 10 | P104: 0 | Q104: 5 | R104: 0 | S104: 0 | T104: 0 | U104: 0 | V104: 0 | W104: 0 | X104: 0 | Y104: 0 | Z104: 0 | AA104: 0
C105: =C20*C$90 -> 28 | D105: 25 | E105: 25 | F105: 40 | G105: 0 | H105: 0 | I105: 0 | J105: 0 | K105: 0 | M105: 15 | N105: 15 | O105: 10 | P105: 0 | Q105: 5 | R105: 0 | S105: 0 | T105: 0 | U105: 0 | V105: 0 | W105: 0 | X105: 0 | Y105: 0 | Z105: 0 | AA105: 0
C106: =C21*C$90 -> 28 | D106: 20 | E106: 20 | F106: 32 | G106: 0 | H106: 0 | I106: 0 | J106: 0 | K106: 0 | M106: 15 | N106: 15 | O106: 10 | P106: 0 | Q106: 5 | R106: 0 | S106: 0 | T106: 0 | U106: 0 | V106: 0 | W106: 0 | X106: 0 | Y106: 0 | Z106: 0 | AA106: 0
C107: =C22*C$90 -> 35 | D107: 25 | E107: 25 | F107: 32 | G107: 0 | H107: 0 | I107: 0 | J107: 0 | K107: 0 | M107: 15 | N107: 15 | O107: 10 | P107: 0 | Q107: 5 | R107: 0 | S107: 0 | T107: 0 | U107: 0 | V107: 0 | W107: 0 | X107: 0 | Y107: 0 | Z107: 0 | AA107: 0
C108: =C23*C$90 -> 21 | D108: 15 | E108: 15 | F108: 24 | G108: 0 | H108: 0 | I108: 0 | J108: 0 | K108: 0 | M108: 15 | N108: 15 | O108: 10 | P108: 0 | Q108: 5 | R108: 0 | S108: 0 | T108: 0 | U108: 0 | V108: 0 | W108: 0 | X108: 0 | Y108: 0 | Z108: 0 | AA108: 0
C109: =C24*C$90 -> 28 | D109: 25 | E109: 25 | F109: 32 | G109: 0 | H109: 0 | I109: 0 | J109: 0 | K109: 0 | M109: 15 | N109: 15 | O109: 10 | P109: 0 | Q109: 5 | R109: 0 | S109: 0 | T109: 0 | U109: 0 | V109: 0 | W109: 0 | X109: 0 | Y109: 0 | Z109: 0 | AA109: 0
C110: =C25*C$90 -> 21 | D110: 20 | E110: 20 | F110: 24 | G110: 0 | H110: 0 | I110: 0 | J110: 0 | K110: 0 | M110: 15 | N110: 15 | O110: 10 | P110: 0 | Q110: 4 | R110: 0 | S110: 0 | T110: 0 | U110: 0 | V110: 0 | W110: 0 | X110: 0 | Y110: 0 | Z110: 0 | AA110: 0
C111: =C26*C$90 -> 21 | D111: 20 | E111: 20 | F111: 24 | G111: 0 | H111: 0 | I111: 0 | J111: 0 | K111: 0 | M111: 15 | N111: 15 | O111: 10 | P111: 0 | Q111: 5 | R111: 0 | S111: 0 | T111: 0 | U111: 0 | V111: 0 | W111: 0 | X111: 0 | Y111: 0 | Z111: 0 | AA111: 0
C112: =C27*C$90 -> 21 | D112: 20 | E112: 20 | F112: 24 | G112: 0 | H112: 0 | I112: 0 | J112: 0 | K112: 0 | M112: 15 | N112: 15 | O112: 10 | P112: 0 | Q112: 5 | R112: 0 | S112: 0 | T112: 0 | U112: 0 | V112: 0 | W112: 0 | X112: 0 | Y112: 0 | Z112: 0 | AA112: 0
C113: =C28*C$90 -> 0 | D113: 0 | E113: 0 | F113: 0 | G113: 0 | H113: 0 | I113: 0 | J113: 0 | K113: 0 | M113: 0 | N113: 0 | O113: 0 | P113: 0 | Q113: 0 | R113: 0 | S113: 0 | T113: 0 | U113: 0 | V113: 0 | W113: 0 | X113: 0 | Y113: 0 | Z113: 0 | AA113: 0
C114: =C29*C$90 -> 0 | D114: 0 | E114: 0 | F114: 0 | G114: 0 | H114: 0 | I114: 0 | J114: 0 | K114: 0 | M114: 0 | N114: 0 | O114: 0 | P114: 0 | Q114: 0 | R114: 0 | S114: 0 | T114: 0 | U114: 0 | V114: 0 | W114: 0 | X114: 0 | Y114: 0 | Z114: 0 | AA114: 0
C115: =C30*C$90 -> 0 | D115: 0 | E115: 0 | F115: 0 | G115: 0 | H115: 0 | I115: 0 | J115: 0 | K115: 0 | M115: 0 | N115: 0 | O115: 0 | P115: 0 | Q115: 0 | R115: 0 | S115: 0 | T115: 0 | U115: 0 | V115: 0 | W115: 0 | X115: 0 | Y115: 0 | Z115: 0 | AA115: 0
C116: =C31*C$90 -> 0 | D116: 0 | E116: 0 | F116: 0 | G116: 0 | H116: 0 | I116: 0 | J116: 0 | K116: 0 | M116: 0 | N116: 0 | O116: 0 | P116: 0 | Q116: 0 | R116: 0 | S116: 0 | T116: 0 | U116: 0 | V116: 0 | W116: 0 | X116: 0 | Y116: 0 | Z116: 0 | AA116: 0
C117: =C32*C$90 -> 0 | D117: 0 | E117: 0 | F117: 0 | G117: 0 | H117: 0 | I117: 0 | J117: 0 | K117: 0 | M117: 0 | N117: 0 | O117: 0 | P117: 0 | Q117: 0 | R117: 0 | S117: 0 | T117: 0 | U117: 0 | V117: 0 | W117: 0 | X117: 0 | Y117: 0 | Z117: 0 | AA117: 0
C118: =C33*C$90 -> 0 | D118: 0 | E118: 0 | F118: 0 | G118: 0 | H118: 0 | I118: 0 | J118: 0 | K118: 0 | M118: 0 | N118: 0 | O118: 0 | P118: 0 | Q118: 0 | R118: 0 | S118: 0 | T118: 0 | U118: 0 | V118: 0 | W118: 0 | X118: 0 | Y118: 0 | Z118: 0 | AA118: 0
C119: =C34*C$90 -> 0 | D119: 0 | E119: 0 | F119: 0 | G119: 0 | H119: 0 | I119: 0 | J119: 0 | K119: 0 | M119: 0 | N119: 0 | O119: 0 | P119: 0 | Q119: 0 | R119: 0 | S119: 0 | T119: 0 | U119: 0 | V119: 0 | W119: 0 | X119: 0 | Y119: 0 | Z119: 0 | AA119: 0
C120: =#REF!*C$90 ->  | D120: =#REF!*D$90 ->  | E120: =#REF!*E$90 ->  | F120: =#REF!*F$90 ->  | G120: =#REF!*G$90 ->  | H120: =#REF!*H$90 ->  | I120: =#REF!*I$90 ->  | J120: =#REF!*J$90 ->  | K120: =#REF!*K$90 ->  | L120: =#REF!*L$90 ->  | M120: =#REF!*M$90 ->  | N120: =#REF!*N$90 ->  | O120: =#REF!*O$90 ->  | P120: =#REF!*P$90 ->  | Q120: =#REF!*Q$90 ->  | R120: =#REF!*R$90 ->  | S120: =#REF!*S$90 ->  | T120: =#REF!*T$90 ->  | U120: =#REF!*U$90 ->  | V120: =#REF!*V$90 ->  | W120: =#REF!*W$90 ->  | X120: =#REF!*X$90 ->  | Y120: =#REF!*Y$90 ->  | Z120: =#REF!*Z$90 ->  | AA120: =#REF!*AA$90 ->  | AB120: =#REF!*AB$90 ->  | AC120: =#REF!*AC$90 ->  | AD120: =#REF!*AD$90 ->  | AE120: =#REF!*AE$90 -> 
C121: =#REF!*C$90 ->  | D121: =#REF!*D$90 ->  | E121: =#REF!*E$90 ->  | F121: =#REF!*F$90 ->  | G121: =#REF!*G$90 ->  | H121: =#REF!*H$90 ->  | I121: =#REF!*I$90 ->  | J121: =#REF!*J$90 ->  | K121: =#REF!*K$90 ->  | L121: =#REF!*L$90 ->  | M121: =#REF!*M$90 ->  | N121: =#REF!*N$90 ->  | O121: =#REF!*O$90 ->  | P121: =#REF!*P$90 ->  | Q121: =#REF!*Q$90 ->  | R121: =#REF!*R$90 ->  | S121: =#REF!*S$90 ->  | T121: =#REF!*T$90 ->  | U121: =#REF!*U$90 ->  | V121: =#REF!*V$90 ->  | W121: =#REF!*W$90 ->  | X121: =#REF!*X$90 ->  | Y121: =#REF!*Y$90 ->  | Z121: =#REF!*Z$90 ->  | AA121: =#REF!*AA$90 ->  | AB121: =#REF!*AB$90 ->  | AC121: =#REF!*AC$90 ->  | AD121: =#REF!*AD$90 ->  | AE121: =#REF!*AE$90 -> 
C122: =#REF!*C$90 ->  | D122: =#REF!*D$90 ->  | E122: =#REF!*E$90 ->  | F122: =#REF!*F$90 ->  | G122: =#REF!*G$90 ->  | H122: =#REF!*H$90 ->  | I122: =#REF!*I$90 ->  | J122: =#REF!*J$90 ->  | K122: =#REF!*K$90 ->  | L122: =#REF!*L$90 ->  | M122: =#REF!*M$90 ->  | N122: =#REF!*N$90 ->  | O122: =#REF!*O$90 ->  | P122: =#REF!*P$90 ->  | Q122: =#REF!*Q$90 ->  | R122: =#REF!*R$90 ->  | S122: =#REF!*S$90 ->  | T122: =#REF!*T$90 ->  | U122: =#REF!*U$90 ->  | V122: =#REF!*V$90 ->  | W122: =#REF!*W$90 ->  | X122: =#REF!*X$90 ->  | Y122: =#REF!*Y$90 ->  | Z122: =#REF!*Z$90 ->  | AA122: =#REF!*AA$90 ->  | AB122: =#REF!*AB$90 ->  | AC122: =#REF!*AC$90 ->  | AD122: =#REF!*AD$90 ->  | AE122: =#REF!*AE$90 -> 
C123: =#REF!*C$90 ->  | D123: =#REF!*D$90 ->  | E123: =#REF!*E$90 ->  | F123: =#REF!*F$90 ->  | G123: =#REF!*G$90 ->  | H123: =#REF!*H$90 ->  | I123: =#REF!*I$90 ->  | J123: =#REF!*J$90 ->  | K123: =#REF!*K$90 ->  | L123: =#REF!*L$90 ->  | M123: =#REF!*M$90 ->  | N123: =#REF!*N$90 ->  | O123: =#REF!*O$90 ->  | P123: =#REF!*P$90 ->  | Q123: =#REF!*Q$90 ->  | R123: =#REF!*R$90 ->  | S123: =#REF!*S$90 ->  | T123: =#REF!*T$90 ->  | U123: =#REF!*U$90 ->  | V123: =#REF!*V$90 ->  | W123: =#REF!*W$90 ->  | X123: =#REF!*X$90 ->  | Y123: =#REF!*Y$90 ->  | Z123: =#REF!*Z$90 ->  | AA123: =#REF!*AA$90 ->  | AB123: =#REF!*AB$90 ->  | AC123: =#REF!*AC$90 ->  | AD123: =#REF!*AD$90 ->  | AE123: =#REF!*AE$90 -> 
C124: =#REF!*C$90 ->  | D124: =#REF!*D$90 ->  | E124: =#REF!*E$90 ->  | F124: =#REF!*F$90 ->  | G124: =#REF!*G$90 ->  | H124: =#REF!*H$90 ->  | I124: =#REF!*I$90 ->  | J124: =#REF!*J$90 ->  | K124: =#REF!*K$90 ->  | L124: =#REF!*L$90 ->  | M124: =#REF!*M$90 ->  | N124: =#REF!*N$90 ->  | O124: =#REF!*O$90 ->  | P124: =#REF!*P$90 ->  | Q124: =#REF!*Q$90 ->  | R124: =#REF!*R$90 ->  | S124: =#REF!*S$90 ->  | T124: =#REF!*T$90 ->  | U124: =#REF!*U$90 ->  | V124: =#REF!*V$90 ->  | W124: =#REF!*W$90 ->  | X124: =#REF!*X$90 ->  | Y124: =#REF!*Y$90 ->  | Z124: =#REF!*Z$90 ->  | AA124: =#REF!*AA$90 ->  | AB124: =#REF!*AB$90 ->  | AC124: =#REF!*AC$90 ->  | AD124: =#REF!*AD$90 ->  | AE124: =#REF!*AE$90 -> 
C125: =#REF!*C$90 ->  | D125: =#REF!*D$90 ->  | E125: =#REF!*E$90 ->  | F125: =#REF!*F$90 ->  | G125: =#REF!*G$90 ->  | H125: =#REF!*H$90 ->  | I125: =#REF!*I$90 ->  | J125: =#REF!*J$90 ->  | K125: =#REF!*K$90 ->  | L125: =#REF!*L$90 ->  | M125: =#REF!*M$90 ->  | N125: =#REF!*N$90 ->  | O125: =#REF!*O$90 ->  | P125: =#REF!*P$90 ->  | Q125: =#REF!*Q$90 ->  | R125: =#REF!*R$90 ->  | S125: =#REF!*S$90 ->  | T125: =#REF!*T$90 ->  | U125: =#REF!*U$90 ->  | V125: =#REF!*V$90 ->  | W125: =#REF!*W$90 ->  | X125: =#REF!*X$90 ->  | Y125: =#REF!*Y$90 ->  | Z125: =#REF!*Z$90 ->  | AA125: =#REF!*AA$90 ->  | AB125: =#REF!*AB$90 ->  | AC125: =#REF!*AC$90 ->  | AD125: =#REF!*AD$90 ->  | AE125: =#REF!*AE$90 -> 
C126: =#REF!*C$90 ->  | D126: =#REF!*D$90 ->  | E126: =#REF!*E$90 ->  | F126: =#REF!*F$90 ->  | G126: =#REF!*G$90 ->  | H126: =#REF!*H$90 ->  | I126: =#REF!*I$90 ->  | J126: =#REF!*J$90 ->  | K126: =#REF!*K$90 ->  | L126: =#REF!*L$90 ->  | M126: =#REF!*M$90 ->  | N126: =#REF!*N$90 ->  | O126: =#REF!*O$90 ->  | P126: =#REF!*P$90 ->  | Q126: =#REF!*Q$90 ->  | R126: =#REF!*R$90 ->  | S126: =#REF!*S$90 ->  | T126: =#REF!*T$90 ->  | U126: =#REF!*U$90 ->  | V126: =#REF!*V$90 ->  | W126: =#REF!*W$90 ->  | X126: =#REF!*X$90 ->  | Y126: =#REF!*Y$90 ->  | Z126: =#REF!*Z$90 ->  | AA126: =#REF!*AA$90 ->  | AB126: =#REF!*AB$90 ->  | AC126: =#REF!*AC$90 ->  | AD126: =#REF!*AD$90 ->  | AE126: =#REF!*AE$90 -> 
C127: =#REF!*C$90 ->  | D127: =#REF!*D$90 ->  | E127: =#REF!*E$90 ->  | F127: =#REF!*F$90 ->  | G127: =#REF!*G$90 ->  | H127: =#REF!*H$90 ->  | I127: =#REF!*I$90 ->  | J127: =#REF!*J$90 ->  | K127: =#REF!*K$90 ->  | L127: =#REF!*L$90 ->  | M127: =#REF!*M$90 ->  | N127: =#REF!*N$90 ->  | O127: =#REF!*O$90 ->  | P127: =#REF!*P$90 ->  | Q127: =#REF!*Q$90 ->  | R127: =#REF!*R$90 ->  | S127: =#REF!*S$90 ->  | T127: =#REF!*T$90 ->  | U127: =#REF!*U$90 ->  | V127: =#REF!*V$90 ->  | W127: =#REF!*W$90 ->  | X127: =#REF!*X$90 ->  | Y127: =#REF!*Y$90 ->  | Z127: =#REF!*Z$90 ->  | AA127: =#REF!*AA$90 ->  | AB127: =#REF!*AB$90 ->  | AC127: =#REF!*AC$90 ->  | AD127: =#REF!*AD$90 ->  | AE127: =#REF!*AE$90 -> 
C128: =#REF!*C$90 ->  | D128: =#REF!*D$90 ->  | E128: =#REF!*E$90 ->  | F128: =#REF!*F$90 ->  | G128: =#REF!*G$90 ->  | H128: =#REF!*H$90 ->  | I128: =#REF!*I$90 ->  | J128: =#REF!*J$90 ->  | K128: =#REF!*K$90 ->  | L128: =#REF!*L$90 ->  | M128: =#REF!*M$90 ->  | N128: =#REF!*N$90 ->  | O128: =#REF!*O$90 ->  | P128: =#REF!*P$90 ->  | Q128: =#REF!*Q$90 ->  | R128: =#REF!*R$90 ->  | S128: =#REF!*S$90 ->  | T128: =#REF!*T$90 ->  | U128: =#REF!*U$90 ->  | V128: =#REF!*V$90 ->  | W128: =#REF!*W$90 ->  | X128: =#REF!*X$90 ->  | Y128: =#REF!*Y$90 ->  | Z128: =#REF!*Z$90 ->  | AA128: =#REF!*AA$90 ->  | AB128: =#REF!*AB$90 ->  | AC128: =#REF!*AC$90 ->  | AD128: =#REF!*AD$90 ->  | AE128: =#REF!*AE$90 -> 
C129: =#REF!*C$90 ->  | D129: =#REF!*D$90 ->  | E129: =#REF!*E$90 ->  | F129: =#REF!*F$90 ->  | G129: =#REF!*G$90 ->  | H129: =#REF!*H$90 ->  | I129: =#REF!*I$90 ->  | J129: =#REF!*J$90 ->  | K129: =#REF!*K$90 ->  | L129: =#REF!*L$90 ->  | M129: =#REF!*M$90 ->  | N129: =#REF!*N$90 ->  | O129: =#REF!*O$90 ->  | P129: =#REF!*P$90 ->  | Q129: =#REF!*Q$90 ->  | R129: =#REF!*R$90 ->  | S129: =#REF!*S$90 ->  | T129: =#REF!*T$90 ->  | U129: =#REF!*U$90 ->  | V129: =#REF!*V$90 ->  | W129: =#REF!*W$90 ->  | X129: =#REF!*X$90 ->  | Y129: =#REF!*Y$90 ->  | Z129: =#REF!*Z$90 ->  | AA129: =#REF!*AA$90 ->  | AB129: =#REF!*AB$90 ->  | AC129: =#REF!*AC$90 ->  | AD129: =#REF!*AD$90 ->  | AE129: =#REF!*AE$90 -> 
C130: =C35*C$90 -> 0 | D130: 0 | E130: 0 | F130: 0 | G130: 0 | H130: 0 | I130: 0 | J130: 0 | K130: 0 | M130: 0 | N130: 0 | O130: 0 | P130: 0 | Q130: 0 | R130: 0 | S130: 0 | T130: 0 | U130: 0 | V130: 0 | W130: 0 | X130: 0 | Y130: 0 | Z130: 0 | AA130: 0

Sheet 4 Б(2) (hidden)
A1: =Титул!B14 -> 4 Б | E1: Страница заполняется автоматически, без участия оператора!!!
A2: Всего учащихся в классе: | D2: =Титул!C14 -> 22 | E2: Фамилии, имена учащихся | F2: Учебные предметы | G2: Фамилии и инициалы учителей | H2: Пояснения, примечания, причины
A3: Учатся на "5": | C3: =COUNTA(E3:E17) -> 0 | D3: 1
D4: 2
D5: 3
D6: 4
D7: 5
D8: 6
D9: 7
D10: 8
D11: 9
D12: 10
D13: 11
D14: 12
D15: 13
D16: 14
D17: 15
A18: Учатся на "4"и"5" | C18: =COUNTA(E18:E42) -> 0 | D18: 1
D19: 2
D20: 3
D21: 4
D22: 5
D23: 6
D24: 7
D25: 8
D26: 9
D27: 10
D28: 11
D29: 12
D30: 13
D31: 14
D32: 15
D33: 16
D34: 17
D35: 18
D36: 19
D37: 20
D38: 21
D39: 22
D40: 23
D41: 24
D42: 25
A43: Не аттестованы: | C43: =COUNTA(E43:E52) -> 0 | D43: 1
D44: 2
D45: 3
D46: 4
D47: 5
D48: 6
D49: 7
D50: 8
D51: 9
D52: 10
A53: Не успевают: | C53: =COUNTA(E53:E67) -> 0 | D53: 1
D54: 2
D55: 3
D56: 4
D57: 5
D58: 6
D59: 7
D60: 8
D61: 9
D62: 10
D63: 11
D64: 12
D65: 13
D66: 14
D67: 15
A68: Освобождены: | C68: =COUNTA(E68:E82) -> 0 | D68: 1
D69: 2
D70: 3
D71: 4
D72: 5
D73: 6
D74: 7
D75: 8
D76: 9
D77: 10
D78: 11
D79: 12
D80: 13
D81: 14
D82: 15

Sheet 4 В (hidden)
A1: =Титул!B5 -> 2014/15 учебный год | D1: =Титул!B4 -> МОУ СОШ № 15 | AA1: =Титул!B6 -> 4 четверть | AI1: 3+
A2: ВЕДОМОСТЬ РЕЗУЛЬТАТОВ УЧЕБНОЙ ДЕЯТЕЛЬНОСТИ | Z2: =Титул!B15 -> 4 В | AD2: класса
A3: Классный руководитель: | E3: =Титул!D15 -> Ржанова О.В. | S3: Программа: | X3: =Титул!G15 -> УМК "Школа 2100"
A4: Вручную вносятся только оценки "5", "4", "3", "2", "1". Не аттестованным проставляется "0", освобожденным - "Н". | C4: У ч е б н ы е п р е д м е т ы | AF4: Результаты ученика:
C5: =Нагрузка!C3 -> Русский язык | D5: =Нагрузка!D3 -> Литература | E5: =Нагрузка!E3 -> Иностранный язык | F5: =Нагрузка!F3 -> Математика | G5: =Нагрузка!G3 -> Алгебра | H5: =Нагрузка!H3 -> Геометрия | I5: =Нагрузка!I3 -> Информатика | J5: =Нагрузка!J3 -> История | K5: =Нагрузка!K3 -> Обществознание | L5: =Нагрузка!L3 -> Окружающий мир | M5: =Нагрузка!M3 -> ИЗО | N5: =Нагрузка!N3 -> Музыка | O5: =Нагрузка!O3 -> Технология | P5: =Нагрузка!P3 -> Технология | Q5: =Нагрузка!Q3 -> ФЗК | R5: =Нагрузка!R3 -> Иностранный язык | S5: =Нагрузка!S3 -> Иностранный язык | T5: =Нагрузка!T3 -> География | U5: =Нагрузка!U3 -> Физика | V5: =Нагрузка!V3 -> Химия | W5: =Нагрузка!W3 -> Биология | X5: =Нагрузка!X3 -> МХК | Y5: =Нагрузка!Y3 -> ФЗК | Z5: =Нагрузка!Z3 -> ОБЖ | AA5: =Нагрузка!AA3 -> Природоведение | AB5: =Нагрузка!AB3 -> 0 | AC5: =Нагрузка!AC3 -> 0 | AD5: =Нагрузка!AD3 -> 0 | AE5: =Нагрузка!AE3 -> 0 | AF5: Средний балл: | AG5: Степень обученности (СОУ): | AH5: Качество успеваемости: | AI5: Рейтинговый учебный балл:
A6: 1 | B6: =СпискиКлассы!H4 -> Адинкова Александра | C6: 4 | D6: 4 | E6: 3 | F6: 4 | L6: 4 | M6: 5 | N6: 5 | O6: 5 | AF6: =AVERAGE(C6:AE6) -> 4.25 | AG6: =(COUNTIF(C6:AE6,"5")+COUNTIF(C6:AE6,"4")*0.64+COUNTIF(C6:AE6,"3")*0.36+COUNTIF(C6:AE6,"2")*0.16)/(COUNTIF(C6:AE6,"5")+COUNTIF(C6:AE6,"4")+COUNTIF(C6:AE6,"3")+COUNTIF(C6:AE6,"2")+COUNTIF(C6:AE6,"0")) -> 0.74 | AH6: =((5*COUNTIF(C6:AE6,"5"))+(4*COUNTIF(C6:AE6,"4")))/(5*(COUNTA(C6:AE6)-COUNTIF(C6:AE6,"н"))) -> 0.775 | AI6: =SUMIF(C91:AE91,">0",C91:AE91)/(COUNTIF(C6:AE6,">0")+COUNTIF(C6:AE6,"=0")+COUNTIF(C6:AE6,"Н")) -> 16.875
A7: =A6+1 -> 2 | B7: =СпискиКлассы!H5 -> Бельфер Дарина | C7: 4 | D7: 4 | E7: 4 | F7: 4 | L7: 5 | M7: 5 | N7: 5 | O7: 5 | AF7: =AVERAGE(C7:AE7) -> 4.5 | AG7: =(COUNTIF(C7:AE7,"5")+COUNTIF(C7:AE7,"4")*0.64+COUNTIF(C7:AE7,"3")*0.36+COUNTIF(C7:AE7,"2")*0.16)/(COUNTIF(C7:AE7,"5")+COUNTIF(C7:AE7,"4")+COUNTIF(C7:AE7,"3")+COUNTIF(C7:AE7,"2")+COUNTIF(C7:AE7,"0")) -> 0.82 | AH7: =((5*COUNTIF(C7:AE7,"5"))+(4*COUNTIF(C7:AE7,"4")))/(5*(COUNTA(C7:AE7)-COUNTIF(C7:AE7,"н"))) -> 0.9 | AI7: 17.5
A8: 3 | B8: =СпискиКлассы!H6 -> Берчанская Анна | C8: 3 | D8: 4 | E8: 3 | F8: 3 | L8: 3 | M8: 4 | N8: 5 | O8: 4 | AF8: =AVERAGE(C8:AE8) -> 3.625 | AG8: 0.545 | AH8: 0.425 | AI8: 14.375
A9: 4 | B9: =СпискиКлассы!H7 -> Велиев Анар | C9: 4 | D9: 5 | E9: 4 | F9: 5 | L9: 5 | M9: 4 | N9: 5 | O9: 4 | AF9: 4.5 | AG9: 0.82 | AH9: 0.9 | AI9: 18.5
A10: 5 | B10: =СпискиКлассы!H8 -> Жмурко Лев | C10: 4 | D10: 4 | E10: 4 | F10: 4 | L10: 4 | M10: 4 | N10: 4 | O10: 4 | AF10: 4 | AG10: 0.64 | AH10: 0.8 | AI10: 16.5
A11: 6 | B11: =СпискиКлассы!H9 -> Зотов Александр | C11: 3 | D11: 3 | E11: 3 | F11: 3 | L11: 3 | M11: 4 | N11: 4 | O11: 4 | AF11: 3.375 | AG11: 0.465 | AH11: 0.3 | AI11: 13.375
A12: 7 | B12: =СпискиКлассы!H10 -> Ивченко Михаил | C12: 3 | D12: 4 | E12: 3 | F12: 3 | L12: 4 | M12: 4 | N12: 5 | O12: 4 | AF12: 3.75 | AG12: 0.58 | AH12: 0.525 | AI12: 14.375
A13: 8 | B13: =СпискиКлассы!H11 -> Казаков Константин | C13: 4 | D13: 4 | E13: 4 | F13: 4 | L13: 4 | M13: 5 | N13: 5 | O13: 5 | AF13: 4.375 | AG13: 0.775 | AH13: 0.875 | AI13: 17.5
A14: 9 | B14: =СпискиКлассы!H12 -> Ким Эмилия | C14: 4 | D14: 4 | E14: 5 | F14: 4 | L14: 5 | M14: 5 | N14: 5 | O14: 5 | AF14: 4.625 | AG14: 0.865 | AH14: 0.925 | AI14: 18.125
A15: 10 | B15: =СпискиКлассы!H13 -> Коновчук Анна | C15: 3 | D15: 4 | E15: 3 | F15: 3 | L15: 3 | M15: 4 | N15: 5 | O15: 5 | AF15: 3.75 | AG15: 0.59 | AH15: 0.45 | AI15: 14.625
A16: 11 | B16: =СпискиКлассы!H14 -> Крюкова Дарья | C16: 4 | D16: 5 | E16: 5 | F16: 4 | L16: 5 | M16: 5 | N16: 5 | O16: 5 | AF16: 4.75 | AG16: 0.91 | AH16: 0.95 | AI16: 18.75
A17: 12 | B17: =СпискиКлассы!H15 -> Маслова Виктория | C17: 3 | D17: 3 | E17: 3 | F17: 3 | L17: 3 | M17: 4 | N17: 4 | O17: 4 | AF17: 3.375 | AG17: 0.465 | AH17: 0.3 | AI17: 13.375
A18: 13 | B18: =СпискиКлассы!H16 -> Михеев Павел | C18: 5 | D18: 5 | E18: 4 | F18: 5 | L18: 5 | M18: 5 | N18: 5 | O18: 5 | AF18: 4.875 | AG18: 0.955 | AH18: 0.975 | AI18: 20
A19: 14 | B19: =СпискиКлассы!H17 -> Мухина Елизавета | C19: 4 | D19: 4 | E19: 4 | F19: 3 | L19: 4 | M19: 5 | N19: 5 | O19: 5 | AF19: 4.25 | AG19: 0.74 | AH19: 0.775 | AI19: 16.5
A20: 15 | B20: =СпискиКлассы!H18 -> Пельменев Сергей | C20: 3 | D20: 4 | E20: 3 | F20: 4 | L20: 4 | M20: 4 | N20: 4 | O20: 4 | AF20: 3.75 | AG20: 0.57 | AH20: 0.6 | AI20: 15
A21: 16 | B21: =СпискиКлассы!H19 -> Платонов Дмитрий | C21: 3 | D21: 3 | E21: 3 | F21: 3 | L21: 3 | M21: 4 | N21: 5 | O21: 4 | AF21: 3.5 | AG21: 0.51 | AH21: 0.325 | AI21: 13.75
A22: 17 | B22: =СпискиКлассы!H20 -> Потьканова Екатерина | C22: 3 | D22: 3 | E22: 3 | F22: 4 | L22: 3 | M22: 5 | N22: 5 | O22: 5 | AF22: 3.875 | AG22: 0.635 | AH22: 0.475 | AI22: 15.375
A23: 18 | B23: =СпискиКлассы!H21 -> Птухина Евгения | C23: 3 | D23: 3 | E23: 3 | F23: 3 | L23: 3 | M23: 4 | N23: 5 | O23: 5 | AF23: 3.625 | AG23: 0.555 | AH23: 0.35 | AI23: 14
A24: 19 | B24: =СпискиКлассы!H22 -> Семенкова Диана | C24: 3 | D24: 3 | E24: 3 | F24: 3 | L24: 3 | M24: 3 | N24: 4 | O24: 4 | AF24: 3.25 | AG24: 0.43 | AH24: 0.2 | AI24: 13
A25: 20 | B25: =СпискиКлассы!H23 -> Тищенко Диана | C25: 4 | D25: 4 | E25: 4 | F25: 4 | L25: 4 | M25: 5 | N25: 5 | O25: 5 | AF25: 4.375 | AG25: 0.775 | AH25: 0.875 | AI25: 17.5
A26: 21 | B26: =СпискиКлассы!H24 -> Федоров Артем | C26: 3 | D26: 4 | E26: 3 | F26: 3 | L26: 4 | M26: 5 | N26: 4 | O26: 5 | AF26: 3.875 | AG26: 0.625 | AH26: 0.55 | AI26: 14.625
A27: 22 | B27: =СпискиКлассы!H25 -> Широкова Карина | C27: 4 | D27: 5 | E27: 5 | F27: 4 | L27: 5 | M27: 5 | N27: 5 | O27: 5 | AF27: 4.75 | AG27: 0.91 | AH27: 0.95 | AI27: 18.75
A28: 23 | B28: =СпискиКлассы!H26 -> Игнатенко Всеволод | C28: 4 | D28: 5 | E28: 4 | F28: 4 | L28: 5 | M28: 4 | N28: 5 | O28: 5 | AF28: 4.5 | AG28: 0.82 | AH28: 0.9 | AI28: 17.75
A29: 24 | B29: =СпискиКлассы!H27 -> Мазуренко Ярослав | C29: 4 | D29: 4 | E29: 4 | F29: 4 | L29: 4 | M29: 4 | N29: 5 | O29: 4 | AF29: 4.125 | AG29: 0.685 | AH29: 0.825 | AI29: 16.875
A30: 25 | B30: =СпискиКлассы!H28 -> 0
A31: 26 | B31: =СпискиКлассы!H29 -> 0 | AF31: =AVERAGE(C31:AE31) ->  | AG31: =(COUNTIF(C31:AE31,"5")+COUNTIF(C31:AE31,"4")*0.64+COUNTIF(C31:AE31,"3")*0.36+COUNTIF(C31:AE31,"2")*0.16)/(COUNTIF(C31:AE31,"5")+COUNTIF(C31:AE31,"4")+COUNTIF(C31:AE31,"3")+COUNTIF(C31:AE31,"2")+COUNTIF(C31:AE31,"0")) -> 
A32: 27 | B32: =СпискиКлассы!H30 -> 0
A33: 28 | B33: =СпискиКлассы!H31 -> 0
A34: 29 | B34: =СпискиКлассы!H32 -> 0
A35: 30 | B35: =СпискиКлассы!H43 -> 0 | AI35: =SUMIF(C130:AE130,">0",C130:AE130)/(COUNTIF(C35:AE35,">0")+COUNTIF(C35:AE35,"=0")+COUNTIF(C35:AE35,"Н")) -> 
A36: Фамилия и инициалы учителя - предметника | C36: =Нагрузка!C12 -> Адова | D36: =Нагрузка!D11 -> Ржанова | E36: =Нагрузка!E11 -> 0 | F36: =Нагрузка!F11 -> Ржанова | G36: =Нагрузка!G11 -> 0 | H36: =Нагрузка!H11 -> 0 | I36: =Нагрузка!I11 -> 0 | J36: =Нагрузка!J11 -> 0 | K36: =Нагрузка!K11 -> 0 | L36: =Нагрузка!L11 -> Ржанова | M36: =Нагрузка!M11 -> Ржанова | N36: =Нагрузка!N11 -> Заворина | O36: =Нагрузка!O11 -> Ржанова | P36: =Нагрузка!P11 -> Ржанова | Q36: =Нагрузка!Q11 -> Ермакова | R36: =Нагрузка!R11 -> Калугина | S36: =Нагрузка!S11 -> Гулевич | T36: =Нагрузка!T11 -> 0 | U36: =Нагрузка!U11 -> 0 | V36: =Нагрузка!V11 -> 0 | W36: =Нагрузка!W11 -> 0 | X36: =Нагрузка!X11 -> 0 | Y36: =Нагрузка!Y11 -> 0 | Z36: =Нагрузка!Z11 -> 0 | AA36: =Нагрузка!AA11 -> 0 | AB36: =Нагрузка!AB11 -> 0 | AC36: =Нагрузка!AC11 -> 0 | AD36: =Нагрузка!AD11 -> 0 | AE36: =Нагрузка!AE11 -> 0 | AF36: Показатели результатов учебной деятельности в целом по классу:
A37: Результаты учебной деятельности класса | B37: Количество "5": | C37: =COUNTIF(C6:C35,5) -> 1 | D37: 5 | E37: 3 | F37: 2 | G37: 0 | H37: 0 | I37: 0 | J37: 0 | K37: 0 | L37: 7 | M37: 11 | N37: 18 | O37: 14 | P37: 0 | Q37: 0 | R37: 0 | S37: 0 | T37: 0 | U37: 0 | V37: 0 | W37: 0 | X37: 0 | Y37: 0 | Z37: 0 | AA37: 0 | AB37: 0 | AC37: 0 | AD37: 0 | AE37: 0 | AF37: =SUM(C37:AE37) -> 61
B38: Количество "4": | C38: =COUNTIF(C6:C35,4) -> 12 | D38: 13 | E38: 9 | F38: 12 | G38: 0 | H38: 0 | I38: 0 | J38: 0 | K38: 0 | L38: 9 | M38: 12 | N38: 6 | O38: 10 | P38: 0 | Q38: 0 | R38: 0 | S38: 0 | T38: 0 | U38: 0 | V38: 0 | W38: 0 | X38: 0 | Y38: 0 | Z38: 0 | AA38: 0 | AB38: 0 | AC38: 0 | AD38: 0 | AE38: 0 | AF38: 83
B39: Количество "3": | C39: =COUNTIF(C6:C35,3) -> 11 | D39: 6 | E39: 12 | F39: 10 | G39: 0 | H39: 0 | I39: 0 | J39: 0 | K39: 0 | L39: 8 | M39: 1 | N39: 0 | O39: 0 | P39: 0 | Q39: 0 | R39: 0 | S39: 0 | T39: 0 | U39: 0 | V39: 0 | W39: 0 | X39: 0 | Y39: 0 | Z39: 0 | AA39: 0 | AB39: 0 | AC39: 0 | AD39: 0 | AE39: 0 | AF39: 48
B40: Количество "2": | C40: =COUNTIF(C6:C35,2) -> 0 | D40: 0 | E40: 0 | F40: 0 | G40: 0 | H40: 0 | I40: 0 | J40: 0 | K40: 0 | L40: 0 | M40: 0 | N40: 0 | O40: 0 | P40: 0 | Q40: 0 | R40: 0 | S40: 0 | T40: 0 | U40: 0 | V40: 0 | W40: 0 | X40: 0 | Y40: 0 | Z40: 0 | AA40: 0 | AB40: 0 | AC40: 0 | AD40: 0 | AE40: 0 | AF40: 0
B41: Не аттестовано: | C41: =COUNTIF(C6:C35,0) -> 0 | D41: 0 | E41: 0 | F41: 0 | G41: 0 | H41: 0 | I41: 0 | J41: 0 | K41: 0 | L41: 0 | M41: 0 | N41: 0 | O41: 0 | P41: 0 | Q41: 0 | R41: 0 | S41: 0 | T41: 0 | U41: 0 | V41: 0 | W41: 0 | X41: 0 | Y41: 0 | Z41: 0 | AA41: 0 | AB41: 0 | AC41: 0 | AD41: 0 | AE41: 0 | AF41: 0
B42: Освобождено: | C42: =COUNTIF(C6:C35,"н") -> 0 | D42: 0 | E42: 0 | F42: 0 | G42: 0 | H42: 0 | I42: 0 | J42: 0 | K42: 0 | L42: 0 | M42: 0 | N42: 0 | O42: 0 | P42: 0 | Q42: 0 | R42: 0 | S42: 0 | T42: 0 | U42: 0 | V42: 0 | W42: 0 | X42: 0 | Y42: 0 | Z42: 0 | AA42: 0 | AB42: 0 | AC42: 0 | AD42: 0 | AE42: 0 | AF42: 0
B43: Успеваемость: | C43: =(C37+C38+C39)/(C37+C38+C39+C40+C41) -> 1 | D43: =(D37+D38+D39)/(D37+D38+D39+D40+D41) -> 1 | E43: 1 | F43: 1 | L43: 1 | M43: 1 | N43: 1 | O43: 1 | AF43: =('4 В(2)'!D2-'4 В(2)'!C43-'4 В(2)'!C53)/'4 В(2)'!D2 -> 1
B44: Качество знаний: | C44: =(C37+C38)/(C37+C38+C39+C40+C41) -> 0.5416666667 | D44: =(D37+D38)/(D37+D38+D39+D40+D41) -> 0.75 | E44: 0.5 | F44: 0.5833333333 | L44: 0.6666666667 | M44: 0.9583333333 | N44: 1 | O44: 1 | AF44: =('4 В(2)'!C3+'4 В(2)'!C18)/'4 В(2)'!D2 -> 0.4583333333
B45: Степень обученности: | C45: =(C37+C38*0.64+C39*0.36+C40*0.16)/(C37+C38+C39+C40+C41) -> 0.5266666667 | D45: =(D37+D38*0.64+D39*0.36+D40*0.16)/(D37+D38+D39+D40+D41) -> 0.645 | E45: 0.545 | F45: 0.5533333333 | L45: 0.6516666667 | M45: 0.7933333333 | N45: 0.91 | O45: 0.85 | AF45: =(AF37+AF38*0.64+AF39*0.36+AF40*0.16)/(AF37+AF38+AF39+AF40+AF41) -> 0.684375
B46: Средний балл: | C46: =(C37*5+C38*4+C39*3+C40*2)/(C37+C38+C39+C40+C41) -> 3.583333333 | D46: =(D37*5+D38*4+D39*3+D40*2)/(D37+D38+D39+D40+D41) -> 3.958333333 | E46: 3.625 | F46: 3.666666667 | L46: 3.958333333 | M46: 4.416666667 | N46: 4.75 | O46: 4.583333333 | AF46: =(AF37*5+AF38*4+AF39*3+AF40*2)/(AF37+AF38+AF39+AF40+AF41) -> 4.067708333
B47: Качество успеваемости: | C47: =(5*C37+4*C38)*0.2/(SUM(C37+C38+C39+C40+C41)) -> 0.4416666667 | D47: =(5*COUNTIF(D6:D35,5)+4*COUNTIF(D6:D35,4))*0.2/(COUNTA(D6:D35)-COUNTIF(D6:D35,"н")) -> 0.6416666667 | E47: 0.425 | F47: 0.4833333333 | L47: 0.5916666667 | M47: 0.8583333333 | N47: 0.95 | O47: 0.9166666667 | AF47: =(5*COUNTIF(C6:AE35,5)+4*COUNTIF(C6:AE35,4))*0.2/(COUNTA(C6:AE35)-COUNTIF(C6:AE35,"н")) -> 0.6635416667
A48: Выполнено с помощью программы статистического анализа результатов учебной деятельности | AC48: =Титул!G31 -> PSORUD-Klass.v.04.11.demo | AI48: 3+
B90: Коэф.трудн.предмета | C90: =VLOOKUP(C$5,ШкалаТрудн!$C$5:$N$34,LEFT($Z$2,2)+1,0) -> 7 | D90: =VLOOKUP(D$5,ШкалаТрудн!$C$5:$N$34,LEFT($Z$2,2)+1,0) -> 5 | E90: =VLOOKUP(E$5,ШкалаТрудн!$C$5:$N$34,LEFT($Z$2,2)+1,0) -> 5 | F90: =VLOOKUP(F$5,ШкалаТрудн!$C$5:$N$34,LEFT($Z$2,2)+1,0) -> 8 | G90: =VLOOKUP(G$5,ШкалаТрудн!$C$5:$N$34,LEFT($Z$2,2)+1,0) -> 0 | H90: =VLOOKUP(H$5,ШкалаТрудн!$C$5:$N$34,LEFT($Z$2,2)+1,0) -> 0 | I90: =VLOOKUP(I$5,ШкалаТрудн!$C$5:$N$34,LEFT($Z$2,2)+1,0) -> 6 | J90: =VLOOKUP(J$5,ШкалаТрудн!$C$5:$N$34,LEFT($Z$2,2)+1,0) -> 4 | K90: =VLOOKUP(K$5,ШкалаТрудн!$C$5:$N$34,LEFT($Z$2,2)+1,0) -> 0 | L90: =VLOOKUP(L$5,ШкалаТрудн!$C$5:$N$34,LEFT($Z$2,2)+1,0) ->  | M90: =VLOOKUP(M$5,ШкалаТрудн!$C$5:$N$34,LEFT($Z$2,2)+1,0) -> 3 | N90: =VLOOKUP(N$5,ШкалаТрудн!$C$5:$N$34,LEFT($Z$2,2)+1,0) -> 3 | O90: =VLOOKUP(O$5,ШкалаТрудн!$C$5:$N$34,LEFT($Z$2,2)+1,0) -> 2 | P90: =VLOOKUP(P$5,ШкалаТрудн!$C$5:$N$34,LEFT($Z$2,2)+1,0) -> 2 | Q90: =VLOOKUP(Q$5,ШкалаТрудн!$C$5:$N$34,LEFT($Z$2,2)+1,0) -> 1 | R90: =VLOOKUP(R$5,ШкалаТрудн!$C$5:$N$34,LEFT($Z$2,2)+1,0) -> 5 | S90: =VLOOKUP(S$5,ШкалаТрудн!$C$5:$N$34,LEFT($Z$2,2)+1,0) -> 5 | T90: =VLOOKUP(T$5,ШкалаТрудн!$C$5:$N$34,LEFT($Z$2,2)+1,0) -> 0 | U90: =VLOOKUP(U$5,ШкалаТрудн!$C$5:$N$34,LEFT($Z$2,2)+1,0) -> 0 | V90: =VLOOKUP(V$5,ШкалаТрудн!$C$5:$N$34,LEFT($Z$2,2)+1,0) -> 0 | W90: =VLOOKUP(W$5,ШкалаТрудн!$C$5:$N$34,LEFT($Z$2,2)+1,0) -> 0 | X90: =VLOOKUP(X$5,ШкалаТрудн!$C$5:$N$34,LEFT($Z$2,2)+1,0) -> 0 | Y90: =VLOOKUP(Y$5,ШкалаТрудн!$C$5:$N$34,LEFT($Z$2,2)+1,0) -> 1 | Z90: =VLOOKUP(Z$5,ШкалаТрудн!$C$5:$N$34,LEFT($Z$2,2)+1,0) -> 0 | AA90: =VLOOKUP(AA$5,ШкалаТрудн!$C$5:$N$34,LEFT($Z$2,2)+1,0) -> 0 | AB90: =VLOOKUP(AB$5,ШкалаТрудн!$C$5:$N$34,LEFT($Z$2,2)+1,0) ->  | AC90: =VLOOKUP(AC$5,ШкалаТрудн!$C$5:$N$34,LEFT($Z$2,2)+1,0) ->  | AD90: =VLOOKUP(AD$5,ШкалаТрудн!$C$5:$N$34,LEFT($Z$2,2)+1,0) ->  | AE90: =VLOOKUP(AE$5,ШкалаТрудн!$C$5:$N$34,LEFT($Z$2,2)+1,0) -> 
C91: =C6*C$90 -> 28 | D91: 20 | E91: 15 | F91: 32 | G91: 0 | H91: 0 | I91: 0 | J91: 0 | K91: 0 | M91: 15 | N91: 15 | O91: 10 | P91: 0 | Q91: 0 | R91: 0 | S91: 0 | T91: 0 | U91: 0 | V91: 0 | W91: 0 | X91: 0 | Y91: 0 | Z91: 0 | AA91: 0
C92: =C7*C$90 -> 28 | D92: 20 | E92: 20 | F92: 32 | G92: 0 | H92: 0 | I92: 0 | J92: 0 | K92: 0 | M92: 15 | N92: 15 | O92: 10 | P92: 0 | Q92: 0 | R92: 0 | S92: 0 | T92: 0 | U92: 0 | V92: 0 | W92: 0 | X92: 0 | Y92: 0 | Z92: 0 | AA92: 0
C93: =C8*C$90 -> 21 | D93: 20 | E93: 15 | F93: 24 | G93: 0 | H93: 0 | I93: 0 | J93: 0 | K93: 0 | M93: 12 | N93: 15 | O93: 8 | P93: 0 | Q93: 0 | R93: 0 | S93: 0 | T93: 0 | U93: 0 | V93: 0 | W93: 0 | X93: 0 | Y93: 0 | Z93: 0 | AA93: 0
C94: =C9*C$90 -> 28 | D94: 25 | E94: 20 | F94: 40 | G94: 0 | H94: 0 | I94: 0 | J94: 0 | K94: 0 | M94: 12 | N94: 15 | O94: 8 | P94: 0 | Q94: 0 | R94: 0 | S94: 0 | T94: 0 | U94: 0 | V94: 0 | W94: 0 | X94: 0 | Y94: 0 | Z94: 0 | AA94: 0
C95: =C10*C$90 -> 28 | D95: 20 | E95: 20 | F95: 32 | G95: 0 | H95: 0 | I95: 0 | J95: 0 | K95: 0 | M95: 12 | N95: 12 | O95: 8 | P95: 0 | Q95: 0 | R95: 0 | S95: 0 | T95: 0 | U95: 0 | V95: 0 | W95: 0 | X95: 0 | Y95: 0 | Z95: 0 | AA95: 0
C96: =C11*C$90 -> 21 | D96: 15 | E96: 15 | F96: 24 | G96: 0 | H96: 0 | I96: 0 | J96: 0 | K96: 0 | M96: 12 | N96: 12 | O96: 8 | P96: 0 | Q96: 0 | R96: 0 | S96: 0 | T96: 0 | U96: 0 | V96: 0 | W96: 0 | X96: 0 | Y96: 0 | Z96: 0 | AA96: 0
C97: =C12*C$90 -> 21 | D97: 20 | E97: 15 | F97: 24 | G97: 0 | H97: 0 | I97: 0 | J97: 0 | K97: 0 | M97: 12 | N97: 15 | O97: 8 | P97: 0 | Q97: 0 | R97: 0 | S97: 0 | T97: 0 | U97: 0 | V97: 0 | W97: 0 | X97: 0 | Y97: 0 | Z97: 0 | AA97: 0
C98: =C13*C$90 -> 28 | D98: 20 | E98: 20 | F98: 32 | G98: 0 | H98: 0 | I98: 0 | J98: 0 | K98: 0 | M98: 15 | N98: 15 | O98: 10 | P98: 0 | Q98: 0 | R98: 0 | S98: 0 | T98: 0 | U98: 0 | V98: 0 | W98: 0 | X98: 0 | Y98: 0 | Z98: 0 | AA98: 0
C99: =C14*C$90 -> 28 | D99: 20 | E99: 25 | F99: 32 | G99: 0 | H99: 0 | I99: 0 | J99: 0 | K99: 0 | M99: 15 | N99: 15 | O99: 10 | P99: 0 | Q99: 0 | R99: 0 | S99: 0 | T99: 0 | U99: 0 | V99: 0 | W99: 0 | X99: 0 | Y99: 0 | Z99: 0 | AA99: 0
C100: =C15*C$90 -> 21 | D100: 20 | E100: 15 | F100: 24 | G100: 0 | H100: 0 | I100: 0 | J100: 0 | K100: 0 | M100: 12 | N100: 15 | O100: 10 | P100: 0 | Q100: 0 | R100: 0 | S100: 0 | T100: 0 | U100: 0 | V100: 0 | W100: 0 | X100: 0 | Y100: 0 | Z100: 0 | AA100: 0
C101: =C16*C$90 -> 28 | D101: 25 | E101: 25 | F101: 32 | G101: 0 | H101: 0 | I101: 0 | J101: 0 | K101: 0 | M101: 15 | N101: 15 | O101: 10 | P101: 0 | Q101: 0 | R101: 0 | S101: 0 | T101: 0 | U101: 0 | V101: 0 | W101: 0 | X101: 0 | Y101: 0 | Z101: 0 | AA101: 0
C102: =C17*C$90 -> 21 | D102: 15 | E102: 15 | F102: 24 | G102: 0 | H102: 0 | I102: 0 | J102: 0 | K102: 0 | M102: 12 | N102: 12 | O102: 8 | P102: 0 | Q102: 0 | R102: 0 | S102: 0 | T102: 0 | U102: 0 | V102: 0 | W102: 0 | X102: 0 | Y102: 0 | Z102: 0 | AA102: 0
C103: =C18*C$90 -> 35 | D103: 25 | E103: 20 | F103: 40 | G103: 0 | H103: 0 | I103: 0 | J103: 0 | K103: 0 | M103: 15 | N103: 15 | O103: 10 | P103: 0 | Q103: 0 | R103: 0 | S103: 0 | T103: 0 | U103: 0 | V103: 0 | W103: 0 | X103: 0 | Y103: 0 | Z103: 0 | AA103: 0
C104: =C19*C$90 -> 28 | D104: 20 | E104: 20 | F104: 24 | G104: 0 | H104: 0 | I104: 0 | J104: 0 | K104: 0 | M104: 15 | N104: 15 | O104: 10 | P104: 0 | Q104: 0 | R104: 0 | S104: 0 | T104: 0 | U104: 0 | V104: 0 | W104: 0 | X104: 0 | Y104: 0 | Z104: 0 | AA104: 0
C105: =C20*C$90 -> 21 | D105: 20 | E105: 15 | F105: 32 | G105: 0 | H105: 0 | I105: 0 | J105: 0 | K105: 0 | M105: 12 | N105: 12 | O105: 8 | P105: 0 | Q105: 0 | R105: 0 | S105: 0 | T105: 0 | U105: 0 | V105: 0 | W105: 0 | X105: 0 | Y105: 0 | Z105: 0 | AA105: 0
C106: =C21*C$90 -> 21 | D106: 15 | E106: 15 | F106: 24 | G106: 0 | H106: 0 | I106: 0 | J106: 0 | K106: 0 | M106: 12 | N106: 15 | O106: 8 | P106: 0 | Q106: 0 | R106: 0 | S106: 0 | T106: 0 | U106: 0 | V106: 0 | W106: 0 | X106: 0 | Y106: 0 | Z106: 0 | AA106: 0
C107: =C22*C$90 -> 21 | D107: 15 | E107: 15 | F107: 32 | G107: 0 | H107: 0 | I107: 0 | J107: 0 | K107: 0 | M107: 15 | N107: 15 | O107: 10 | P107: 0 | Q107: 0 | R107: 0 | S107: 0 | T107: 0 | U107: 0 | V107: 0 | W107: 0 | X107: 0 | Y107: 0 | Z107: 0 | AA107: 0
C108: =C23*C$90 -> 21 | D108: 15 | E108: 15 | F108: 24 | G108: 0 | H108: 0 | I108: 0 | J108: 0 | K108: 0 | M108: 12 | N108: 15 | O108: 10 | P108: 0 | Q108: 0 | R108: 0 | S108: 0 | T108: 0 | U108: 0 | V108: 0 | W108: 0 | X108: 0 | Y108: 0 | Z108: 0 | AA108: 0
C109: =C24*C$90 -> 21 | D109: 15 | E109: 15 | F109: 24 | G109: 0 | H109: 0 | I109: 0 | J109: 0 | K109: 0 | M109: 9 | N109: 12 | O109: 8 | P109: 0 | Q109: 0 | R109: 0 | S109: 0 | T109: 0 | U109: 0 | V109: 0 | W109: 0 | X109: 0 | Y109: 0 | Z109: 0 | AA109: 0
C110: =C25*C$90 -> 28 | D110: 20 | E110: 20 | F110: 32 | G110: 0 | H110: 0 | I110: 0 | J110: 0 | K110: 0 | M110: 15 | N110: 15 | O110: 10 | P110: 0 | Q110: 0 | R110: 0 | S110: 0 | T110: 0 | U110: 0 | V110: 0 | W110: 0 | X110: 0 | Y110: 0 | Z110: 0 | AA110: 0
C111: =C26*C$90 -> 21 | D111: 20 | E111: 15 | F111: 24 | G111: 0 | H111: 0 | I111: 0 | J111: 0 | K111: 0 | M111: 15 | N111: 12 | O111: 10 | P111: 0 | Q111: 0 | R111: 0 | S111: 0 | T111: 0 | U111: 0 | V111: 0 | W111: 0 | X111: 0 | Y111: 0 | Z111: 0 | AA111: 0
C112: =C27*C$90 -> 28 | D112: 25 | E112: 25 | F112: 32 | G112: 0 | H112: 0 | I112: 0 | J112: 0 | K112: 0 | M112: 15 | N112: 15 | O112: 10 | P112: 0 | Q112: 0 | R112: 0 | S112: 0 | T112: 0 | U112: 0 | V112: 0 | W112: 0 | X112: 0 | Y112: 0 | Z112: 0 | AA112: 0
C113: =C28*C$90 -> 28 | D113: 25 | E113: 20 | F113: 32 | G113: 0 | H113: 0 | I113: 0 | J113: 0 | K113: 0 | M113: 12 | N113: 15 | O113: 10 | P113: 0 | Q113: 0 | R113: 0 | S113: 0 | T113: 0 | U113: 0 | V113: 0 | W113: 0 | X113: 0 | Y113: 0 | Z113: 0 | AA113: 0
C114: =C29*C$90 -> 28 | D114: 20 | E114: 20 | F114: 32 | G114: 0 | H114: 0 | I114: 0 | J114: 0 | K114: 0 | M114: 12 | N114: 15 | O114: 8 | P114: 0 | Q114: 0 | R114: 0 | S114: 0 | T114: 0 | U114: 0 | V114: 0 | W114: 0 | X114: 0 | Y114: 0 | Z114: 0 | AA114: 0
C115: =C30*C$90 -> 0 | D115: 0 | E115: 0 | F115: 0 | G115: 0 | H115: 0 | I115: 0 | J115: 0 | K115: 0 | M115: 0 | N115: 0 | O115: 0 | P115: 0 | Q115: 0 | R115: 0 | S115: 0 | T115: 0 | U115: 0 | V115: 0 | W115: 0 | X115: 0 | Y115: 0 | Z115: 0 | AA115: 0
C116: =C31*C$90 -> 0 | D116: 0 | E116: 0 | F116: 0 | G116: 0 | H116: 0 | I116: 0 | J116: 0 | K116: 0 | M116: 0 | N116: 0 | O116: 0 | P116: 0 | Q116: 0 | R116: 0 | S116: 0 | T116: 0 | U116: 0 | V116: 0 | W116: 0 | X116: 0 | Y116: 0 | Z116: 0 | AA116: 0
C117: =C32*C$90 -> 0 | D117: 0 | E117: 0 | F117: 0 | G117: 0 | H117: 0 | I117: 0 | J117: 0 | K117: 0 | M117: 0 | N117: 0 | O117: 0 | P117: 0 | Q117: 0 | R117: 0 | S117: 0 | T117: 0 | U117: 0 | V117: 0 | W117: 0 | X117: 0 | Y117: 0 | Z117: 0 | AA117: 0
C118: =C33*C$90 -> 0 | D118: 0 | E118: 0 | F118: 0 | G118: 0 | H118: 0 | I118: 0 | J118: 0 | K118: 0 | M118: 0 | N118: 0 | O118: 0 | P118: 0 | Q118: 0 | R118: 0 | S118: 0 | T118: 0 | U118: 0 | V118: 0 | W118: 0 | X118: 0 | Y118: 0 | Z118: 0 | AA118: 0
C119: =C34*C$90 -> 0 | D119: 0 | E119: 0 | F119: 0 | G119: 0 | H119: 0 | I119: 0 | J119: 0 | K119: 0 | M119: 0 | N119: 0 | O119: 0 | P119: 0 | Q119: 0 | R119: 0 | S119: 0 | T119: 0 | U119: 0 | V119: 0 | W119: 0 | X119: 0 | Y119: 0 | Z119: 0 | AA119: 0
C120: =#REF!*C$90 ->  | D120: =#REF!*D$90 ->  | E120: =#REF!*E$90 ->  | F120: =#REF!*F$90 ->  | G120: =#REF!*G$90 ->  | H120: =#REF!*H$90 ->  | I120: =#REF!*I$90 ->  | J120: =#REF!*J$90 ->  | K120: =#REF!*K$90 ->  | L120: =#REF!*L$90 ->  | M120: =#REF!*M$90 ->  | N120: =#REF!*N$90 ->  | O120: =#REF!*O$90 ->  | P120: =#REF!*P$90 ->  | Q120: =#REF!*Q$90 ->  | R120: =#REF!*R$90 ->  | S120: =#REF!*S$90 ->  | T120: =#REF!*T$90 ->  | U120: =#REF!*U$90 ->  | V120: =#REF!*V$90 ->  | W120: =#REF!*W$90 ->  | X120: =#REF!*X$90 ->  | Y120: =#REF!*Y$90 ->  | Z120: =#REF!*Z$90 ->  | AA120: =#REF!*AA$90 ->  | AB120: =#REF!*AB$90 ->  | AC120: =#REF!*AC$90 ->  | AD120: =#REF!*AD$90 ->  | AE120: =#REF!*AE$90 -> 
C121: =#REF!*C$90 ->  | D121: =#REF!*D$90 ->  | E121: =#REF!*E$90 ->  | F121: =#REF!*F$90 ->  | G121: =#REF!*G$90 ->  | H121: =#REF!*H$90 ->  | I121: =#REF!*I$90 ->  | J121: =#REF!*J$90 ->  | K121: =#REF!*K$90 ->  | L121: =#REF!*L$90 ->  | M121: =#REF!*M$90 ->  | N121: =#REF!*N$90 ->  | O121: =#REF!*O$90 ->  | P121: =#REF!*P$90 ->  | Q121: =#REF!*Q$90 ->  | R121: =#REF!*R$90 ->  | S121: =#REF!*S$90 ->  | T121: =#REF!*T$90 ->  | U121: =#REF!*U$90 ->  | V121: =#REF!*V$90 ->  | W121: =#REF!*W$90 ->  | X121: =#REF!*X$90 ->  | Y121: =#REF!*Y$90 ->  | Z121: =#REF!*Z$90 ->  | AA121: =#REF!*AA$90 ->  | AB121: =#REF!*AB$90 ->  | AC121: =#REF!*AC$90 ->  | AD121: =#REF!*AD$90 ->  | AE121: =#REF!*AE$90 -> 
C122: =#REF!*C$90 ->  | D122: =#REF!*D$90 ->  | E122: =#REF!*E$90 ->  | F122: =#REF!*F$90 ->  | G122: =#REF!*G$90 ->  | H122: =#REF!*H$90 ->  | I122: =#REF!*I$90 ->  | J122: =#REF!*J$90 ->  | K122: =#REF!*K$90 ->  | L122: =#REF!*L$90 ->  | M122: =#REF!*M$90 ->  | N122: =#REF!*N$90 ->  | O122: =#REF!*O$90 ->  | P122: =#REF!*P$90 ->  | Q122: =#REF!*Q$90 ->  | R122: =#REF!*R$90 ->  | S122: =#REF!*S$90 ->  | T122: =#REF!*T$90 ->  | U122: =#REF!*U$90 ->  | V122: =#REF!*V$90 ->  | W122: =#REF!*W$90 ->  | X122: =#REF!*X$90 ->  | Y122: =#REF!*Y$90 ->  | Z122: =#REF!*Z$90 ->  | AA122: =#REF!*AA$90 ->  | AB122: =#REF!*AB$90 ->  | AC122: =#REF!*AC$90 ->  | AD122: =#REF!*AD$90 ->  | AE122: =#REF!*AE$90 -> 
C123: =#REF!*C$90 ->  | D123: =#REF!*D$90 ->  | E123: =#REF!*E$90 ->  | F123: =#REF!*F$90 ->  | G123: =#REF!*G$90 ->  | H123: =#REF!*H$90 ->  | I123: =#REF!*I$90 ->  | J123: =#REF!*J$90 ->  | K123: =#REF!*K$90 ->  | L123: =#REF!*L$90 ->  | M123: =#REF!*M$90 ->  | N123: =#REF!*N$90 ->  | O123: =#REF!*O$90 ->  | P123: =#REF!*P$90 ->  | Q123: =#REF!*Q$90 ->  | R123: =#REF!*R$90 ->  | S123: =#REF!*S$90 ->  | T123: =#REF!*T$90 ->  | U123: =#REF!*U$90 ->  | V123: =#REF!*V$90 ->  | W123: =#REF!*W$90 ->  | X123: =#REF!*X$90 ->  | Y123: =#REF!*Y$90 ->  | Z123: =#REF!*Z$90 ->  | AA123: =#REF!*AA$90 ->  | AB123: =#REF!*AB$90 ->  | AC123: =#REF!*AC$90 ->  | AD123: =#REF!*AD$90 ->  | AE123: =#REF!*AE$90 -> 
C124: =#REF!*C$90 ->  | D124: =#REF!*D$90 ->  | E124: =#REF!*E$90 ->  | F124: =#REF!*F$90 ->  | G124: =#REF!*G$90 ->  | H124: =#REF!*H$90 ->  | I124: =#REF!*I$90 ->  | J124: =#REF!*J$90 ->  | K124: =#REF!*K$90 ->  | L124: =#REF!*L$90 ->  | M124: =#REF!*M$90 ->  | N124: =#REF!*N$90 ->  | O124: =#REF!*O$90 ->  | P124: =#REF!*P$90 ->  | Q124: =#REF!*Q$90 ->  | R124: =#REF!*R$90 ->  | S124: =#REF!*S$90 ->  | T124: =#REF!*T$90 ->  | U124: =#REF!*U$90 ->  | V124: =#REF!*V$90 ->  | W124: =#REF!*W$90 ->  | X124: =#REF!*X$90 ->  | Y124: =#REF!*Y$90 ->  | Z124: =#REF!*Z$90 ->  | AA124: =#REF!*AA$90 ->  | AB124: =#REF!*AB$90 ->  | AC124: =#REF!*AC$90 ->  | AD124: =#REF!*AD$90 ->  | AE124: =#REF!*AE$90 -> 
C125: =#REF!*C$90 ->  | D125: =#REF!*D$90 ->  | E125: =#REF!*E$90 ->  | F125: =#REF!*F$90 ->  | G125: =#REF!*G$90 ->  | H125: =#REF!*H$90 ->  | I125: =#REF!*I$90 ->  | J125: =#REF!*J$90 ->  | K125: =#REF!*K$90 ->  | L125: =#REF!*L$90 ->  | M125: =#REF!*M$90 ->  | N125: =#REF!*N$90 ->  | O125: =#REF!*O$90 ->  | P125: =#REF!*P$90 ->  | Q125: =#REF!*Q$90 ->  | R125: =#REF!*R$90 ->  | S125: =#REF!*S$90 ->  | T125: =#REF!*T$90 ->  | U125: =#REF!*U$90 ->  | V125: =#REF!*V$90 ->  | W125: =#REF!*W$90 ->  | X125: =#REF!*X$90 ->  | Y125: =#REF!*Y$90 ->  | Z125: =#REF!*Z$90 ->  | AA125: =#REF!*AA$90 ->  | AB125: =#REF!*AB$90 ->  | AC125: =#REF!*AC$90 ->  | AD125: =#REF!*AD$90 ->  | AE125: =#REF!*AE$90 -> 
C126: =#REF!*C$90 ->  | D126: =#REF!*D$90 ->  | E126: =#REF!*E$90 ->  | F126: =#REF!*F$90 ->  | G126: =#REF!*G$90 ->  | H126: =#REF!*H$90 ->  | I126: =#REF!*I$90 ->  | J126: =#REF!*J$90 ->  | K126: =#REF!*K$90 ->  | L126: =#REF!*L$90 ->  | M126: =#REF!*M$90 ->  | N126: =#REF!*N$90 ->  | O126: =#REF!*O$90 ->  | P126: =#REF!*P$90 ->  | Q126: =#REF!*Q$90 ->  | R126: =#REF!*R$90 ->  | S126: =#REF!*S$90 ->  | T126: =#REF!*T$90 ->  | U126: =#REF!*U$90 ->  | V126: =#REF!*V$90 ->  | W126: =#REF!*W$90 ->  | X126: =#REF!*X$90 ->  | Y126: =#REF!*Y$90 ->  | Z126: =#REF!*Z$90 ->  | AA126: =#REF!*AA$90 ->  | AB126: =#REF!*AB$90 ->  | AC126: =#REF!*AC$90 ->  | AD126: =#REF!*AD$90 ->  | AE126: =#REF!*AE$90 -> 
C127: =#REF!*C$90 ->  | D127: =#REF!*D$90 ->  | E127: =#REF!*E$90 ->  | F127: =#REF!*F$90 ->  | G127: =#REF!*G$90 ->  | H127: =#REF!*H$90 ->  | I127: =#REF!*I$90 ->  | J127: =#REF!*J$90 ->  | K127: =#REF!*K$90 ->  | L127: =#REF!*L$90 ->  | M127: =#REF!*M$90 ->  | N127: =#REF!*N$90 ->  | O127: =#REF!*O$90 ->  | P127: =#REF!*P$90 ->  | Q127: =#REF!*Q$90 ->  | R127: =#REF!*R$90 ->  | S127: =#REF!*S$90 ->  | T127: =#REF!*T$90 ->  | U127: =#REF!*U$90 ->  | V127: =#REF!*V$90 ->  | W127: =#REF!*W$90 ->  | X127: =#REF!*X$90 ->  | Y127: =#REF!*Y$90 ->  | Z127: =#REF!*Z$90 ->  | AA127: =#REF!*AA$90 ->  | AB127: =#REF!*AB$90 ->  | AC127: =#REF!*AC$90 ->  | AD127: =#REF!*AD$90 ->  | AE127: =#REF!*AE$90 -> 
C128: =#REF!*C$90 ->  | D128: =#REF!*D$90 ->  | E128: =#REF!*E$90 ->  | F128: =#REF!*F$90 ->  | G128: =#REF!*G$90 ->  | H128: =#REF!*H$90 ->  | I128: =#REF!*I$90 ->  | J128: =#REF!*J$90 ->  | K128: =#REF!*K$90 ->  | L128: =#REF!*L$90 ->  | M128: =#REF!*M$90 ->  | N128: =#REF!*N$90 ->  | O128: =#REF!*O$90 ->  | P128: =#REF!*P$90 ->  | Q128: =#REF!*Q$90 ->  | R128: =#REF!*R$90 ->  | S128: =#REF!*S$90 ->  | T128: =#REF!*T$90 ->  | U128: =#REF!*U$90 ->  | V128: =#REF!*V$90 ->  | W128: =#REF!*W$90 ->  | X128: =#REF!*X$90 ->  | Y128: =#REF!*Y$90 ->  | Z128: =#REF!*Z$90 ->  | AA128: =#REF!*AA$90 ->  | AB128: =#REF!*AB$90 ->  | AC128: =#REF!*AC$90 ->  | AD128: =#REF!*AD$90 ->  | AE128: =#REF!*AE$90 -> 
C129: =#REF!*C$90 ->  | D129: =#REF!*D$90 ->  | E129: =#REF!*E$90 ->  | F129: =#REF!*F$90 ->  | G129: =#REF!*G$90 ->  | H129: =#REF!*H$90 ->  | I129: =#REF!*I$90 ->  | J129: =#REF!*J$90 ->  | K129: =#REF!*K$90 ->  | L129: =#REF!*L$90 ->  | M129: =#REF!*M$90 ->  | N129: =#REF!*N$90 ->  | O129: =#REF!*O$90 ->  | P129: =#REF!*P$90 ->  | Q129: =#REF!*Q$90 ->  | R129: =#REF!*R$90 ->  | S129: =#REF!*S$90 ->  | T129: =#REF!*T$90 ->  | U129: =#REF!*U$90 ->  | V129: =#REF!*V$90 ->  | W129: =#REF!*W$90 ->  | X129: =#REF!*X$90 ->  | Y129: =#REF!*Y$90 ->  | Z129: =#REF!*Z$90 ->  | AA129: =#REF!*AA$90 ->  | AB129: =#REF!*AB$90 ->  | AC129: =#REF!*AC$90 ->  | AD129: =#REF!*AD$90 ->  | AE129: =#REF!*AE$90 -> 
C130: =C35*C$90 -> 0 | D130: 0 | E130: 0 | F130: 0 | G130: 0 | H130: 0 | I130: 0 | J130: 0 | K130: 0 | M130: 0 | N130: 0 | O130: 0 | P130: 0 | Q130: 0 | R130: 0 | S130: 0 | T130: 0 | U130: 0 | V130: 0 | W130: 0 | X130: 0 | Y130: 0 | Z130: 0 | AA130: 0

Sheet 4 В(2) (hidden)
A1: =Титул!B15 -> 4 В | E1: Страница заполняется автоматически, без участия оператора!!!
A2: Всего учащихся в классе: | D2: =Титул!C15 -> 24 | E2: Фамилии, имена учащихся | F2: Учебные предметы | G2: Фамилии и инициалы учителей | H2: Пояснения, примечания, причины
A3: Учатся на "5": | C3: =COUNTA(E3:E17) -> 0 | D3: 1
D4: 2
D5: 3
D6: 4
D7: 5
D8: 6
D9: 7
D10: 8
D11: 9
D12: 10
D13: 11
D14: 12
D15: 13
D16: 14
D17: 15
A18: Учатся на "4"и"5" | C18: =COUNTA(E18:E42) -> 11 | D18: 1 | E18: Бельфер Дарина
D19: 2 | E19: Велиев Анар
D20: 3 | E20: Жмурко Лев
D21: 4 | E21: Казаков Константин
D22: 5 | E22: Ким Эмилия
D23: 6 | E23: Крюкова Дарья
D24: 7 | E24: Михеев Павел
D25: 8 | E25: Тищенко Диана
D26: 9 | E26: Широкова Карина
D27: 10 | E27: Игнатенко Всеволод
D28: 11 | E28: Мазуренко Ярослав
D29: 12
D30: 13
D31: 14
D32: 15
D33: 16
D34: 17
D35: 18
D36: 19
D37: 20
D38: 21
D39: 22
D40: 23
D41: 24
D42: 25
A43: Не аттестованы: | C43: =COUNTA(E43:E52) -> 0 | D43: 1
D44: 2
D45: 3
D46: 4
D47: 5
D48: 6
D49: 7
D50: 8
D51: 9
D52: 10
A53: Не успевают: | C53: =COUNTA(E53:E67) -> 0 | D53: 1
D54: 2
D55: 3
D56: 4
D57: 5
D58: 6
D59: 7
D60: 8
D61: 9
D62: 10
D63: 11
D64: 12
D65: 13
D66: 14
D67: 15
A68: Освобождены: | C68: =COUNTA(E68:E82) -> 0 | D68: 1
D69: 2
D70: 3
D71: 4
D72: 5
D73: 6
D74: 7
D75: 8
D76: 9
D77: 10
D78: 11
D79: 12
D80: 13
D81: 14
D82: 15

Sheet 5 А (hidden)
A1: =Титул!B5 -> 2014/15 учебный год | D1: =Титул!B4 -> МОУ СОШ № 15 | AA1: =Титул!B6 -> 4 четверть | AI1: 3+
A2: ВЕДОМОСТЬ РЕЗУЛЬТАТОВ УЧЕБНОЙ ДЕЯТЕЛЬНОСТИ | Z2: =Титул!B16 -> 5 А | AD2: класса
A3: Классный руководитель: | E3: =Титул!D16 -> Астраханцева И.А. | S3: Программа: | X3: =Титул!G16 -> общеобразовательный
A4: Вручную вносятся только оценки "5", "4", "3", "2", "1". Не аттестованным проставляется "0", освобожденным - "Н". | C4: У ч е б н ы е п р е д м е т ы | AF4: Результаты ученика:
C5: =Нагрузка!C3 -> Русский язык | D5: =Нагрузка!D3 -> Литература | E5: =Нагрузка!E3 -> Иностранный язык | F5: =Нагрузка!F3 -> Математика | G5: =Нагрузка!G3 -> Алгебра | H5: =Нагрузка!H3 -> Геометрия | I5: =Нагрузка!I3 -> Информатика | J5: =Нагрузка!J3 -> История | K5: =Нагрузка!K3 -> Обществознание | L5: =Нагрузка!L3 -> Окружающий мир | M5: =Нагрузка!M3 -> ИЗО | N5: =Нагрузка!N3 -> Музыка | O5: =Нагрузка!O3 -> Технология | P5: =Нагрузка!P3 -> Технология | Q5: =Нагрузка!Q3 -> ФЗК | R5: =Нагрузка!R3 -> Иностранный язык | S5: =Нагрузка!S3 -> Иностранный язык | T5: =Нагрузка!T3 -> География | U5: =Нагрузка!U3 -> Физика | V5: =Нагрузка!V3 -> Химия | W5: =Нагрузка!W3 -> Биология | X5: =Нагрузка!X3 -> МХК | Y5: =Нагрузка!Y3 -> ФЗК | Z5: =Нагрузка!Z3 -> ОБЖ | AA5: =Нагрузка!AA3 -> Природоведение | AB5: =Нагрузка!AB3 -> 0 | AC5: =Нагрузка!AC3 -> 0 | AD5: =Нагрузка!AD3 -> 0 | AE5: =Нагрузка!AE3 -> 0 | AF5: Средний балл: | AG5: Степень обученности (СОУ): | AH5: Качество успеваемости: | AI5: Рейтинговый учебный балл:
A6: 1 | B6: =СпискиКлассы!I4 -> Александрова Полина | C6: 4 | D6: 4 | E6: 3 | F6: 3 | J6: 4 | M6: 5 | N6: 5 | O6: 4 | Q6: 4 | AA6: 4 | AF6: =AVERAGE(C6:AE6) -> 4 | AG6: =(COUNTIF(C6:AE6,"5")+COUNTIF(C6:AE6,"4")*0.64+COUNTIF(C6:AE6,"3")*0.36+COUNTIF(C6:AE6,"2")*0.16)/(COUNTIF(C6:AE6,"5")+COUNTIF(C6:AE6,"4")+COUNTIF(C6:AE6,"3")+COUNTIF(C6:AE6,"2")+COUNTIF(C6:AE6,"0")) -> 0.656 | AH6: =((5*COUNTIF(C6:AE6,"5"))+(4*COUNTIF(C6:AE6,"4")))/(5*(COUNTA(C6:AE6)-COUNTIF(C6:AE6,"н"))) -> 0.68 | AI6: =SUMIF(C91:AE91,">0",C91:AE91)/(COUNTIF(C6:AE6,">0")+COUNTIF(C6:AE6,"=0")+COUNTIF(C6:AE6,"Н")) -> 20.6
A7: =A6+1 -> 2 | B7: =СпискиКлассы!I5 -> Голостенова Екатерина | C7: 4 | D7: 5 | E7: 5 | F7: 5 | J7: 4 | M7: 5 | N7: 5 | O7: 5 | Q7: 5 | AA7: 5 | AF7: =AVERAGE(C7:AE7) -> 4.8 | AG7: =(COUNTIF(C7:AE7,"5")+COUNTIF(C7:AE7,"4")*0.64+COUNTIF(C7:AE7,"3")*0.36+COUNTIF(C7:AE7,"2")*0.16)/(COUNTIF(C7:AE7,"5")+COUNTIF(C7:AE7,"4")+COUNTIF(C7:AE7,"3")+COUNTIF(C7:AE7,"2")+COUNTIF(C7:AE7,"0")) -> 0.928 | AH7: =((5*COUNTIF(C7:AE7,"5"))+(4*COUNTIF(C7:AE7,"4")))/(5*(COUNTA(C7:AE7)-COUNTIF(C7:AE7,"н"))) -> 0.96 | AI7: 26.2
A8: 3 | B8: =СпискиКлассы!I6 -> Девицына Алиса | C8: 3 | D8: 4 | E8: 4 | F8: 5 | J8: 4 | M8: 5 | N8: 5 | O8: 5 | Q8: 5 | AA8: 5 | AF8: =AVERAGE(C8:AE8) -> 4.5 | AG8: 0.828 | AH8: 0.84 | AI8: 24.1
A9: 4 | B9: =СпискиКлассы!I7 -> Дерюжков Сергей | C9: 3 | D9: 4 | E9: 3 | F9: 4 | J9: 4 | M9: 4 | N9: 5 | O9: 4 | Q9: 5 | AA9: 5 | AF9: 4.1 | AG9: 0.692 | AH9: 0.7 | AI9: 21.5
A10: 5 | B10: =СпискиКлассы!I8 -> Долгачева Полина | C10: 4 | D10: 4 | E10: 4 | F10: 4 | J10: 4 | M10: 5 | N10: 5 | O10: 5 | Q10: 5 | AA10: 4 | AF10: 4.4 | AG10: 0.784 | AH10: 0.88 | AI10: 23.2
A11: 6 | B11: =СпискиКлассы!I9 -> Елизаров Александр | C11: 3 | D11: 3 | E11: 4 | F11: 3 | J11: 4 | M11: 4 | N11: 4 | O11: 4 | Q11: 4 | AA11: 3 | AF11: 3.6 | AG11: 0.528 | AH11: 0.48 | AI11: 19.1
A12: 7 | B12: =СпискиКлассы!I10 -> Еськова Ксения | C12: 4 | D12: 4 | E12: 4 | F12: 4 | J12: 4 | M12: 5 | N12: 5 | O12: 5 | Q12: 5 | AA12: 5 | AF12: 4.5 | AG12: 0.82 | AH12: 0.9 | AI12: 23.9
A13: 8 | B13: =СпискиКлассы!I11 -> Котельников Владислав | C13: 3 | D13: 3 | E13: 3 | F13: 3 | J13: 3 | M13: 4 | N13: 4 | O13: 4 | Q13: 5 | AA13: 4 | AF13: 3.6 | AG13: 0.536 | AH13: 0.42 | AI13: 18.7
A14: 9 | B14: =СпискиКлассы!I12 -> Куличенко Мария | C14: 4 | D14: 4 | E14: 4 | F14: 4 | J14: 4 | M14: 5 | N14: 5 | O14: 5 | Q14: 4 | AA14: 5 | AF14: 4.4 | AG14: 0.784 | AH14: 0.88 | AI14: 23.6
A15: 10 | B15: =СпискиКлассы!I13 -> Левина Алена | C15: 3 | D15: 3 | E15: 3 | F15: 3 | J15: 3 | M15: 5 | N15: 5 | O15: 4 | Q15: 5 | AA15: 4 | AF15: 3.8 | AG15: 0.608 | AH15: 0.46 | AI15: 19.2
A16: 11 | B16: =СпискиКлассы!I14 -> Лунева Полина | C16: 4 | D16: 5 | E16: 4 | F16: 4 | J16: 4 | M16: 5 | N16: 5 | O16: 5 | Q16: 4 | AA16: 5 | AF16: 4.5 | AG16: 0.82 | AH16: 0.9 | AI16: 24
A17: 12 | B17: =СпискиКлассы!I15 -> Лупарев Алексей | C17: 3 | D17: 3 | E17: 3 | F17: 3 | J17: 3 | M17: 4 | N17: 4 | O17: 4 | Q17: 5 | AA17: 4 | AF17: 3.6 | AG17: 0.536 | AH17: 0.42 | AI17: 18.7
A18: 13 | B18: =СпискиКлассы!I16 -> Масличенко Владислав | C18: 3 | D18: 3 | E18: 4 | F18: 3 | J18: 3 | M18: 5 | N18: 4 | O18: 4 | Q18: 5 | AA18: 3 | AF18: 3.7 | AG18: 0.572 | AH18: 0.44 | AI18: 19.2
A19: 14 | B19: =СпискиКлассы!I17 -> Монастыршина Вероника | C19: 5 | D19: 5 | E19: 5 | F19: 5 | J19: 5 | M19: 5 | N19: 5 | O19: 5 | Q19: 5 | AA19: 5 | AF19: 5 | AG19: 1 | AH19: 1 | AI19: 27.5
A20: 15 | B20: =СпискиКлассы!I18 -> Набок Данила | C20: 3 | D20: 3 | E20: 3 | F20: 4 | J20: 3 | M20: 4 | N20: 5 | O20: 4 | Q20: 3 | AA20: 3 | AF20: 3.5 | AG20: 0.508 | AH20: 0.34 | AI20: 18.6
A21: 16 | B21: =СпискиКлассы!I19 -> Новикова Софья | C21: 4 | D21: 4 | E21: 5 | F21: 4 | J21: 4 | M21: 5 | N21: 5 | O21: 5 | Q21: 4 | AA21: 5 | AF21: 4.5 | AG21: 0.82 | AH21: 0.9 | AI21: 24.5
A22: 17 | B22: =СпискиКлассы!I20 -> Полякова Полина | C22: 3 | D22: 4 | E22: 3 | F22: 3 | J22: 4 | M22: 5 | N22: 5 | O22: 5 | Q22: 5 | AA22: 4 | AF22: 4.1 | AG22: 0.7 | AH22: 0.64 | AI22: 20.5
A23: 18 | B23: =СпискиКлассы!I21 -> Пономарев Артем | C23: 4 | D23: 4 | E23: 4 | F23: 4 | J23: 4 | M23: 5 | N23: 5 | O23: 4 | Q23: 5 | AA23: 5 | AF23: 4.4 | AG23: 0.784 | AH23: 0.88 | AI23: 21.8
A24: 19 | B24: =СпискиКлассы!I22 -> Пяточков Михаил | C24: 3 | D24: 4 | E24: 3 | F24: 4 | J24: 4 | M24: 5 | N24: 4 | O24: 4 | Q24: 5 | AA24: 4 | AF24: =AVERAGE(C24:AE24) -> 4 | AG24: =(COUNTIF(C24:AE24,"5")+COUNTIF(C24:AE24,"4")*0.64+COUNTIF(C24:AE24,"3")*0.36+COUNTIF(C24:AE24,"2")*0.16)/(COUNTIF(C24:AE24,"5")+COUNTIF(C24:AE24,"4")+COUNTIF(C24:AE24,"3")+COUNTIF(C24:AE24,"2")+COUNTIF(C24:AE24,"0")) -> 0.656 | AH24: =((5*COUNTIF(C24:AE24,"5"))+(4*COUNTIF(C24:AE24,"4")))/(5*(COUNTA(C24:AE24)-COUNTIF(C24:AE24,"н"))) -> 0.68 | AI24: =SUMIF(C109:AE109,">0",C109:AE109)/(COUNTIF(C24:AE24,">0")+COUNTIF(C24:AE24,"=0")+COUNTIF(C24:AE24,"Н")) -> 10.2
A25: 20 | B25: =СпискиКлассы!I23 -> Сизова Ксения | C25: 3 | D25: 3 | E25: 3 | F25: 3 | J25: 3 | M25: 4 | N25: 5 | O25: 5 | Q25: 4 | AA25: 3 | AF25: 3.6 | AG25: 0.544 | AH25: 0.36 | AI25: 18.3
A26: 21 | B26: =СпискиКлассы!I24 -> Терещенко Николай | C26: 4 | D26: 4 | E26: 5 | F26: 4 | J26: 4 | M26: 5 | N26: 5 | O26: 4 | Q26: 5 | AA26: 5 | AF26: 4.5 | AG26: 0.82 | AH26: 0.9 | AI26: 24.4
A27: 22 | B27: =СпискиКлассы!I25 -> Толкачева Виктория | C27: 4 | D27: 5 | E27: 4 | F27: 5 | J27: 5 | M27: 5 | N27: 5 | O27: 4 | Q27: 4 | AA27: 5 | AF27: 4.6 | AG27: 0.856 | AH27: 0.92 | AI27: 25.1
A28: 23 | B28: =СпискиКлассы!I26 -> Тропина Виталия | C28: 3 | D28: 4 | E28: 3 | F28: 4 | J28: 4 | M28: 4 | N28: 5 | O28: 5 | Q28: 4 | AA28: 5 | AF28: 4.1 | AG28: 0.692 | AH28: 0.7 | AI28: 21.6
A29: 24 | B29: =СпискиКлассы!I27 -> Турченко Ирина | C29: 4 | D29: 4 | E29: 4 | F29: 4 | J29: 4 | M29: 5 | N29: 5 | O29: 4 | Q29: 4 | AA29: 4 | AF29: 4.2 | AG29: 0.712 | AH29: 0.84 | AI29: 22.5
A30: 25 | B30: =СпискиКлассы!I28 -> Черниченко Ангелина | C30: 3 | D30: 3 | E30: 3 | F30: 3 | J30: 3 | M30: 5 | N30: 4 | O30: 5 | Q30: 4 | AA30: 4 | AF30: 3.7 | AG30: 0.572 | AH30: 0.44 | AI30: 19.1
A31: 26 | B31: =СпискиКлассы!I29 -> Гиллазиев Владислав | C31: 3 | D31: 3 | E31: 3 | F31: 3 | J31: 3 | M31: 4 | N31: 4 | O31: 4 | Q31: 4 | AA31: 4 | AF31: =AVERAGE(C31:AE31) -> 3.5 | AG31: =(COUNTIF(C31:AE31,"5")+COUNTIF(C31:AE31,"4")*0.64+COUNTIF(C31:AE31,"3")*0.36+COUNTIF(C31:AE31,"2")*0.16)/(COUNTIF(C31:AE31,"5")+COUNTIF(C31:AE31,"4")+COUNTIF(C31:AE31,"3")+COUNTIF(C31:AE31,"2")+COUNTIF(C31:AE31,"0")) -> 0.5 | AH31: 0.4 | AI31: 18.4
A32: 27 | B32: =СпискиКлассы!I30 -> Ищенко Вячеслав | C32: 3 | D32: 3 | E32: 3 | F32: 3 | J32: 3 | M32: 4 | N32: 4 | O32: 4 | Q32: 5 | AA32: 5 | AF32: 3.7 | AG32: 0.572 | AH32: 0.44 | AI32: 19.4
A33: 28 | B33: =СпискиКлассы!I31 -> 0
A34: 29 | B34: =СпискиКлассы!I32 -> 0
A35: 30 | B35: =СпискиКлассы!I43 -> 0 | AI35: =SUMIF(C130:AE130,">0",C130:AE130)/(COUNTIF(C35:AE35,">0")+COUNTIF(C35:AE35,"=0")+COUNTIF(C35:AE35,"Н")) -> 
A36: Фамилия и инициалы учителя - предметника | C36: =Нагрузка!C12 -> Адова | D36: =Нагрузка!D12 -> Адова | E36: =Нагрузка!E12 -> 0 | F36: =Нагрузка!F12 -> Адова | G36: =Нагрузка!G12 -> 0 | H36: =Нагрузка!H12 -> 0 | I36: =Нагрузка!I12 -> 0 | J36: =Нагрузка!J12 -> 0 | K36: =Нагрузка!K12 -> 0 | L36: =Нагрузка!L12 -> Адова | M36: =Нагрузка!M12 -> Адова | N36: =Нагрузка!N12 -> Заворина | O36: =Нагрузка!O12 -> Адова | P36: =Нагрузка!P12 -> Адова | Q36: =Нагрузка!Q12 -> Ермакова | R36: =Нагрузка!R12 -> Пудренко | S36: =Нагрузка!S12 -> Калугина | T36: =Нагрузка!T12 -> 0 | U36: =Нагрузка!U12 -> 0 | V36: =Нагрузка!V12 -> 0 | W36: =Нагрузка!W12 -> 0 | X36: =Нагрузка!X12 -> 0 | Y36: =Нагрузка!Y12 -> 0 | Z36: =Нагрузка!Z12 -> 0 | AA36: =Нагрузка!AA12 -> 0 | AB36: =Нагрузка!AB12 -> 0 | AC36: =Нагрузка!AC12 -> 0 | AD36: =Нагрузка!AD12 -> 0 | AE36: =Нагрузка!AE12 -> 0 | AF36: Показатели результатов учебной деятельности в целом по классу:
A37: Результаты учебной деятельности класса | B37: Количество "5": | C37: =COUNTIF(C6:C35,5) -> 1 | D37: 4 | E37: 4 | F37: 4 | G37: 0 | H37: 0 | I37: 0 | J37: 2 | K37: 0 | L37: 0 | M37: 18 | N37: 19 | O37: 12 | P37: 0 | Q37: 15 | R37: 0 | S37: 0 | T37: 0 | U37: 0 | V37: 0 | W37: 0 | X37: 0 | Y37: 0 | Z37: 0 | AA37: 13 | AB37: 0 | AC37: 0 | AD37: 0 | AE37: 0 | AF37: =SUM(C37:AE37) -> 92
B38: Количество "4": | C38: =COUNTIF(C6:C35,4) -> 11 | D38: 13 | E38: 10 | F38: 12 | G38: 0 | H38: 0 | I38: 0 | J38: 16 | K38: 0 | L38: 0 | M38: 9 | N38: 8 | O38: 15 | P38: 0 | Q38: 11 | R38: 0 | S38: 0 | T38: 0 | U38: 0 | V38: 0 | W38: 0 | X38: 0 | Y38: 0 | Z38: 0 | AA38: 10 | AB38: 0 | AC38: 0 | AD38: 0 | AE38: 0 | AF38: 115
B39: Количество "3": | C39: =COUNTIF(C6:C35,3) -> 15 | D39: 10 | E39: 13 | F39: 11 | G39: 0 | H39: 0 | I39: 0 | J39: 9 | K39: 0 | L39: 0 | M39: 0 | N39: 0 | O39: 0 | P39: 0 | Q39: 1 | R39: 0 | S39: 0 | T39: 0 | U39: 0 | V39: 0 | W39: 0 | X39: 0 | Y39: 0 | Z39: 0 | AA39: 4 | AB39: 0 | AC39: 0 | AD39: 0 | AE39: 0 | AF39: 63
B40: Количество "2": | C40: =COUNTIF(C6:C35,2) -> 0 | D40: 0 | E40: 0 | F40: 0 | G40: 0 | H40: 0 | I40: 0 | J40: 0 | K40: 0 | L40: 0 | M40: 0 | N40: 0 | O40: 0 | P40: 0 | Q40: 0 | R40: 0 | S40: 0 | T40: 0 | U40: 0 | V40: 0 | W40: 0 | X40: 0 | Y40: 0 | Z40: 0 | AA40: 0 | AB40: 0 | AC40: 0 | AD40: 0 | AE40: 0 | AF40: 0
B41: Не аттестовано: | C41: =COUNTIF(C6:C35,0) -> 0 | D41: 0 | E41: 0 | F41: 0 | G41: 0 | H41: 0 | I41: 0 | J41: 0 | K41: 0 | L41: 0 | M41: 0 | N41: 0 | O41: 0 | P41: 0 | Q41: 0 | R41: 0 | S41: 0 | T41: 0 | U41: 0 | V41: 0 | W41: 0 | X41: 0 | Y41: 0 | Z41: 0 | AA41: 0 | AB41: 0 | AC41: 0 | AD41: 0 | AE41: 0 | AF41: 0
B42: Освобождено: | C42: =COUNTIF(C6:C35,"н") -> 0 | D42: 0 | E42: 0 | F42: 0 | G42: 0 | H42: 0 | I42: 0 | J42: 0 | K42: 0 | L42: 0 | M42: 0 | N42: 0 | O42: 0 | P42: 0 | Q42: 0 | R42: 0 | S42: 0 | T42: 0 | U42: 0 | V42: 0 | W42: 0 | X42: 0 | Y42: 0 | Z42: 0 | AA42: 0 | AB42: 0 | AC42: 0 | AD42: 0 | AE42: 0 | AF42: 0
B43: Успеваемость: | C43: =(C37+C38+C39)/(C37+C38+C39+C40+C41) -> 1 | D43: =(D37+D38+D39)/(D37+D38+D39+D40+D41) -> 1 | E43: 1 | F43: 1 | J43: 1 | M43: 1 | N43: 1 | O43: 1 | Q43: 1 | AA43: 1 | AF43: =('5 А(2)'!D2-'5 А(2)'!C43-'5 А(2)'!C53)/'5 А(2)'!D2 -> 1
B44: Качество знаний: | C44: =(C37+C38)/(C37+C38+C39+C40+C41) -> 0.4444444444 | D44: =(D37+D38)/(D37+D38+D39+D40+D41) -> 0.6296296296 | E44: 0.5185185185 | F44: 0.5925925926 | J44: 0.6666666667 | M44: 1 | N44: 1 | O44: 1 | Q44: 0.962962963 | AA44: 0.8518518519 | AF44: =('5 А(2)'!C3+'5 А(2)'!C18)/'5 А(2)'!D2 -> 0.4074074074
B45: Степень обученности: | C45: =(C37+C38*0.64+C39*0.36+C40*0.16)/(C37+C38+C39+C40+C41) -> 0.4977777778 | D45: =(D37+D38*0.64+D39*0.36+D40*0.16)/(D37+D38+D39+D40+D41) -> 0.5896296296 | E45: 0.5585185185 | F45: 0.5792592593 | J45: 0.5733333333 | M45: 0.88 | N45: 0.8933333333 | O45: 0.8 | Q45: 0.8296296296 | AA45: 0.7718518519 | AF45: =(AF37+AF38*0.64+AF39*0.36+AF40*0.16)/(AF37+AF38+AF39+AF40+AF41) -> 0.6973333333
B46: Средний балл: | C46: =(C37*5+C38*4+C39*3+C40*2)/(C37+C38+C39+C40+C41) -> 3.481481481 | D46: =(D37*5+D38*4+D39*3+D40*2)/(D37+D38+D39+D40+D41) -> 3.777777778 | E46: 3.666666667 | F46: 3.740740741 | J46: 3.740740741 | M46: 4.666666667 | N46: 4.703703704 | O46: 4.444444444 | Q46: 4.518518519 | AA46: 4.333333333 | AF46: =(AF37*5+AF38*4+AF39*3+AF40*2)/(AF37+AF38+AF39+AF40+AF41) -> 4.107407407
B47: Качество успеваемости: | C47: =(5*C37+4*C38)*0.2/(SUM(C37+C38+C39+C40+C41)) -> 0.362962963 | D47: =(5*COUNTIF(D6:D35,5)+4*COUNTIF(D6:D35,4))*0.2/(COUNTA(D6:D35)-COUNTIF(D6:D35,"н")) -> 0.5333333333 | E47: 0.4444444444 | F47: 0.5037037037 | J47: 0.5481481481 | M47: 0.9333333333 | N47: 0.9407407407 | O47: 0.8888888889 | Q47: 0.8814814815 | AA47: 0.7777777778 | AF47: =(5*COUNTIF(C6:AE35,5)+4*COUNTIF(C6:AE35,4))*0.2/(COUNTA(C6:AE35)-COUNTIF(C6:AE35,"н")) -> 0.6814814815
A48: Выполнено с помощью программы статистического анализа результатов учебной деятельности | AC48: =Титул!G31 -> PSORUD-Klass.v.04.11.demo | AI48: 3+
B90: Коэф.трудн.предмета | C90: =VLOOKUP(C$5,ШкалаТрудн!$C$5:$N$34,LEFT($Z$2,2)+1,0) -> 8 | D90: =VLOOKUP(D$5,ШкалаТрудн!$C$5:$N$34,LEFT($Z$2,2)+1,0) -> 4 | E90: =VLOOKUP(E$5,ШкалаТрудн!$C$5:$N$34,LEFT($Z$2,2)+1,0) -> 9 | F90: =VLOOKUP(F$5,ШкалаТрудн!$C$5:$N$34,LEFT($Z$2,2)+1,0) -> 10 | G90: =VLOOKUP(G$5,ШкалаТрудн!$C$5:$N$34,LEFT($Z$2,2)+1,0) -> 0 | H90: =VLOOKUP(H$5,ШкалаТрудн!$C$5:$N$34,LEFT($Z$2,2)+1,0) -> 0 | I90: =VLOOKUP(I$5,ШкалаТрудн!$C$5:$N$34,LEFT($Z$2,2)+1,0) -> 4 | J90: =VLOOKUP(J$5,ШкалаТрудн!$C$5:$N$34,LEFT($Z$2,2)+1,0) -> 5 | K90: =VLOOKUP(K$5,ШкалаТрудн!$C$5:$N$34,LEFT($Z$2,2)+1,0) -> 0 | L90: =VLOOKUP(L$5,ШкалаТрудн!$C$5:$N$34,LEFT($Z$2,2)+1,0) ->  | M90: =VLOOKUP(M$5,ШкалаТрудн!$C$5:$N$34,LEFT($Z$2,2)+1,0) -> 3 | N90: =VLOOKUP(N$5,ШкалаТрудн!$C$5:$N$34,LEFT($Z$2,2)+1,0) -> 2 | O90: =VLOOKUP(O$5,ШкалаТрудн!$C$5:$N$34,LEFT($Z$2,2)+1,0) -> 4 | P90: =VLOOKUP(P$5,ШкалаТрудн!$C$5:$N$34,LEFT($Z$2,2)+1,0) -> 4 | Q90: =VLOOKUP(Q$5,ШкалаТрудн!$C$5:$N$34,LEFT($Z$2,2)+1,0) -> 3 | R90: =VLOOKUP(R$5,ШкалаТрудн!$C$5:$N$34,LEFT($Z$2,2)+1,0) -> 9 | S90: =VLOOKUP(S$5,ШкалаТрудн!$C$5:$N$34,LEFT($Z$2,2)+1,0) -> 9 | T90: =VLOOKUP(T$5,ШкалаТрудн!$C$5:$N$34,LEFT($Z$2,2)+1,0) -> 0 | U90: =VLOOKUP(U$5,ШкалаТрудн!$C$5:$N$34,LEFT($Z$2,2)+1,0) -> 0 | V90: =VLOOKUP(V$5,ШкалаТрудн!$C$5:$N$34,LEFT($Z$2,2)+1,0) -> 0 | W90: =VLOOKUP(W$5,ШкалаТрудн!$C$5:$N$34,LEFT($Z$2,2)+1,0) -> 10 | X90: =VLOOKUP(X$5,ШкалаТрудн!$C$5:$N$34,LEFT($Z$2,2)+1,0) -> 0 | Y90: =VLOOKUP(Y$5,ШкалаТрудн!$C$5:$N$34,LEFT($Z$2,2)+1,0) -> 3 | Z90: =VLOOKUP(Z$5,ШкалаТрудн!$C$5:$N$34,LEFT($Z$2,2)+1,0) -> 1 | AA90: =VLOOKUP(AA$5,ШкалаТрудн!$C$5:$N$34,LEFT($Z$2,2)+1,0) -> 7 | AB90: =VLOOKUP(AB$5,ШкалаТрудн!$C$5:$N$34,LEFT($Z$2,2)+1,0) ->  | AC90: =VLOOKUP(AC$5,ШкалаТрудн!$C$5:$N$34,LEFT($Z$2,2)+1,0) ->  | AD90: =VLOOKUP(AD$5,ШкалаТрудн!$C$5:$N$34,LEFT($Z$2,2)+1,0) ->  | AE90: =VLOOKUP(AE$5,ШкалаТрудн!$C$5:$N$34,LEFT($Z$2,2)+1,0) -> 
C91: =C6*C$90 -> 32 | D91: 16 | E91: 27 | F91: 30 | G91: 0 | H91: 0 | I91: 0 | J91: 20 | K91: 0 | M91: 15 | N91: 10 | O91: 16 | P91: 0 | Q91: 12 | R91: 0 | S91: 0 | T91: 0 | U91: 0 | V91: 0 | W91: 0 | X91: 0 | Y91: 0 | Z91: 0 | AA91: 28
C92: =C7*C$90 -> 32 | D92: 20 | E92: 45 | F92: 50 | G92: 0 | H92: 0 | I92: 0 | J92: 20 | K92: 0 | M92: 15 | N92: 10 | O92: 20 | P92: 0 | Q92: 15 | R92: 0 | S92: 0 | T92: 0 | U92: 0 | V92: 0 | W92: 0 | X92: 0 | Y92: 0 | Z92: 0 | AA92: 35
C93: =C8*C$90 -> 24 | D93: 16 | E93: 36 | F93: 50 | G93: 0 | H93: 0 | I93: 0 | J93: 20 | K93: 0 | M93: 15 | N93: 10 | O93: 20 | P93: 0 | Q93: 15 | R93: 0 | S93: 0 | T93: 0 | U93: 0 | V93: 0 | W93: 0 | X93: 0 | Y93: 0 | Z93: 0 | AA93: 35
C94: =C9*C$90 -> 24 | D94: 16 | E94: 27 | F94: 40 | G94: 0 | H94: 0 | I94: 0 | J94: 20 | K94: 0 | M94: 12 | N94: 10 | O94: 16 | P94: 0 | Q94: 15 | R94: 0 | S94: 0 | T94: 0 | U94: 0 | V94: 0 | W94: 0 | X94: 0 | Y94: 0 | Z94: 0 | AA94: 35
C95: =C10*C$90 -> 32 | D95: 16 | E95: 36 | F95: 40 | G95: 0 | H95: 0 | I95: 0 | J95: 20 | K95: 0 | M95: 15 | N95: 10 | O95: 20 | P95: 0 | Q95: 15 | R95: 0 | S95: 0 | T95: 0 | U95: 0 | V95: 0 | W95: 0 | X95: 0 | Y95: 0 | Z95: 0 | AA95: 28
C96: =C11*C$90 -> 24 | D96: 12 | E96: 36 | F96: 30 | G96: 0 | H96: 0 | I96: 0 | J96: 20 | K96: 0 | M96: 12 | N96: 8 | O96: 16 | P96: 0 | Q96: 12 | R96: 0 | S96: 0 | T96: 0 | U96: 0 | V96: 0 | W96: 0 | X96: 0 | Y96: 0 | Z96: 0 | AA96: 21
C97: =C12*C$90 -> 32 | D97: 16 | E97: 36 | F97: 40 | G97: 0 | H97: 0 | I97: 0 | J97: 20 | K97: 0 | M97: 15 | N97: 10 | O97: 20 | P97: 0 | Q97: 15 | R97: 0 | S97: 0 | T97: 0 | U97: 0 | V97: 0 | W97: 0 | X97: 0 | Y97: 0 | Z97: 0 | AA97: 35
C98: =C13*C$90 -> 24 | D98: 12 | E98: 27 | F98: 30 | G98: 0 | H98: 0 | I98: 0 | J98: 15 | K98: 0 | M98: 12 | N98: 8 | O98: 16 | P98: 0 | Q98: 15 | R98: 0 | S98: 0 | T98: 0 | U98: 0 | V98: 0 | W98: 0 | X98: 0 | Y98: 0 | Z98: 0 | AA98: 28
C99: =C14*C$90 -> 32 | D99: 16 | E99: 36 | F99: 40 | G99: 0 | H99: 0 | I99: 0 | J99: 20 | K99: 0 | M99: 15 | N99: 10 | O99: 20 | P99: 0 | Q99: 12 | R99: 0 | S99: 0 | T99: 0 | U99: 0 | V99: 0 | W99: 0 | X99: 0 | Y99: 0 | Z99: 0 | AA99: 35
C100: =C15*C$90 -> 24 | D100: 12 | E100: 27 | F100: 30 | G100: 0 | H100: 0 | I100: 0 | J100: 15 | K100: 0 | M100: 15 | N100: 10 | O100: 16 | P100: 0 | Q100: 15 | R100: 0 | S100: 0 | T100: 0 | U100: 0 | V100: 0 | W100: 0 | X100: 0 | Y100: 0 | Z100: 0 | AA100: 28
C101: =C16*C$90 -> 32 | D101: 20 | E101: 36 | F101: 40 | G101: 0 | H101: 0 | I101: 0 | J101: 20 | K101: 0 | M101: 15 | N101: 10 | O101: 20 | P101: 0 | Q101: 12 | R101: 0 | S101: 0 | T101: 0 | U101: 0 | V101: 0 | W101: 0 | X101: 0 | Y101: 0 | Z101: 0 | AA101: 35
C102: =C17*C$90 -> 24 | D102: 12 | E102: 27 | F102: 30 | G102: 0 | H102: 0 | I102: 0 | J102: 15 | K102: 0 | M102: 12 | N102: 8 | O102: 16 | P102: 0 | Q102: 15 | R102: 0 | S102: 0 | T102: 0 | U102: 0 | V102: 0 | W102: 0 | X102: 0 | Y102: 0 | Z102: 0 | AA102: 28
C103: =C18*C$90 -> 24 | D103: 12 | E103: 36 | F103: 30 | G103: 0 | H103: 0 | I103: 0 | J103: 15 | K103: 0 | M103: 15 | N103: 8 | O103: 16 | P103: 0 | Q103: 15 | R103: 0 | S103: 0 | T103: 0 | U103: 0 | V103: 0 | W103: 0 | X103: 0 | Y103: 0 | Z103: 0 | AA103: 21
C104: =C19*C$90 -> 40 | D104: 20 | E104: 45 | F104: 50 | G104: 0 | H104: 0 | I104: 0 | J104: 25 | K104: 0 | M104: 15 | N104: 10 | O104: 20 | P104: 0 | Q104: 15 | R104: 0 | S104: 0 | T104: 0 | U104: 0 | V104: 0 | W104: 0 | X104: 0 | Y104: 0 | Z104: 0 | AA104: 35
C105: =C20*C$90 -> 24 | D105: 12 | E105: 27 | F105: 40 | G105: 0 | H105: 0 | I105: 0 | J105: 15 | K105: 0 | M105: 12 | N105: 10 | O105: 16 | P105: 0 | Q105: 9 | R105: 0 | S105: 0 | T105: 0 | U105: 0 | V105: 0 | W105: 0 | X105: 0 | Y105: 0 | Z105: 0 | AA105: 21
C106: =C21*C$90 -> 32 | D106: 16 | E106: 45 | F106: 40 | G106: 0 | H106: 0 | I106: 0 | J106: 20 | K106: 0 | M106: 15 | N106: 10 | O106: 20 | P106: 0 | Q106: 12 | R106: 0 | S106: 0 | T106: 0 | U106: 0 | V106: 0 | W106: 0 | X106: 0 | Y106: 0 | Z106: 0 | AA106: 35
C107: =C22*C$90 -> 24 | D107: 16 | E107: 27 | F107: 30 | G107: 0 | H107: 0 | I107: 0 | J107: 20 | K107: 0 | M107: 15 | N107: 10 | O107: 20 | P107: 0 | Q107: 15 | R107: 0 | S107: 0 | T107: 0 | U107: 0 | V107: 0 | W107: 0 | X107: 0 | Y107: 0 | Z107: 0 | AA107: 28
C108: =C24*C$90 -> 24 | D108: =D24*D$90 -> 16 | E108: =E24*E$90 -> 27 | F108: =F24*F$90 -> 40 | G108: =G23*G$90 -> 0 | H108: 0 | I108: 0 | J108: 20 | K108: 0 | M108: 15 | N108: 10 | O108: 16 | P108: 0 | Q108: 15 | R108: 0 | S108: 0 | T108: 0 | U108: 0 | V108: 0 | W108: 0 | X108: 0 | Y108: 0 | Z108: 0 | AA108: 35
C109: =#REF!*C$90 ->  | D109: =#REF!*D$90 ->  | E109: =#REF!*E$90 ->  | F109: =#REF!*F$90 ->  | G109: =G24*G$90 -> 0 | H109: 0 | I109: 0 | J109: 20 | K109: 0 | M109: 15 | N109: 8 | O109: 16 | P109: 0 | Q109: 15 | R109: 0 | S109: 0 | T109: 0 | U109: 0 | V109: 0 | W109: 0 | X109: 0 | Y109: 0 | Z109: 0 | AA109: 28
C110: =C25*C$90 -> 24 | D110: 12 | E110: 27 | F110: 30 | G110: 0 | H110: 0 | I110: 0 | J110: 15 | K110: 0 | M110: 12 | N110: 10 | O110: 20 | P110: 0 | Q110: 12 | R110: 0 | S110: 0 | T110: 0 | U110: 0 | V110: 0 | W110: 0 | X110: 0 | Y110: 0 | Z110: 0 | AA110: 21
C111: =C26*C$90 -> 32 | D111: 16 | E111: 45 | F111: 40 | G111: 0 | H111: 0 | I111: 0 | J111: 20 | K111: 0 | M111: 15 | N111: 10 | O111: 16 | P111: 0 | Q111: 15 | R111: 0 | S111: 0 | T111: 0 | U111: 0 | V111: 0 | W111: 0 | X111: 0 | Y111: 0 | Z111: 0 | AA111: 35
C112: =C27*C$90 -> 32 | D112: 20 | E112: 36 | F112: 50 | G112: 0 | H112: 0 | I112: 0 | J112: 25 | K112: 0 | M112: 15 | N112: 10 | O112: 16 | P112: 0 | Q112: 12 | R112: 0 | S112: 0 | T112: 0 | U112: 0 | V112: 0 | W112: 0 | X112: 0 | Y112: 0 | Z112: 0 | AA112: 35
C113: =C28*C$90 -> 24 | D113: 16 | E113: 27 | F113: 40 | G113: 0 | H113: 0 | I113: 0 | J113: 20 | K113: 0 | M113: 12 | N113: 10 | O113: 20 | P113: 0 | Q113: 12 | R113: 0 | S113: 0 | T113: 0 | U113: 0 | V113: 0 | W113: 0 | X113: 0 | Y113: 0 | Z113: 0 | AA113: 35
C114: =C29*C$90 -> 32 | D114: 16 | E114: 36 | F114: 40 | G114: 0 | H114: 0 | I114: 0 | J114: 20 | K114: 0 | M114: 15 | N114: 10 | O114: 16 | P114: 0 | Q114: 12 | R114: 0 | S114: 0 | T114: 0 | U114: 0 | V114: 0 | W114: 0 | X114: 0 | Y114: 0 | Z114: 0 | AA114: 28
C115: =C30*C$90 -> 24 | D115: 12 | E115: 27 | F115: 30 | G115: 0 | H115: 0 | I115: 0 | J115: 15 | K115: 0 | M115: 15 | N115: 8 | O115: 20 | P115: 0 | Q115: 12 | R115: 0 | S115: 0 | T115: 0 | U115: 0 | V115: 0 | W115: 0 | X115: 0 | Y115: 0 | Z115: 0 | AA115: 28
C116: =C31*C$90 -> 24 | D116: 12 | E116: 27 | F116: 30 | G116: 0 | H116: 0 | I116: 0 | J116: 15 | K116: 0 | M116: 12 | N116: 8 | O116: 16 | P116: 0 | Q116: 12 | R116: 0 | S116: 0 | T116: 0 | U116: 0 | V116: 0 | W116: 0 | X116: 0 | Y116: 0 | Z116: 0 | AA116: 28
C117: =C32*C$90 -> 24 | D117: 12 | E117: 27 | F117: 30 | G117: 0 | H117: 0 | I117: 0 | J117: 15 | K117: 0 | M117: 12 | N117: 8 | O117: 16 | P117: 0 | Q117: 15 | R117: 0 | S117: 0 | T117: 0 | U117: 0 | V117: 0 | W117: 0 | X117: 0 | Y117: 0 | Z117: 0 | AA117: 35
C118: =C33*C$90 -> 0 | D118: 0 | E118: 0 | F118: 0 | G118: 0 | H118: 0 | I118: 0 | J118: 0 | K118: 0 | M118: 0 | N118: 0 | O118: 0 | P118: 0 | Q118: 0 | R118: 0 | S118: 0 | T118: 0 | U118: 0 | V118: 0 | W118: 0 | X118: 0 | Y118: 0 | Z118: 0 | AA118: 0
C119: =C34*C$90 -> 0 | D119: 0 | E119: 0 | F119: 0 | G119: 0 | H119: 0 | I119: 0 | J119: 0 | K119: 0 | M119: 0 | N119: 0 | O119: 0 | P119: 0 | Q119: 0 | R119: 0 | S119: 0 | T119: 0 | U119: 0 | V119: 0 | W119: 0 | X119: 0 | Y119: 0 | Z119: 0 | AA119: 0
C120: =#REF!*C$90 ->  | D120: =#REF!*D$90 ->  | E120: =#REF!*E$90 ->  | F120: =#REF!*F$90 ->  | G120: =#REF!*G$90 ->  | H120: =#REF!*H$90 ->  | I120: =#REF!*I$90 ->  | J120: =#REF!*J$90 ->  | K120: =#REF!*K$90 ->  | L120: =#REF!*L$90 ->  | M120: =#REF!*M$90 ->  | N120: =#REF!*N$90 ->  | O120: =#REF!*O$90 ->  | P120: =#REF!*P$90 ->  | Q120: =#REF!*Q$90 ->  | R120: =#REF!*R$90 ->  | S120: =#REF!*S$90 ->  | T120: =#REF!*T$90 ->  | U120: =#REF!*U$90 ->  | V120: =#REF!*V$90 ->  | W120: =#REF!*W$90 ->  | X120: =#REF!*X$90 ->  | Y120: =#REF!*Y$90 ->  | Z120: =#REF!*Z$90 ->  | AA120: =#REF!*AA$90 ->  | AB120: =#REF!*AB$90 ->  | AC120: =#REF!*AC$90 ->  | AD120: =#REF!*AD$90 ->  | AE120: =#REF!*AE$90 -> 
C121: =#REF!*C$90 ->  | D121: =#REF!*D$90 ->  | E121: =#REF!*E$90 ->  | F121: =#REF!*F$90 ->  | G121: =#REF!*G$90 ->  | H121: =#REF!*H$90 ->  | I121: =#REF!*I$90 ->  | J121: =#REF!*J$90 ->  | K121: =#REF!*K$90 ->  | L121: =#REF!*L$90 ->  | M121: =#REF!*M$90 ->  | N121: =#REF!*N$90 ->  | O121: =#REF!*O$90 ->  | P121: =#REF!*P$90 ->  | Q121: =#REF!*Q$90 ->  | R121: =#REF!*R$90 ->  | S121: =#REF!*S$90 ->  | T121: =#REF!*T$90 ->  | U121: =#REF!*U$90 ->  | V121: =#REF!*V$90 ->  | W121: =#REF!*W$90 ->  | X121: =#REF!*X$90 ->  | Y121: =#REF!*Y$90 ->  | Z121: =#REF!*Z$90 ->  | AA121: =#REF!*AA$90 ->  | AB121: =#REF!*AB$90 ->  | AC121: =#REF!*AC$90 ->  | AD121: =#REF!*AD$90 ->  | AE121: =#REF!*AE$90 -> 
C122: =#REF!*C$90 ->  | D122: =#REF!*D$90 ->  | E122: =#REF!*E$90 ->  | F122: =#REF!*F$90 ->  | G122: =#REF!*G$90 ->  | H122: =#REF!*H$90 ->  | I122: =#REF!*I$90 ->  | J122: =#REF!*J$90 ->  | K122: =#REF!*K$90 ->  | L122: =#REF!*L$90 ->  | M122: =#REF!*M$90 ->  | N122: =#REF!*N$90 ->  | O122: =#REF!*O$90 ->  | P122: =#REF!*P$90 ->  | Q122: =#REF!*Q$90 ->  | R122: =#REF!*R$90 ->  | S122: =#REF!*S$90 ->  | T122: =#REF!*T$90 ->  | U122: =#REF!*U$90 ->  | V122: =#REF!*V$90 ->  | W122: =#REF!*W$90 ->  | X122: =#REF!*X$90 ->  | Y122: =#REF!*Y$90 ->  | Z122: =#REF!*Z$90 ->  | AA122: =#REF!*AA$90 ->  | AB122: =#REF!*AB$90 ->  | AC122: =#REF!*AC$90 ->  | AD122: =#REF!*AD$90 ->  | AE122: =#REF!*AE$90 -> 
C123: =#REF!*C$90 ->  | D123: =#REF!*D$90 ->  | E123: =#REF!*E$90 ->  | F123: =#REF!*F$90 ->  | G123: =#REF!*G$90 ->  | H123: =#REF!*H$90 ->  | I123: =#REF!*I$90 ->  | J123: =#REF!*J$90 ->  | K123: =#REF!*K$90 ->  | L123: =#REF!*L$90 ->  | M123: =#REF!*M$90 ->  | N123: =#REF!*N$90 ->  | O123: =#REF!*O$90 ->  | P123: =#REF!*P$90 ->  | Q123: =#REF!*Q$90 ->  | R123: =#REF!*R$90 ->  | S123: =#REF!*S$90 ->  | T123: =#REF!*T$90 ->  | U123: =#REF!*U$90 ->  | V123: =#REF!*V$90 ->  | W123: =#REF!*W$90 ->  | X123: =#REF!*X$90 ->  | Y123: =#REF!*Y$90 ->  | Z123: =#REF!*Z$90 ->  | AA123: =#REF!*AA$90 ->  | AB123: =#REF!*AB$90 ->  | AC123: =#REF!*AC$90 ->  | AD123: =#REF!*AD$90 ->  | AE123: =#REF!*AE$90 -> 
C124: =#REF!*C$90 ->  | D124: =#REF!*D$90 ->  | E124: =#REF!*E$90 ->  | F124: =#REF!*F$90 ->  | G124: =#REF!*G$90 ->  | H124: =#REF!*H$90 ->  | I124: =#REF!*I$90 ->  | J124: =#REF!*J$90 ->  | K124: =#REF!*K$90 ->  | L124: =#REF!*L$90 ->  | M124: =#REF!*M$90 ->  | N124: =#REF!*N$90 ->  | O124: =#REF!*O$90 ->  | P124: =#REF!*P$90 ->  | Q124: =#REF!*Q$90 ->  | R124: =#REF!*R$90 ->  | S124: =#REF!*S$90 ->  | T124: =#REF!*T$90 ->  | U124: =#REF!*U$90 ->  | V124: =#REF!*V$90 ->  | W124: =#REF!*W$90 ->  | X124: =#REF!*X$90 ->  | Y124: =#REF!*Y$90 ->  | Z124: =#REF!*Z$90 ->  | AA124: =#REF!*AA$90 ->  | AB124: =#REF!*AB$90 ->  | AC124: =#REF!*AC$90 ->  | AD124: =#REF!*AD$90 ->  | AE124: =#REF!*AE$90 -> 
C125: =#REF!*C$90 ->  | D125: =#REF!*D$90 ->  | E125: =#REF!*E$90 ->  | F125: =#REF!*F$90 ->  | G125: =#REF!*G$90 ->  | H125: =#REF!*H$90 ->  | I125: =#REF!*I$90 ->  | J125: =#REF!*J$90 ->  | K125: =#REF!*K$90 ->  | L125: =#REF!*L$90 ->  | M125: =#REF!*M$90 ->  | N125: =#REF!*N$90 ->  | O125: =#REF!*O$90 ->  | P125: =#REF!*P$90 ->  | Q125: =#REF!*Q$90 ->  | R125: =#REF!*R$90 ->  | S125: =#REF!*S$90 ->  | T125: =#REF!*T$90 ->  | U125: =#REF!*U$90 ->  | V125: =#REF!*V$90 ->  | W125: =#REF!*W$90 ->  | X125: =#REF!*X$90 ->  | Y125: =#REF!*Y$90 ->  | Z125: =#REF!*Z$90 ->  | AA125: =#REF!*AA$90 ->  | AB125: =#REF!*AB$90 ->  | AC125: =#REF!*AC$90 ->  | AD125: =#REF!*AD$90 ->  | AE125: =#REF!*AE$90 -> 
C126: =#REF!*C$90 ->  | D126: =#REF!*D$90 ->  | E126: =#REF!*E$90 ->  | F126: =#REF!*F$90 ->  | G126: =#REF!*G$90 ->  | H126: =#REF!*H$90 ->  | I126: =#REF!*I$90 ->  | J126: =#REF!*J$90 ->  | K126: =#REF!*K$90 ->  | L126: =#REF!*L$90 ->  | M126: =#REF!*M$90 ->  | N126: =#REF!*N$90 ->  | O126: =#REF!*O$90 ->  | P126: =#REF!*P$90 ->  | Q126: =#REF!*Q$90 ->  | R126: =#REF!*R$90 ->  | S126: =#REF!*S$90 ->  | T126: =#REF!*T$90 ->  | U126: =#REF!*U$90 ->  | V126: =#REF!*V$90 ->  | W126: =#REF!*W$90 ->  | X126: =#REF!*X$90 ->  | Y126: =#REF!*Y$90 ->  | Z126: =#REF!*Z$90 ->  | AA126: =#REF!*AA$90 ->  | AB126: =#REF!*AB$90 ->  | AC126: =#REF!*AC$90 ->  | AD126: =#REF!*AD$90 ->  | AE126: =#REF!*AE$90 -> 
C127: =#REF!*C$90 ->  | D127: =#REF!*D$90 ->  | E127: =#REF!*E$90 ->  | F127: =#REF!*F$90 ->  | G127: =#REF!*G$90 ->  | H127: =#REF!*H$90 ->  | I127: =#REF!*I$90 ->  | J127: =#REF!*J$90 ->  | K127: =#REF!*K$90 ->  | L127: =#REF!*L$90 ->  | M127: =#REF!*M$90 ->  | N127: =#REF!*N$90 ->  | O127: =#REF!*O$90 ->  | P127: =#REF!*P$90 ->  | Q127: =#REF!*Q$90 ->  | R127: =#REF!*R$90 ->  | S127: =#REF!*S$90 ->  | T127: =#REF!*T$90 ->  | U127: =#REF!*U$90 ->  | V127: =#REF!*V$90 ->  | W127: =#REF!*W$90 ->  | X127: =#REF!*X$90 ->  | Y127: =#REF!*Y$90 ->  | Z127: =#REF!*Z$90 ->  | AA127: =#REF!*AA$90 ->  | AB127: =#REF!*AB$90 ->  | AC127: =#REF!*AC$90 ->  | AD127: =#REF!*AD$90 ->  | AE127: =#REF!*AE$90 -> 
C128: =#REF!*C$90 ->  | D128: =#REF!*D$90 ->  | E128: =#REF!*E$90 ->  | F128: =#REF!*F$90 ->  | G128: =#REF!*G$90 ->  | H128: =#REF!*H$90 ->  | I128: =#REF!*I$90 ->  | J128: =#REF!*J$90 ->  | K128: =#REF!*K$90 ->  | L128: =#REF!*L$90 ->  | M128: =#REF!*M$90 ->  | N128: =#REF!*N$90 ->  | O128: =#REF!*O$90 ->  | P128: =#REF!*P$90 ->  | Q128: =#REF!*Q$90 ->  | R128: =#REF!*R$90 ->  | S128: =#REF!*S$90 ->  | T128: =#REF!*T$90 ->  | U128: =#REF!*U$90 ->  | V128: =#REF!*V$90 ->  | W128: =#REF!*W$90 ->  | X128: =#REF!*X$90 ->  | Y128: =#REF!*Y$90 ->  | Z128: =#REF!*Z$90 ->  | AA128: =#REF!*AA$90 ->  | AB128: =#REF!*AB$90 ->  | AC128: =#REF!*AC$90 ->  | AD128: =#REF!*AD$90 ->  | AE128: =#REF!*AE$90 -> 
C129: =#REF!*C$90 ->  | D129: =#REF!*D$90 ->  | E129: =#REF!*E$90 ->  | F129: =#REF!*F$90 ->  | G129: =#REF!*G$90 ->  | H129: =#REF!*H$90 ->  | I129: =#REF!*I$90 ->  | J129: =#REF!*J$90 ->  | K129: =#REF!*K$90 ->  | L129: =#REF!*L$90 ->  | M129: =#REF!*M$90 ->  | N129: =#REF!*N$90 ->  | O129: =#REF!*O$90 ->  | P129: =#REF!*P$90 ->  | Q129: =#REF!*Q$90 ->  | R129: =#REF!*R$90 ->  | S129: =#REF!*S$90 ->  | T129: =#REF!*T$90 ->  | U129: =#REF!*U$90 ->  | V129: =#REF!*V$90 ->  | W129: =#REF!*W$90 ->  | X129: =#REF!*X$90 ->  | Y129: =#REF!*Y$90 ->  | Z129: =#REF!*Z$90 ->  | AA129: =#REF!*AA$90 ->  | AB129: =#REF!*AB$90 ->  | AC129: =#REF!*AC$90 ->  | AD129: =#REF!*AD$90 ->  | AE129: =#REF!*AE$90 -> 
C130: =C35*C$90 -> 0 | D130: 0 | E130: 0 | F130: 0 | G130: 0 | H130: 0 | I130: 0 | J130: 0 | K130: 0 | M130: 0 | N130: 0 | O130: 0 | P130: 0 | Q130: 0 | R130: 0 | S130: 0 | T130: 0 | U130: 0 | V130: 0 | W130: 0 | X130: 0 | Y130: 0 | Z130: 0 | AA130: 0

Sheet 5 А(2) (hidden)
A1: =Титул!B16 -> 5 А | E1: Страница заполняется автоматически, без участия оператора!!!
A2: Всего учащихся в классе: | D2: =Титул!C16 -> 27 | E2: Фамилии, имена учащихся | F2: Учебные предметы | G2: Фамилии и инициалы учителей | H2: Пояснения, примечания, причины
A3: Учатся на "5": | C3: =COUNTA(E3:E17) -> 1 | D3: 1 | E3: Монастыршина Вероника
D4: 2
D5: 3
D6: 4
D7: 5
D8: 6
D9: 7
D10: 8
D11: 9
D12: 10
D13: 11
D14: 12
D15: 13
D16: 14
D17: 15
A18: Учатся на "4"и"5" | C18: =COUNTA(E18:E42) -> 10 | D18: 1 | E18: Голостенова Екатерина
D19: 2 | E19: Долгачева Полина
D20: 3 | E20: Еськова Ксения
D21: 4 | E21: Куличенко Мария
D22: 5 | E22: Лунева Полина
D23: 6 | E23: Новикова Софья
D24: 7 | E24: Пономарев Артем
D25: 8 | E25: Терещенко Николай
D26: 9 | E26: Толкачева Виктория
D27: 10 | E27: Турченко Ирина
D28: 11
D29: 12
D30: 13
D31: 14
D32: 15
D33: 16
D34: 17
D35: 18
D36: 19
D37: 20
D38: 21
D39: 22
D40: 23
D41: 24
D42: 25
A43: Не аттестованы: | C43: =COUNTA(E43:E52) -> 0 | D43: 1
D44: 2
D45: 3
D46: 4
D47: 5
D48: 6
D49: 7
D50: 8
D51: 9
D52: 10
A53: Не успевают: | C53: =COUNTA(E53:E67) -> 0 | D53: 1
D54: 2
D55: 3
D56: 4
D57: 5
D58: 6
D59: 7
D60: 8
D61: 9
D62: 10
D63: 11
D64: 12
D65: 13
D66: 14
D67: 15
A68: Освобождены: | C68: =COUNTA(E68:E82) -> 0 | D68: 1
D69: 2
D70: 3
D71: 4
D72: 5
D73: 6
D74: 7
D75: 8
D76: 9
D77: 10
D78: 11
D79: 12
D80: 13
D81: 14
D82: 15

Sheet 5 Б (hidden)
A1: =Титул!B5 -> 2014/15 учебный год | D1: =Титул!B4 -> МОУ СОШ № 15 | AA1: =Титул!B6 -> 4 четверть | AI1: 3+
A2: ВЕДОМОСТЬ РЕЗУЛЬТАТОВ УЧЕБНОЙ ДЕЯТЕЛЬНОСТИ | Z2: =Титул!B17 -> 5 Б | AD2: класса
A3: Классный руководитель: | E3: =Титул!D17 -> Желтова С.И. | S3: Программа: | X3: =Титул!G17 -> общеобразовательный
A4: Вручную вносятся только оценки "5", "4", "3", "2", "1". Не аттестованным проставляется "0", освобожденным - "Н". | C4: У ч е б н ы е п р е д м е т ы | AF4: Результаты ученика:
C5: =Нагрузка!C3 -> Русский язык | D5: =Нагрузка!D3 -> Литература | E5: =Нагрузка!E3 -> Иностранный язык | F5: =Нагрузка!F3 -> Математика | G5: =Нагрузка!G3 -> Алгебра | H5: =Нагрузка!H3 -> Геометрия | I5: =Нагрузка!I3 -> Информатика | J5: =Нагрузка!J3 -> История | K5: =Нагрузка!K3 -> Обществознание | L5: =Нагрузка!L3 -> Окружающий мир | M5: =Нагрузка!M3 -> ИЗО | N5: =Нагрузка!N3 -> Музыка | O5: =Нагрузка!O3 -> Технология | P5: =Нагрузка!P3 -> Технология | Q5: =Нагрузка!Q3 -> ФЗК | R5: =Нагрузка!R3 -> Иностранный язык | S5: =Нагрузка!S3 -> Иностранный язык | T5: =Нагрузка!T3 -> География | U5: =Нагрузка!U3 -> Физика | V5: =Нагрузка!V3 -> Химия | W5: =Нагрузка!W3 -> Биология | X5: =Нагрузка!X3 -> МХК | Y5: =Нагрузка!Y3 -> ФЗК | Z5: =Нагрузка!Z3 -> ОБЖ | AA5: =Нагрузка!AA3 -> Природоведение | AB5: =Нагрузка!AB3 -> 0 | AC5: =Нагрузка!AC3 -> 0 | AD5: =Нагрузка!AD3 -> 0 | AE5: =Нагрузка!AE3 -> 0 | AF5: Средний балл: | AG5: Степень обученности (СОУ): | AH5: Качество успеваемости: | AI5: Рейтинговый учебный балл:
A6: 1 | B6: =СпискиКлассы!J4 -> Ахмадеев Руслан | C6: 4 | D6: 5 | E6: 4 | F6: 4 | J6: 5 | M6: 5 | N6: 5 | O6: 4 | Q6: 5 | AA6: 5 | AF6: =AVERAGE(C6:AE6) -> 4.6 | AG6: =(COUNTIF(C6:AE6,"5")+COUNTIF(C6:AE6,"4")*0.64+COUNTIF(C6:AE6,"3")*0.36+COUNTIF(C6:AE6,"2")*0.16)/(COUNTIF(C6:AE6,"5")+COUNTIF(C6:AE6,"4")+COUNTIF(C6:AE6,"3")+COUNTIF(C6:AE6,"2")+COUNTIF(C6:AE6,"0")) -> 0.856 | AH6: =((5*COUNTIF(C6:AE6,"5"))+(4*COUNTIF(C6:AE6,"4")))/(5*(COUNTA(C6:AE6)-COUNTIF(C6:AE6,"н"))) -> 0.92 | AI6: =SUMIF(C91:AE91,">0",C91:AE91)/(COUNTIF(C6:AE6,">0")+COUNTIF(C6:AE6,"=0")+COUNTIF(C6:AE6,"Н")) -> 24.4
A7: =A6+1 -> 2 | B7: =СпискиКлассы!J5 -> Беляева Дарья | C7: 3 | D7: 4 | E7: 3 | F7: 3 | J7: 3 | M7: 5 | N7: 5 | O7: 5 | Q7: 5 | AA7: 5 | AF7: =AVERAGE(C7:AE7) -> 4.1 | AG7: =(COUNTIF(C7:AE7,"5")+COUNTIF(C7:AE7,"4")*0.64+COUNTIF(C7:AE7,"3")*0.36+COUNTIF(C7:AE7,"2")*0.16)/(COUNTIF(C7:AE7,"5")+COUNTIF(C7:AE7,"4")+COUNTIF(C7:AE7,"3")+COUNTIF(C7:AE7,"2")+COUNTIF(C7:AE7,"0")) -> 0.708 | AH7: =((5*COUNTIF(C7:AE7,"5"))+(4*COUNTIF(C7:AE7,"4")))/(5*(COUNTA(C7:AE7)-COUNTIF(C7:AE7,"н"))) -> 0.58 | AI7: 20.7
A8: 3 | B8: =СпискиКлассы!J6 -> Вахмистрова Алина | C8: 3 | D8: 3 | E8: 3 | F8: 3 | J8: 3 | M8: 4 | N8: 5 | O8: 4 | Q8: 4 | AA8: 4 | AF8: =AVERAGE(C8:AE8) -> 3.6 | AG8: 0.536 | AH8: 0.42 | AI8: 18.6
A9: 4 | B9: =СпискиКлассы!J7 -> Гуляева Кристина | C9: 4 | D9: 5 | E9: 4 | F9: 4 | J9: 4 | M9: 5 | N9: 5 | O9: 5 | Q9: 4 | AA9: 5 | AF9: 4.5 | AG9: 0.82 | AH9: 0.9 | AI9: 24
A10: 5 | B10: =СпискиКлассы!J8 -> Квецинская Евгения | C10: 4 | D10: 5 | E10: 4 | F10: 4 | J10: 5 | M10: 5 | N10: 5 | O10: 5 | Q10: 5 | AA10: 5 | AF10: 4.7 | AG10: 0.892 | AH10: 0.94 | AI10: 24.8
A11: 6 | B11: =СпискиКлассы!J9 -> Кристалинская Виктория | C11: 5 | D11: 5 | E11: 5 | F11: 5 | J11: 5 | M11: 5 | N11: 5 | O11: 5 | Q11: 5 | AA11: 5 | AF11: 5 | AG11: 1 | AH11: 1 | AI11: 27.5
A12: 7 | B12: =СпискиКлассы!J10 -> Мирошниченко Иван | C12: 3 | D12: 3 | E12: 3 | F12: 3 | J12: 3 | M12: 4 | N12: 4 | O12: 4 | Q12: 5 | AA12: 4 | AF12: 3.6 | AG12: 0.536 | AH12: 0.42 | AI12: 18.7
A13: 8 | B13: =СпискиКлассы!J11 -> Мишко Леонид | C13: 3 | D13: 3 | E13: 3 | F13: 3 | J13: 3 | M13: 3 | N13: 4 | O13: 3 | Q13: 5 | AA13: 4 | AF13: 3.4 | AG13: 0.48 | AH13: 0.26 | AI13: 18
A14: 9 | B14: =СпискиКлассы!J12 -> Плаунова Юлия | C14: 3 | D14: 3 | E14: 4 | F14: 4 | J14: 4 | M14: 4 | N14: 5 | O14: 5 | Q14: 4 | AA14: 4 | AF14: 4 | AG14: 0.656 | AH14: 0.68 | AI14: 21.4
A15: 10 | B15: =СпискиКлассы!J13 -> Полякова Наталья | C15: 4 | D15: 5 | E15: 4 | F15: 4 | J15: 5 | M15: 5 | N15: 5 | O15: 5 | Q15: 4 | AA15: 5 | AF15: 4.6 | AG15: 0.856 | AH15: 0.92 | AI15: 24.5
A16: 11 | B16: =СпискиКлассы!J14 -> Ракута Марина | C16: 3 | D16: 3 | E16: 3 | F16: 3 | J16: 3 | M16: 3 | N16: 4 | O16: 3 | Q16: 3 | AA16: 3 | AF16: 3.1 | AG16: 0.388 | AH16: 0.08 | AI16: 16.7
A17: 12 | B17: =СпискиКлассы!J15 -> Рекин Даниил | C17: 3 | D17: 3 | E17: 3 | F17: 4 | J17: 3 | M17: 5 | N17: 4 | O17: 3 | Q17: 4 | AA17: 3 | AF17: 3.5 | AG17: 0.508 | AH17: 0.34 | AI17: 18.6
A18: 13 | B18: =СпискиКлассы!J16 -> Смольников Максим | C18: 3 | D18: 3 | E18: 3 | F18: 3 | J18: 3 | M18: 4 | N18: 4 | O18: 3 | Q18: 5 | AA18: 3 | AF18: 3.4 | AG18: 0.48 | AH18: 0.26 | AI18: 17.6
A19: 14 | B19: =СпискиКлассы!J17 -> Ступко Тимофей | C19: 3 | D19: 3 | E19: 3 | F19: 3 | J19: 3 | M19: 5 | N19: 4 | O19: 4 | Q19: 5 | AA19: 4 | AF19: 3.7 | AG19: 0.572 | AH19: 0.44 | AI19: 19
A20: 15 | B20: =СпискиКлассы!J18 -> Фоминых Арина | C20: 3 | D20: 4 | E20: 3 | F20: 3 | J20: 3 | M20: 5 | N20: 5 | O20: 4 | Q20: 3 | AA20: 4 | AF20: 3.7 | AG20: 0.572 | AH20: 0.44 | AI20: 19
A21: 16 | B21: =СпискиКлассы!J19 -> Яримей Анастасия | C21: 4 | D21: 5 | E21: 4 | F21: 5 | J21: 5 | M21: 5 | N21: 5 | O21: 5 | Q21: 5 | AA21: 5 | AF21: 4.8 | AG21: 0.928 | AH21: 0.96 | AI21: 25.8
A22: 17 | B22: =СпискиКлассы!J20 -> Бабаев Владислав | C22: 3 | D22: 3 | E22: 3 | F22: 3 | J22: 3 | M22: 5 | N22: 5 | O22: 4 | Q22: 3 | AA22: 4 | AF22: 3.6 | AG22: 0.544 | AH22: 0.36 | AI22: 18.6
A23: 18 | B23: =СпискиКлассы!J21 -> Балашова Анастасия | C23: 4 | D23: 4 | E23: 4 | F23: 4 | J23: 4 | M23: 5 | N23: 5 | O23: 5 | Q23: 5 | AA23: 5 | AF23: 4.5 | AG23: 0.82 | AH23: 0.9 | AI23: 23.9
A24: 19 | B24: =СпискиКлассы!J22 -> Докукина Виктория | C24: 3 | D24: 3 | E24: 4 | F24: 3 | J24: 3 | M24: 5 | N24: 5 | O24: 3 | Q24: 3 | AA24: 5 | AF24: 3.7 | AG24: 0.58 | AH24: 0.38 | AI24: 19.8
A25: 20 | B25: =СпискиКлассы!J23 -> Киселев Евгений | C25: 3 | D25: 3 | E25: 3 | F25: 3 | J25: 3 | M25: 4 | N25: 5 | O25: 4 | Q25: 4 | AA25: 4 | AF25: 3.6 | AG25: 0.536 | AH25: 0.42 | AI25: 18.6
A26: 21 | B26: =СпискиКлассы!J24 -> Косогор Всеволод | C26: 3 | D26: 3 | E26: 3 | F26: 3 | J26: 3 | M26: 4 | N26: 5 | O26: 4 | Q26: 5 | AA26: 4 | AF26: 3.7 | AG26: 0.572 | AH26: 0.44 | AI26: 18.9
A27: 22 | B27: =СпискиКлассы!J25 -> Крючков Александр | C27: 3 | D27: 3 | E27: 3 | F27: 3 | J27: 3 | M27: 4 | N27: 4 | O27: 4 | Q27: 5 | AA27: 4 | AF27: 3.6 | AG27: 0.536 | AH27: 0.42 | AI27: 18.7
A28: 23 | B28: =СпискиКлассы!J26 -> Михеев Иван | C28: 3 | D28: 4 | E28: 3 | F28: 3 | J28: 3 | M28: 5 | N28: 5 | O28: 4 | Q28: 5 | AA28: 3 | AF28: 3.8 | AG28: 0.608 | AH28: 0.46 | AI28: 18.9
A29: 24 | B29: =СпискиКлассы!J27 -> Осипов Арсений | C29: 4 | D29: 5 | E29: 5 | F29: 4 | J29: 5 | M29: 4 | N29: 5 | O29: 4 | Q29: 5 | AA29: 5 | AF29: 4.6 | AG29: 0.856 | AH29: 0.92 | AI29: 25
A30: 25 | B30: =СпискиКлассы!J28 -> Очкин Кирилл | C30: 3 | D30: 3 | E30: 3 | F30: 3 | J30: 3 | M30: 5 | N30: 5 | O30: 4 | Q30: 4 | AA30: 5 | AF30: 3.8 | AG30: 0.608 | AH30: 0.46 | AI30: 19.6
A31: 26 | B31: =СпискиКлассы!J29 -> Прушинский Сергей | C31: 3 | D31: 3 | E31: 3 | F31: 3 | J31: 3 | M31: 5 | N31: 4 | O31: 4 | Q31: 4 | AA31: 4 | AF31: =AVERAGE(C31:AE31) -> 3.6 | AG31: =(COUNTIF(C31:AE31,"5")+COUNTIF(C31:AE31,"4")*0.64+COUNTIF(C31:AE31,"3")*0.36+COUNTIF(C31:AE31,"2")*0.16)/(COUNTIF(C31:AE31,"5")+COUNTIF(C31:AE31,"4")+COUNTIF(C31:AE31,"3")+COUNTIF(C31:AE31,"2")+COUNTIF(C31:AE31,"0")) -> 0.536 | AH31: 0.42 | AI31: 18.7
A32: 27 | B32: =СпискиКлассы!J30 -> Суржиков Михаил | C32: 3 | D32: 3 | E32: 4 | F32: 4 | J32: 4 | M32: 5 | N32: 4 | O32: 4 | Q32: 4 | AA32: 4 | AF32: 3.9 | AG32: 0.62 | AH32: 0.66 | AI32: 21.1
A33: 28 | B33: =СпискиКлассы!J31 -> Чернышова Валентина | C33: 3 | D33: 4 | E33: 3 | F33: 3 | J33: 3 | M33: 5 | N33: 4 | O33: 4 | Q33: 3 | AA33: 4 | AF33: 3.6 | AG33: 0.536 | AH33: 0.42 | AI33: 18.8
A34: 29 | B34: =СпискиКлассы!J32 -> Энсс Александр | C34: 3 | D34: 4 | E34: 3 | F34: 3 | J34: 3 | M34: 5 | N34: 5 | O34: 4 | Q34: 5 | AA34: 5 | AF34: 4 | AG34: 0.672 | AH34: 0.56 | AI34: 20.3
A35: 30 | B35: =СпискиКлассы!J43 -> 0 | AI35: =SUMIF(C130:AE130,">0",C130:AE130)/(COUNTIF(C35:AE35,">0")+COUNTIF(C35:AE35,"=0")+COUNTIF(C35:AE35,"Н")) -> 
A36: Фамилия и инициалы учителя - предметника | C36: =Нагрузка!C13 -> Есипова | D36: =Нагрузка!D13 -> Есипова | E36: =Нагрузка!E13 -> Калугина | F36: =Нагрузка!F13 -> Есипова | G36: =Нагрузка!G13 -> 0 | H36: =Нагрузка!H13 -> 0 | I36: =Нагрузка!I13 -> 0 | J36: =Нагрузка!J13 -> 0 | K36: =Нагрузка!K13 -> 0 | L36: =Нагрузка!L13 -> Есипова | M36: =Нагрузка!M13 -> Есипова | N36: =Нагрузка!N13 -> Заворина | O36: =Нагрузка!O13 -> Есипова | P36: =Нагрузка!P13 -> Есипова | Q36: =Нагрузка!Q13 -> Ермакова | R36: =Нагрузка!R13 -> Калугина | S36: =Нагрузка!S13 -> 0 | T36: =Нагрузка!T13 -> 0 | U36: =Нагрузка!U13 -> 0 | V36: =Нагрузка!V13 -> 0 | W36: =Нагрузка!W13 -> 0 | X36: =Нагрузка!X13 -> 0 | Y36: =Нагрузка!Y13 -> 0 | Z36: =Нагрузка!Z13 -> 0 | AA36: =Нагрузка!AA13 -> 0 | AB36: =Нагрузка!AB13 -> 0 | AC36: =Нагрузка!AC13 -> 0 | AD36: =Нагрузка!AD13 -> 0 | AE36: =Нагрузка!AE13 -> 0 | AF36: Показатели результатов учебной деятельности в целом по классу:
A37: Результаты учебной деятельности класса | B37: Количество "5": | C37: =COUNTIF(C6:C35,5) -> 1 | D37: 7 | E37: 2 | F37: 2 | G37: 0 | H37: 0 | I37: 0 | J37: 6 | K37: 0 | L37: 0 | M37: 19 | N37: 19 | O37: 8 | P37: 0 | Q37: 15 | R37: 0 | S37: 0 | T37: 0 | U37: 0 | V37: 0 | W37: 0 | X37: 0 | Y37: 0 | Z37: 0 | AA37: 12 | AB37: 0 | AC37: 0 | AD37: 0 | AE37: 0 | AF37: =SUM(C37:AE37) -> 91
B38: Количество "4": | C38: =COUNTIF(C6:C35,4) -> 7 | D38: 6 | E38: 9 | F38: 9 | G38: 0 | H38: 0 | I38: 0 | J38: 4 | K38: 0 | L38: 0 | M38: 8 | N38: 10 | O38: 16 | P38: 0 | Q38: 9 | R38: 0 | S38: 0 | T38: 0 | U38: 0 | V38: 0 | W38: 0 | X38: 0 | Y38: 0 | Z38: 0 | AA38: 13 | AB38: 0 | AC38: 0 | AD38: 0 | AE38: 0 | AF38: 91
B39: Количество "3": | C39: =COUNTIF(C6:C35,3) -> 21 | D39: 16 | E39: 18 | F39: 18 | G39: 0 | H39: 0 | I39: 0 | J39: 19 | K39: 0 | L39: 0 | M39: 2 | N39: 0 | O39: 5 | P39: 0 | Q39: 5 | R39: 0 | S39: 0 | T39: 0 | U39: 0 | V39: 0 | W39: 0 | X39: 0 | Y39: 0 | Z39: 0 | AA39: 4 | AB39: 0 | AC39: 0 | AD39: 0 | AE39: 0 | AF39: 108
B40: Количество "2": | C40: =COUNTIF(C6:C35,2) -> 0 | D40: 0 | E40: 0 | F40: 0 | G40: 0 | H40: 0 | I40: 0 | J40: 0 | K40: 0 | L40: 0 | M40: 0 | N40: 0 | O40: 0 | P40: 0 | Q40: 0 | R40: 0 | S40: 0 | T40: 0 | U40: 0 | V40: 0 | W40: 0 | X40: 0 | Y40: 0 | Z40: 0 | AA40: 0 | AB40: 0 | AC40: 0 | AD40: 0 | AE40: 0 | AF40: 0
B41: Не аттестовано: | C41: =COUNTIF(C6:C35,0) -> 0 | D41: 0 | E41: 0 | F41: 0 | G41: 0 | H41: 0 | I41: 0 | J41: 0 | K41: 0 | L41: 0 | M41: 0 | N41: 0 | O41: 0 | P41: 0 | Q41: 0 | R41: 0 | S41: 0 | T41: 0 | U41: 0 | V41: 0 | W41: 0 | X41: 0 | Y41: 0 | Z41: 0 | AA41: 0 | AB41: 0 | AC41: 0 | AD41: 0 | AE41: 0 | AF41: 0
B42: Освобождено: | C42: =COUNTIF(C6:C35,"н") -> 0 | D42: 0 | E42: 0 | F42: 0 | G42: 0 | H42: 0 | I42: 0 | J42: 0 | K42: 0 | L42: 0 | M42: 0 | N42: 0 | O42: 0 | P42: 0 | Q42: 0 | R42: 0 | S42: 0 | T42: 0 | U42: 0 | V42: 0 | W42: 0 | X42: 0 | Y42: 0 | Z42: 0 | AA42: 0 | AB42: 0 | AC42: 0 | AD42: 0 | AE42: 0 | AF42: 0
B43: Успеваемость: | C43: =(C37+C38+C39)/(C37+C38+C39+C40+C41) -> 1 | D43: =(D37+D38+D39)/(D37+D38+D39+D40+D41) -> 1 | E43: 1 | F43: 1 | J43: 1 | M43: 1 | N43: 1 | O43: 1 | Q43: 1 | AA43: 1 | AF43: =('5 Б(2)'!D2-'5 Б(2)'!C43-'5 Б(2)'!C53)/'5 Б(2)'!D2 -> 1
B44: Качество знаний: | C44: =(C37+C38)/(C37+C38+C39+C40+C41) -> 0.275862069 | D44: =(D37+D38)/(D37+D38+D39+D40+D41) -> 0.4482758621 | E44: 0.3793103448 | F44: 0.3793103448 | J44: 0.3448275862 | M44: 0.9310344828 | N44: 1 | O44: 0.8275862069 | Q44: 0.8275862069 | AA44: 0.8620689655 | AF44: =('5 Б(2)'!C3+'5 Б(2)'!C18)/'5 Б(2)'!D2 -> 0.275862069
B45: Степень обученности: | C45: =(C37+C38*0.64+C39*0.36+C40*0.16)/(C37+C38+C39+C40+C41) -> 0.4496551724 | D45: =(D37+D38*0.64+D39*0.36+D40*0.16)/(D37+D38+D39+D40+D41) -> 0.5724137931 | E45: 0.4910344828 | F45: 0.4910344828 | J45: 0.5310344828 | M45: 0.8565517241 | N45: 0.875862069 | O45: 0.6910344828 | Q45: 0.7779310345 | AA45: 0.7503448276 | AF45: =(AF37+AF38*0.64+AF39*0.36+AF40*0.16)/(AF37+AF38+AF39+AF40+AF41) -> 0.6486896552
B46: Средний балл: | C46: =(C37*5+C38*4+C39*3+C40*2)/(C37+C38+C39+C40+C41) -> 3.310344828 | D46: =(D37*5+D38*4+D39*3+D40*2)/(D37+D38+D39+D40+D41) -> 3.689655172 | E46: 3.448275862 | F46: 3.448275862 | J46: 3.551724138 | M46: 4.586206897 | N46: 4.655172414 | O46: 4.103448276 | Q46: 4.344827586 | AA46: 4.275862069 | AF46: =(AF37*5+AF38*4+AF39*3+AF40*2)/(AF37+AF38+AF39+AF40+AF41) -> 3.94137931
B47: Качество успеваемости: | C47: =(5*C37+4*C38)*0.2/(SUM(C37+C38+C39+C40+C41)) -> 0.2275862069 | D47: =(5*COUNTIF(D6:D35,5)+4*COUNTIF(D6:D35,4))*0.2/(COUNTA(D6:D35)-COUNTIF(D6:D35,"н")) -> 0.4068965517 | E47: 0.3172413793 | F47: 0.3172413793 | J47: 0.3172413793 | M47: 0.875862069 | N47: 0.9310344828 | O47: 0.7172413793 | Q47: 0.7655172414 | AA47: 0.7724137931 | AF47: =(5*COUNTIF(C6:AE35,5)+4*COUNTIF(C6:AE35,4))*0.2/(COUNTA(C6:AE35)-COUNTIF(C6:AE35,"н")) -> 0.5648275862
A48: Выполнено с помощью программы статистического анализа результатов учебной деятельности | AC48: =Титул!G31 -> PSORUD-Klass.v.04.11.demo | AI48: 3+
B90: Коэф.трудн.предмета | C90: =VLOOKUP(C$5,ШкалаТрудн!$C$5:$N$34,LEFT($Z$2,2)+1,0) -> 8 | D90: =VLOOKUP(D$5,ШкалаТрудн!$C$5:$N$34,LEFT($Z$2,2)+1,0) -> 4 | E90: =VLOOKUP(E$5,ШкалаТрудн!$C$5:$N$34,LEFT($Z$2,2)+1,0) -> 9 | F90: =VLOOKUP(F$5,ШкалаТрудн!$C$5:$N$34,LEFT($Z$2,2)+1,0) -> 10 | G90: =VLOOKUP(G$5,ШкалаТрудн!$C$5:$N$34,LEFT($Z$2,2)+1,0) -> 0 | H90: =VLOOKUP(H$5,ШкалаТрудн!$C$5:$N$34,LEFT($Z$2,2)+1,0) -> 0 | I90: =VLOOKUP(I$5,ШкалаТрудн!$C$5:$N$34,LEFT($Z$2,2)+1,0) -> 4 | J90: =VLOOKUP(J$5,ШкалаТрудн!$C$5:$N$34,LEFT($Z$2,2)+1,0) -> 5 | K90: =VLOOKUP(K$5,ШкалаТрудн!$C$5:$N$34,LEFT($Z$2,2)+1,0) -> 0 | L90: =VLOOKUP(L$5,ШкалаТрудн!$C$5:$N$34,LEFT($Z$2,2)+1,0) ->  | M90: =VLOOKUP(M$5,ШкалаТрудн!$C$5:$N$34,LEFT($Z$2,2)+1,0) -> 3 | N90: =VLOOKUP(N$5,ШкалаТрудн!$C$5:$N$34,LEFT($Z$2,2)+1,0) -> 2 | O90: =VLOOKUP(O$5,ШкалаТрудн!$C$5:$N$34,LEFT($Z$2,2)+1,0) -> 4 | P90: =VLOOKUP(P$5,ШкалаТрудн!$C$5:$N$34,LEFT($Z$2,2)+1,0) -> 4 | Q90: =VLOOKUP(Q$5,ШкалаТрудн!$C$5:$N$34,LEFT($Z$2,2)+1,0) -> 3 | R90: =VLOOKUP(R$5,ШкалаТрудн!$C$5:$N$34,LEFT($Z$2,2)+1,0) -> 9 | S90: =VLOOKUP(S$5,ШкалаТрудн!$C$5:$N$34,LEFT($Z$2,2)+1,0) -> 9 | T90: =VLOOKUP(T$5,ШкалаТрудн!$C$5:$N$34,LEFT($Z$2,2)+1,0) -> 0 | U90: =VLOOKUP(U$5,ШкалаТрудн!$C$5:$N$34,LEFT($Z$2,2)+1,0) -> 0 | V90: =VLOOKUP(V$5,ШкалаТрудн!$C$5:$N$34,LEFT($Z$2,2)+1,0) -> 0 | W90: =VLOOKUP(W$5,ШкалаТрудн!$C$5:$N$34,LEFT($Z$2,2)+1,0) -> 10 | X90: =VLOOKUP(X$5,ШкалаТрудн!$C$5:$N$34,LEFT($Z$2,2)+1,0) -> 0 | Y90: =VLOOKUP(Y$5,ШкалаТрудн!$C$5:$N$34,LEFT($Z$2,2)+1,0) -> 3 | Z90: =VLOOKUP(Z$5,ШкалаТрудн!$C$5:$N$34,LEFT($Z$2,2)+1,0) -> 1 | AA90: =VLOOKUP(AA$5,ШкалаТрудн!$C$5:$N$34,LEFT($Z$2,2)+1,0) -> 7 | AB90: =VLOOKUP(AB$5,ШкалаТрудн!$C$5:$N$34,LEFT($Z$2,2)+1,0) ->  | AC90: =VLOOKUP(AC$5,ШкалаТрудн!$C$5:$N$34,LEFT($Z$2,2)+1,0) ->  | AD90: =VLOOKUP(AD$5,ШкалаТрудн!$C$5:$N$34,LEFT($Z$2,2)+1,0) ->  | AE90: =VLOOKUP(AE$5,ШкалаТрудн!$C$5:$N$34,LEFT($Z$2,2)+1,0) -> 
C91: =C6*C$90 -> 32 | D91: 20 | E91: 36 | F91: 40 | G91: 0 | H91: 0 | I91: 0 | J91: 25 | K91: 0 | M91: 15 | N91: 10 | O91: 16 | P91: 0 | Q91: 15 | R91: 0 | S91: 0 | T91: 0 | U91: 0 | V91: 0 | W91: 0 | X91: 0 | Y91: 0 | Z91: 0 | AA91: 35
C92: =C7*C$90 -> 24 | D92: 16 | E92: 27 | F92: 30 | G92: 0 | H92: 0 | I92: 0 | J92: 15 | K92: 0 | M92: 15 | N92: 10 | O92: 20 | P92: 0 | Q92: 15 | R92: 0 | S92: 0 | T92: 0 | U92: 0 | V92: 0 | W92: 0 | X92: 0 | Y92: 0 | Z92: 0 | AA92: 35
C93: =C8*C$90 -> 24 | D93: 12 | E93: 27 | F93: 30 | G93: 0 | H93: 0 | I93: 0 | J93: 15 | K93: 0 | M93: 12 | N93: 10 | O93: 16 | P93: 0 | Q93: 12 | R93: 0 | S93: 0 | T93: 0 | U93: 0 | V93: 0 | W93: 0 | X93: 0 | Y93: 0 | Z93: 0 | AA93: 28
C94: =C9*C$90 -> 32 | D94: 20 | E94: 36 | F94: 40 | G94: 0 | H94: 0 | I94: 0 | J94: 20 | K94: 0 | M94: 15 | N94: 10 | O94: 20 | P94: 0 | Q94: 12 | R94: 0 | S94: 0 | T94: 0 | U94: 0 | V94: 0 | W94: 0 | X94: 0 | Y94: 0 | Z94: 0 | AA94: 35
C95: =C10*C$90 -> 32 | D95: 20 | E95: 36 | F95: 40 | G95: 0 | H95: 0 | I95: 0 | J95: 25 | K95: 0 | M95: 15 | N95: 10 | O95: 20 | P95: 0 | Q95: 15 | R95: 0 | S95: 0 | T95: 0 | U95: 0 | V95: 0 | W95: 0 | X95: 0 | Y95: 0 | Z95: 0 | AA95: 35
C96: =C11*C$90 -> 40 | D96: 20 | E96: 45 | F96: 50 | G96: 0 | H96: 0 | I96: 0 | J96: 25 | K96: 0 | M96: 15 | N96: 10 | O96: 20 | P96: 0 | Q96: 15 | R96: 0 | S96: 0 | T96: 0 | U96: 0 | V96: 0 | W96: 0 | X96: 0 | Y96: 0 | Z96: 0 | AA96: 35
C97: =C12*C$90 -> 24 | D97: 12 | E97: 27 | F97: 30 | G97: 0 | H97: 0 | I97: 0 | J97: 15 | K97: 0 | M97: 12 | N97: 8 | O97: 16 | P97: 0 | Q97: 15 | R97: 0 | S97: 0 | T97: 0 | U97: 0 | V97: 0 | W97: 0 | X97: 0 | Y97: 0 | Z97: 0 | AA97: 28
C98: =C13*C$90 -> 24 | D98: 12 | E98: 27 | F98: 30 | G98: 0 | H98: 0 | I98: 0 | J98: 15 | K98: 0 | M98: 9 | N98: 8 | O98: 12 | P98: 0 | Q98: 15 | R98: 0 | S98: 0 | T98: 0 | U98: 0 | V98: 0 | W98: 0 | X98: 0 | Y98: 0 | Z98: 0 | AA98: 28
C99: =C14*C$90 -> 24 | D99: 12 | E99: 36 | F99: 40 | G99: 0 | H99: 0 | I99: 0 | J99: 20 | K99: 0 | M99: 12 | N99: 10 | O99: 20 | P99: 0 | Q99: 12 | R99: 0 | S99: 0 | T99: 0 | U99: 0 | V99: 0 | W99: 0 | X99: 0 | Y99: 0 | Z99: 0 | AA99: 28
C100: =C15*C$90 -> 32 | D100: 20 | E100: 36 | F100: 40 | G100: 0 | H100: 0 | I100: 0 | J100: 25 | K100: 0 | M100: 15 | N100: 10 | O100: 20 | P100: 0 | Q100: 12 | R100: 0 | S100: 0 | T100: 0 | U100: 0 | V100: 0 | W100: 0 | X100: 0 | Y100: 0 | Z100: 0 | AA100: 35
C101: =C16*C$90 -> 24 | D101: 12 | E101: 27 | F101: 30 | G101: 0 | H101: 0 | I101: 0 | J101: 15 | K101: 0 | M101: 9 | N101: 8 | O101: 12 | P101: 0 | Q101: 9 | R101: 0 | S101: 0 | T101: 0 | U101: 0 | V101: 0 | W101: 0 | X101: 0 | Y101: 0 | Z101: 0 | AA101: 21
C102: =C17*C$90 -> 24 | D102: 12 | E102: 27 | F102: 40 | G102: 0 | H102: 0 | I102: 0 | J102: 15 | K102: 0 | M102: 15 | N102: 8 | O102: 12 | P102: 0 | Q102: 12 | R102: 0 | S102: 0 | T102: 0 | U102: 0 | V102: 0 | W102: 0 | X102: 0 | Y102: 0 | Z102: 0 | AA102: 21
C103: =C18*C$90 -> 24 | D103: 12 | E103: 27 | F103: 30 | G103: 0 | H103: 0 | I103: 0 | J103: 15 | K103: 0 | M103: 12 | N103: 8 | O103: 12 | P103: 0 | Q103: 15 | R103: 0 | S103: 0 | T103: 0 | U103: 0 | V103: 0 | W103: 0 | X103: 0 | Y103: 0 | Z103: 0 | AA103: 21
C104: =C19*C$90 -> 24 | D104: 12 | E104: 27 | F104: 30 | G104: 0 | H104: 0 | I104: 0 | J104: 15 | K104: 0 | M104: 15 | N104: 8 | O104: 16 | P104: 0 | Q104: 15 | R104: 0 | S104: 0 | T104: 0 | U104: 0 | V104: 0 | W104: 0 | X104: 0 | Y104: 0 | Z104: 0 | AA104: 28
C105: =C20*C$90 -> 24 | D105: 16 | E105: 27 | F105: 30 | G105: 0 | H105: 0 | I105: 0 | J105: 15 | K105: 0 | M105: 15 | N105: 10 | O105: 16 | P105: 0 | Q105: 9 | R105: 0 | S105: 0 | T105: 0 | U105: 0 | V105: 0 | W105: 0 | X105: 0 | Y105: 0 | Z105: 0 | AA105: 28
C106: =C21*C$90 -> 32 | D106: 20 | E106: 36 | F106: 50 | G106: 0 | H106: 0 | I106: 0 | J106: 25 | K106: 0 | M106: 15 | N106: 10 | O106: 20 | P106: 0 | Q106: 15 | R106: 0 | S106: 0 | T106: 0 | U106: 0 | V106: 0 | W106: 0 | X106: 0 | Y106: 0 | Z106: 0 | AA106: 35
C107: =C22*C$90 -> 24 | D107: 12 | E107: 27 | F107: 30 | G107: 0 | H107: 0 | I107: 0 | J107: 15 | K107: 0 | M107: 15 | N107: 10 | O107: 16 | P107: 0 | Q107: 9 | R107: 0 | S107: 0 | T107: 0 | U107: 0 | V107: 0 | W107: 0 | X107: 0 | Y107: 0 | Z107: 0 | AA107: 28
C108: =C23*C$90 -> 32 | D108: 16 | E108: 36 | F108: 40 | G108: 0 | H108: 0 | I108: 0 | J108: 20 | K108: 0 | M108: 15 | N108: 10 | O108: 20 | P108: 0 | Q108: 15 | R108: 0 | S108: 0 | T108: 0 | U108: 0 | V108: 0 | W108: 0 | X108: 0 | Y108: 0 | Z108: 0 | AA108: 35
C109: =C24*C$90 -> 24 | D109: 12 | E109: 36 | F109: 30 | G109: 0 | H109: 0 | I109: 0 | J109: 15 | K109: 0 | M109: 15 | N109: 10 | O109: 12 | P109: 0 | Q109: 9 | R109: 0 | S109: 0 | T109: 0 | U109: 0 | V109: 0 | W109: 0 | X109: 0 | Y109: 0 | Z109: 0 | AA109: 35
C110: =C25*C$90 -> 24 | D110: 12 | E110: 27 | F110: 30 | G110: 0 | H110: 0 | I110: 0 | J110: 15 | K110: 0 | M110: 12 | N110: 10 | O110: 16 | P110: 0 | Q110: 12 | R110: 0 | S110: 0 | T110: 0 | U110: 0 | V110: 0 | W110: 0 | X110: 0 | Y110: 0 | Z110: 0 | AA110: 28
C111: =C26*C$90 -> 24 | D111: 12 | E111: 27 | F111: 30 | G111: 0 | H111: 0 | I111: 0 | J111: 15 | K111: 0 | M111: 12 | N111: 10 | O111: 16 | P111: 0 | Q111: 15 | R111: 0 | S111: 0 | T111: 0 | U111: 0 | V111: 0 | W111: 0 | X111: 0 | Y111: 0 | Z111: 0 | AA111: 28
C112: =C27*C$90 -> 24 | D112: 12 | E112: 27 | F112: 30 | G112: 0 | H112: 0 | I112: 0 | J112: 15 | K112: 0 | M112: 12 | N112: 8 | O112: 16 | P112: 0 | Q112: 15 | R112: 0 | S112: 0 | T112: 0 | U112: 0 | V112: 0 | W112: 0 | X112: 0 | Y112: 0 | Z112: 0 | AA112: 28
C113: =C28*C$90 -> 24 | D113: 16 | E113: 27 | F113: 30 | G113: 0 | H113: 0 | I113: 0 | J113: 15 | K113: 0 | M113: 15 | N113: 10 | O113: 16 | P113: 0 | Q113: 15 | R113: 0 | S113: 0 | T113: 0 | U113: 0 | V113: 0 | W113: 0 | X113: 0 | Y113: 0 | Z113: 0 | AA113: 21
C114: =C29*C$90 -> 32 | D114: 20 | E114: 45 | F114: 40 | G114: 0 | H114: 0 | I114: 0 | J114: 25 | K114: 0 | M114: 12 | N114: 10 | O114: 16 | P114: 0 | Q114: 15 | R114: 0 | S114: 0 | T114: 0 | U114: 0 | V114: 0 | W114: 0 | X114: 0 | Y114: 0 | Z114: 0 | AA114: 35
C115: =C30*C$90 -> 24 | D115: 12 | E115: 27 | F115: 30 | G115: 0 | H115: 0 | I115: 0 | J115: 15 | K115: 0 | M115: 15 | N115: 10 | O115: 16 | P115: 0 | Q115: 12 | R115: 0 | S115: 0 | T115: 0 | U115: 0 | V115: 0 | W115: 0 | X115: 0 | Y115: 0 | Z115: 0 | AA115: 35
C116: =C31*C$90 -> 24 | D116: 12 | E116: 27 | F116: 30 | G116: 0 | H116: 0 | I116: 0 | J116: 15 | K116: 0 | M116: 15 | N116: 8 | O116: 16 | P116: 0 | Q116: 12 | R116: 0 | S116: 0 | T116: 0 | U116: 0 | V116: 0 | W116: 0 | X116: 0 | Y116: 0 | Z116: 0 | AA116: 28
C117: =C32*C$90 -> 24 | D117: 12 | E117: 36 | F117: 40 | G117: 0 | H117: 0 | I117: 0 | J117: 20 | K117: 0 | M117: 15 | N117: 8 | O117: 16 | P117: 0 | Q117: 12 | R117: 0 | S117: 0 | T117: 0 | U117: 0 | V117: 0 | W117: 0 | X117: 0 | Y117: 0 | Z117: 0 | AA117: 28
C118: =C33*C$90 -> 24 | D118: 16 | E118: 27 | F118: 30 | G118: 0 | H118: 0 | I118: 0 | J118: 15 | K118: 0 | M118: 15 | N118: 8 | O118: 16 | P118: 0 | Q118: 9 | R118: 0 | S118: 0 | T118: 0 | U118: 0 | V118: 0 | W118: 0 | X118: 0 | Y118: 0 | Z118: 0 | AA118: 28
C119: =C34*C$90 -> 24 | D119: 16 | E119: 27 | F119: 30 | G119: 0 | H119: 0 | I119: 0 | J119: 15 | K119: 0 | M119: 15 | N119: 10 | O119: 16 | P119: 0 | Q119: 15 | R119: 0 | S119: 0 | T119: 0 | U119: 0 | V119: 0 | W119: 0 | X119: 0 | Y119: 0 | Z119: 0 | AA119: 35
C120: =#REF!*C$90 ->  | D120: =#REF!*D$90 ->  | E120: =#REF!*E$90 ->  | F120: =#REF!*F$90 ->  | G120: =#REF!*G$90 ->  | H120: =#REF!*H$90 ->  | I120: =#REF!*I$90 ->  | J120: =#REF!*J$90 ->  | K120: =#REF!*K$90 ->  | L120: =#REF!*L$90 ->  | M120: =#REF!*M$90 ->  | N120: =#REF!*N$90 ->  | O120: =#REF!*O$90 ->  | P120: =#REF!*P$90 ->  | Q120: =#REF!*Q$90 ->  | R120: =#REF!*R$90 ->  | S120: =#REF!*S$90 ->  | T120: =#REF!*T$90 ->  | U120: =#REF!*U$90 ->  | V120: =#REF!*V$90 ->  | W120: =#REF!*W$90 ->  | X120: =#REF!*X$90 ->  | Y120: =#REF!*Y$90 ->  | Z120: =#REF!*Z$90 ->  | AA120: =#REF!*AA$90 ->  | AB120: =#REF!*AB$90 ->  | AC120: =#REF!*AC$90 ->  | AD120: =#REF!*AD$90 ->  | AE120: =#REF!*AE$90 -> 
C121: =#REF!*C$90 ->  | D121: =#REF!*D$90 ->  | E121: =#REF!*E$90 ->  | F121: =#REF!*F$90 ->  | G121: =#REF!*G$90 ->  | H121: =#REF!*H$90 ->  | I121: =#REF!*I$90 ->  | J121: =#REF!*J$90 ->  | K121: =#REF!*K$90 ->  | L121: =#REF!*L$90 ->  | M121: =#REF!*M$90 ->  | N121: =#REF!*N$90 ->  | O121: =#REF!*O$90 ->  | P121: =#REF!*P$90 ->  | Q121: =#REF!*Q$90 ->  | R121: =#REF!*R$90 ->  | S121: =#REF!*S$90 ->  | T121: =#REF!*T$90 ->  | U121: =#REF!*U$90 ->  | V121: =#REF!*V$90 ->  | W121: =#REF!*W$90 ->  | X121: =#REF!*X$90 ->  | Y121: =#REF!*Y$90 ->  | Z121: =#REF!*Z$90 ->  | AA121: =#REF!*AA$90 ->  | AB121: =#REF!*AB$90 ->  | AC121: =#REF!*AC$90 ->  | AD121: =#REF!*AD$90 ->  | AE121: =#REF!*AE$90 -> 
C122: =#REF!*C$90 ->  | D122: =#REF!*D$90 ->  | E122: =#REF!*E$90 ->  | F122: =#REF!*F$90 ->  | G122: =#REF!*G$90 ->  | H122: =#REF!*H$90 ->  | I122: =#REF!*I$90 ->  | J122: =#REF!*J$90 ->  | K122: =#REF!*K$90 ->  | L122: =#REF!*L$90 ->  | M122: =#REF!*M$90 ->  | N122: =#REF!*N$90 ->  | O122: =#REF!*O$90 ->  | P122: =#REF!*P$90 ->  | Q122: =#REF!*Q$90 ->  | R122: =#REF!*R$90 ->  | S122: =#REF!*S$90 ->  | T122: =#REF!*T$90 ->  | U122: =#REF!*U$90 ->  | V122: =#REF!*V$90 ->  | W122: =#REF!*W$90 ->  | X122: =#REF!*X$90 ->  | Y122: =#REF!*Y$90 ->  | Z122: =#REF!*Z$90 ->  | AA122: =#REF!*AA$90 ->  | AB122: =#REF!*AB$90 ->  | AC122: =#REF!*AC$90 ->  | AD122: =#REF!*AD$90 ->  | AE122: =#REF!*AE$90 -> 
C123: =#REF!*C$90 ->  | D123: =#REF!*D$90 ->  | E123: =#REF!*E$90 ->  | F123: =#REF!*F$90 ->  | G123: =#REF!*G$90 ->  | H123: =#REF!*H$90 ->  | I123: =#REF!*I$90 ->  | J123: =#REF!*J$90 ->  | K123: =#REF!*K$90 ->  | L123: =#REF!*L$90 ->  | M123: =#REF!*M$90 ->  | N123: =#REF!*N$90 ->  | O123: =#REF!*O$90 ->  | P123: =#REF!*P$90 ->  | Q123: =#REF!*Q$90 ->  | R123: =#REF!*R$90 ->  | S123: =#REF!*S$90 ->  | T123: =#REF!*T$90 ->  | U123: =#REF!*U$90 ->  | V123: =#REF!*V$90 ->  | W123: =#REF!*W$90 ->  | X123: =#REF!*X$90 ->  | Y123: =#REF!*Y$90 ->  | Z123: =#REF!*Z$90 ->  | AA123: =#REF!*AA$90 ->  | AB123: =#REF!*AB$90 ->  | AC123: =#REF!*AC$90 ->  | AD123: =#REF!*AD$90 ->  | AE123: =#REF!*AE$90 -> 
C124: =#REF!*C$90 ->  | D124: =#REF!*D$90 ->  | E124: =#REF!*E$90 ->  | F124: =#REF!*F$90 ->  | G124: =#REF!*G$90 ->  | H124: =#REF!*H$90 ->  | I124: =#REF!*I$90 ->  | J124: =#REF!*J$90 ->  | K124: =#REF!*K$90 ->  | L124: =#REF!*L$90 ->  | M124: =#REF!*M$90 ->  | N124: =#REF!*N$90 ->  | O124: =#REF!*O$90 ->  | P124: =#REF!*P$90 ->  | Q124: =#REF!*Q$90 ->  | R124: =#REF!*R$90 ->  | S124: =#REF!*S$90 ->  | T124: =#REF!*T$90 ->  | U124: =#REF!*U$90 ->  | V124: =#REF!*V$90 ->  | W124: =#REF!*W$90 ->  | X124: =#REF!*X$90 ->  | Y124: =#REF!*Y$90 ->  | Z124: =#REF!*Z$90 ->  | AA124: =#REF!*AA$90 ->  | AB124: =#REF!*AB$90 ->  | AC124: =#REF!*AC$90 ->  | AD124: =#REF!*AD$90 ->  | AE124: =#REF!*AE$90 -> 
C125: =#REF!*C$90 ->  | D125: =#REF!*D$90 ->  | E125: =#REF!*E$90 ->  | F125: =#REF!*F$90 ->  | G125: =#REF!*G$90 ->  | H125: =#REF!*H$90 ->  | I125: =#REF!*I$90 ->  | J125: =#REF!*J$90 ->  | K125: =#REF!*K$90 ->  | L125: =#REF!*L$90 ->  | M125: =#REF!*M$90 ->  | N125: =#REF!*N$90 ->  | O125: =#REF!*O$90 ->  | P125: =#REF!*P$90 ->  | Q125: =#REF!*Q$90 ->  | R125: =#REF!*R$90 ->  | S125: =#REF!*S$90 ->  | T125: =#REF!*T$90 ->  | U125: =#REF!*U$90 ->  | V125: =#REF!*V$90 ->  | W125: =#REF!*W$90 ->  | X125: =#REF!*X$90 ->  | Y125: =#REF!*Y$90 ->  | Z125: =#REF!*Z$90 ->  | AA125: =#REF!*AA$90 ->  | AB125: =#REF!*AB$90 ->  | AC125: =#REF!*AC$90 ->  | AD125: =#REF!*AD$90 ->  | AE125: =#REF!*AE$90 -> 
C126: =#REF!*C$90 ->  | D126: =#REF!*D$90 ->  | E126: =#REF!*E$90 ->  | F126: =#REF!*F$90 ->  | G126: =#REF!*G$90 ->  | H126: =#REF!*H$90 ->  | I126: =#REF!*I$90 ->  | J126: =#REF!*J$90 ->  | K126: =#REF!*K$90 ->  | L126: =#REF!*L$90 ->  | M126: =#REF!*M$90 ->  | N126: =#REF!*N$90 ->  | O126: =#REF!*O$90 ->  | P126: =#REF!*P$90 ->  | Q126: =#REF!*Q$90 ->  | R126: =#REF!*R$90 ->  | S126: =#REF!*S$90 ->  | T126: =#REF!*T$90 ->  | U126: =#REF!*U$90 ->  | V126: =#REF!*V$90 ->  | W126: =#REF!*W$90 ->  | X126: =#REF!*X$90 ->  | Y126: =#REF!*Y$90 ->  | Z126: =#REF!*Z$90 ->  | AA126: =#REF!*AA$90 ->  | AB126: =#REF!*AB$90 ->  | AC126: =#REF!*AC$90 ->  | AD126: =#REF!*AD$90 ->  | AE126: =#REF!*AE$90 -> 
C127: =#REF!*C$90 ->  | D127: =#REF!*D$90 ->  | E127: =#REF!*E$90 ->  | F127: =#REF!*F$90 ->  | G127: =#REF!*G$90 ->  | H127: =#REF!*H$90 ->  | I127: =#REF!*I$90 ->  | J127: =#REF!*J$90 ->  | K127: =#REF!*K$90 ->  | L127: =#REF!*L$90 ->  | M127: =#REF!*M$90 ->  | N127: =#REF!*N$90 ->  | O127: =#REF!*O$90 ->  | P127: =#REF!*P$90 ->  | Q127: =#REF!*Q$90 ->  | R127: =#REF!*R$90 ->  | S127: =#REF!*S$90 ->  | T127: =#REF!*T$90 ->  | U127: =#REF!*U$90 ->  | V127: =#REF!*V$90 ->  | W127: =#REF!*W$90 ->  | X127: =#REF!*X$90 ->  | Y127: =#REF!*Y$90 ->  | Z127: =#REF!*Z$90 ->  | AA127: =#REF!*AA$90 ->  | AB127: =#REF!*AB$90 ->  | AC127: =#REF!*AC$90 ->  | AD127: =#REF!*AD$90 ->  | AE127: =#REF!*AE$90 -> 
C128: =#REF!*C$90 ->  | D128: =#REF!*D$90 ->  | E128: =#REF!*E$90 ->  | F128: =#REF!*F$90 ->  | G128: =#REF!*G$90 ->  | H128: =#REF!*H$90 ->  | I128: =#REF!*I$90 ->  | J128: =#REF!*J$90 ->  | K128: =#REF!*K$90 ->  | L128: =#REF!*L$90 ->  | M128: =#REF!*M$90 ->  | N128: =#REF!*N$90 ->  | O128: =#REF!*O$90 ->  | P128: =#REF!*P$90 ->  | Q128: =#REF!*Q$90 ->  | R128: =#REF!*R$90 ->  | S128: =#REF!*S$90 ->  | T128: =#REF!*T$90 ->  | U128: =#REF!*U$90 ->  | V128: =#REF!*V$90 ->  | W128: =#REF!*W$90 ->  | X128: =#REF!*X$90 ->  | Y128: =#REF!*Y$90 ->  | Z128: =#REF!*Z$90 ->  | AA128: =#REF!*AA$90 ->  | AB128: =#REF!*AB$90 ->  | AC128: =#REF!*AC$90 ->  | AD128: =#REF!*AD$90 ->  | AE128: =#REF!*AE$90 -> 
C129: =#REF!*C$90 ->  | D129: =#REF!*D$90 ->  | E129: =#REF!*E$90 ->  | F129: =#REF!*F$90 ->  | G129: =#REF!*G$90 ->  | H129: =#REF!*H$90 ->  | I129: =#REF!*I$90 ->  | J129: =#REF!*J$90 ->  | K129: =#REF!*K$90 ->  | L129: =#REF!*L$90 ->  | M129: =#REF!*M$90 ->  | N129: =#REF!*N$90 ->  | O129: =#REF!*O$90 ->  | P129: =#REF!*P$90 ->  | Q129: =#REF!*Q$90 ->  | R129: =#REF!*R$90 ->  | S129: =#REF!*S$90 ->  | T129: =#REF!*T$90 ->  | U129: =#REF!*U$90 ->  | V129: =#REF!*V$90 ->  | W129: =#REF!*W$90 ->  | X129: =#REF!*X$90 ->  | Y129: =#REF!*Y$90 ->  | Z129: =#REF!*Z$90 ->  | AA129: =#REF!*AA$90 ->  | AB129: =#REF!*AB$90 ->  | AC129: =#REF!*AC$90 ->  | AD129: =#REF!*AD$90 ->  | AE129: =#REF!*AE$90 -> 
C130: =C35*C$90 -> 0 | D130: 0 | E130: 0 | F130: 0 | G130: 0 | H130: 0 | I130: 0 | J130: 0 | K130: 0 | M130: 0 | N130: 0 | O130: 0 | P130: 0 | Q130: 0 | R130: 0 | S130: 0 | T130: 0 | U130: 0 | V130: 0 | W130: 0 | X130: 0 | Y130: 0 | Z130: 0 | AA130: 0

Sheet 5 Б(2) (hidden)
A1: =Титул!B17 -> 5 Б | E1: Страница заполняется автоматически, без участия оператора!!!
A2: Всего учащихся в классе: | D2: =Титул!C17 -> 29 | E2: Фамилии, имена учащихся | F2: Учебные предметы | G2: Фамилии и инициалы учителей | H2: Пояснения, примечания, причины
C3: =COUNTA(E3:E17) -> 1 | E3: Кристалинская Виктория
C18: =COUNTA(E18:E42) -> 7 | E18: Ахмадеев Руслан
E19: Гуляева Кристина
E20: Квецинская Евгения
E21: Полякова Наталья
E22: Яримей Анастасия
E23: Балашова Анастасия
E24: Осипов Арсений
D31: 14
D32: 15
D33: 16
D34: 17
D35: 18
D36: 19
D37: 20
D38: 21
D39: 22
D40: 23
D41: 24
D42: 25
A43: Не аттестованы: | C43: =COUNTA(E43:E52) -> 0 | D43: 1
D44: 2
D45: 3
D46: 4
D47: 5
D48: 6
D49: 7
D50: 8
D51: 9
D52: 10
A53: Не успевают: | C53: =COUNTA(E53:E67) -> 0 | D53: 1
D54: 2
D55: 3
D56: 4
D57: 5
D58: 6
D59: 7
D60: 8
D61: 9
D62: 10
D63: 11
D64: 12
D65: 13
D66: 14
D67: 15
A68: Освобождены: | C68: =COUNTA(E68:E82) -> 0 | D68: 1
D69: 2
D70: 3
D71: 4
D72: 5
D73: 6
D74: 7
D75: 8
D76: 9
D77: 10
D78: 11
D79: 12
D80: 13
D81: 14
D82: 15

Sheet 6 А (hidden)
A1: =[2]Титул!B5 -> 2013/14 учебный год | D1: =[2]Титул!B4 -> МОУ СОШ № 15 | AA1: =Титул!B6 -> 4 четверть | AI1: 3+
A2: ВЕДОМОСТЬ РЕЗУЛЬТАТОВ УЧЕБНОЙ ДЕЯТЕЛЬНОСТИ | Z2: =Титул!B18 -> 6 А | AD2: класса
A3: Классный руководитель: | E3: =[2]Титул!D19 -> Горнышкова Г.В. | S3: Программа: | X3: =[2]Титул!G19 -> общеобразовательный
A4: Вручную вносятся только оценки "5", "4", "3", "2", "1". Не аттестованным проставляется "0", освобожденным - "Н". | C4: У ч е б н ы е п р е д м е т ы | AF4: Результаты ученика:
C5: =Нагрузка!C3 -> Русский язык | D5: =Нагрузка!D3 -> Литература | E5: =Нагрузка!E3 -> Иностранный язык | F5: =Нагрузка!F3 -> Математика | G5: =Нагрузка!G3 -> Алгебра | H5: =Нагрузка!H3 -> Геометрия | I5: =Нагрузка!I3 -> Информатика | J5: =Нагрузка!J3 -> История | K5: =Нагрузка!K3 -> Обществознание | L5: =Нагрузка!L3 -> Окружающий мир | M5: =Нагрузка!M3 -> ИЗО | N5: =Нагрузка!N3 -> Музыка | O5: =Нагрузка!O3 -> Технология | P5: =Нагрузка!P3 -> Технология | Q5: =Нагрузка!Q3 -> ФЗК | R5: =Нагрузка!R3 -> Иностранный язык | S5: =Нагрузка!S3 -> Иностранный язык | T5: =Нагрузка!T3 -> География | U5: =Нагрузка!U3 -> Физика | V5: =Нагрузка!V3 -> Химия | W5: =Нагрузка!W3 -> Биология | X5: =Нагрузка!X3 -> МХК | Y5: =Нагрузка!Y3 -> ФЗК | Z5: =Нагрузка!Z3 -> ОБЖ | AA5: =Нагрузка!AA3 -> Природоведение | AB5: =[2]Нагрузка!AB3 -> 0 | AC5: =[2]Нагрузка!AC3 -> 0 | AD5: =[2]Нагрузка!AD3 -> 0 | AE5: =[2]Нагрузка!AE3 -> 0 | AF5: Средний балл: | AG5: Степень обученности (СОУ): | AH5: Качество успеваемости: | AI5: Рейтинговый учебный балл:
A6: 1 | B6: =СпискиКлассы!K4 -> Бобырева Татьяна | C6: 4 | D6: 4 | E6: 4 | F6: 4 | J6: 4 | K6: 4 | M6: 4 | N6: 5 | O6: 5 | Q6: 4 | T6: 4 | W6: 4 | AF6: =AVERAGE(C6:AE6) -> 4.166666667 | AG6: =(COUNTIF(C6:AE6,"5")+COUNTIF(C6:AE6,"4")*0.64+COUNTIF(C6:AE6,"3")*0.36+COUNTIF(C6:AE6,"2")*0.16)/(COUNTIF(C6:AE6,"5")+COUNTIF(C6:AE6,"4")+COUNTIF(C6:AE6,"3")+COUNTIF(C6:AE6,"2")+COUNTIF(C6:AE6,"0")) -> 0.7 | AH6: =((5*COUNTIF(C6:AE6,"5"))+(4*COUNTIF(C6:AE6,"4")))/(5*(COUNTA(C6:AE6)-COUNTIF(C6:AE6,"н"))) -> 0.8333333333 | AI6: =SUMIF(C91:AE91,">0",C91:AE91)/(COUNTIF(C6:AE6,">0")+COUNTIF(C6:AE6,"=0")+COUNTIF(C6:AE6,"Н")) -> 25.66666667
A7: =A6+1 -> 2 | B7: =СпискиКлассы!K5 -> Бычкова Ирина | C7: 4 | D7: 4 | E7: 4 | F7: 4 | J7: 4 | K7: 5 | M7: 5 | N7: 5 | O7: 5 | Q7: 4 | T7: 4 | W7: 4 | AF7: =AVERAGE(C7:AE7) -> 4.333333333 | AG7: =(COUNTIF(C7:AE7,"5")+COUNTIF(C7:AE7,"4")*0.64+COUNTIF(C7:AE7,"3")*0.36+COUNTIF(C7:AE7,"2")*0.16)/(COUNTIF(C7:AE7,"5")+COUNTIF(C7:AE7,"4")+COUNTIF(C7:AE7,"3")+COUNTIF(C7:AE7,"2")+COUNTIF(C7:AE7,"0")) -> 0.76 | AH7: =((5*COUNTIF(C7:AE7,"5"))+(4*COUNTIF(C7:AE7,"4")))/(5*(COUNTA(C7:AE7)-COUNTIF(C7:AE7,"н"))) -> 0.8666666667 | AI7: 25.91666667
A8: 3 | B8: =СпискиКлассы!K6 -> Волошинович Виктор | C8: 3 | D8: 3 | E8: 3 | F8: 3 | J8: 3 | K8: 3 | M8: 4 | N8: 4 | O8: 4 | Q8: 3 | T8: 3 | W8: 3 | AF8: =AVERAGE(C8:AE8) -> 3.25 | AG8: 0.43 | AH8: 0.2 | AI8: 19.58333333
A9: 4 | B9: =СпискиКлассы!K7 -> Гурская Анна | C9: 3 | D9: 3 | E9: 3 | F9: 3 | J9: 3 | K9: 3 | M9: 5 | N9: 5 | O9: 5 | Q9: 4 | T9: 4 | W9: 4 | AF9: 3.75 | AG9: 0.59 | AH9: 0.45 | AI9: 21.75
A10: 5 | B10: =СпискиКлассы!K8 -> Дерюгин Даниэль | C10: 3 | D10: 3 | E10: 4 | F10: 4 | J10: 3 | K10: 3 | M10: 4 | N10: 5 | O10: 4 | Q10: 4 | T10: 5 | W10: 4 | AF10: 3.833333333 | AG10: 0.6066666667 | AH10: 0.5666666667 | AI10: 23.83333333
A11: 6 | B11: =СпискиКлассы!K9 -> Зайко Роман | C11: 3 | D11: 3 | E11: 4 | F11: 3 | J11: 3 | K11: 3 | M11: 4 | N11: 4 | O11: 4 | Q11: 5 | T11: 3 | W11: 3 | AF11: 3.5 | AG11: 0.5066666667 | AH11: 0.35 | AI11: 21.16666667
